Workbook

Sheet Cover
C9: Victorian Transmission System
C10: ="VTS Tariff Model"&Err_Chks_Msg&Sens_Chks_Msg&Alt_Chks_Msg -> VTS Tariff Model
C11: Go to Table of Contents
C21: Cover Notes:

Sheet Contents
B2: =Model_Name -> VTS Tariff Model
B3: Go to Cover Sheet
A6: é | B6: Section & Sheet Titles
F8: a. | H8: =Model_Changes__BA!B1 -> Model Changes / Comments
B9: 1 | D9: ='Inputs -->'!C9 -> Inputs
F10: a. | H10: =TS_BA!B1 -> Time Series Assumptions
F11: b. | H11: =General_BA!B1 -> General Assumptions
F12: c. | H12: =WACC_BA!B1 -> WACC Assumptions
F13: d. | H13: =Pipeline_BA!B1 -> Pipeline Distances Inputs
F14: e. | H14: =Working_Capital_BA!B1 -> Working Capital Assumptions
F15: f. | H15: =Opex_Forecast_BA!B1 -> Base Case - Operating Cost Forecasts
F16: g. | H16: =Scope_Changes_BA!B1 -> Scope Change Forecasts
F17: h. | H17: =Volume_Assumptions_BA!B1 -> Volume Forecast Assumptions
F18: i. | H18: =RAB_Model_BO!B1 -> RAB Model Inputs
B19: 2 | D19: ='Input Format -->'!C9 -> Input Format
F20: a. | H20: =WACC_BO!B1 -> WACC Outputs
F21: b. | H21: ='O&M_Workings_BO'!B1 -> O&M Workings
F22: c. | H22: ='O&M_Regulatory_TO'!B1 -> O&M Summary
F23: d. | H23: =Withdrawal_Volumes_Forecasts_BO!B1 -> Withdrawal Forecast Summary
B24: 3 | D24: ='Meter Calcs -->'!C9 -> Withdrawal Volumes
F25: a. | H25: =Vencorp_Summary_BO!B1 -> Summary - Vencorp Forecasts
F26: b. | H26: =Power_Station_BO!B1 -> Withdrawal Volumes - Power Station
F27: c. | H27: =Annual_CTM_BO!B1 -> Annual CTM
F28: d. | H28: =Tariff_V_BO!B1 -> Withdrawal Volumes - Tariff V
F29: e. | H29: =Tariff_D_BO!B1 -> Withdrawal Volumes - Tariff D
F30: f. | H30: =Exports_BO!B1 -> Withdrawal Volume - Exports
F31: g. | H31: =WithdrawalVol_Summary_BO!B1 -> Withdrawal Volume - Summary Output
... 38 more rows

Sheet Model_Changes__BA
B1: Model Changes / Comments
B2: =Model_Name -> VTS Tariff Model
B3: Go to Table of Contents
A4: é | B4: ç | C4: è
F6: Some of the Key model changes/comments are detailed below.
C9: 1 | F9: Volumes changed to reflect the revised proposal - see submission.
F10: Tariff V Volumes are adjusted in line with the Victoria DB's forecasts
F11: Tariff D Volumes are based on AEMO's latest forecasts
F12: Other volume adjustments (exports & GPG) are in line with the Draft Decision
C14: 2 | F14: Creation of new asset zones - 30 Anglesea and 31 Kakallo
F15: In this instance Kakallo has not been utilised.
C17: 3 | F17: For the Gas to Culcairn project, this can be split into two portions - looping (pipelines) and the MAOP upgrade (city gates & regulators)
F18: The costs are individually recovered as seen in the RAB_Model_BO sheet.
C20: 4 | F20: APA has reversed the adjustment AER has made to the Geelong zone to account for the introduction of the Anglesea pipeline
F21: AER had previously adjusted the distance for the Geelong zone to 0.5 km. This is no longer relevant as APA has created a new asset zone for this asset and amended the flowpaths to reflect this change.
C23: 5 | F23: Addition of the Warragul pipeline
C25: 6 | F25: Adjustment to ORC values. APA has amended the ORC values to be consistent. AER raised an issue with the ORC allocation for zone 13. APA has amended this in line with the asset class.
F26: Further information can be determined in the ORC value spreadsheet and in the submission.
C28: 7 | F28: APA has amended the formula in Withdrawal_Volumes_Forecasts_BO row 8 to reflect the proper gas flows.
C30: 8 | F30: For the northern zones, APA has ensured that all gas is flowing from Port Campbell. There is some Longford gas flowing to Geelong.
C32: 9 | F32: APA has amended the volumes in the Western Zone as the Iluka meter was receiving costs from Longford.
C34: 10 | F34: APA agrees with AER's assertion that the prudent discounts are normally capped at 100% of the indirect costs. However, the use of the percentages applied to the indirect costs is is also used as a mechanism for APA to apply prudent discounts. In several cases, the bypass tariff remains lower than the direct cost tariff and therefore, APA has to apply a % in excess of 100% to ensure the appropriate prudent discount has been applied. This is consistent with AER's approach as the Draft Decision which approved the relevant prudent discount tariffs.
C38: 11 | F38: APA has allocated the compressor costs and step changes directly to the zones to ensure that the costs are properly allocated.
C40: 12 | F40: APA has smoothed the tariffs to be flat over the 5 year period.
C42: 13 | F42: APA has followed the AER requirement to allocate indirect costs to the Northern zones and Culcairn to the extent necessary to generate acceptable tariffs. Under the current situation this results in a zero allocation. Further information can be found in the submission.
C44: 14 | F44: The definition of capacity at Culcairn is the capacity available for exports from the VTS when the VTS is at capacity, ie, on a 1 in 20 peak day. The ability of the VTS to support exports on any day with lower system demand is greater than this published capacity. This is explicitly recognised in the RIN where both a winter and a higher Summer capacity are published. Because the VTS is a Winter peaking system the capacity limitations are shown for the Winter. This means that demand at Culcairn, which is much higher in Summer, can cause the load factor calculated against the Winter capacity to seem impossibly high and daily flows can be greater than the defined Winter capacity
C45: 15 | F45: On Power_Station_BO tab, have used 2015 actuals. Then used the percentage breakdown of each power station in 2015 actuals, broken down the forecasts for each Power station using AEMO total forecasts.
C51: 2021 Changes
C53: 16 | F53: Pipeline_BA tab distance column has been linked to the Pipeline Distance File

Sheet Inputs -->
C9: Inputs
C10: Section 1.
C11: =Model_Name -> VTS Tariff Model
C12: Go to Table of Contents
C13: ç | D13: è
C17: Section Cover Notes:
C18: General inputs that feed into the breakdown of cost allocations per meter.
C19: General assumptions regarding WACC, Dates and Allocations

Sheet TS_BA
B1: Time Series Assumptions
B2: =Model_Name -> VTS Tariff Model
B3: Go to Table of Contents
A4: é | B4: ç | C4: è
B7: Time Series Assumptions | J7: Inputs To be updated
C9: Core Time Series Assumptions
D11: Title | J11: Primary
D12: Periodicity | J12: =Annual -> Annual
D13: Financial Year End | J13: 31 | K13: 12
D14: Start Date | J14: 2023-01-01
D15: Periods | J15: 6
D16: Period Type | J16: =INDEX(LU_Period_Type_Names,MATCH(TS_Periodicity,LU_Periodicity,0)) -> Year
D17: Period Type Prefix | J17: =CHOOSE(MATCH(TS_Periodicity,LU_Periodicity,0),Yr_Name,"H","Q","M") -> Year
D18: Financial Year End Is Month End? | J18: =OR(AND(DD_TS_Fin_YE_Day>=28,DD_TS_Fin_YE_Mth=2), DD_TS_Fin_YE_Day>=DAY(EOMONTH(DATE(YEAR(TS_Start_Date),DD_TS_Fin_YE_Mth,1),0))) -> TRUE
D19: First Period Financial Year Start Date | J19: =IF(TS_Mth_End,DATE(YEAR(TS_Per_1_FY_End_Date)-IF(TS_Per_1_FY_End_Date=EOMONTH(DATE(YEAR(TS_Per_1_FY_End_Date),Mths_In_Yr,1),0),0,1),MOD(MONTH(TS_Per_1_FY_End_Date),Mths_In_Yr)+1,1), EDATE(TS_Per_1_FY_End_Date,-Mths_In_Yr)+1) -> 2023-01-01
D20: First Period Financial Year End Date | J20: =IF(TS_Mth_End,EOMONTH(DATE(YEAR(TS_Start_Date)+IF(MONTH(TS_Start_Date)>DD_TS_Fin_YE_Mth,1,0),DD_TS_Fin_YE_Mth,1),0), DATE(YEAR(TS_Start_Date)+IF(TS_Start_Date>DATE(YEAR(TS_Start_Date),DD_TS_Fin_YE_Mth,DD_TS_Fin_YE_Day),1,0),DD_TS_Fin_YE_Mth,DD_TS_Fin_YE_Day)) -> 2023-12-31
D21: Periods In Year | J21: =INDEX(LU_Pers_In_Yr,MATCH(TS_Periodicity,LU_Periodicity,0)) -> 1
D22: Months In Period | J22: =Mths_In_Yr/TS_Pers_In_Yr -> 12
D23: First Period Financial Period Number | J23: =INT((((YEAR(TS_Start_Date)-YEAR(TS_Per_1_FY_Start_Date))*Mths_In_Yr+MONTH(TS_Start_Date)-MONTH(TS_Per_1_FY_Start_Date)+1 +IF(TS_Mth_End,0, IF(TS_Start_Date>(EDATE(TS_Per_1_FY_Start_Date,(YEAR(TS_Start_Date)-YEAR(TS_Per_1_FY_Start_Date))*Mths_In_Yr+MONTH(TS_Start_Date)-MONTH(TS_Per_1_FY_Start_Date)+1)-1),1,0) -IF(TS_Start_Date<EDATE(TS_Per_1_FY_Start_Date,(YEAR(TS_Start_Date)-YEAR(TS_Per_1_FY_Start_Date))*Mths_In_Yr+MONTH(TS_Start_Date)-MONTH(TS_Per_1_FY_Start_Date)),1,0)))-1)/TS_Mths_In_Per)+1 -> 1
D24: First Period Start Date (If Full Period) | J24: =IF(TS_Mth_End,EOMONTH(EDATE(TS_Per_1_FY_Start_Date,(TS_Per_1_Number-1)*TS_Mths_In_Per-1),0)+1, EDATE(TS_Per_1_FY_Start_Date,(TS_Per_1_Number-1)*TS_Mths_In_Per)) -> 2023-01-01
D25: First Period End Date | J25: =IF(TS_Mth_End,EOMONTH(EDATE(TS_Per_1_FY_Start_Date,TS_Per_1_Number*TS_Mths_In_Per-1),0), EDATE(TS_Per_1_FY_Start_Date,TS_Per_1_Number*TS_Mths_In_Per)-1) -> 2023-12-31
D26: Denomination | J26: 2
D27: Denomination Label | J27: =INDEX(LU_Denom,DD_TS_Denom) -> $Millions
C29: Historical & Forecast Period Titles
D31: Include in Period Titles? | J31: TRUE
D32: Actual Periods | J32: 1
D33: Budget Periods | J33: 0
D34: Historical / Actual Periods Title | J34: (A)
D35: Budget Periods Title | J35: (B)
D36: Forecast Period Title | J36: (F)
C38: Data & Projections - Timing Assumptions
D40: Data Term Basis | J40: 1
D41: Data - Active Periods | J41: 5
D42: Projections - Start Date | J42: 2023-01-01
D44: Data Time Series Sheets
E46: Data End Date | J46: =TS_Proj_Start_Date-1 -> 2027-12-31
E47: Total Data Periods | J47: 0
E48: Full Data Periods | J48: =IF(TS_Data_Total_Pers=0,0, TS_Data_Total_Pers-IF(TS_Data_End_Date<>IF(TS_Data_Total_Pers=1,TS_Per_1_End_Date, IF(TS_Mth_End,EOMONTH(EDATE(TS_Per_1_FY_Start_Date,(TS_Per_1_Number+TS_Data_Total_Pers-1)*TS_Mths_In_Per-1),0), EDATE(TS_Per_1_FY_Start_Date,(TS_Per_1_Number+TS_Data_Total_Pers-1)*TS_Mths_In_Per)-1)),1,0)) -> 0
E49: Final Data Period Is Stub | J49: =IF(TS_Data_End_Date<TS_Start_Date,FALSE, IF(TS_Data_End_Date=TS_Per_1_End_Date,IF(TS_Start_Date<>TS_Per_1_Start_Date,TRUE,FALSE), IF(TS_Data_End_Date<TS_Per_1_End_Date,TRUE, IF(TS_Data_End_Date<>IF(TS_Data_Total_Pers=1,TS_Per_1_End_Date, IF(TS_Mth_End,EOMONTH(EDATE(TS_Per_1_FY_Start_Date,(TS_Per_1_Number+TS_Data_Total_Pers-1)*TS_Mths_In_Per-1),0),EDATE(TS_Per_1_FY_Start_Date,(TS_Per_1_Number+TS_Data_Total_Pers-1)*TS_Mths_In_Per)-1)),TRUE,FALSE)))) -> TRUE
D51: Projections Time Series Sheets
E53: Projections Start Date | J53: =IF(DD_TS_Data_Term_Basis=1,IF(TS_Mth_End,EOMONTH(EDATE(TS_Per_1_FY_Start_Date,(TS_Per_1_Number+TS_Data_Pers_Ass-1)*TS_Mths_In_Per-1),0), EDATE(TS_Per_1_FY_Start_Date,(TS_Per_1_Number+TS_Data_Pers_Ass-1)*TS_Mths_In_Per)-1)+1,TS_Proj_Start_Date_Ass) -> 2028-01-01
E54: First Period Financial Year Start Date | J54: =IF(TS_Mth_End,DATE(YEAR(TS_Proj_Per_1_FY_End_Date)-IF(TS_Proj_Per_1_FY_End_Date=EOMONTH(DATE(YEAR(TS_Proj_Per_1_FY_End_Date),Mths_In_Yr,1),0),0,1),MOD(MONTH(TS_Proj_Per_1_FY_End_Date),Mths_In_Yr)+1,1), EDATE(TS_Proj_Per_1_FY_End_Date,-Mths_In_Yr)+1) -> 2028-01-01
E55: First Period Financial Year End Date | J55: =IF(TS_Mth_End,EOMONTH(DATE(YEAR(TS_Proj_Start_Date)+IF(MONTH(TS_Proj_Start_Date)>DD_TS_Fin_YE_Mth,1,0),DD_TS_Fin_YE_Mth,1),0), DATE(YEAR(TS_Proj_Start_Date)+IF(TS_Proj_Start_Date>DATE(YEAR(TS_Proj_Start_Date),DD_TS_Fin_YE_Mth,DD_TS_Fin_YE_Day),1,0),DD_TS_Fin_YE_Mth,DD_TS_Fin_YE_Day)) -> 2028-12-31
E56: First Period Financial Period Number | J56: =INT((((YEAR(TS_Proj_Start_Date)-YEAR(TS_Proj_Per_1_FY_Start_Date))*Mths_In_Yr+MONTH(TS_Proj_Start_Date)-MONTH(TS_Proj_Per_1_FY_Start_Date)+1 +IF(TS_Mth_End,0, IF(TS_Proj_Start_Date>(EDATE(TS_Proj_Per_1_FY_Start_Date,(YEAR(TS_Proj_Start_Date)-YEAR(TS_Proj_Per_1_FY_Start_Date))*Mths_In_Yr+MONTH(TS_Proj_Start_Date)-MONTH(TS_Proj_Per_1_FY_Start_Date)+1)-1),1,0) -IF(TS_Proj_Start_Date<EDATE(TS_Proj_Per_1_FY_Start_Date,(YEAR(TS_Proj_Start_Date)-YEAR(TS_Proj_Per_1_FY_Start_Date))*Mths_In_Yr+MONTH(TS_Proj_Start_Date)-MONTH(TS_Proj_Per_1_FY_Start_Date)),1,0))) -1)/TS_Mths_In_Per)+1 -> 1
E57: First Period Start Date (If Full Period) | J57: =IF(TS_Mth_End,EOMONTH(EDATE(TS_Proj_Per_1_FY_Start_Date,(TS_Proj_Per_1_Number-1)*TS_Mths_In_Per-1),0)+ 1,EDATE(TS_Proj_Per_1_FY_Start_Date,(TS_Proj_Per_1_Number-1)*TS_Mths_In_Per)) -> 2028-01-01
E58: First Period End Date | J58: =IF(TS_Mth_End,EOMONTH(EDATE(TS_Proj_Per_1_FY_Start_Date,TS_Proj_Per_1_Number*TS_Mths_In_Per-1),0), EDATE(TS_Proj_Per_1_FY_Start_Date,TS_Proj_Per_1_Number*TS_Mths_In_Per)-1) -> 2028-12-31
C60: Notes:
C61: - | D61: A Financial Year End assumption of 28th of February is assumed to be a month end financial year end, even in a leap year.
C62: - | D62: The "Model Denomination" assumption will not necessarily automatically change the denomination of the outputs of this model.
C63: - | D63: A "Budget Period" refers to either a period in the current financial year or periods containing combined actual and forecast data.
C64: - | D64: "Data & Projections - Timing Assumptions" are used as the basis for related data and projections time series sheets.
C65: - | D65: Use the bpmToolbox "Update Time Series Columns" tool to hide inactive data and projections time series periods.

Sheet General_BA
B1: General Assumptions
B2: =Model_Name -> VTS Tariff Model | K2: Inputs updated per PTRM File on October 2021
B3: Go to Table of Contents
A4: é | B4: ç | C4: è
J5: Calendar Year
J6: =Working_Capital_BA!I4 -> 2022 | K6: =J6+1 -> 2023 | L6: =K6+1 -> 2024 | M6: =L6+1 -> 2025 | N6: =M6+1 -> 2026 | O6: =N6+1 -> 2027
C7: Inflation Assumption over 5 years | H7: 0.03246990753 | J7: 0.08 | K7: 0.0475 | L7: 0.0325 | M7: 0.03 | N7: 0.0275 | O7: 0.025
C9: Peak Day Calculation
D11: Peak | H11: 0.525
D12: Annual | H12: =1-H11 -> 0.475
C14: WACC (Nominal) : | H14: =I14 -> 0.05548801785 | I14: =WACC_BA!I25 -> 0.05548801785
C16: X-factor (1) : | H16: 0 | J16: =CPI -> 0.03246990753
C17: X-factor (2) : | H17: 0 | J17: =CPI -> 0.03246990753
C20: Input Annual X-Factors | L20: -0.05 | M20: -0.03 | N20: -0.03 | O20: -0.01 | Q20: For use in <Tariff Calc BO>

Sheet WACC_BA
B1: WACC Assumptions
B2: =Model_Name -> VTS Tariff Model | I2: Inputs Updated per latest PTRM as Linked
B3: Go to Table of Contents
A4: é | B4: ç | C4: è
C6: WACC Assumptions
D8: Nominal Risk Free Rate (Rf) | I8: 0.0379
D9: Inflation Rate | I9: 0.0325
D10: Cost of Debt Margin over rf | I10: 0.005
D11: Cost of raising debt | I11: 0.0009
D12: Nominal pre-tax cost of debt | I12: 0.0429 | K12: Return on Debt | L12: =I12 -> 0.0429
D13: Market Risk Premium | I13: =[1]RAB_Model_BO!BI40 -> 0.061
D14: Corporate Tax Rate | I14: =[1]RAB_Model_BO!BI41 -> 0.3
D15: Effective Tax Rate for Equity (From Relevant Cash flows) | I15: 0.2709
D16: Effective Tax Rate for Debt (Effective Debt Shield) | I16: 0.2921
D17: Proportion of Franking Credits or Gamma | I17: =[1]RAB_Model_BO!BI44 -> 0.585
D18: LT Proportion of Equity Funding | I18: =[1]RAB_Model_BO!BI45 -> 0.4
D19: LT Proportion of Debt Funding | I19: =[1]RAB_Model_BO!BI46 -> 0.6
D20: Equity Beta | I20: =[1]RAB_Model_BO!BI47 -> 0.6
C22: WACC Output
D23: Pre-tax nominal return on equity | I23: =I24*(1/(1-I15*(1-I17))) -> 0.08449975861
D24: Post-tax nominal return on equity | I24: =ROUND(I8+I13*I20,3) -> 0.075
D25: Nominal Vanilla WACC | I25: =K25 -> 0.05548801785 | K25: 0.05548801785
D26: Real Vanilla WACC | I26: =(1+I25)/(1+I9)-1 -> 0.02226442407
D27: Pre-Tax Nominal WACC | I27: =I24*(1/(1-I15*(1-I17)))*I18+I12*I19 -> 0.05953990344
D28: Pre-Tax Real WACC | I28: =(1+I27)/(1+I9)-1 -> 0.02618876847

Sheet Pipeline_BA
B1: Pipeline Distances Inputs
B2: =Model_Name -> VTS Tariff Model | I2: Updated per Distance File Linked
B3: Go to Table of Contents
A4: é | B4: ç | C4: è
K5: Linked to Dist. File
K6: per Friday session
C7: Zone # | D7: Zones | G7: Tariff Zones | H7: Start Location | I7: End Location | K7: Pipeline length (kms) | M7: Allocation % | O7: Compressor Switches | P7: CG & Regulator Switch | Q7: Pipeline Switch | S7: Comments
C9: 1 | D9: 1 Longford to Tyers (loop end) | G9: LaTrobe | H9: Longford | I9: Tyers (end loop) | K9: =[2]Pipeline_BA!$K9 -> 64.7847 | M9: 1 | O9: 1 | P9: 1 | Q9: 1
C10: 2 | D10: 2 Tyers (loop end) to Bunyip | G10: West Gippsland | H10: Tyers (end loop) | I10: Bunyip | K10: =[2]Pipeline_BA!$K10 -> 62.0923 | M10: 1 | O10: 1 | P10: 1 | Q10: 1
C11: 3 | D11: 3 Tyers to Morwell & Maryvale lateral | G11: Maryvale | H11: Maryvale lateral | K11: =[2]Pipeline_BA!$K11 -> 5.4 | M11: 1 | O11: 0 | P11: 0 | Q11: 1
C12: 3 | D12: 3 Tyers to Morwell & Maryvale lateral | G12: Tyers | H12: Tyers | I12: Morwell | K12: =[2]Pipeline_BA!$K12 -> 20.63046 | M12: 1 | O12: 1 | P12: 1 | Q12: 1
C13: 3 | D13: 3 Tyers to Morwell & Maryvale lateral | G13: LaTrobe | H13: Latrobe | I13: Morwell | K13: =[2]Pipeline_BA!$K13 -> 0 | M13: 1 | O13: 0 | P13: 0 | Q13: 0
C14: 4 | D14: 4 Lurgi pipeline plus laterals | G14: Lurgi | H14: Morwell | I14: Healsville - Koo Wee Rup Rd | K14: =[2]Pipeline_BA!$K14 -> 97.74857 | M14: 1 | O14: 1 | P14: 0 | Q14: 1
C15: 4 | D15: 4 Lurgi pipeline plus laterals | G15: Metro | H15: Healsville - Koo Wee Rup Rd | I15: Dandenong | K15: =[2]Pipeline_BA!$K15 -> 30.62093 | M15: 1 | O15: 0 | P15: 1 | Q15: 1
C16: 5 | D16: 5 Bunyip to Pakenham | G16: Metro | H16: Bunyip | I16: Pakenham | K16: =[2]Pipeline_BA!$K16 -> 18.6693 | M16: 1 | O16: 1 | P16: 1 | Q16: 1
C17: 6 | D17: 6 Pakenham to Wollert | G17: Metro | H17: Pakenham | I17: Wollert | K17: =[2]Pipeline_BA!$K17 -> 92.4117 | M17: 1 | O17: 1 | P17: 1 | Q17: 1
C18: 7 | D18: 7 Pakenham to Dandenong | G18: Metro | H18: Pakenham | I18: Dandenong | K18: =[2]Pipeline_BA!$K18 -> 27.9937 | M18: 1 | O18: 1 | P18: 1 | Q18: 1
C19: 8 | D19: 8 Dandenong to St. Kilda | G19: Metro | H19: Dandenong | I19: St Kilda | K19: =[2]Pipeline_BA!$K19 -> 36.1183 | M19: 1 | O19: 1 | P19: 1 | Q19: 1
C20: 9 | D20: 9 St. Kilda to Werribee | G20: Metro | H20: St Kilda | I20: Werribee | K20: =[2]Pipeline_BA!$K20 -> 37.5682 | M20: 1 | O20: 0.15 | P20: 1 | Q20: 1 | R20: Brooklyn Compressor costs split - (estimate)
C21: 10 | D21: 10 Werribee to Geelong | G21: Metro | H21: Werribee | I21: Little River | K21: =[2]Pipeline_BA!$K21 -> 17.5975 | M21: 1 | O21: 1 | P21: 1 | Q21: 1
C22: 10 | D22: 10 Werribee to Geelong | G22: Metro | H22: Little River | I22: Geelong | K22: =[2]Pipeline_BA!$K22 -> 18.1277 | M22: 1 | O22: 1 | P22: 1 | Q22: 1
C23: 11 | D23: 11 Brooklyn to Ballan Junction | G23: Metro | H23: Brooklyn | I23: Melton South City Gate | K23: =[2]Pipeline_BA!$K23 -> 26.245 | M23: 1 | O23: 0.85 | P23: 1 | Q23: 1 | R23: Brooklyn Compressor costs split - (estimate)
C24: 11 | D24: 11 Brooklyn to Ballan Junction | G24: Calder | H24: Melton South City Gate | I24: Ballan Junction | K24: =[2]Pipeline_BA!$K24 -> 40.3542 | M24: 1 | O24: 0 | P24: 1 | Q24: 1
C25: 12 | D25: 12 Ballan Junction to Ballarat | G25: Calder | H25: Ballan Jctn | I25: Ballarat | K25: =[2]Pipeline_BA!$K25 -> 22.6004 | M25: 1 | O25: 1 | P25: 1 | Q25: 1
C26: 13 | D26: 13 Wollert to Euroa | G26: South Hume | H26: Wollert | I26: Euroa | K26: =[2]Pipeline_BA!$K26 -> 124.3139 | M26: 0.2 | O26: 1 | P26: 1 | Q26: 1
C27: 14 | D27: 14 Ballan Junction to Daylesford Jctn | G27: Calder | H27: Ballan Junction | I27: Daylesford Junction | K27: =[2]Pipeline_BA!$K27 -> 39.9597 | M27: 1 | O27: 1 | P27: 1 | Q27: 1
C28: 15 | D28: 15 Daylesford Junction to Bendigo | G28: Calder | H28: Daylesford Junction | I28: Bendigo | K28: =[2]Pipeline_BA!$K28 -> 50.7336 | M28: 1 | O28: 1 | P28: 1 | Q28: 1
C29: 16 | D29: 16 Guilford to Maryborough | G29: Calder | H29: Guildford | I29: Maryborough | K29: =[2]Pipeline_BA!$K29 -> 31.3668 | M29: 1 | O29: 1 | P29: 1 | Q29: 1
C30: 17 | D30: 17 Wandong to Daylesford Junction | G30: Calder | H30: Wandong | I30: Daylesford Junction | K30: =[2]Pipeline_BA!$K30 -> 84.0628 | M30: 1 | O30: 1 | P30: 1 | Q30: 1
C31: 18 | D31: 18 Euroa to Wodonga | G31: North Hume | H31: Euroa | I31: Barnawartha City Gate | K31: =[2]Pipeline_BA!$K31 -> 134.1846 | M31: 1 | O31: 0.85 | P31: 1 | Q31: 1 | R31: Euroa Compressor costs split - (estimate)
C32: 18 | D32: 18 Euroa to Wodonga | G32: Wodonga | H32: Barnawartha City Gate | I32: Wodonga | K32: =[2]Pipeline_BA!$K32 -> 10.6693 | M32: 1 | O32: 0 | P32: 0 | Q32: 1
C33: 19 | D33: 19 Euroa to Kyabram | G33: Echuca | H33: Euroa | I33: Kyabram | K33: =[2]Pipeline_BA!$K33 -> 71.9217 | M33: 1 | O33: 0.15 | P33: 1 | Q33: 1 | R33: Euroa Compressor costs split - (estimate)
C34: 20 | D34: 20 Kyabram to Echuca | G34: Echuca | H34: Kyabram | I34: Echuca | K34: =[2]Pipeline_BA!$K34 -> 30.6476 | M34: 1 | O34: 1 | P34: 1 | Q34: 1
C35: 21 | D35: 21 Wollert to Keon Park | G35: Metro | H35: Wollert | I35: Keon Park | K35: =[2]Pipeline_BA!$K35 -> 18.8452 | M35: 1 | O35: 1 | P35: 1 | Q35: 1
C36: 22 | D36: 22 Deer Park to Sunbury | G36: Metro | H36: Deer Park | I36: Sunbury | K36: =[2]Pipeline_BA!$K36 -> 24.0279 | M36: 1 | O36: 1 | P36: 1 | Q36: 1
C37: 23 | D37: 23 Paaratte to Portland | G37: Western | H37: North Paaratte | I37: Portland | K37: =[2]Pipeline_BA!$K37 -> 216.9792 | M37: 1 | O37: 1 | P37: 1 | Q37: 1
C38: 29 | D38: 29 WORM | G38: Metro | H38: Plumpton | I38: Wollert | K38: =[2]Pipeline_BA!$K38 -> 59.529 | M38: 0.01 | O38: 1 | P38: 1 | Q38: 1
C39: 30 | D39: 30 Anglesea | G39: Geelong
C40: 31 | D40: 31 Kalkallo | G40: Metro
C41: 51 | D41: 51 Interconnect | G41: Interconnect | H41: Barnawartha | I41: Culcairn
C42: 52 | D42: 52 South West Pipeline | G42: South West | H42: Iona | I42: North Paaratte
C43: 28 | D43: 28 Brooklyn Corio Loop | G43: Metro | H43: Brooklyn | I43: Lara | K43: =[2]Pipeline_BA!$K$43 -> 58 | M43: 0.1 | O43: 1 | P43: 1 | Q43: 1
C44: 28 | D44: 28 Brooklyn Corio Loop | G44: Metro | H44: Brooklyn | I44: Lara | M44: 0 | O44: 0 | P44: 0 | Q44: 0 | R44: Longford Injection Tariff | T44: =Injection_Tariffs_BO!AH8 -> 2.09304
C45: 24 | D45: 24 Barnawartha to Culcairn | G45: Interconnect | H45: Barnawartha | I45: Culcairn | K45: =[2]Pipeline_BA!$K45 -> 63.22397 | M45: 0.48 | O45: 1 | P45: 1 | Q45: 1 | R45: Culcairn Injection Tariff | T45: =Injection_Tariffs_BO!AH13 -> 1.377426885
C46: 25 | D46: 25 Chiltern Valley to Koonoomoo | G46: Murray Valley | H46: Chiltern Valley | I46: Koonoomoo | K46: =[2]Pipeline_BA!$K46 -> 103.5502 | M46: 1 | O46: 1 | P46: 1 | Q46: 1 | R46: Port Campbell Injection Tariff | T46: =Injection_Tariffs_BO!AH16 -> 2.037653374 | U46: =T46/T44 -> 0.9735377126
C47: 26 | D47: 26 Lara to Port Campbell | G47: South West | H47: Iona | I47: Lara | K47: =[2]Pipeline_BA!$K47 -> 143.9791 | M47: 0.237 | O47: 1 | P47: 1 | Q47: 1
C48: 27 | D48: 27 Port Campbell to Paaratte | G48: South West | H48: Iona | I48: North Paaratte | K48: =[2]Pipeline_BA!$K48 -> 7.7534 | M48: 1 | O48: 1 | P48: 1 | Q48: 1
C49: 4 | D49: 4 Lurgi pipeline plus laterals | G49: Lurgi | H49: Morwell | I49: Healsville - Koo Wee Rup Rd | T49: =T46/T44 -> 0.9735377126
C50: 13 | D50: 13 Wollert to Euroa | G50: South Hume | H50: Wollert | I50: Euroa
C51: 18 | D51: 18 Euroa to Wodonga | G51: North Hume | H51: Euroa | I51: Barnawartha City Gate
C52: 19 | D52: 19 Euroa to Kyabram | G52: Echuca | H52: Euroa | I52: Kyabram
K60: =SUM(K9:K48) -> 1892.71093

Sheet Working_Capital_BA
B1: Working Capital Assumptions
B2: =Model_Name -> VTS Tariff Model | I2: To be Updated
B3: Go to Table of Contents
A4: é | B4: ç | C4: è | I4: 2022 | J4: =I4+1 -> 2023 | K4: =J4+1 -> 2024 | L4: =K4+1 -> 2025 | M4: =L4+1 -> 2026 | N4: =M4+1 -> 2027
C6: Gas Prices | H6: 1.089 | I6: 1.2997 | J6: 1.123 | K6: 1.11316 | L6: 1.023 | M6: 0.99745 | N6: 1.001237
D8: Gasnet Transmission System | I8: =4.3072268085372*H$6*I6 -> 6.096333822 | J8: =I8*(1+CPI)*J6 -> 7.068477807 | K8: =J8*(1+CPI)*K6 -> 8.123831247 | L8: =K8*(1+CPI)*L6 -> 8.580526356 | M8: =L8*(1+CPI)*M6 -> 8.836544459 | N8: =M8*(1+CPI)*N6 -> 9.134751968
D9: Murray Valley | I9: =4.3072268085372*H$6 -> 4.690569994 | J9: =I9*(1+CPI) -> 4.842872368 | K9: 5.000119986 | L9: 5.16247342 | M9: 5.330098455 | N9: 5.503166259
D10: Interconnect | I10: =4.48543714723137*H6 -> 4.884641053 | J10: 5.043244897 | K10: 5.206998592 | L10: 5.376069355 | M10: 5.55062983 | N10: 5.730858267
D11: SWP | I11: =4.49811921342805*H6*I6 -> 6.366517835 | J11: =I11*(1+CPI)*J6 -> 7.381746364 | K11: =J11*(1+CPI)*K6 -> 8.483872116 | L11: =K11*(1+CPI)*L6 -> 8.960807541 | M11: =L11*(1+CPI)*M6 -> 9.228172134 | N11: =M11*(1+CPI)*N6 -> 9.539595931
D12: WTS | I12: =4.3072268085372*H$6 -> 4.690569994 | J12: 4.842872368 | K12: 5.000119986 | L12: 5.16247342 | M12: 5.330098455 | N12: 5.503166259
D13: Brooklyn Corio Loop | I13: =4.37542230296753*H6 -> 4.764834888 | J13: 4.919548636 | K13: 5.079285925 | L13: 5.24420987 | M13: 5.414488879 | N13: 5.590296832
D14: WORM Stage 1 | I14: =3.8633451171875*H6 -> 4.207182833 | J14: 3.5 | K14: 3.613644676 | L14: 3.730979385 | M14: 3.85212394 | N14: 3.977202049
D15: WORM Stage 2 | I15: 8 | J15: =I15*(1+CPI) -> 8.25975926 | K15: =J15*(1+CPI) -> 8.52795288 | L15: =K15*(1+CPI) -> 8.804854721 | M15: =L15*(1+CPI) -> 9.09074754 | N15: =M15*(1+CPI) -> 9.385923272
D16: Anglesea | I16: =3.8873125*H6 -> 4.233283313 | J16: 4.37073763 | K16: 4.512655077 | L16: 4.65918057 | M16: 3.7925 | N16: 3.915642124
D17: Northern Looping | I17: 3.8873125 | J17: =I17*(1+CPI) -> 4.013533177 | K17: 4.143852229 | L17: 3.7 | M17: 3.820138658 | N17: 3.944178207
C19: Energy (base linepack data) | H19: TJ
D21: =D8 -> Gasnet Transmission System | H21: 462.117 | J21: =$H21*J8 -> 3266.463759 | K21: 3754.160524 | L21: 3965.207098 | M21: 4083.517416 | N21: 4221.324175
D22: =D9 -> Murray Valley | H22: 2.135 | J22: 10.33953251 | K22: 10.67525617 | L22: 11.02188075 | M22: 11.3797602 | N22: 11.74925996
D23: Interconnect | H23: 9.733 | J23: 49.08590258 | K23: 50.6797173 | L23: 52.32528303 | M23: 54.02428013 | N23: 55.77844351
D24: SWP | H24: 21.981 | J24: 162.2581668 | K24: 186.483993 | L24: 196.9675106 | M24: 202.8444517 | N24: 209.6898582
D25: WTS | H25: 6.116 | J25: 29.61900741 | K25: 30.58073384 | L25: 31.57368744 | M25: 32.59888215 | N25: 33.65736484
D26: Brooklyn Corio Loop | H26: 8.735 | J26: 42.97225734 | K26: 44.36756256 | L26: 45.80817321 | M26: 47.29556036 | N26: 48.83124283
D27: WORM Stage 1 | H27: 3.1 | J27: 10.85 | K27: 11.2022985 | L27: 11.56603609 | M27: 11.94158422 | N27: 12.32932635
D28: WORM Stage 2 | H28: 15 | J28: 123.8963889 | K28: 127.9192932 | L28: 132.0728208 | M28: 136.3612131 | N28: 140.7888491
D29: Anglesea | J29: 0 | K29: 0 | L29: 0 | M29: 0 | N29: 0
D30: Northern Looping | H30: =17/3 -> 5.666666667 | J30: 22.74335467 | K30: 23.4818293 | L30: 20.96666667 | M30: 21.64745239 | N30: 22.35034317
C32: Total Cost | I32: =SUM(I21:I30) -> 0 | J32: 3718.228369 | K32: 4239.551208 | L32: 4467.509157 | M32: 4601.6106 | N32: 4756.498863
C34: Inventory
D36: Opening Inventory Value | I36: 706.5097557 | J36: =I40 -> 763.0305362 | K36: =J40 -> 799.2744867 | L36: =K40 -> 825.2509075 | M36: =L40 -> 850.0084347 | N36: =M40 -> 873.3836667
D37: Additions | H37: 0.33 | I37: =I36*$H$37 -> 233.1482194 | J37: 251.8000769 | K37: 263.7605806 | L37: 272.3327995 | M37: 280.5027835 | N37: 288.21661
D38: Write Out/Off | H38: 0.33 | I38: =-$H$38*I36 -> -233.1482194 | J38: -251.8000769 | K38: -263.7605806 | L38: -272.3327995 | M38: -280.5027835 | N38: -288.21661
D39: Inflation | I39: =I36*(General_BA!J7) -> 56.52078046 | J39: =J36*(General_BA!K7) -> 36.24395047 | K39: =K36*(General_BA!L7) -> 25.97642082 | L39: =L36*(General_BA!M7) -> 24.75752722 | M39: =M36*(General_BA!N7) -> 23.37523195 | N39: =N36*(General_BA!O7) -> 21.83459167
D40: Closing Inventory Values | I40: =SUM(I36:I39) -> 763.0305362 | J40: 799.2744867 | K40: 825.2509075 | L40: 850.0084347 | M40: 873.3836667 | N40: 895.2182583
C42: Total Transmission Inventories | J42: =J36+J32 -> 4481.258905 | K42: =K36+K32 -> 5038.825695 | L42: =L36+L32 -> 5292.760064 | M42: =M36+M32 -> 5451.619035 | N42: =N36+N32 -> 5629.88253
C44: Nominal Dollars
D46: Return on Linepack | J46: =J32*General_BA!$I$14 -> 206.3171221 | K46: =K32*General_BA!$I$14 -> 235.2442931 | L46: =L32*General_BA!$I$14 -> 247.8932278 | M46: =M32*General_BA!$I$14 -> 255.3342511 | N46: =N32*General_BA!$I$14 -> 263.9286938
D47: Return on Inventory | J47: =J36*General_BA!$I$14 -> 42.33905201 | K47: =K36*General_BA!$I$14 -> 44.35015698 | L47: =L36*General_BA!$I$14 -> 45.79153709 | M47: =M36*General_BA!$I$14 -> 47.1652832 | N47: =N36*General_BA!$I$14 -> 48.46232849
D48: Total Return on Inventory
C50: Real Dollars | J50: 1 | K50: =J50+1 -> 2 | L50: =K50+1 -> 3 | M50: =L50+1 -> 4 | N50: =M50+1 -> 5
D52: Return on Linepack | J52: =J46/(1+WACC_BA!$I$9)^J50 -> 199.8228786 | K52: =K46/(1+WACC_BA!$I$9)^K50 -> 220.6678054 | L52: =L46/(1+WACC_BA!$I$9)^L50 -> 225.2135319 | M52: =M46/(1+WACC_BA!$I$9)^M50 -> 224.6719396 | N52: =N46/(1+WACC_BA!$I$9)^N50 -> 224.9242634
D53: Return on Inventory | J53: =J47/(1+WACC_BA!$I$9)^J50 -> 41.00634578 | K53: =K47/(1+WACC_BA!$I$9)^K50 -> 41.60207961 | L53: =L47/(1+WACC_BA!$I$9)^L50 -> 41.60207961 | M53: =M47/(1+WACC_BA!$I$9)^M50 -> 41.50134818 | N53: =N47/(1+WACC_BA!$I$9)^N50 -> 41.30037313
D54: Total Return on Inventory | J54: =SUM(J52:J53) -> 240.8292243 | K54: =SUM(K52:K53) -> 262.269885 | L54: 266.8156115 | M54: 266.1732878 | N54: 266.2246365
D56: Total Return on Inventory ($m) | J56: =J54/1000 -> 0.2408292243 | K56: =K54/1000 -> 0.262269885 | L56: =L54/1000 -> 0.2668156115 | M56: =M54/1000 -> 0.2661732878 | N56: =N54/1000 -> 0.2662246365

Sheet Opex_Forecast_BA
B1: Base Case - Operating Cost Forecasts
B2: =Model_Name -> VTS Tariff Model
B3: Go to Table of Contents
A4: é | B4: ç | C4: è | I4: =Working_Capital_BA!I4 -> 2022 | J4: =Working_Capital_BA!J4 -> 2023 | K4: =Working_Capital_BA!K4 -> 2024 | L4: =Working_Capital_BA!L4 -> 2025 | M4: =Working_Capital_BA!M4 -> 2026 | N4: =Working_Capital_BA!N4 -> 2027
C6: Direct Operating Cost Assumptions
J7: ='2023Non-Direct Costs_BO'!M30-'2023Non-Direct Costs_BO'!N30 -> 0 | K7: ='2024Non-Direct Costs_BO'!M30-'2024Non-Direct Costs_BO'!N30 -> -7.450580597e-08 | L7: ='2025Non-Direct Costs_BO'!M30-'2025Non-Direct Costs_BO'!N30 -> 0 | M7: ='2026Non-Direct Costs_BO'!M30-'2026Non-Direct Costs_BO'!N30 -> 0 | N7: ='2027Non-Direct Costs_BO'!M30-'2027Non-Direct Costs_BO'!N30 -> 0 | O7: Check
D8: Country Cost per Km | J8: 8706.289039 | K8: 8092.407993 | L8: 8506.354987 | M8: 8682.063493 | N8: 9182.719845
D9: Country / Metro Ratio | J9: 2.126673209 | K9: 2.126673209 | L9: 2.126673209 | M9: 2.126673209 | N9: 2.126673209
D10: Metro Cost per Km | J10: =J9*J8 -> 18515.43165 | K10: =K9*K8 -> 17209.90728 | L10: =L9*L8 -> 18090.23726 | M10: =M9*M8 -> 18463.91183 | N10: =N9*N8 -> 19528.64428
C12: Operating Cost Forecasts
C14: Total Direct Costs plus OH | I14: =+I16+I49 -> 0 | J14: 37443287.4 | K14: 36278095.81 | L14: 35309052.73 | M14: 34330249.84 | N14: 34207363.49
C16: Direct O & M - Regulated | I16: =+I18+I20+I29+I34+I41+I47 -> 0 | J16: =+J18+J20+J29+J34+J41+J47 -> 30457292.02 | K16: 29265408.47 | L16: 28295004.03 | M16: 27044598.02 | N16: 26869622.17
C18: Pipeline Operations | J18: =RAB_Model_BO!AF$53*$Q$18*1000000 -> 20515819.31 | K18: =RAB_Model_BO!AG$53*$Q$18*1000000 -> 19712974.87 | L18: =RAB_Model_BO!AH$53*$Q$18*1000000 -> 19059317.22 | M18: =RAB_Model_BO!AI$53*$Q$18*1000000 -> 18217052.45 | N18: =RAB_Model_BO!AJ$53*$Q$18*1000000 -> 18099189.95 | Q18: 0.6735930201
C20: Compressor Stations | I20: =SUM(I21:I27) -> 0 | J20: 8023790.163 | K20: 7709795.619 | L20: 7454148.416 | M20: 7124736.48 | N20: 7078640.147
D21: Brooklyn | J21: =RAB_Model_BO!AF$53*$Q$21*1000000 -> 2330422.247 | K21: =RAB_Model_BO!AG$53*1000000*$Q$21 -> 2239225.96 | L21: =RAB_Model_BO!AH$53*1000000*$Q$21 -> 2164976.021 | M21: =RAB_Model_BO!AI$53*1000000*$Q$21 -> 2069301.921 | N21: =RAB_Model_BO!AJ$53*1000000*$Q$21 -> 2055913.744 | Q21: 0.07651442701
D22: Gooding | J22: =RAB_Model_BO!AF$53*$Q$22*1000000 -> 941021.0872 | K22: =RAB_Model_BO!AG$53*1000000*$Q$22 -> 904196.1602 | L22: =RAB_Model_BO!AH$53*1000000*$Q$22 -> 874214.1437 | M22: =RAB_Model_BO!AI$53*1000000*$Q$22 -> 835581.0824 | N22: =RAB_Model_BO!AJ$53*1000000*$Q$22 -> 830174.9563 | Q22: 0.03089641347
D23: Wollert | J23: =RAB_Model_BO!AF$53*$Q$23*1000000 -> 1620450.366 | K23: =RAB_Model_BO!AG$53*$Q$23*1000000 -> 1557037.37 | L23: =RAB_Model_BO!AH$53*1000000*$Q$23 -> 1505407.953 | M23: =RAB_Model_BO!AI$53*1000000*$Q$23 -> 1438881.327 | N23: =RAB_Model_BO!AJ$53*1000000*$Q$23 -> 1429571.908 | Q23: 0.05320401975
D24: Springhurst | J24: =RAB_Model_BO!AF$53*$Q$24*1000000 -> 923236.2816 | K24: =RAB_Model_BO!AG$53*$Q$24*1000000 -> 887107.3265 | L24: =RAB_Model_BO!AH$53*1000000*$Q$24 -> 857691.9543 | M24: =RAB_Model_BO!AI$53*1000000*$Q$24 -> 819789.0376 | N24: =RAB_Model_BO!AJ$53*1000000*$Q$24 -> 814485.0845 | Q24: 0.03031248744
D25: Iona | J25: =RAB_Model_BO!AF$53*$Q$25*1000000 -> 336417.2109 | K25: =RAB_Model_BO!AG$53*$Q$25*1000000 -> 323252.2145 | L25: =RAB_Model_BO!AH$53*1000000*$Q$25 -> 312533.5744 | M25: =RAB_Model_BO!AI$53*1000000*$Q$25 -> 298722.1658 | N25: =RAB_Model_BO!AJ$53*1000000*$Q$25 -> 296789.4632 | Q25: 0.01104553914
D26: Winchelsea | J26: =RAB_Model_BO!AF$53*$Q$26*1000000 -> 1066996.684 | K26: =RAB_Model_BO!AG$53*$Q$26*1000000 -> 1025241.96 | L26: =RAB_Model_BO!AH$53*1000000*$Q$26 -> 991246.2161 | M26: =RAB_Model_BO!AI$53*1000000*$Q$26 -> 947441.3016 | N26: =RAB_Model_BO!AJ$53*1000000*$Q$26 -> 941311.4511 | Q26: 0.03503255257
D27: Euroa | J27: =RAB_Model_BO!AF$53*$Q$27*1000000 -> 805246.287 | K27: =RAB_Model_BO!AG$53*$Q$27*1000000 -> 773734.6279 | L27: =RAB_Model_BO!AH$53*1000000*$Q$27 -> 748078.553 | M27: =RAB_Model_BO!AI$53*1000000*$Q$27 -> 715019.6454 | N27: =RAB_Model_BO!AJ$53*1000000*$Q$27 -> 710393.5397 | Q27: 0.02643853848
C29: Odorant Stations | I29: =SUM(I30:I32) -> 0 | J29: 92628.76101 | K29: 89003.92475 | L29: 86052.66564 | M29: 82249.84693 | N29: 81717.69864
D30: Longford | J30: =RAB_Model_BO!AF$53*$Q$30*1000000 -> 84384.22419 | K30: =RAB_Model_BO!AG$53*$Q$30*1000000 -> 81082.02093 | L30: =RAB_Model_BO!AH$53*1000000*$Q$30 -> 78393.44228 | M30: =RAB_Model_BO!AI$53*1000000*$Q$30 -> 74929.09812 | N30: =RAB_Model_BO!AJ$53*1000000*$Q$30 -> 74444.31434 | Q30: 0.002770575406
D31: Dandenong | J31: =RAB_Model_BO!AF$53*$Q$31*1000000 -> 8244.536824 | K31: =RAB_Model_BO!AG$53*$Q$31*1000000 -> 7921.903813 | L31: =RAB_Model_BO!AH$53*1000000*$Q$31 -> 7659.223366 | M31: =RAB_Model_BO!AI$53*1000000*$Q$31 -> 7320.748808 | N31: =RAB_Model_BO!AJ$53*1000000*$Q$31 -> 7273.384295 | Q31: 0.000270691722
... 28 more rows

Sheet Scope_Changes_BA
B1: Scope Change Forecasts
B2: =Model_Name -> VTS Tariff Model
B3: Go to Table of Contents | I3: 1 | J3: 2 | K3: 3 | L3: 4 | M3: 5 | N3: 6
A4: é | B4: ç | C4: è | I4: =Working_Capital_BA!I4 -> 2022 | J4: =Working_Capital_BA!J4 -> 2023 | K4: =Working_Capital_BA!K4 -> 2024 | L4: =Working_Capital_BA!L4 -> 2025 | M4: =Working_Capital_BA!M4 -> 2026 | N4: =Working_Capital_BA!N4 -> 2027
C6: Pipelines | G6: Nominal
C19: Total Pipelines | I19: =SUM(I8:I17) -> 0 | J19: 0 | K19: 0 | L19: 0 | M19: 0 | N19: 0
C21: Compressors
D23: Brooklyn
D24: Gooding
D25: Wollert
D26: Springhurst
D27: Iona
D28: Stonehaven
D29: Euroa
C31: Total Compressors | I31: =SUM(I23:I29) -> 0 | J31: 0 | K31: 0 | L31: 0 | M31: 0 | N31: 0
... 7 more rows

Sheet Volume_Assumptions_BA
B1: Volume Forecast Assumptions
B2: =Model_Name -> VTS Tariff Model
B3: Go to Table of Contents
A4: é | B4: ç | C4: è | I4: =Working_Capital_BA!I4 -> 2022 | J4: =Working_Capital_BA!J4 -> 2023 | K4: =Working_Capital_BA!K4 -> 2024 | L4: =Working_Capital_BA!L4 -> 2025 | M4: =Working_Capital_BA!M4 -> 2026 | N4: =Working_Capital_BA!N4 -> 2027
C6: Vencorp Withdrawal Forecasts | J6: Updated per Scott's file input for 2022 onwards
D8: Tariff V - Industry forecasts
E10: Ballarat | I10: 8974.44472 | J10: 9128.37026 | K10: 9152.67321 | L10: 9182.58168 | M10: 9397.39107 | N10: 8403.47914 | Q10: This forecasts comes from VGPR Table 18 for Tariff V and Tariff D
E11: Geelong | I11: 11433.59479 | J11: 11629.57359 | K11: 11660.48922 | L11: 11695.37321 | M11: 11969.00485 | N11: 10735.37909
E12: Gippsland | I12: 6126.602662 | J12: 6302.158455 | K12: 6386.915333 | L12: 6486.29233 | M12: 6722.09999 | N12: 5783.331636
E13: Melbourne | I13: 89421.54218 | J13: 88535.77968 | K13: 86393.51523 | L13: 84311.32415 | M13: 83915.76538 | N13: 81714.46174
E14: Northern | I14: 10694.32964 | J14: 10720.96871 | K14: 10595.10676 | L14: 10476.44723 | M14: 10565.54216 | N14: 9969.473621
E15: Western | I15: 1255.57326 | J15: 1250.25702 | K15: 1227.2012 | L15: 1205.27106 | M15: 1207.45202 | N15: 1156.278717
D16: Total system | I16: =SUM(I10:I15) -> 127906.0873 | J16: 127567.1077 | K16: 125415.901 | L16: 123357.2897 | M16: 123777.2555 | N16: 117762.4039
D18: Tariff D - AEMO forecasts
E20: =E10 -> Ballarat | I20: 1350.48483 | J20: 1341.52945 | K20: 1344.06394 | L20: 1902.83949 | M20: 1856.63498 | N20: 1664.823404
E21: Geelong | I21: 9716.072907 | J21: 9651.539727 | K21: 9669.735447 | L21: 13686.02368 | M21: 13353.74624 | N21: 11294.36989
E22: Gippsland | I22: 8860.660598 | J22: 8252.208155 | K22: 8248.724447 | L22: 6976.87504 | M22: 5479.72348 | N22: 8813.147476
E23: Melbourne | I23: 34157.56719 | J23: 34036.5665 | K23: 34055.85482 | L23: 38998.4599 | M23: 40279.91558 | N23: 38520.50312
E24: Northern | I24: 8353.035234 | J24: 8375.00649 | K24: 8384.959451 | L24: 8469.432375 | M24: 8596.090921 | N24: 9193.226746
E25: Western | I25: 2755.75597 | J25: 2753.6028 | K25: 2747.2038 | L25: 3036.7342 | M25: 3091.7609 | N25: 3049.694845
D26: Total system | I26: =SUM(I20:I25) -> 65193.57673 | J26: 64410.45312 | K26: 64450.54191 | L26: 73070.36468 | M26: 72657.87211 | N26: 72535.76548
D28: Total
E30: =E20 -> Ballarat | I30: =I20+I10 -> 10324.92955 | J30: 10469.89971 | K30: 10496.73715 | L30: 11085.42117 | M30: 11254.02605 | N30: 10068.30254
E31: Geelong | I31: =I21+I11 -> 21149.6677 | J31: 21281.11332 | K31: 21330.22467 | L31: 25381.39689 | M31: 25322.75109 | N31: 22029.74898
... 23 more rows

Sheet RAB_Model_BO
B1: RAB Model Inputs
B2: =Model_Name -> VTS Tariff Model | W2: Updated using PTRM 2021 version from Scott
B3: Go to Table of Contents
A4: é | B4: ç | C4: è | J4: =Working_Capital_BA!J4 -> 2023 | K4: =Working_Capital_BA!K4 -> 2024 | L4: =Working_Capital_BA!L4 -> 2025 | M4: =Working_Capital_BA!M4 -> 2026 | N4: =Working_Capital_BA!N4 -> 2027 | W4: =[1]RAB_Model_BO!W$4 -> 2023 | X4: =[1]RAB_Model_BO!X$4 -> 2024 | Y4: =[1]RAB_Model_BO!Y$4 -> 2025 | Z4: =[1]RAB_Model_BO!Z$4 -> 2026 | AA4: =[1]RAB_Model_BO!AA$4 -> 2027 | AG4: 2023 | AH4: 2024 | AI4: 2025 | AJ4: 2026 | AK4: 2027
C6: RAB Model Inputs | P6: RAB Model Inputs
J7: EBSS Numbers need to be updated, input to be provided (Scotts Team) | W7: EBSS Numbers need to be updated, input to be provided (Scotts Team)
C8: Return on Asset | P8: Return on Asset
AE9: Cross System + Refill Revenue Offset
D10: Pipelines | J10: =W10-J72 -> 48070063.05 | K10: =X10-K72 -> 53532812.24 | L10: 55421397.3 | M10: 56189179.63 | N10: 56886068.38 | Q10: Pipelines | W10: 48835340.49 | X10: 54296622.89 | Y10: 56182837.5 | Z10: 56947288.53 | AA10: 57639825.18
D11: City Gates & Field Regulators | J11: =W11 -> 3453454.196 | K11: =X11 -> 3627143.754 | L11: =Y11 -> 3602435.02 | M11: =Z11 -> 3565924.464 | N11: =AA11 -> 3516654.325 | Q11: City Gates & Field Regulators | W11: 3453454.196 | X11: 3627143.754 | Y11: 3602435.02 | Z11: 3565924.464 | AA11: 3516654.325 | AE11: Refill LNG | AF11: $/GJ | AG11: 0.0539 | AH11: =AG11*(1+General_BA!L7) -> 0.05565175 | AI11: =AH11*(1+General_BA!M7) -> 0.0573213025 | AJ11: =AI11*(1+General_BA!N7) -> 0.05889763832 | AK11: =AJ11*(1+General_BA!O7) -> 0.06037007928
D12: Compressors | J12: =W12-J63 -> 12184447.3 | K12: =X12-K63 -> 14741024.77 | L12: =Y12-L63 -> 14827689.7 | M12: =Z12-M63 -> 14812699.89 | N12: =AA12-N63 -> 14757877.32 | Q12: Compressors | W12: 12184447.3 | X12: 14741024.77 | Y12: 14827689.7 | Z12: 14812699.89 | AA12: 14757877.32 | AF12: ,000 GJ | AG12: =Volume_Assumptions_BA!J241 -> 2300 | AH12: =Volume_Assumptions_BA!K241 -> 2300 | AI12: =Volume_Assumptions_BA!L241 -> 2300 | AJ12: =Volume_Assumptions_BA!M241 -> 2300 | AK12: =Volume_Assumptions_BA!N241 -> 2300
D13: Odourant Plants | J13: =W13 -> 12509.38341 | K13: 12067.19971 | L13: 11550.32466 | M13: 10953.30939 | N13: 10270.39539 | Q13: Odourant Plants | W13: 12509.38341 | X13: 12067.19971 | Y13: 11550.32466 | Z13: 10953.30939 | AA13: 10270.39539 | AF13: $'000
D14: Gas Quality | J14: 83368.83108 | K14: 84877.8911 | L14: 78705.47847 | M14: 81887.34693 | N14: 73465.22994 | Q14: Gas Quality | W14: 83368.83108 | X14: 84877.8911 | Y14: 78705.47847 | Z14: 81887.34693 | AA14: 73465.22994 | AG14: =AG13*AG12 -> 0 | AH14: =AH13*AH12 -> 0 | AI14: 0 | AJ14: 0 | AK14: 0
D15: Other | J15: 3129807.227 | K15: 3170902.354 | L15: 3653514.686 | M15: 3821087.166 | N15: 3806924.551 | Q15: Other | W15: 3129807.227 | X15: 3170902.354 | Y15: 3653514.686 | Z15: 3821087.166 | AA15: 3806924.551 | AE15: Refill WUGS | AF15: $/GJ | AG15: 0.07894571429 | AH15: =AG15*(1+General_BA!L7) -> 0.08151145 | AI15: =AH15*(1+General_BA!M7) -> 0.0839567935 | AJ15: =AI15*(1+General_BA!N7) -> 0.08626560532 | AK15: =AJ15*(1+General_BA!O7) -> 0.08842224545
D16: General Building | J16: 1954545.872 | K16: 2020388.043 | L16: 2077316.205 | M16: 2134568.195 | N16: 2192064.663 | Q16: General Building | W16: 1954545.872 | X16: 2020388.043 | Y16: 2077316.205 | Z16: 2134568.195 | AA16: 2192064.663 | AF16: ,000 GJ | AG16: =Volume_Assumptions_BA!I242 -> 15800 | AH16: =Volume_Assumptions_BA!J242 -> 15800 | AI16: =Volume_Assumptions_BA!K242 -> 15800 | AJ16: =Volume_Assumptions_BA!L242 -> 15800 | AK16: =Volume_Assumptions_BA!M242 -> 15800
D17: General Land | J17: 414045.411 | K17: 434070.9755 | L17: 454960.4704 | M17: 476748.8865 | N17: 499472.5758 | Q17: General Land | W17: 414045.411 | X17: 434070.9755 | Y17: 454960.4704 | Z17: 476748.8865 | AA17: 499472.5758 | AF17: $'000
D18: Equity Raising Costs | Q18: Equity Raising Costs | AG18: =AG17*AG16 -> 0 | AH18: =AH17*AH16 -> 0 | AI18: 0 | AJ18: 0 | AK18: 0
P20: Total CS + Refill Revenue | W20: =AG23*1000 -> 0 | X20: =AH23*1000 -> 0 | Y20: 0 | Z20: 0 | AA20: 0 | AE20: Cross System | AF20: $'000 | AG20: 1500 | AH20: =AG20*(1+General_BA!L7) -> 1548.75 | AI20: =AH20*(1+General_BA!M7) -> 1595.2125 | AJ20: =AI20*(1+General_BA!N7) -> 1639.080844 | AK20: =AJ20*(1+General_BA!O7) -> 1680.057865
C21: Debt Raising Costs (amended) | J21: =W51 -> 652997.461 | K21: =X51 -> 719455.361 | L21: =Y51 -> 731329.7671 | M21: =Z51 -> 729138.3543 | N21: =AA51 -> 724229.7749 | P21: Debt Raising Costs | W21: 679495.8783 | X21: 748650.821 | Y21: 761007.1229 | Z21: 758726.7766 | AA21: 753618.9937
C23: Asset Regulatory Depreciation | P23: Asset Regulatory Depreciation | AE23: Total CS + Refill Revenue | AF23: $'000 | AL23: =SUM(AG23:AK23) -> 0
AG24: =AG21+AG18+AG14 -> 0 | AH24: =AH21+AH18+AH14 -> 0 | AI24: 0 | AJ24: 0 | AK24: =AK21+AK18+AK14 -> 0 | AL24: =SUM(AG24:AK24) -> 0
D25: Pipelines | J25: =W25-J73 -> -2979257.406 | K25: =X25-K73 -> 1950761.439 | L25: 3119850.08 | M25: 4347246.903 | N25: 5653177.598 | Q25: Pipelines | W25: -2952823.199 | X25: 1993481.416 | Y25: 3179886.481 | Z25: 4425680.173 | AA25: 5751140.12
D26: City Gates & Field Regulators | J26: =W26 -> 1158232.142 | K26: =X26 -> 1508805.171 | L26: 1674883.264 | M26: 1850284.629 | N26: 2035443.861 | Q26: City Gates & Field Regulators | W26: 1158232.142 | X26: 1508805.171 | Y26: 1674883.264 | Z26: 1850284.629 | AA26: 2035443.861 | AE26: At 2022 tariffs
D27: Compressors | J27: =W27 -> 1671369.93 | K27: 4121727.074 | L27: 4668594.581 | M27: 5246246.949 | N27: 5857155.66 | Q27: Compressors | W27: 1671369.93 | X27: 4121727.074 | Y27: 4668594.581 | Z27: 5246246.949 | AA27: 5857155.66 | AE27: Refill LNG | AF27: $/GJ | AG27: 0.0593
D28: Odourant Plants | J28: =W28 -> 11266.41698 | K28: 12235.73938 | L28: 13256.13128 | M28: 14329.88716 | N28: 15459.39668 | Q28: Odourant Plants | W28: 11266.41698 | X28: 12235.73938 | Y28: 13256.13128 | Z28: 14329.88716 | AA28: 15459.39668 | AF28: ,000 GJ | AG28: =AG12 -> 2300
D29: Gas Quality | J29: 113187.4383 | K29: 130416.237 | L29: 140473.7051 | M29: 163435.2938 | N29: 175535.9543 | Q29: Gas Quality | W29: 113187.4383 | X29: 130416.237 | Y29: 140473.7051 | Z29: 163435.2938 | AA29: 175535.9543 | AF29: $'000 | AG29: =AG28*AG27 -> 136.39
D30: Other | J30: 12583764.52 | K30: 14891818.36 | L30: 18141789.32 | M30: 18615027.29 | N30: 7992828.969 | Q30: Other | W30: 12583764.52 | X30: 14891818.36 | Y30: 18141789.32 | Z30: 18615027.29 | AA30: 7992828.969
D31: General Building | J31: -634520.4708 | K31: -459717.5626 | L31: -451765.3983 | M31: -442812.144 | N31: -432801.1731 | Q31: General Building | W31: -634520.4708 | X31: -459717.5626 | Y31: -451765.3983 | Z31: -442812.144 | AA31: -432801.1731 | AE31: Refill WUGS | AF31: $/GJ | AG31: 0.0869
... 26 more rows

Sheet Input Format -->
C9: Input Format
C10: Section 2.
C11: =Model_Name -> VTS Tariff Model
C12: Go to Table of Contents
C13: ç | D13: è
C17: Section Cover Notes:
C18: Reformatting and structuring of the information procided in Assumptions

Sheet WACC_BO
B1: WACC Outputs
B2: =Model_Name -> VTS Tariff Model
B3: Go to Table of Contents
A4: é | B4: ç | C4: è
C7: Variables
C8: Nominal Risk Free Rate (Rf) | I8: =WACC_BA!I8 -> 0.0379
C9: Inflation Rate | I9: =WACC_BA!I9 -> 0.0325
C10: Cost of Debt Margin over rf | I10: =WACC_BA!I10 -> 0.005
C11: Cost of raising debt | I11: =WACC_BA!I11 -> 0.0009
C12: Nominal pre-tax cost of debt | I12: =WACC_BA!I12 -> 0.0429
C13: Market Risk Premium | I13: =WACC_BA!I13 -> 0.061
C14: Corporate Tax Rate | I14: =WACC_BA!I14 -> 0.3
C15: Effective Tax Rate for Equity (From Relevant Cash flows) | I15: =WACC_BA!I15 -> 0.2709
C16: Effective Tax Rate for Debt (Effective Debt Shield) | I16: =WACC_BA!I16 -> 0.2921
C17: Proportion of Franking Credits or Gamma | I17: =WACC_BA!I17 -> 0.585
C18: LT Proportion of Equity Funding | I18: =WACC_BA!I18 -> 0.4
C19: LT Proportion of Debt Funding | I19: =WACC_BA!I19 -> 0.6
C20: Equity Beta | I20: =WACC_BA!I20 -> 0.6
C22: WACC Output | K22: PTRM Output
C23: Pre-tax nominal return on equity | I23: =I24*(1/(1-I15*(1-I17))) -> 0.08393642689
C24: Post-tax nominal return on equity | I24: =I8+I13*I20 -> 0.0745
C25: Nominal Vanilla WACC | I25: =I18*I24+I19*I12 -> 0.05554 | K25: =[1]!vanilla01 -> 0.04273691463
C26: Real Vanilla WACC | I26: =(1+I25)/(1+I9)-1 -> 0.02231476998 | K26: =[1]!rvanilla01 -> 0.02229723407
C27: Pre-Tax Nominal WACC | I27: =I24*(1/(1-I15*(1-I17)))*I18+I12*I19 -> 0.05931457076 | K27: =[1]WACC!$G$22 -> 0.04529092228
C28: Pre-Tax Real WACC | I28: =(1+I27)/(1+I9)-1 -> 0.02597052858 | K28: =[1]WACC!$G$23 -> 0.02480117818
C29: Post tax Nominal WACC | I29: =I24*((1-I15)/(1-I15*(1-I17)))*I18+I12*I19*(1-I16) -> 0.04270056554 | K29: =[1]WACC!$G$20 -> 0.0398322219
C30: Post tax Real WACC | I30: =(1+I29)/(1+I9)-1 -> 0.009879482361 | K30: =[1]WACC!$G$21 -> 0.019449479

Sheet O&M_Workings_BO
B1: O&M Workings
B2: =Model_Name -> VTS Tariff Model
B3: Go to Table of Contents | Q3: 1 | R3: 2 | S3: 3 | T3: 4 | U3: 5 | V3: 6
A4: é | B4: ç | C4: è | I4: =Opex_Forecast_BA!I4 -> 2022 | J4: =Opex_Forecast_BA!J4 -> 2023 | K4: =Opex_Forecast_BA!K4 -> 2024 | L4: =Opex_Forecast_BA!L4 -> 2025 | M4: =Opex_Forecast_BA!M4 -> 2026 | N4: =Opex_Forecast_BA!N4 -> 2027 | Q4: =I4 -> 2022 | R4: 2023 | S4: 2024 | T4: 2025 | U4: 2026 | V4: 2027
C7: Pipeline Operations | I7: Base Case | Q7: Scope Changes
D9: Pipeline Operations (remaining) | I9: =I14-SUM(I10:I12) -> -144840.9866 | J9: =J14-SUM(J10:J12) -> 19965373.16 | K9: 19144639.22 | L9: 18472510.65 | M9: 17611174.68 | N9: 17473621.14 | Q9: =Scope_Changes_BA!I19 -> 0 | R9: =Scope_Changes_BA!J19 -> 0 | S9: =Scope_Changes_BA!K19 -> 0 | T9: =Scope_Changes_BA!L19 -> 0 | U9: =Scope_Changes_BA!M19 -> 0 | V9: =Scope_Changes_BA!N19 -> 0
D10: Murray Valley Pipeline | I10: =Opex_Forecast_BA!I80 -> 144840.9866 | J10: =Opex_Forecast_BA!J80 -> 550446.157 | K10: =Opex_Forecast_BA!K80 -> 568335.6571 | L10: =Opex_Forecast_BA!L80 -> 586806.5659 | M10: =Opex_Forecast_BA!M80 -> 605877.7793 | N10: =Opex_Forecast_BA!N80 -> 625568.8072
D11: InterConnect Pipeline | I11: =Opex_Forecast_BA!I81 -> 0 | J11: =Opex_Forecast_BA!J81 -> 0 | K11: =Opex_Forecast_BA!K81 -> 0 | L11: =Opex_Forecast_BA!L81 -> 0 | M11: =Opex_Forecast_BA!M81 -> 0 | N11: =Opex_Forecast_BA!N81 -> 0
D12: Southwest Pipeline | I12: =Opex_Forecast_BA!I82 -> 0 | J12: =Opex_Forecast_BA!J82 -> 0 | K12: =Opex_Forecast_BA!K82 -> 0 | L12: =Opex_Forecast_BA!L82 -> 0 | M12: =Opex_Forecast_BA!M82 -> 0 | N12: =Opex_Forecast_BA!N82 -> 0
C14: Total Pipeline Opex | I14: =Opex_Forecast_BA!I18 -> 0 | J14: =Opex_Forecast_BA!J18 -> 20515819.31 | K14: =Opex_Forecast_BA!K18 -> 19712974.87 | L14: =Opex_Forecast_BA!L18 -> 19059317.22 | M14: =Opex_Forecast_BA!M18 -> 18217052.45 | N14: =Opex_Forecast_BA!N18 -> 18099189.95 | Q14: =SUM(Q9:Q12) -> 0 | R14: 0 | S14: 0 | T14: 0 | U14: 0 | V14: 0
C16: Compressors
D18: Brooklyn | I18: =Opex_Forecast_BA!I21 -> 0 | J18: =Opex_Forecast_BA!J21 -> 2330422.247 | K18: =Opex_Forecast_BA!K21 -> 2239225.96 | L18: =Opex_Forecast_BA!L21 -> 2164976.021 | M18: =Opex_Forecast_BA!M21 -> 2069301.921 | N18: =Opex_Forecast_BA!N21 -> 2055913.744 | Q18: =Scope_Changes_BA!I23 -> 0 | R18: =Scope_Changes_BA!J23 -> 0 | S18: =Scope_Changes_BA!K23 -> 0 | T18: =Scope_Changes_BA!L23 -> 0 | U18: =Scope_Changes_BA!M23 -> 0 | V18: =Scope_Changes_BA!N23 -> 0
D19: Gooding | I19: =Opex_Forecast_BA!I22 -> 0 | J19: =Opex_Forecast_BA!J22 -> 941021.0872 | K19: =Opex_Forecast_BA!K22 -> 904196.1602 | L19: =Opex_Forecast_BA!L22 -> 874214.1437 | M19: =Opex_Forecast_BA!M22 -> 835581.0824 | N19: =Opex_Forecast_BA!N22 -> 830174.9563 | Q19: =Scope_Changes_BA!I24 -> 0 | R19: =Scope_Changes_BA!J24 -> 0 | S19: =Scope_Changes_BA!K24 -> 0 | T19: =Scope_Changes_BA!L24 -> 0 | U19: =Scope_Changes_BA!M24 -> 0 | V19: =Scope_Changes_BA!N24 -> 0
D20: Wollert | I20: =Opex_Forecast_BA!I23 -> 0 | J20: =Opex_Forecast_BA!J23 -> 1620450.366 | K20: =Opex_Forecast_BA!K23 -> 1557037.37 | L20: =Opex_Forecast_BA!L23 -> 1505407.953 | M20: =Opex_Forecast_BA!M23 -> 1438881.327 | N20: =Opex_Forecast_BA!N23 -> 1429571.908 | Q20: =Scope_Changes_BA!I25 -> 0 | R20: =Scope_Changes_BA!J25 -> 0 | S20: =Scope_Changes_BA!K25 -> 0 | T20: =Scope_Changes_BA!L25 -> 0 | U20: =Scope_Changes_BA!M25 -> 0 | V20: =Scope_Changes_BA!N25 -> 0
D21: Springhurst | I21: =Opex_Forecast_BA!I24 -> 0 | J21: =Opex_Forecast_BA!J24 -> 923236.2816 | K21: =Opex_Forecast_BA!K24 -> 887107.3265 | L21: =Opex_Forecast_BA!L24 -> 857691.9543 | M21: =Opex_Forecast_BA!M24 -> 819789.0376 | N21: =Opex_Forecast_BA!N24 -> 814485.0845 | Q21: =Scope_Changes_BA!I26 -> 0 | R21: =Scope_Changes_BA!J26 -> 0 | S21: =Scope_Changes_BA!K26 -> 0 | T21: =Scope_Changes_BA!L26 -> 0 | U21: =Scope_Changes_BA!M26 -> 0 | V21: =Scope_Changes_BA!N26 -> 0
D22: Iona | I22: =Opex_Forecast_BA!I25 -> 0 | J22: =Opex_Forecast_BA!J25 -> 336417.2109 | K22: =Opex_Forecast_BA!K25 -> 323252.2145 | L22: =Opex_Forecast_BA!L25 -> 312533.5744 | M22: =Opex_Forecast_BA!M25 -> 298722.1658 | N22: =Opex_Forecast_BA!N25 -> 296789.4632 | Q22: =Scope_Changes_BA!I27 -> 0 | R22: =Scope_Changes_BA!J27 -> 0 | S22: =Scope_Changes_BA!K27 -> 0 | T22: =Scope_Changes_BA!L27 -> 0 | U22: =Scope_Changes_BA!M27 -> 0 | V22: =Scope_Changes_BA!N27 -> 0
D23: Stonehaven | I23: =Opex_Forecast_BA!I26 -> 0 | J23: =Opex_Forecast_BA!J26 -> 1066996.684 | K23: =Opex_Forecast_BA!K26 -> 1025241.96 | L23: =Opex_Forecast_BA!L26 -> 991246.2161 | M23: =Opex_Forecast_BA!M26 -> 947441.3016 | N23: =Opex_Forecast_BA!N26 -> 941311.4511 | Q23: =Scope_Changes_BA!I28 -> 0 | R23: =Scope_Changes_BA!J28 -> 0 | S23: =Scope_Changes_BA!K28 -> 0 | T23: =Scope_Changes_BA!L28 -> 0 | U23: =Scope_Changes_BA!M28 -> 0 | V23: =Scope_Changes_BA!N28 -> 0
D24: Euroa | I24: =Opex_Forecast_BA!I27 -> 0 | J24: =Opex_Forecast_BA!J27 -> 805246.287 | K24: =Opex_Forecast_BA!K27 -> 773734.6279 | L24: =Opex_Forecast_BA!L27 -> 748078.553 | M24: =Opex_Forecast_BA!M27 -> 715019.6454 | N24: =Opex_Forecast_BA!N27 -> 710393.5397 | Q24: =Scope_Changes_BA!I29 -> 0 | R24: =Scope_Changes_BA!J29 -> 0 | S24: =Scope_Changes_BA!K29 -> 0 | T24: =Scope_Changes_BA!L29 -> 0 | U24: =Scope_Changes_BA!M29 -> 0 | V24: =Scope_Changes_BA!N29 -> 0
C26: Total Compressor Opex | I26: =SUM(I18:I24) -> 0 | J26: 8023790.163 | K26: 7709795.619 | L26: 7454148.416 | M26: 7124736.48 | N26: 7078640.147 | Q26: =SUM(Q18:Q24) -> 0 | R26: 0 | S26: 0 | T26: 0 | U26: 0 | V26: 0
C28: Odorant Stations
D30: Longford | I30: =Opex_Forecast_BA!I30 -> 0 | J30: =Opex_Forecast_BA!J30 -> 84384.22419 | K30: =Opex_Forecast_BA!K30 -> 81082.02093 | L30: =Opex_Forecast_BA!L30 -> 78393.44228 | M30: =Opex_Forecast_BA!M30 -> 74929.09812 | N30: =Opex_Forecast_BA!N30 -> 74444.31434 | Q30: =Scope_Changes_BA!I43 -> 0 | R30: =Scope_Changes_BA!J43 -> 0 | S30: =Scope_Changes_BA!K43 -> 0 | T30: =Scope_Changes_BA!L43 -> 0 | U30: =Scope_Changes_BA!M43 -> 0 | V30: =Scope_Changes_BA!N43 -> 0
D31: Dandenong | I31: =Opex_Forecast_BA!I31 -> 0 | J31: =Opex_Forecast_BA!J31 -> 8244.536824 | K31: =Opex_Forecast_BA!K31 -> 7921.903813 | L31: =Opex_Forecast_BA!L31 -> 7659.223366 | M31: =Opex_Forecast_BA!M31 -> 7320.748808 | N31: =Opex_Forecast_BA!N31 -> 7273.384295
... 28 more rows

Sheet O&M_Regulatory_TO
B1: O&M Summary
B2: =Model_Name -> VTS Tariff Model
B3: Go to Table of Contents
A4: é | B4: ç | C4: è
B6: =IF(TS_Pers_In_Yr=1,"",TS_Per_Type_Name&" Ending") ->  | J6: =IF(TS_Pers_In_Yr=1,"",LEFT(INDEX(LU_Mth_Names,MONTH(J9)),3)&"-"&RIGHT(YEAR(J9),2))&" " ->  | K6: =IF(TS_Pers_In_Yr=1,"",LEFT(INDEX(LU_Mth_Names,MONTH(K9)),3)&"-"&RIGHT(YEAR(K9),2))&" " ->  | L6: =IF(TS_Pers_In_Yr=1,"",LEFT(INDEX(LU_Mth_Names,MONTH(L9)),3)&"-"&RIGHT(YEAR(L9),2))&" " ->  | M6: =IF(TS_Pers_In_Yr=1,"",LEFT(INDEX(LU_Mth_Names,MONTH(M9)),3)&"-"&RIGHT(YEAR(M9),2))&" " ->  | N6: =IF(TS_Pers_In_Yr=1,"",LEFT(INDEX(LU_Mth_Names,MONTH(N9)),3)&"-"&RIGHT(YEAR(N9),2))&" " -> 
B7: =IF(TS_Pers_In_Yr=1,Yr_Name&" Ending "&DAY(TS_Per_1_End_Date)&" "&INDEX(LU_Mth_Names,DD_TS_Fin_YE_Mth),TS_Per_Type_Name) -> Year Ending 31 December | I7: =Working_Capital_BA!I4 -> 2022 | J7: =Working_Capital_BA!J4 -> 2023 | K7: =Working_Capital_BA!K4 -> 2024 | L7: =Working_Capital_BA!L4 -> 2025 | M7: =Working_Capital_BA!M4 -> 2026 | N7: =Working_Capital_BA!N4 -> 2027
B8: Period Start Date (From Start of Day...) | J8: =IF(J12=1,TS_Start_Date,I9+1) -> 2023-01-01 | K8: =IF(K12=1,TS_Start_Date,J9+1) -> 2024-01-01 | L8: =IF(L12=1,TS_Start_Date,K9+1) -> 2025-01-01 | M8: =IF(M12=1,TS_Start_Date,L9+1) -> 2026-01-01 | N8: =IF(N12=1,TS_Start_Date,M9+1) -> 2027-01-01
B9: Period End Date (Until End of Day...) | J9: =IF(J12=1,TS_Per_1_End_Date, IF(TS_Mth_End,EOMONTH(EDATE(TS_Per_1_FY_Start_Date,(TS_Per_1_Number+J12-1)*TS_Mths_In_Per-1),0), EDATE(TS_Per_1_FY_Start_Date,(TS_Per_1_Number+J12-1)*TS_Mths_In_Per)-1)) -> 2023-12-31 | K9: =IF(K12=1,TS_Per_1_End_Date, IF(TS_Mth_End,EOMONTH(EDATE(TS_Per_1_FY_Start_Date,(TS_Per_1_Number+K12-1)*TS_Mths_In_Per-1),0), EDATE(TS_Per_1_FY_Start_Date,(TS_Per_1_Number+K12-1)*TS_Mths_In_Per)-1)) -> 2024-12-31 | L9: =IF(L12=1,TS_Per_1_End_Date, IF(TS_Mth_End,EOMONTH(EDATE(TS_Per_1_FY_Start_Date,(TS_Per_1_Number+L12-1)*TS_Mths_In_Per-1),0), EDATE(TS_Per_1_FY_Start_Date,(TS_Per_1_Number+L12-1)*TS_Mths_In_Per)-1)) -> 2025-12-31 | M9: =IF(M12=1,TS_Per_1_End_Date, IF(TS_Mth_End,EOMONTH(EDATE(TS_Per_1_FY_Start_Date,(TS_Per_1_Number+M12-1)*TS_Mths_In_Per-1),0), EDATE(TS_Per_1_FY_Start_Date,(TS_Per_1_Number+M12-1)*TS_Mths_In_Per)-1)) -> 2026-12-31 | N9: =IF(N12=1,TS_Per_1_End_Date, IF(TS_Mth_End,EOMONTH(EDATE(TS_Per_1_FY_Start_Date,(TS_Per_1_Number+N12-1)*TS_Mths_In_Per-1),0), EDATE(TS_Per_1_FY_Start_Date,(TS_Per_1_Number+N12-1)*TS_Mths_In_Per)-1)) -> 2027-12-31
B10: Financial Year | J10: =YEAR(TS_Per_1_FY_End_Date)+INT((TS_Per_1_Number+J12-2)/TS_Pers_In_Yr) -> 2023 | K10: =YEAR(TS_Per_1_FY_End_Date)+INT((TS_Per_1_Number+K12-2)/TS_Pers_In_Yr) -> 2024 | L10: =YEAR(TS_Per_1_FY_End_Date)+INT((TS_Per_1_Number+L12-2)/TS_Pers_In_Yr) -> 2025 | M10: =YEAR(TS_Per_1_FY_End_Date)+INT((TS_Per_1_Number+M12-2)/TS_Pers_In_Yr) -> 2026 | N10: =YEAR(TS_Per_1_FY_End_Date)+INT((TS_Per_1_Number+N12-2)/TS_Pers_In_Yr) -> 2027
B11: Financial Year Period | J11: =IF(TS_Pers_In_Yr=1,Yr_Name,TS_Per_Type_Prefix&IF(MOD(TS_Per_1_Number+J12-1,TS_Pers_In_Yr)=0,TS_Pers_In_Yr,MOD(TS_Per_1_Number+J12-1,TS_Pers_In_Yr)))&" " -> Year | K11: =IF(TS_Pers_In_Yr=1,Yr_Name,TS_Per_Type_Prefix&IF(MOD(TS_Per_1_Number+K12-1,TS_Pers_In_Yr)=0,TS_Pers_In_Yr,MOD(TS_Per_1_Number+K12-1,TS_Pers_In_Yr)))&" " -> Year | L11: =IF(TS_Pers_In_Yr=1,Yr_Name,TS_Per_Type_Prefix&IF(MOD(TS_Per_1_Number+L12-1,TS_Pers_In_Yr)=0,TS_Pers_In_Yr,MOD(TS_Per_1_Number+L12-1,TS_Pers_In_Yr)))&" " -> Year | M11: =IF(TS_Pers_In_Yr=1,Yr_Name,TS_Per_Type_Prefix&IF(MOD(TS_Per_1_Number+M12-1,TS_Pers_In_Yr)=0,TS_Pers_In_Yr,MOD(TS_Per_1_Number+M12-1,TS_Pers_In_Yr)))&" " -> Year | N11: =IF(TS_Pers_In_Yr=1,Yr_Name,TS_Per_Type_Prefix&IF(MOD(TS_Per_1_Number+N12-1,TS_Pers_In_Yr)=0,TS_Pers_In_Yr,MOD(TS_Per_1_Number+N12-1,TS_Pers_In_Yr)))&" " -> Year
B12: Counter | J12: =COLUMN(J12)-COLUMN($J12)+1 -> 1 | K12: =COLUMN(K12)-COLUMN($J12)+1 -> 2 | L12: =COLUMN(L12)-COLUMN($J12)+1 -> 3 | M12: =COLUMN(M12)-COLUMN($J12)+1 -> 4 | N12: =COLUMN(N12)-COLUMN($J12)+1 -> 5
B13: Period Key | J13: =J10&"-"&J11 -> 2023-Year | K13: =K10&"-"&K11 -> 2024-Year | L13: =L10&"-"&L11 -> 2025-Year | M13: =M10&"-"&M11 -> 2026-Year | N13: =N10&"-"&N11 -> 2027-Year
C16: Total Direct Costs plus OH | I16: =I18+I83 -> 0 | J16: 37443287.4 | K16: 36278095.81 | L16: 35309052.73 | M16: 34330249.84 | N16: 34207363.49
C18: Direct O & M - Regulated | I18: =I27+I39+I47+I69+I77+I81 -> 0 | J18: 30457292.02 | K18: 29265408.47 | L18: 28295004.03 | M18: 27044598.02 | N18: 26869622.17
C20: Pipeline Operations
D22: Pipeline Operations (remaining) | J22: ='O&M_Workings_BO'!J9+'O&M_Workings_BO'!R9 -> 19965373.16 | K22: ='O&M_Workings_BO'!K9+'O&M_Workings_BO'!S9 -> 19144639.22 | L22: ='O&M_Workings_BO'!L9+'O&M_Workings_BO'!T9 -> 18472510.65 | M22: ='O&M_Workings_BO'!M9+'O&M_Workings_BO'!U9 -> 17611174.68 | N22: ='O&M_Workings_BO'!N9+'O&M_Workings_BO'!V9 -> 17473621.14
D23: Murray Valley Pipeline | J23: ='O&M_Workings_BO'!J10+'O&M_Workings_BO'!R10 -> 550446.157 | K23: ='O&M_Workings_BO'!K10+'O&M_Workings_BO'!S10 -> 568335.6571 | L23: ='O&M_Workings_BO'!L10+'O&M_Workings_BO'!T10 -> 586806.5659 | M23: ='O&M_Workings_BO'!M10+'O&M_Workings_BO'!U10 -> 605877.7793 | N23: ='O&M_Workings_BO'!N10+'O&M_Workings_BO'!V10 -> 625568.8072
D24: InterConnect Pipeline | J24: ='O&M_Workings_BO'!J11+'O&M_Workings_BO'!R11 -> 0 | K24: ='O&M_Workings_BO'!K11+'O&M_Workings_BO'!S11 -> 0 | L24: ='O&M_Workings_BO'!L11+'O&M_Workings_BO'!T11 -> 0 | M24: ='O&M_Workings_BO'!M11+'O&M_Workings_BO'!U11 -> 0 | N24: ='O&M_Workings_BO'!N11+'O&M_Workings_BO'!V11 -> 0
D25: Southwest Pipeline | J25: ='O&M_Workings_BO'!J12+'O&M_Workings_BO'!R12 -> 0 | K25: ='O&M_Workings_BO'!K12+'O&M_Workings_BO'!S12 -> 0 | L25: ='O&M_Workings_BO'!L12+'O&M_Workings_BO'!T12 -> 0 | M25: ='O&M_Workings_BO'!M12+'O&M_Workings_BO'!U12 -> 0 | N25: ='O&M_Workings_BO'!N12+'O&M_Workings_BO'!V12 -> 0
C27: Total Pipeline Opex | I27: =SUM(I22:I25) -> 0 | J27: =SUM(J22:J25) -> 20515819.31 | K27: 19712974.87 | L27: 19059317.22 | M27: 18217052.45 | N27: 18099189.95
C29: Compressors
D31: Brooklyn | I31: ='O&M_Workings_BO'!I18+'O&M_Workings_BO'!Q18 -> 0 | J31: ='O&M_Workings_BO'!J18+'O&M_Workings_BO'!R18 -> 2330422.247 | K31: ='O&M_Workings_BO'!K18+'O&M_Workings_BO'!S18 -> 2239225.96 | L31: ='O&M_Workings_BO'!L18+'O&M_Workings_BO'!T18 -> 2164976.021 | M31: ='O&M_Workings_BO'!M18+'O&M_Workings_BO'!U18 -> 2069301.921 | N31: ='O&M_Workings_BO'!N18+'O&M_Workings_BO'!V18 -> 2055913.744
... 28 more rows

Sheet Withdrawal_Volumes_Forecasts_BO
B1: Withdrawal Forecast Summary
B2: =Model_Name -> VTS Tariff Model
B3: Go to Table of Contents
A4: é | B4: ç | C4: è | I4: ='O&M_Regulatory_TO'!I7 -> 2022 | J4: ='O&M_Regulatory_TO'!J7 -> 2023 | K4: ='O&M_Regulatory_TO'!K7 -> 2024 | L4: ='O&M_Regulatory_TO'!L7 -> 2025 | M4: ='O&M_Regulatory_TO'!M7 -> 2026 | N4: ='O&M_Regulatory_TO'!N7 -> 2027
C6: Annual Injection Volumes - TJ
D8: Longford | I8: =Volume_Assumptions_BA!I228 -> 179179.9503 | J8: =Volume_Assumptions_BA!J228 -> 173365.98 | K8: =Volume_Assumptions_BA!K228 -> 168532.1339 | L8: =Volume_Assumptions_BA!L228 -> 172190.2299 | M8: =Volume_Assumptions_BA!M228 -> 171037.6474 | N8: =Volume_Assumptions_BA!N228 -> 165478.0329
D9: Port Campbell (base) | I9: =Volume_Assumptions_BA!I229 -> 15199.8274 | J9: =Volume_Assumptions_BA!J229 -> 14706.62856 | K9: =Volume_Assumptions_BA!K229 -> 14296.5736 | L9: =Volume_Assumptions_BA!L229 -> 14606.88973 | M9: =Volume_Assumptions_BA!M229 -> 14509.1162 | N9: =Volume_Assumptions_BA!N229 -> 14037.49434
D10: Port Campbell balancing | I10: =I21-SUM(I11:I13,I8:I9) -> 6496.299731 | J10: 6248.563228 | K10: 6047.026927 | L10: 6195.818634 | M10: 6144.029802 | N10: 5914.672532
D11: Culcairn | I11: 0 | J11: 0 | K11: 0 | L11: 0 | M11: 0 | N11: 0 | O11: Why would this be blanked out? Gas_Source_BO refers to these cells
D12: Pakenham | I12: =Volume_Assumptions_BA!I232 -> 9759.755304 | J12: =Volume_Assumptions_BA!J232 -> 9443.074075 | K12: =Volume_Assumptions_BA!K232 -> 9179.779239 | L12: =Volume_Assumptions_BA!L232 -> 9379.032124 | M12: =Volume_Assumptions_BA!M232 -> 9316.25209 | N12: =Volume_Assumptions_BA!N232 -> 9013.425367
D13: Dandenong (LNG) | I13: =Volume_Assumptions_BA!I233 -> 726.9805872 | J13: =Volume_Assumptions_BA!J233 -> 703.3917678 | K13: =Volume_Assumptions_BA!K233 -> 683.7795717 | L13: =Volume_Assumptions_BA!L233 -> 698.6214376 | M13: =Volume_Assumptions_BA!M233 -> 693.9451046 | N13: =Volume_Assumptions_BA!N233 -> 671.3882738
D14: Total | I14: =SUM(I8:I13) -> 211362.8133 | J14: 204467.6377 | K14: 198739.2932 | L14: 203070.5918 | M14: 201700.9906 | N14: 195115.0134
D16: Annual System VenCorp Forecast | I16: =Volume_Assumptions_BA!I236 -> 200004.044 | J16: =Volume_Assumptions_BA!J236 -> 198174.0548 | K16: =Volume_Assumptions_BA!K236 -> 192960.8169 | L16: =Volume_Assumptions_BA!L236 -> 199019.9083 | M16: =Volume_Assumptions_BA!M236 -> 199923.1416 | N16: =Volume_Assumptions_BA!N236 -> 194042.8511
D17: Exclude LNG Refill | I17: =Volume_Assumptions_BA!I241 -> 1713.954 | J17: =Volume_Assumptions_BA!J241 -> 2300 | K17: =Volume_Assumptions_BA!K241 -> 2300 | L17: =Volume_Assumptions_BA!L241 -> 2300 | M17: =Volume_Assumptions_BA!M241 -> 2300 | N17: =Volume_Assumptions_BA!N241 -> 2300
D18: Excl WUGS Refill | I18: =Volume_Assumptions_BA!I242 -> 15800 | J18: =Volume_Assumptions_BA!J242 -> 15800 | K18: =Volume_Assumptions_BA!K242 -> 15800 | L18: =Volume_Assumptions_BA!L242 -> 15800 | M18: =Volume_Assumptions_BA!M242 -> 15800 | N18: =Volume_Assumptions_BA!N242 -> 15800
D19: Incld Vic Hub Exports | I19: =Volume_Assumptions_BA!I237 -> 0 | J19: =Volume_Assumptions_BA!J237 -> 0 | K19: =Volume_Assumptions_BA!K237 -> 0 | L19: =Volume_Assumptions_BA!L237 -> 0 | M19: =Volume_Assumptions_BA!M237 -> 0 | N19: =Volume_Assumptions_BA!N237 -> 0
D20: Incld NSW Hub Exports | I20: =Volume_Assumptions_BA!I238 -> 11358.76929 | J20: =Volume_Assumptions_BA!J238 -> 6293.582826 | K20: =Volume_Assumptions_BA!K238 -> 5778.47634 | L20: =Volume_Assumptions_BA!L238 -> 4050.683465 | M20: =Volume_Assumptions_BA!M238 -> 1777.848998 | N20: =Volume_Assumptions_BA!N238 -> 1072.162263
D21: Annual Injection Fcast | I21: =SUM(I16,I19:I20) -> 211362.8133 | J21: 204467.6377 | K21: 198739.2932 | L21: 203070.5918 | M21: 201700.9906 | N21: 195115.0134
F22: Average system Usage | J22: =J21/365 -> 560.1853087 | K22: =K21/366 -> 543.0035334 | L22: =L21/365 -> 556.3577858 | M22: =M21/365 -> 552.6054536 | N22: =N21/365 -> 534.5616805 | O22: (Source for Table 4.3 in AAI)
C23: 1:2 Peak Day Volumes - TJ
D25: Longford | I25: =Volume_Assumptions_BA!I246 -> 850.152551 | J25: =Volume_Assumptions_BA!J246 -> 833.9168811 | K25: =Volume_Assumptions_BA!K246 -> 822.933928 | L25: =Volume_Assumptions_BA!L246 -> 817.6812113 | M25: =Volume_Assumptions_BA!M246 -> 879.3934516 | N25: =Volume_Assumptions_BA!N246 -> 857.3030066
D26: Port Campbell (base) | I26: =Volume_Assumptions_BA!I247 -> 178.1550007 | J26: =Volume_Assumptions_BA!J247 -> 176.047304 | K26: =Volume_Assumptions_BA!K247 -> 174.6215091 | L26: =Volume_Assumptions_BA!L247 -> 173.9396072 | M26: =Volume_Assumptions_BA!M247 -> 181.9510222 | N26: =Volume_Assumptions_BA!N247 -> 179.083265
D27: Port Campbell balancing | I27: =Volume_Assumptions_BA!I248-Volume_Assumptions_BA!I255 -> 140.6815037 | J27: =Volume_Assumptions_BA!J248-Volume_Assumptions_BA!J255 -> 148.7886183 | K27: =Volume_Assumptions_BA!K248-Volume_Assumptions_BA!K255 -> 126.9869645 | L27: =Volume_Assumptions_BA!L248-Volume_Assumptions_BA!L255 -> 126.0590717 | M27: =Volume_Assumptions_BA!M248-Volume_Assumptions_BA!M255 -> 42.54529777 | N27: =Volume_Assumptions_BA!N248-Volume_Assumptions_BA!N255 -> 46.10686489
D28: Culcairn | I28: =+Volume_Assumptions_BA!I249 -> 83.54850127 | J28: =+Volume_Assumptions_BA!J249 -> 82.05812927 | K28: =+Volume_Assumptions_BA!K249 -> 81.04993644 | L28: =+Volume_Assumptions_BA!L249 -> 80.56775726 | M28: =+Volume_Assumptions_BA!M249 -> 86.23270341 | N28: =+Volume_Assumptions_BA!N249 -> 84.20488558
D29: Pakenham | I29: =Volume_Assumptions_BA!I250 -> 28.23413478 | J29: =Volume_Assumptions_BA!J250 -> 27.73048285 | K29: =Volume_Assumptions_BA!K250 -> 27.38977713 | L29: =Volume_Assumptions_BA!L250 -> 27.22683092 | M29: =Volume_Assumptions_BA!M250 -> 29.14122616 | N29: =Volume_Assumptions_BA!N250 -> 28.45595136
D30: Dandenong (LNG) | I30: =Volume_Assumptions_BA!I251 -> 3.509812258 | J30: =Volume_Assumptions_BA!J251 -> 3.447202805 | K30: =Volume_Assumptions_BA!K251 -> 3.404849352 | L30: =Volume_Assumptions_BA!L251 -> 3.384593352 | M30: =Volume_Assumptions_BA!M251 -> 3.622573653 | N30: =Volume_Assumptions_BA!N251 -> 3.537386489
D31: Total | I31: =SUM(I25:I30) -> 1284.281504 | J31: 1271.988618 | K31: 1236.386964 | L31: 1228.859072 | M31: 1222.886275 | N31: 1198.69136
... 27 more rows

Sheet Meter Calcs -->
C9: Withdrawal Volumes
C10: Section 3.
C11: =Model_Name -> VTS Tariff Model
C12: Go to Table of Contents
C13: ç | D13: è
C17: Section Cover Notes:
C18: Breakdown of Tariff-V and Tariff-D data imported from Settlement Data file.
C19: 2019 used to provide a base that was not impacted by COVID-19

Sheet Vencorp_Summary_BO
B1: Summary - Vencorp Forecasts
B2: =Model_Name -> VTS Tariff Model
B3: Go to Table of Contents
A4: é | B4: ç | C4: è
C8: VENCorp SWZ Forecast TJ
G10: =Working_Capital_BA!I4 -> 2022 | H10: =Working_Capital_BA!J4 -> 2023 | I10: =Working_Capital_BA!K4 -> 2024 | J10: =Working_Capital_BA!L4 -> 2025 | K10: =Working_Capital_BA!M4 -> 2026 | L10: =Working_Capital_BA!N4 -> 2027
C12: Ballarat | G12: =(INDEX(Volume_Assumptions_BA!I$188:I$193,MATCH($C12,Volume_Assumptions_BA!$D$188:$D$193,FALSE),1)) -> 10324.92955 | H12: =(INDEX(Volume_Assumptions_BA!J$188:J$193,MATCH($C12,Volume_Assumptions_BA!$D$188:$D$193,FALSE),1)) -> 10469.89971 | I12: =(INDEX(Volume_Assumptions_BA!K$188:K$193,MATCH($C12,Volume_Assumptions_BA!$D$188:$D$193,FALSE),1)) -> 10496.73715 | J12: =(INDEX(Volume_Assumptions_BA!L$188:L$193,MATCH($C12,Volume_Assumptions_BA!$D$188:$D$193,FALSE),1)) -> 11085.42117 | K12: =(INDEX(Volume_Assumptions_BA!M$188:M$193,MATCH($C12,Volume_Assumptions_BA!$D$188:$D$193,FALSE),1)) -> 11254.02605 | L12: =(INDEX(Volume_Assumptions_BA!N$188:N$193,MATCH($C12,Volume_Assumptions_BA!$D$188:$D$193,FALSE),1)) -> 10068.30254
C13: Geelong | G13: =(INDEX(Volume_Assumptions_BA!I$188:I$193,MATCH($C13,Volume_Assumptions_BA!$D$188:$D$193,FALSE),1)) -> 20773.1377 | H13: =(INDEX(Volume_Assumptions_BA!J$188:J$193,MATCH($C13,Volume_Assumptions_BA!$D$188:$D$193,FALSE),1)) -> 20904.58332 | I13: =(INDEX(Volume_Assumptions_BA!K$188:K$193,MATCH($C13,Volume_Assumptions_BA!$D$188:$D$193,FALSE),1)) -> 20951.05039 | J13: =(INDEX(Volume_Assumptions_BA!L$188:L$193,MATCH($C13,Volume_Assumptions_BA!$D$188:$D$193,FALSE),1)) -> 25003.10815 | K13: =(INDEX(Volume_Assumptions_BA!M$188:M$193,MATCH($C13,Volume_Assumptions_BA!$D$188:$D$193,FALSE),1)) -> 24946.22109 | L13: =(INDEX(Volume_Assumptions_BA!N$188:N$193,MATCH($C13,Volume_Assumptions_BA!$D$188:$D$193,FALSE),1)) -> 21653.21898
C14: Gippsland | G14: =(INDEX(Volume_Assumptions_BA!I$188:I$193,MATCH($C14,Volume_Assumptions_BA!$D$188:$D$193,FALSE),1)) -> 14947.83326 | H14: =(INDEX(Volume_Assumptions_BA!J$188:J$193,MATCH($C14,Volume_Assumptions_BA!$D$188:$D$193,FALSE),1)) -> 14507.05061 | I14: =(INDEX(Volume_Assumptions_BA!K$188:K$193,MATCH($C14,Volume_Assumptions_BA!$D$188:$D$193,FALSE),1)) -> 14587.99149 | J14: =(INDEX(Volume_Assumptions_BA!L$188:L$193,MATCH($C14,Volume_Assumptions_BA!$D$188:$D$193,FALSE),1)) -> 13415.63036 | K14: =(INDEX(Volume_Assumptions_BA!M$188:M$193,MATCH($C14,Volume_Assumptions_BA!$D$188:$D$193,FALSE),1)) -> 12154.50747 | L14: =(INDEX(Volume_Assumptions_BA!N$188:N$193,MATCH($C14,Volume_Assumptions_BA!$D$188:$D$193,FALSE),1)) -> 14549.16311
C15: Melbourne | G15: =(INDEX(Volume_Assumptions_BA!I$188:I$193,MATCH($C15,Volume_Assumptions_BA!$D$188:$D$193,FALSE),1)) -> 123511.2094 | H15: =(INDEX(Volume_Assumptions_BA!J$188:J$193,MATCH($C15,Volume_Assumptions_BA!$D$188:$D$193,FALSE),1)) -> 122504.4462 | I15: =(INDEX(Volume_Assumptions_BA!K$188:K$193,MATCH($C15,Volume_Assumptions_BA!$D$188:$D$193,FALSE),1)) -> 120380.9932 | J15: =(INDEX(Volume_Assumptions_BA!L$188:L$193,MATCH($C15,Volume_Assumptions_BA!$D$188:$D$193,FALSE),1)) -> 123241.5669 | K15: =(INDEX(Volume_Assumptions_BA!M$188:M$193,MATCH($C15,Volume_Assumptions_BA!$D$188:$D$193,FALSE),1)) -> 124127.781 | L15: =(INDEX(Volume_Assumptions_BA!N$188:N$193,MATCH($C15,Volume_Assumptions_BA!$D$188:$D$193,FALSE),1)) -> 120167.0649
C16: Northern | G16: =(INDEX(Volume_Assumptions_BA!I$188:I$193,MATCH($C16,Volume_Assumptions_BA!$D$188:$D$193,FALSE),1)) -> 18635.60487 | H16: =(INDEX(Volume_Assumptions_BA!J$188:J$193,MATCH($C16,Volume_Assumptions_BA!$D$188:$D$193,FALSE),1)) -> 18684.2152 | I16: =(INDEX(Volume_Assumptions_BA!K$188:K$193,MATCH($C16,Volume_Assumptions_BA!$D$188:$D$193,FALSE),1)) -> 18563.27963 | J16: =(INDEX(Volume_Assumptions_BA!L$188:L$193,MATCH($C16,Volume_Assumptions_BA!$D$188:$D$193,FALSE),1)) -> 18527.9365 | K16: =(INDEX(Volume_Assumptions_BA!M$188:M$193,MATCH($C16,Volume_Assumptions_BA!$D$188:$D$193,FALSE),1)) -> 18741.39308 | L16: =(INDEX(Volume_Assumptions_BA!N$188:N$193,MATCH($C16,Volume_Assumptions_BA!$D$188:$D$193,FALSE),1)) -> 18742.46037
C17: Western | G17: =(INDEX(Volume_Assumptions_BA!I$188:I$193,MATCH($C17,Volume_Assumptions_BA!$D$188:$D$193,FALSE),1)) -> 4011.32923 | H17: =(INDEX(Volume_Assumptions_BA!J$188:J$193,MATCH($C17,Volume_Assumptions_BA!$D$188:$D$193,FALSE),1)) -> 4003.85982 | I17: =(INDEX(Volume_Assumptions_BA!K$188:K$193,MATCH($C17,Volume_Assumptions_BA!$D$188:$D$193,FALSE),1)) -> 3974.405 | J17: =(INDEX(Volume_Assumptions_BA!L$188:L$193,MATCH($C17,Volume_Assumptions_BA!$D$188:$D$193,FALSE),1)) -> 4242.00526 | K17: =(INDEX(Volume_Assumptions_BA!M$188:M$193,MATCH($C17,Volume_Assumptions_BA!$D$188:$D$193,FALSE),1)) -> 4299.21292 | L17: =(INDEX(Volume_Assumptions_BA!N$188:N$193,MATCH($C17,Volume_Assumptions_BA!$D$188:$D$193,FALSE),1)) -> 4205.973562
C19: Total | G19: =SUM(G12:G17) -> 192204.044 | H19: 191074.0548 | I19: 188954.4569 | J19: 195515.6683 | K19: 195523.1416 | L19: 189386.1834
D22: Above subtotals exclude : | G22: Storage re-fill
G23: Exports
G24: Power-Stations
G25: Compressors
C28: VENCorp Tariff V & D Annual Volumes - TJ | G28: =G10 -> 2022 | H28: 2023 | I28: 2024 | J28: 2025 | K28: 2026 | L28: 2027
C29: Excl GPG & Exports
C30: Ballarat | D30: Tariff V | G30: =Volume_Assumptions_BA!I201 -> 8974.44472 | H30: =Volume_Assumptions_BA!J201 -> 9128.37026 | I30: =Volume_Assumptions_BA!K201 -> 9152.67321 | J30: =Volume_Assumptions_BA!L201 -> 9182.58168 | K30: =Volume_Assumptions_BA!M201 -> 9397.39107 | L30: =Volume_Assumptions_BA!N201 -> 8403.47914
D31: Tariff D | G31: =Volume_Assumptions_BA!I212 -> 1350.48483 | H31: =Volume_Assumptions_BA!J212 -> 1341.52945 | I31: =Volume_Assumptions_BA!K212 -> 1344.06394 | J31: =Volume_Assumptions_BA!L212 -> 1902.83949 | K31: =Volume_Assumptions_BA!M212 -> 1856.63498 | L31: =Volume_Assumptions_BA!N212 -> 1664.823404
... 29 more rows

Sheet Power_Station_BO
B1: Withdrawal Volumes - Power Station
B2: =Model_Name -> VTS Tariff Model
B3: Go to Table of Contents
A4: é | B4: ç | C4: è
C6: 2019 Actuals | M6: 2006 Forecasts | W6: 2022 Forecasts | AG6: 2023 Forecasts | AQ6: 2024 Forecasts | BA6: 2025 Forecasts | BK6: 2026 Forecasts | BU6: 2027 Forecasts
C8: Day | D8: Date | E8: Total | F8: Loy Yang A | G8: Jeeralang | H8: Newport | I8: EMEAL (Loy Yang B) | J8: Snowy Hydro | K8: Somerton | M8: Day | N8: Date | O8: Total | P8: Loy Yang A | Q8: Jeeralang | R8: Newport | S8: EMEAL (Loy Yang B) | T8: Snowy Hydro | U8: Somerton | W8: Day | X8: Date | Y8: Total | Z8: Loy Yang A | AA8: Jeeralang | AB8: Newport | AC8: EMEAL (Loy Yang B) | AD8: Snowy Hydro | AE8: Somerton | AG8: Day | AH8: Date | AI8: Total | AJ8: Loy Yang A | AK8: Jeeralang | AL8: Newport | AM8: EMEAL (Loy Yang B) | AN8: Snowy Hydro | AO8: Somerton | AQ8: Day | AR8: Date | AS8: Total | AT8: Loy Yang A | AU8: Jeeralang | AV8: Newport | AW8: EMEAL (Loy Yang B) | AX8: Snowy Hydro | AY8: Somerton | BA8: Day | BB8: Date | BC8: Total | BD8: Loy Yang A | BE8: Jeeralang | BF8: Newport | BG8: EMEAL (Loy Yang B) | BH8: Snowy Hydro | BI8: Somerton | BK8: Day | BL8: Date | BM8: Total | BN8: Loy Yang A | BO8: Jeeralang | BP8: Newport | BQ8: EMEAL (Loy Yang B) | BR8: Snowy Hydro | BS8: Somerton | BU8: Day | BV8: Date | BW8: Total | BX8: Loy Yang A | BY8: Jeeralang | BZ8: Newport | CA8: EMEAL (Loy Yang B) | CB8: Snowy Hydro | CC8: Somerton
F10: 30000066PC | G10: 30000095PC | H10: 30000096PC | I10: 30000164PC | J10: 30000175PC | K10: 30000165PC | P10: 30000066PC | Q10: 30000095PC | R10: 30000096PC | S10: 30000164PC | T10: 30000175PC | U10: 30000165PC | Z10: 30000066PC | AA10: 30000095PC | AB10: 30000096PC | AC10: 30000164PC | AD10: 30000175PC | AE10: 30000165PC | AJ10: 30000066PC | AK10: 30000095PC | AL10: 30000096PC | AM10: 30000164PC | AN10: 30000175PC | AO10: 30000165PC | AT10: 30000066PC | AU10: 30000095PC | AV10: 30000096PC | AW10: 30000164PC | AX10: 30000175PC | AY10: 30000165PC | BD10: 30000066PC | BE10: 30000095PC | BF10: 30000096PC | BG10: 30000164PC | BH10: 30000175PC | BI10: 30000165PC | BN10: 30000066PC | BO10: 30000095PC | BP10: 30000096PC | BQ10: 30000164PC | BR10: 30000175PC | BS10: 30000165PC | BX10: 30000066PC | BY10: 30000095PC | BZ10: 30000096PC | CA10: 30000164PC | CB10: 30000175PC | CC10: 30000165PC
F11: M071 | G11: M102 | H11: M103 | I11: M134 | J11: M143 | K11: M135 | P11: M071 | Q11: M102 | R11: M103 | S11: M134 | T11: M143 | U11: M135 | Z11: M071 | AA11: M102 | AB11: M103 | AC11: M134 | AD11: M143 | AE11: M135 | AJ11: M071 | AK11: M102 | AL11: M103 | AM11: M134 | AN11: M143 | AO11: M135 | AT11: M071 | AU11: M102 | AV11: M103 | AW11: M134 | AX11: M143 | AY11: M135 | BD11: M071 | BE11: M102 | BF11: M103 | BG11: M134 | BH11: M143 | BI11: M135 | BN11: M071 | BO11: M102 | BP11: M103 | BQ11: M134 | BR11: M143 | BS11: M135 | BX11: M071 | BY11: M102 | BZ11: M103 | CA11: M134 | CB11: M143 | CC11: M135
C12: Total | E12: =SUM(F12:K12) -> 20233800.67 | F12: =[7]Reconciliation!$H$42 -> 40942.20568 | G12: =[7]Reconciliation!$H$43 -> 3462446.437 | H12: =[7]Reconciliation!$H$44 -> 13232830.84 | I12: =[7]Reconciliation!$H$45 -> 371572.8245 | J12: =[7]Reconciliation!$H$46 -> 1575305.878 | K12: =[7]Reconciliation!$H$47 -> 1550702.478 | M12: Total | O12: =SUM(O19:O383) -> 0 | P12: =SUM(P19:P383) -> 0 | Q12: 0 | R12: 0 | S12: 0 | T12: 0 | U12: 0 | W12: Total | Y12: =Volume_Assumptions_BA!$I$42*1000 -> 7800000 | Z12: =F12/E12*Y12 -> 15782.95692 | AA12: =G12/E12*Y12 -> 1334750.829 | AB12: =H12/E12*Y12 -> 5101171.168 | AC12: =I12/E12*Y12 -> 143238.9336 | AD12: =J12/E12*Y12 -> 607270.2827 | AE12: =K12/E12*Y12 -> 597785.8302 | AG12: Total | AI12: =Volume_Assumptions_BA!$J$42*1000 -> 7100000 | AJ12: =Z12/Y12*AI12 -> 14366.53771 | AK12: =AA12/Y12*AI12 -> 1214965.498 | AL12: =AB12/Y12*AI12 -> 4643373.755 | AM12: =AC12/Y12*AI12 -> 130384.1575 | AN12: =AD12/Y12*AI12 -> 552771.6676 | AO12: =AE12/Y12*AI12 -> 544138.3839 | AQ12: Total | AS12: =Volume_Assumptions_BA!$K$42*1000 -> 4000000 | AT12: =AJ12/AI12*AS12 -> 8093.824063 | AU12: =AK12/AI12*AS12 -> 684487.6045 | AV12: =AL12/AI12*AS12 -> 2615985.214 | AW12: =AM12/AI12*AS12 -> 73455.8634 | AX12: =AN12/AI12*AS12 -> 311420.6578 | AY12: =AO12/AI12*AS12 -> 306556.836 | BA12: Total | BC12: =Volume_Assumptions_BA!$L$42*1000 -> 3500000 | BD12: =AT12/AS12*BC12 -> 7082.096055 | BE12: =AU12/AS12*BC12 -> 598926.654 | BF12: =AV12/AS12*BC12 -> 2288987.062 | BG12: =AW12/AS12*BC12 -> 64273.88048 | BH12: =AX12/AS12*BC12 -> 272493.0756 | BI12: =AY12/AS12*BC12 -> 268237.2315 | BK12: Total | BM12: =Volume_Assumptions_BA!$M$42*1000 -> 4400000 | BN12: =BD12/BC12*BM12 -> 8903.206469 | BO12: =BE12/BC12*BM12 -> 752936.365 | BP12: =BF12/BC12*BM12 -> 2877583.736 | BQ12: =BG12/BC12*BM12 -> 80801.44974 | BR12: =BH12/BC12*BM12 -> 342562.7236 | BS12: =BI12/BC12*BM12 -> 337212.5196 | BU12: Total | BW12: =Volume_Assumptions_BA!$N$42*1000 -> 4656667.695 | BX12: =BN12/BM12*BW12 -> 9422.562261 | BY12: =BO12/BM12*BW12 -> 796857.829 | BZ12: =BP12/BM12*BW12 -> 3045443.46 | CA12: =BQ12/BM12*BW12 -> 85514.88654 | CB12: =BR12/BM12*BW12 -> 362545.6292 | CC12: =BS12/BM12*BW12 -> 356883.3287

Sheet Annual_CTM_BO
B1: Annual CTM | G1: 25% to Anglesea | H1: M065
B2: =Model_Name -> VTS Tariff Model | G2: 75% to Geelong | U2: Check | V2: =SUM(V168:V173)+SUM(V127:V164)+SUM(V86:V123)+SUM(V63:V82)+SUM(V46:V59)+SUM(V32:V42)+V23+SUM(V12:V17)-Volume_Assumptions_BA!J280 -> 0 | AB2: Check | AC2: =SUM(AC168:AC173)+SUM(AC127:AC164)+SUM(AC86:AC123)+SUM(AC63:AC82)+SUM(AC46:AC59)+SUM(AC32:AC42)+AC23+SUM(AC12:AC17)-Volume_Assumptions_BA!K280 -> -0.002799999987 | AI2: Check | AJ2: =SUM(AJ168:AJ173)+SUM(AJ127:AJ164)+SUM(AJ86:AJ123)+SUM(AJ63:AJ82)+SUM(AJ46:AJ59)+SUM(AJ32:AJ42)+AJ23+SUM(AJ12:AJ17)-Volume_Assumptions_BA!L280 -> -0.01561116538 | AP2: Check | AQ2: =SUM(AQ168:AQ173)+SUM(AQ127:AQ164)+SUM(AQ86:AQ123)+SUM(AQ63:AQ82)+SUM(AQ46:AQ59)+SUM(AQ32:AQ42)+AQ23+SUM(AQ12:AQ17)-Volume_Assumptions_BA!M280 -> -1.987978689 | AW2: Check | AX2: =SUM(AX168:AX173)+SUM(AX127:AX164)+SUM(AX86:AX123)+SUM(AX63:AX82)+SUM(AX46:AX59)+SUM(AX32:AX42)+AX23+SUM(AX12:AX17)-Volume_Assumptions_BA!N280 -> 704.643072
B3: Go to Table of Contents
A4: é | B4: ç | C4: è | U4: Check | V4: =Volume_Assumptions_BA!J280-V10 -> 0 | AB4: Check | AC4: =Volume_Assumptions_BA!K280-AC10 -> 0 | AI4: Check | AJ4: =Volume_Assumptions_BA!L280-AJ10 -> 0 | AP4: Check | AQ4: =Volume_Assumptions_BA!M280-AQ10 -> 0 | AW4: Check | AX4: =Volume_Assumptions_BA!T280-N10 -> 0
G6: 2019 Actual | I6: 2019 | J6: 2019 Norm | M6: 2019 Norm | O6: 2022 Forecast | V6: 2023 Forecast | AA6: 2023 | AC6: 2024 Forecast | AH6: 2024 | AJ6: 2025 Forecast | AO6: 2025 | AQ6: 2026 Forecast | AV6: 2026 | AX6: 2027 Forecast | BC6: 2027
C7: Meter | D7: Meter Name | E7: MIRN | F7: Tariff Zone | G7: Annual | H7: Coincident | I7: Load | J7: Annual | K7: Peak Day | L7: Peak Day | M7: Load | O7: Annual | P7: Old Peak | Q7: New | R7: New Peak | S7: Peak Day | T7: Load | V7: Annual | W7: Old Peak | X7: New | Y7: New Peak | Z7: Peak Day | AA7: Load | AC7: Annual | AD7: Old Peak | AE7: New | AF7: New Peak | AG7: Peak Day | AH7: Load | AJ7: Annual | AK7: Old Peak | AL7: New | AM7: New Peak | AN7: Peak Day | AO7: Load | AQ7: Annual | AR7: Old Peak | AS7: New | AT7: New Peak | AU7: Peak Day | AV7: Load | AX7: Annual | AY7: Old Peak | AZ7: New | BA7: New Peak | BB7: Peak Day | BC7: Load
H8: Peak Day | I8: Factor | K8: Raw Data | L8: Scaled to 100% | M8: Factor | Q8: Load Factor | T8: Factor | X8: Load Factor | AA8: Factor | AE8: Load Factor | AH8: Factor | AL8: Load Factor | AO8: Factor | AS8: Load Factor | AV8: Factor | AZ8: Load Factor | BC8: Factor
C10: Power Stations | G10: =G19+G28+G30 -> 251155.2065 | H10: =H19+H28+H30 -> 1240.635556 | J10: =J19+J28+J30 -> 246493.075 | K10: =K19+K28+K30 -> 1172.571258 | L10: =L19+L28+L30 -> 1158.064139 | O10: =O19+O28+O30 -> 211362.8133 | S10: =S19+S28+S30 -> 1222.780924 | V10: =V19+V28+V30 -> 204467.6377 | Z10: =Z19+Z28+Z30 -> 1039.470425 | AC10: =AC19+AC28+AC30 -> 198732.9332 | AG10: =AG19+AG28+AG30 -> 1005.57357 | AJ10: =AJ19+AJ28+AJ30 -> 203066.3518 | AN10: =AN19+AN28+AN30 -> 992.5660733 | AQ10: =AQ19+AQ28+AQ30 -> 201700.9906 | AU10: =AU19+AU28+AU30 -> 994.6751274 | AX10: =AX19+AX28+AX30 -> 195820.7001 | BB10: =BB19+BB28+BB30 -> 981.1042447
C12: M071 | D12: =(INDEX('[7]CTM Details'!$P$5:$P$411,MATCH(C12,'[7]CTM Details'!$B$5:$B$411,FALSE),1)) -> Morwell (Loy Yang) | E12: =(INDEX('[7]CTM Details'!$D$5:$D$411,MATCH(C12,'[7]CTM Details'!$B$5:$B$411,FALSE),1)) -> 30000066PC | F12: =(INDEX('[7]CTM Details'!$U$5:$U$411,MATCH(C12,'[7]CTM Details'!$B$5:$B$411,FALSE),1)) -> Tyers | G12: =(INDEX(Power_Station_BO!$F$12:$K$12,MATCH($C12,Power_Station_BO!$F$11:$K$11,FALSE)))/1000 -> 40.94220568 | H12: =(G12/$G$19)*$H$19 -> 0.1512066915 | I12: =IF(H12=0,0,(G12/365)/H12) -> 0.7418350696 | J12: =G12 -> 40.94220568 | K12: 0.1512066915 | L12: =K12 -> 0.1512066915 | M12: =IF(L12=0,0,(J12/365)/L12) -> 0.7418350696 | O12: =(INDEX(Power_Station_BO!$Z$12:$AE$12,MATCH($C12,Power_Station_BO!$Z$11:$AE$11,FALSE)))/1000 -> 15.78295692 | P12: =IF(M12=0,0,(O12/365)/M12) -> 0.05828920692 | R12: =IF(Q12=0,P12,(O12/365)/Q12) -> 0.05828920692 | S12: =(S$19/R$19)*R12 -> 0.05828920692 | T12: =IF(S12=0,0,(O12/365)/S12) -> 0.7418350696 | V12: =(INDEX(Power_Station_BO!$AJ$12:$AO$12,MATCH($C12,Power_Station_BO!$AJ$11:$AO$11,FALSE)))/1000 -> 14.36653771 | W12: =IF(T12=0,0,(V12/365)/T12) -> 0.05305812425 | Y12: =IF(X12=0,W12,(V12/365)/X12) -> 0.05305812425 | Z12: =(Z$19/Y$19)*Y12 -> 0.0749890212 | AA12: =IF(Z12=0,0,(V12/365)/Z12) -> 0.5248818648 | AC12: =(INDEX(Power_Station_BO!$AS$12:$AY$12,MATCH($C12,Power_Station_BO!$AS$11:$AY$11,FALSE)))/1000 -> 8.093824063 | AD12: =IF(AA12=0,0,(AC12/365)/AA12) -> 0.04224733589 | AF12: =IF(AE12=0,AD12,(AC12/365)/AE12) -> 0.04224733589 | AG12: =(AG$19/AF$19)*AF12 -> 0.03151815926 | AH12: =IF(AG12=0,0,(AC12/365)/AG12) -> 0.7035582332 | AJ12: =(INDEX(Power_Station_BO!$BD$12:$BI$12,MATCH($C12,Power_Station_BO!$BD$11:$BI$11,FALSE)))/1000 -> 7.082096055 | AK12: =IF(AH12=0,0,(AJ12/365)/AH12) -> 0.02757838936 | AM12: =IF(AL12=0,AK12,(AJ12/365)/AL12) -> 0.02757838936 | AN12: =(AN$19/AM$19)*AM12 -> 0.02861559762 | AO12: =IF(AN12=0,0,(AJ12/365)/AN12) -> 0.6780568817 | AQ12: =(INDEX(Power_Station_BO!$BN$12:$BS$12,MATCH($C12,Power_Station_BO!$BN$11:$BS$11,FALSE)))/1000 -> 8.903206469 | AR12: =IF(AO12=0,0,(AQ12/365)/AO12) -> 0.03597389415 | AT12: =IF(AS12=0,AR12,(AQ12/365)/AS12) -> 0.03597389415 | AU12: =(AU$19/AT$19)*AT12 -> 0.05180201489 | AV12: =IF(AU12=0,0,(AQ12/365)/AU12) -> 0.470876404 | AX12: =(INDEX(Power_Station_BO!$BX$12:$CC$12,MATCH($C12,Power_Station_BO!$BX$11:$CC$11,FALSE)))/1000 -> 9.422562261 | AY12: =IF(AV12=0,0,(AX12/365)/AV12) -> 0.0548238112 | BA12: =IF(AZ12=0,AY12,(AX12/365)/AZ12) -> 0.0548238112 | BB12: =(BB$19/BA$19)*BA12 -> 0.03060648537 | BC12: =IF(BB12=0,0,(AX12/365)/BB12) -> 0.8434565015
C13: M102 | D13: =(INDEX('[7]CTM Details'!$P$5:$P$411,MATCH(C13,'[7]CTM Details'!$B$5:$B$411,FALSE),1)) -> AES ECOGEN Jeeralang | E13: =(INDEX('[7]CTM Details'!$D$5:$D$411,MATCH(C13,'[7]CTM Details'!$B$5:$B$411,FALSE),1)) -> 30000095PC | F13: =(INDEX('[7]CTM Details'!$U$5:$U$411,MATCH(C13,'[7]CTM Details'!$B$5:$B$411,FALSE),1)) -> Tyers | G13: =(INDEX(Power_Station_BO!$F$12:$K$12,MATCH($C13,Power_Station_BO!$F$11:$K$11,FALSE)))/1000 -> 3462.446437 | H13: 12.78741733 | I13: 0.7418350696 | J13: 3462.446437 | K13: 12.78741733 | L13: 12.78741733 | M13: 0.7418350696 | O13: =(INDEX(Power_Station_BO!$Z$12:$AE$12,MATCH($C13,Power_Station_BO!$Z$11:$AE$11,FALSE)))/1000 -> 1334.750829 | P13: 4.929467123 | R13: 4.929467123 | S13: 4.929467123 | T13: 0.7418350696 | V13: =(INDEX(Power_Station_BO!$AJ$12:$AO$12,MATCH($C13,Power_Station_BO!$AJ$11:$AO$11,FALSE)))/1000 -> 1214.965498 | W13: 4.487079048 | Y13: 4.487079048 | Z13: 6.341755775 | AA13: 0.5248818648 | AC13: =(INDEX(Power_Station_BO!$AS$12:$AY$12,MATCH($C13,Power_Station_BO!$AS$11:$AY$11,FALSE)))/1000 -> 684.4876045 | AD13: 3.572820155 | AF13: 3.572820155 | AG13: 2.665463095 | AH13: 0.7035582332 | AJ13: =(INDEX(Power_Station_BO!$BD$12:$BI$12,MATCH($C13,Power_Station_BO!$BD$11:$BI$11,FALSE)))/1000 -> 598.926654 | AK13: 2.332280208 | AM13: 2.332280208 | AN13: 2.419996001 | AO13: 0.6780568817 | AQ13: =(INDEX(Power_Station_BO!$BN$12:$BS$12,MATCH($C13,Power_Station_BO!$BN$11:$BS$11,FALSE)))/1000 -> 752.936365 | AR13: 3.042280687 | AT13: 3.042280687 | AU13: 4.380850981 | AV13: 0.470876404 | AX13: =(INDEX(Power_Station_BO!$BX$12:$CC$12,MATCH($C13,Power_Station_BO!$BX$11:$CC$11,FALSE)))/1000 -> 796.857829 | AY13: 4.636401646 | BA13: 4.636401646 | BB13: 2.588363633 | BC13: 0.8434565015
C14: M103 | D14: =(INDEX('[7]CTM Details'!$P$5:$P$411,MATCH(C14,'[7]CTM Details'!$B$5:$B$411,FALSE),1)) -> AES Yarra | E14: =(INDEX('[7]CTM Details'!$D$5:$D$411,MATCH(C14,'[7]CTM Details'!$B$5:$B$411,FALSE),1)) -> 30000096PC | F14: =(INDEX('[7]CTM Details'!$U$5:$U$411,MATCH(C14,'[7]CTM Details'!$B$5:$B$411,FALSE),1)) -> Metro North West | G14: =(INDEX(Power_Station_BO!$F$12:$K$12,MATCH($C14,Power_Station_BO!$F$11:$K$11,FALSE)))/1000 -> 13232.83084 | H14: 48.87114746 | I14: 0.7418350696 | J14: 13232.83084 | K14: 48.87114746 | L14: 48.87114746 | M14: 0.7418350696 | O14: =(INDEX(Power_Station_BO!$Z$12:$AE$12,MATCH($C14,Power_Station_BO!$Z$11:$AE$11,FALSE)))/1000 -> 5101.171168 | P14: 18.83951297 | R14: 18.83951297 | S14: 18.83951297 | T14: 0.7418350696 | V14: =(INDEX(Power_Station_BO!$AJ$12:$AO$12,MATCH($C14,Power_Station_BO!$AJ$11:$AO$11,FALSE)))/1000 -> 4643.373755 | W14: 17.14878745 | Y14: 17.14878745 | Z14: 24.23701938 | AA14: 0.5248818648 | AC14: =(INDEX(Power_Station_BO!$AS$12:$AY$12,MATCH($C14,Power_Station_BO!$AS$11:$AY$11,FALSE)))/1000 -> 2615.985214 | AD14: 13.65465881 | AF14: 13.65465881 | AG14: 10.18690769 | AH14: 0.7035582332 | AJ14: =(INDEX(Power_Station_BO!$BD$12:$BI$12,MATCH($C14,Power_Station_BO!$BD$11:$BI$11,FALSE)))/1000 -> 2288.987062 | AK14: 8.913544232 | AM14: 8.913544232 | AN14: 9.248777795 | AO14: 0.6780568817 | AQ14: =(INDEX(Power_Station_BO!$BN$12:$BS$12,MATCH($C14,Power_Station_BO!$BN$11:$BS$11,FALSE)))/1000 -> 2877.583736 | AR14: 11.62703494 | AT14: 11.62703494 | AU14: 16.7428034 | AV14: 0.470876404 | AX14: =(INDEX(Power_Station_BO!$BX$12:$CC$12,MATCH($C14,Power_Station_BO!$BX$11:$CC$11,FALSE)))/1000 -> 3045.44346 | AY14: 17.71947084 | BA14: 17.71947084 | BB14: 9.892247788 | BC14: 0.8434565015
C15: M134 | D15: =(INDEX('[7]CTM Details'!$P$5:$P$411,MATCH(C15,'[7]CTM Details'!$B$5:$B$411,FALSE),1)) -> EMEAL Loy Yang | E15: =(INDEX('[7]CTM Details'!$D$5:$D$411,MATCH(C15,'[7]CTM Details'!$B$5:$B$411,FALSE),1)) -> 30000164PC | F15: =(INDEX('[7]CTM Details'!$U$5:$U$411,MATCH(C15,'[7]CTM Details'!$B$5:$B$411,FALSE),1)) -> LaTrobe | G15: =(INDEX(Power_Station_BO!$F$12:$K$12,MATCH($C15,Power_Station_BO!$F$11:$K$11,FALSE)))/1000 -> 371.5728245 | H15: 1.372283113 | I15: 0.7418350696 | J15: 371.5728245 | K15: 1.372283113 | L15: 1.372283113 | M15: 0.7418350696 | O15: =(INDEX(Power_Station_BO!$Z$12:$AE$12,MATCH($C15,Power_Station_BO!$Z$11:$AE$11,FALSE)))/1000 -> 143.2389336 | P15: 0.5290063125 | R15: 0.5290063125 | S15: 0.5290063125 | T15: 0.7418350696 | V15: =(INDEX(Power_Station_BO!$AJ$12:$AO$12,MATCH($C15,Power_Station_BO!$AJ$11:$AO$11,FALSE)))/1000 -> 130.3841575 | W15: 0.481531387 | Y15: 0.481531387 | Z15: 0.6805662263 | AA15: 0.5248818648 | AC15: =(INDEX(Power_Station_BO!$AS$12:$AY$12,MATCH($C15,Power_Station_BO!$AS$11:$AY$11,FALSE)))/1000 -> 73.4558634 | AD15: 0.3834175923 | AF15: 0.3834175923 | AG15: 0.2860444684 | AH15: 0.7035582332 | AJ15: =(INDEX(Power_Station_BO!$BD$12:$BI$12,MATCH($C15,Power_Station_BO!$BD$11:$BI$11,FALSE)))/1000 -> 64.27388048 | AK15: 0.2502889099 | AM15: 0.2502889099 | AN15: 0.25970214 | AO15: 0.6780568817 | AQ15: =(INDEX(Power_Station_BO!$BN$12:$BS$12,MATCH($C15,Power_Station_BO!$BN$11:$BS$11,FALSE)))/1000 -> 80.80144974 | AR15: 0.3264826903 | AT15: 0.3264826903 | AU15: 0.4701315102 | AV15: 0.470876404 | AX15: =(INDEX(Power_Station_BO!$BX$12:$CC$12,MATCH($C15,Power_Station_BO!$BX$11:$CC$11,FALSE)))/1000 -> 85.51488654 | AY15: 0.4975559582 | BA15: 0.4975559582 | BB15: 0.2777705311 | BC15: 0.8434565015
C16: M143 | D16: =(INDEX('[7]CTM Details'!$P$5:$P$411,MATCH(C16,'[7]CTM Details'!$B$5:$B$411,FALSE),1)) -> Snowy Hydro | E16: =(INDEX('[7]CTM Details'!$D$5:$D$411,MATCH(C16,'[7]CTM Details'!$B$5:$B$411,FALSE),1)) -> 30000175PC | F16: =(INDEX('[7]CTM Details'!$U$5:$U$411,MATCH(C16,'[7]CTM Details'!$B$5:$B$411,FALSE),1)) -> Metro North West | G16: =(INDEX(Power_Station_BO!$F$12:$K$12,MATCH($C16,Power_Station_BO!$F$11:$K$11,FALSE)))/1000 -> 1575.305878 | H16: 5.817878789 | I16: 0.7418350696 | J16: 1575.305878 | K16: 5.817878789 | L16: 5.817878789 | M16: 0.7418350696 | O16: =(INDEX(Power_Station_BO!$Z$12:$AE$12,MATCH($C16,Power_Station_BO!$Z$11:$AE$11,FALSE)))/1000 -> 607.2702827 | P16: 2.242754849 | R16: 2.242754849 | S16: 2.242754849 | T16: 0.7418350696 | V16: =(INDEX(Power_Station_BO!$AJ$12:$AO$12,MATCH($C16,Power_Station_BO!$AJ$11:$AO$11,FALSE)))/1000 -> 552.7716676 | W16: 2.041481978 | Y16: 2.041481978 | Z16: 2.885302439 | AA16: 0.5248818648 | AC16: =(INDEX(Power_Station_BO!$AS$12:$AY$12,MATCH($C16,Power_Station_BO!$AS$11:$AY$11,FALSE)))/1000 -> 311.4206578 | AD16: 1.625522501 | AF16: 1.625522501 | AG16: 1.212703144 | AH16: 0.7035582332 | AJ16: =(INDEX(Power_Station_BO!$BD$12:$BI$12,MATCH($C16,Power_Station_BO!$BD$11:$BI$11,FALSE)))/1000 -> 272.4930756 | AK16: 1.061115251 | AM16: 1.061115251 | AN16: 1.10102322 | AO16: 0.6780568817 | AQ16: =(INDEX(Power_Station_BO!$BN$12:$BS$12,MATCH($C16,Power_Station_BO!$BN$11:$BS$11,FALSE)))/1000 -> 342.5627236 | AR16: 1.384143477 | AT16: 1.384143477 | AU16: 1.993151498 | AV16: 0.470876404 | AX16: =(INDEX(Power_Station_BO!$BX$12:$CC$12,MATCH($C16,Power_Station_BO!$BX$11:$CC$11,FALSE)))/1000 -> 362.5456292 | AY16: 2.109419135 | BA16: 2.109419135 | BB16: 1.177625277 | BC16: 0.8434565015
C17: M135 | D17: =(INDEX('[7]CTM Details'!$P$5:$P$411,MATCH(C17,'[7]CTM Details'!$B$5:$B$411,FALSE),1)) -> AGL Somerton | E17: =(INDEX('[7]CTM Details'!$D$5:$D$411,MATCH(C17,'[7]CTM Details'!$B$5:$B$411,FALSE),1)) -> 30000165PC | F17: =(INDEX('[7]CTM Details'!$U$5:$U$411,MATCH(C17,'[7]CTM Details'!$B$5:$B$411,FALSE),1)) -> Metro North West | G17: =(INDEX(Power_Station_BO!$F$12:$K$12,MATCH($C17,Power_Station_BO!$F$11:$K$11,FALSE)))/1000 -> 1550.702478 | H17: 5.72701415 | I17: 0.7418350696 | J17: 1550.702478 | K17: 5.72701415 | L17: 5.72701415 | M17: 0.7418350696 | O17: =(INDEX(Power_Station_BO!$Z$12:$AE$12,MATCH($C17,Power_Station_BO!$Z$11:$AE$11,FALSE)))/1000 -> 597.7858302 | P17: 2.207727115 | R17: 2.207727115 | S17: 2.207727115 | T17: 0.7418350696 | V17: =(INDEX(Power_Station_BO!$AJ$12:$AO$12,MATCH($C17,Power_Station_BO!$AJ$11:$AO$11,FALSE)))/1000 -> 544.1383839 | W17: 2.009597758 | Y17: 2.009597758 | Z17: 2.840239286 | AA17: 0.5248818648 | AC17: =(INDEX(Power_Station_BO!$AS$12:$AY$12,MATCH($C17,Power_Station_BO!$AS$11:$AY$11,FALSE)))/1000 -> 306.556836 | AD17: 1.600134809 | AF17: 1.600134809 | AG17: 1.193762937 | AH17: 0.7035582332 | AJ17: =(INDEX(Power_Station_BO!$BD$12:$BI$12,MATCH($C17,Power_Station_BO!$BD$11:$BI$11,FALSE)))/1000 -> 268.2372315 | AK17: 1.044542569 | AM17: 1.044542569 | AN17: 1.083827249 | AO17: 0.6780568817 | AQ17: =(INDEX(Power_Station_BO!$BN$12:$BS$12,MATCH($C17,Power_Station_BO!$BN$11:$BS$11,FALSE)))/1000 -> 337.2125196 | AR17: 1.362525684 | AT17: 1.362525684 | AU17: 1.962022112 | AV17: 0.470876404 | AX17: =(INDEX(Power_Station_BO!$BX$12:$CC$12,MATCH($C17,Power_Station_BO!$BX$11:$CC$11,FALSE)))/1000 -> 356.8833287 | AY17: 2.076473861 | BA17: 2.076473861 | BB17: 1.159232922 | BC17: 0.8434565015
C19: Total | G19: =SUM(G12:G17) -> 20233.80067 | H19: =G19*(S19/O19) -> 74.72694753 | I19: =IF(H19=0,0,(G19/365)/H19) -> 0.7418350696 | J19: =SUM(J12:J17) -> 20233.80067 | K19: =SUM(K12:K17) -> 74.72694753 | L19: =SUM(L12:L17) -> 74.72694753 | M19: =IF(L19=0,0,(J19/365)/L19) -> 0.7418350696 | O19: =SUM(O12:O17) -> 7800 | P19: =SUM(P12:P17) -> 28.80675758 | R19: =SUM(R12:R17) -> 28.80675758 | S19: =Volume_Assumptions_BA!$I$60 -> 28.80675758 | T19: 0.7418350696 | V19: =SUM(V12:V17) -> 7100 | W19: =SUM(W12:W17) -> 26.22153575 | Y19: =SUM(Y12:Y17) -> 26.22153575 | Z19: =Volume_Assumptions_BA!$J$60 -> 37.05987213 | AA19: 0.5248818648 | AC19: =SUM(AC12:AC17) -> 4000 | AD19: =SUM(AD12:AD17) -> 20.8788012 | AF19: =SUM(AF12:AF17) -> 20.8788012 | AG19: =Volume_Assumptions_BA!$K$60 -> 15.5763995 | AH19: 0.7035582332 | AJ19: =SUM(AJ12:AJ17) -> 3500 | AK19: =SUM(AK12:AK17) -> 13.62934956 | AM19: =SUM(AM12:AM17) -> 13.62934956 | AN19: =Volume_Assumptions_BA!$L$60 -> 14.141942 | AO19: 0.6780568817 | AQ19: =SUM(AQ12:AQ17) -> 4400 | AR19: =SUM(AR12:AR17) -> 17.77844138 | AT19: =SUM(AT12:AT17) -> 17.77844138 | AU19: =Volume_Assumptions_BA!$M$60 -> 25.60076151 | AV19: 0.470876404 | AX19: =SUM(AX12:AX17) -> 4656.667695 | AY19: =SUM(AY12:AY17) -> 27.09414526 | BA19: =SUM(BA12:BA17) -> 27.09414526 | BB19: =Volume_Assumptions_BA!$N$60 -> 15.12584664 | BC19: 0.8434565015
C21: Exports
C23: M126 | D23: =(INDEX('[7]CTM Details'!$P$5:$P$411,MATCH(C23,'[7]CTM Details'!$B$5:$B$411,FALSE),1)) -> NSW Exports | E23: =(INDEX('[7]CTM Details'!$D$5:$D$411,MATCH(C23,'[7]CTM Details'!$B$5:$B$411,FALSE),1)) -> 20000002PC | F23: =(INDEX('[7]CTM Details'!$U$5:$U$411,MATCH(C23,'[7]CTM Details'!$B$5:$B$411,FALSE),1)) -> Barnawartha (Interconnect) | G23: =(INDEX(Exports_BO!$F$12:$I$12,MATCH($E23,Exports_BO!$F$10:$I$10,FALSE)))/1000 -> 14181.55712 | H23: =(G23/$G$28)*$H$28 -> 58.33871045 | I23: =IF(H23=0,0,(G23/365)/H23) -> 0.666 | J23: =G23 -> 14181.55712 | K23: =H23 -> 58.33871045 | L23: =K23 -> 58.33871045 | M23: =IF(L23=0,0,(J23/365)/L23) -> 0.666 | O23: =(INDEX(Exports_BO!$V$12:$Y$12,MATCH($E23,Exports_BO!$V$10:$Y$10,FALSE)))/1000 -> 11358.76929 | P23: =IF(M23=0,0,(O23/365)/M23) -> 46.7266004 | R23: =S28-1 -> 45.7266004 | S23: =(S$28/R$28)*R23 -> 23.11059613 | T23: =IF(S23=0,0,(O23/365)/S23) -> 1.346564826 | V23: =(INDEX(Exports_BO!$AD$12:$AG$12,MATCH($E23,Exports_BO!$AD$10:$AG$10,FALSE)))/1000 -> 6293.582826 | W23: =IF(T23=0,0,(V23/365)/T23) -> 12.80494807 | Y23: 38 | Z23: =(Z$28/Y$28)*Y23 -> 25.88992894 | AA23: =IF(Z23=0,0,(V23/365)/Z23) -> 0.666 | AC23: =(INDEX(Exports_BO!$AL$12:$AO$12,MATCH($E23,Exports_BO!$AL$10:$AO$10,FALSE)))/1000 -> 5778.47634 | AD23: =IF(AA23=0,0,(AC23/365)/AA23) -> 23.77093398 | AF23: 38 | AG23: =(AG$28/AF$28)*AF23 -> 23.70598607 | AH23: =IF(AG23=0,0,(AC23/365)/AG23) -> 0.6678246575 | AJ23: =(INDEX(Exports_BO!$AT$12:$AW$12,MATCH($E23,Exports_BO!$AT$10:$AW$10,FALSE)))/1000 -> 4050.683465 | AK23: =IF(AH23=0,0,(AJ23/365)/AH23) -> 16.61777952 | AM23: 68 | AN23: =(AN$28/AM$28)*AM23 -> 16.66330769 | AO23: =IF(AN23=0,0,(AJ23/365)/AN23) -> 0.666 | AQ23: =(INDEX(Exports_BO!$BB$12:$BE$12,MATCH($E23,Exports_BO!$BB$10:$BE$10,FALSE)))/1000 -> 1777.848998 | AR23: =IF(AO23=0,0,(AQ23/365)/AO23) -> 7.3135423 | AT23: =IF(AS23=0,AR23,(AQ23/365)/AS23) -> 7.3135423 | AU23: =(AU$28/AT$28)*AT23 -> 7.3135423 | AV23: =IF(AU23=0,0,(AQ23/365)/AU23) -> 0.666 | AX23: =(INDEX(Exports_BO!$BB$12:$BE$12,MATCH($E23,Exports_BO!$BJ$10:$BM$10,FALSE)))/1000 -> 1777.848998 | AY23: =IF(AV23=0,0,(AX23/365)/AV23) -> 7.3135423 | BA23: =IF(AZ23=0,AY23,(AX23/365)/AZ23) -> 7.3135423 | BB23: =(BB$28/BA$28)*BA23 -> 4.410556841 | BC23: =IF(BB23=0,0,(AX23/365)/BB23) -> 1.104354699
C24: M137A | D24: =(INDEX('[7]CTM Details'!$P$5:$P$411,MATCH(C24,'[7]CTM Details'!$B$5:$B$411,FALSE),1)) -> VicHub - Withdrawal | E24: =(INDEX('[7]CTM Details'!$D$5:$D$411,MATCH(C24,'[7]CTM Details'!$B$5:$B$411,FALSE),1)) -> 30000166PC | F24: =(INDEX('[7]CTM Details'!$U$5:$U$411,MATCH(C24,'[7]CTM Details'!$B$5:$B$411,FALSE),1)) -> VicHub Withdrawal | G24: =(INDEX(Exports_BO!$F$12:$I$12,MATCH($E24,Exports_BO!$F$10:$I$10,FALSE)))/1000 -> 1911.887462 | H24: =(G24/$G$28)*$H$28 -> 7.864936699 | I24: =IF(H24=0,0,(G24/365)/H24) -> 0.666 | J24: 1911.887462 | K24: 7.864936699 | L24: =K24 -> 7.864936699 | M24: =IF(L24=0,0,(J24/365)/L24) -> 0.666 | O24: =(INDEX(Exports_BO!$V$12:$Y$12,MATCH($E24,Exports_BO!$V$10:$Y$10,FALSE)))/1000 -> 0 | P24: =IF(M24=0,0,(O24/365)/M24) -> 0 | R24: =S28 -> 46.7266004 | S24: =(S$28/R$28)*R24 -> 23.61600427 | T24: =IF(S24=0,0,(O24/365)/S24) -> 0 | V24: =(INDEX(Exports_BO!$AD$12:$AG$12,MATCH($E24,Exports_BO!$AD$10:$AG$10,FALSE)))/1000 -> 0 | W24: =IF(T24=0,0,(V24/365)/T24) -> 0 | Y24: =IF(X24=0,W24,(V24/365)/X24) -> 0 | Z24: =(Z$28/Y$28)*Y24 -> 0 | AA24: =IF(Z24=0,0,(V24/365)/Z24) -> 0 | AC24: =(INDEX(Exports_BO!$AL$12:$AO$12,MATCH($E24,Exports_BO!$AL$10:$AO$10,FALSE)))/1000 -> 0 | AD24: =IF(AA24=0,0,(AC24/365)/AA24) -> 0 | AF24: =IF(AE24=0,AD24,(AC24/365)/AE24) -> 0 | AG24: =(AG$28/AF$28)*AF24 -> 0 | AH24: =IF(AG24=0,0,(AC24/365)/AG24) -> 0 | AJ24: =(INDEX(Exports_BO!$AT$12:$AW$12,MATCH($E24,Exports_BO!$AT$10:$AW$10,FALSE)))/1000 -> 0 | AK24: =IF(AH24=0,0,(AJ24/365)/AH24) -> 0 | AM24: =IF(AL24=0,AK24,(AJ24/365)/AL24) -> 0 | AN24: =(AN$28/AM$28)*AM24 -> 0 | AO24: 0 | AQ24: =(INDEX(Exports_BO!$BB$12:$BE$12,MATCH($E24,Exports_BO!$BB$10:$BE$10,FALSE)))/1000 -> 0 | AR24: =IF(AO24=0,0,(AQ24/365)/AO24) -> 0 | AT24: =IF(AS24=0,AR24,(AQ24/365)/AS24) -> 0 | AU24: =(AU$28/AT$28)*AT24 -> 0 | AV24: 0 | AX24: =(INDEX(Exports_BO!$BB$12:$BE$12,MATCH($E24,Exports_BO!$BJ$10:$BM$10,FALSE)))/1000 -> 0 | AY24: =IF(AV24=0,0,(AX24/365)/AV24) -> 0 | BA24: =IF(AZ24=0,AY24,(AX24/365)/AZ24) -> 0 | BB24: =(BB$28/BA$28)*BA24 -> 0 | BC24: 0
D25: WUGS Exports | E25: 30000156PC | F25: WUGS | G25: =(INDEX(Exports_BO!$F$12:$I$12,MATCH($E25,Exports_BO!$F$10:$I$10,FALSE)))/1000 -> 14311.37068 | H25: =(G25/$G$28)*$H$28 -> 58.87272482 | I25: =IF(H25=0,0,(G25/365)/H25) -> 0.666 | J25: 14311.37068 | K25: 58.87272482 | L25: =K25 -> 58.87272482 | M25: =IF(L25=0,0,(J25/365)/L25) -> 0.666 | O25: =(INDEX(Exports_BO!$V$12:$Y$12,MATCH($E25,Exports_BO!$V$10:$Y$10,FALSE)))/1000 -> 0 | P25: =IF(M25=0,0,(O25/365)/M25) -> 0 | R25: =IF(Q25=0,P25,(O25/365)/Q25) -> 0 | S25: =(S$28/R$28)*R25 -> 0 | T25: =IF(S25=0,0,(O25/365)/S25) -> 0 | V25: =(INDEX(Exports_BO!$AD$12:$AG$12,MATCH($E25,Exports_BO!$AD$10:$AG$10,FALSE)))/1000 -> 0 | W25: =IF(T25=0,0,(V25/365)/T25) -> 0 | Y25: =IF(X25=0,W25,(V25/365)/X25) -> 0 | Z25: =(Z$28/Y$28)*Y25 -> 0 | AA25: 0 | AC25: =(INDEX(Exports_BO!$AL$12:$AO$12,MATCH($E25,Exports_BO!$AL$10:$AO$10,FALSE)))/1000 -> 0 | AD25: =IF(AA25=0,0,(AC25/365)/AA25) -> 0 | AF25: =IF(AE25=0,AD25,(AC25/365)/AE25) -> 0 | AG25: =(AG$28/AF$28)*AF25 -> 0 | AH25: =IF(AG25=0,0,(AC25/365)/AG25) -> 0 | AJ25: =(INDEX(Exports_BO!$AT$12:$AW$12,MATCH($E25,Exports_BO!$AT$10:$AW$10,FALSE)))/1000 -> 0 | AK25: =IF(AH25=0,0,(AJ25/365)/AH25) -> 0 | AM25: =IF(AL25=0,AK25,(AJ25/365)/AL25) -> 0 | AN25: =(AN$28/AM$28)*AM25 -> 0 | AO25: 0 | AQ25: =(INDEX(Exports_BO!$BB$12:$BE$12,MATCH($E25,Exports_BO!$BB$10:$BE$10,FALSE)))/1000 -> 0 | AR25: =IF(AO25=0,0,(AQ25/365)/AO25) -> 0 | AT25: =IF(AS25=0,AR25,(AQ25/365)/AS25) -> 0 | AU25: =(AU$28/AT$28)*AT25 -> 0 | AV25: 0 | AX25: =(INDEX(Exports_BO!$BB$12:$BE$12,MATCH($E25,Exports_BO!$BJ$10:$BM$10,FALSE)))/1000 -> 0 | AY25: =IF(AV25=0,0,(AX25/365)/AV25) -> 0 | BA25: =IF(AZ25=0,AY25,(AX25/365)/AZ25) -> 0 | BB25: =(BB$28/BA$28)*BA25 -> 0 | BC25: 0
D26: SEAGas Exports | E26: 30000169PC | F26: SEAGas | G26: =(INDEX(Exports_BO!$F$12:$I$12,MATCH($E26,Exports_BO!$F$10:$I$10,FALSE)))/1000 -> 724.9645797 | H26: =(G26/$G$28)*$H$28 -> 2.982288781 | I26: =IF(H26=0,0,(G26/365)/H26) -> 0.666 | J26: 724.9645797 | K26: 2.982288781 | L26: =K26 -> 2.982288781 | M26: =IF(L26=0,0,(J26/365)/L26) -> 0.666 | O26: =(INDEX(Exports_BO!$V$12:$Y$12,MATCH($E26,Exports_BO!$V$10:$Y$10,FALSE)))/1000 -> 0 | P26: =IF(M26=0,0,(O26/365)/M26) -> 0 | R26: =IF(Q26=0,P26,(O26/365)/Q26) -> 0 | S26: =(S$28/R$28)*R26 -> 0 | T26: =IF(S26=0,0,(O26/365)/S26) -> 0 | V26: =(INDEX(Exports_BO!$AD$12:$AG$12,MATCH($E26,Exports_BO!$AD$10:$AG$10,FALSE)))/1000 -> 0 | W26: =IF(T26=0,0,(V26/365)/T26) -> 0 | Y26: =IF(X26=0,W26,(V26/365)/X26) -> 0 | Z26: =(Z$28/Y$28)*Y26 -> 0 | AA26: 0 | AC26: =(INDEX(Exports_BO!$AL$12:$AO$12,MATCH($E26,Exports_BO!$AL$10:$AO$10,FALSE)))/1000 -> 0 | AD26: =IF(AA26=0,0,(AC26/365)/AA26) -> 0 | AF26: =IF(AE26=0,AD26,(AC26/365)/AE26) -> 0 | AG26: =(AG$28/AF$28)*AF26 -> 0 | AH26: =IF(AG26=0,0,(AC26/365)/AG26) -> 0 | AJ26: =(INDEX(Exports_BO!$AT$12:$AW$12,MATCH($E26,Exports_BO!$AT$10:$AW$10,FALSE)))/1000 -> 0 | AK26: =IF(AH26=0,0,(AJ26/365)/AH26) -> 0 | AM26: =IF(AL26=0,AK26,(AJ26/365)/AL26) -> 0 | AN26: =(AN$28/AM$28)*AM26 -> 0 | AO26: 0 | AQ26: =(INDEX(Exports_BO!$BB$12:$BE$12,MATCH($E26,Exports_BO!$BB$10:$BE$10,FALSE)))/1000 -> 0 | AR26: =IF(AO26=0,0,(AQ26/365)/AO26) -> 0 | AT26: =IF(AS26=0,AR26,(AQ26/365)/AS26) -> 0 | AU26: =(AU$28/AT$28)*AT26 -> 0 | AV26: 0 | AX26: =(INDEX(Exports_BO!$BB$12:$BE$12,MATCH($E26,Exports_BO!$BJ$10:$BM$10,FALSE)))/1000 -> 0 | AY26: =IF(AV26=0,0,(AX26/365)/AV26) -> 0 | BA26: =IF(AZ26=0,AY26,(AX26/365)/AZ26) -> 0 | BB26: =(BB$28/BA$28)*BA26 -> 0 | BC26: 0
C28: Total | G28: =SUM(G23:G26) -> 31129.77984 | H28: =G28*(S28/O28) -> 128.0586608 | I28: =IF(H28=0,0,(G28/365)/H28) -> 0.666 | J28: =SUM(J23:J26) -> 31129.77984 | K28: =SUM(K23:K26) -> 128.0586608 | L28: =SUM(L23:L26) -> 128.0586608 | M28: =IF(L28=0,0,(J28/365)/L28) -> 0.666 | O28: =SUM(O23:O26) -> 11358.76929 | P28: =IF(M28=0,0,(O28/365)/M28) -> 46.7266004 | R28: =SUM(R23:R26) -> 92.4532008 | S28: =Vencorp_Summary_BO!G62 -> 46.7266004 | T28: =IF(S28=0,0,(O28/365)/S28) -> 0.666 | V28: =SUM(V23:V26) -> 6293.582826 | W28: =SUM(W23:W26) -> 12.80494807 | Y28: =SUM(Y23:Y26) -> 38 | Z28: =Vencorp_Summary_BO!H62 -> 25.88992894 | AA28: 0.666 | AC28: =SUM(AC23:AC26) -> 5778.47634 | AD28: =SUM(AD23:AD26) -> 23.77093398 | AF28: =SUM(AF23:AF26) -> 38 | AG28: =Vencorp_Summary_BO!I62 -> 23.70598607 | AH28: =IF(AG28=0,0,(AC28/365)/AG28) -> 0.6678246575 | AJ28: =SUM(AJ23:AJ26) -> 4050.683465 | AK28: =SUM(AK23:AK26) -> 16.61777952 | AM28: =SUM(AM23:AM26) -> 68 | AN28: =Vencorp_Summary_BO!J62 -> 16.66330769 | AO28: 0.666 | AQ28: =SUM(AQ23:AQ26) -> 1777.848998 | AR28: =SUM(AR23:AR26) -> 7.3135423 | AT28: =SUM(AT23:AT26) -> 7.3135423 | AU28: =Vencorp_Summary_BO!K62 -> 7.3135423 | AV28: 0.666 | AX28: =SUM(AX23:AX26) -> 1777.848998 | AY28: =SUM(AY23:AY26) -> 7.3135423 | BA28: =SUM(BA23:BA26) -> 7.3135423 | BB28: =Vencorp_Summary_BO!L62 -> 4.410556841 | BC28: 1.104354699
C30: Tariff D/V | G30: =G44+G61+G84+G166+G175+G125 -> 199791.626 | H30: =H44+H61+H84+H166+H175+H125 -> 1037.849947 | J30: =J44+J61+J84+J166+J175+J125 -> 195129.4945 | K30: =K44+K61+K84+K166+K175+K125 -> 969.78565 | L30: =L44+L61+L84+L166+L175+L125 -> 955.2785311 | O30: =O44+O61+O84+O166+O175+O125 -> 192204.044 | S30: =S44+S61+S84+S166+S175+S125 -> 1147.247566 | V30: =V44+V61+V84+V166+V175+V125 -> 191074.0548 | Z30: =Z44+Z61+Z84+Z166+Z175+Z125 -> 976.5206237 | AC30: =AC44+AC61+AC84+AC166+AC175+AC125 -> 188954.4569 | AG30: =AG44+AG61+AG84+AG166+AG175+AG125 -> 966.2911848 | AJ30: =AJ44+AJ61+AJ84+AJ166+AJ175+AJ125 -> 195515.6683 | AN30: =AN44+AN61+AN84+AN166+AN175+AN125 -> 961.7608236 | AQ30: =AQ44+AQ61+AQ84+AQ166+AQ175+AQ125 -> 195523.1416 | AU30: =AU44+AU61+AU84+AU166+AU175+AU125 -> 961.7608236 | AX30: =AX44+AX61+AX84+AX166+AX175+AX125 -> 189386.1834 | BB30: =BB44+BB61+BB84+BB166+BB175+BB125 -> 961.5678412
... 36 more rows

Sheet Tariff_V_BO
B1: Withdrawal Volumes - Tariff V | BC1: =BC10 -> 853.9184655
B2: =Model_Name -> VTS Tariff Model | V2: Check | W2: =SUM(W12:W22,W26:W39,W43:W62,W66:W103,W107:W143,W147:W152)-W10 -> 0 | Z2: Check | AA2: =SUM(AA12:AA22,AA26:AA39,AA43:AA62,AA66:AA103,AA107:AA143,AA147:AA152)-AA10 -> 0 | AC2: Check | AD2: =SUM(AD12:AD22,AD26:AD39,AD43:AD62,AD66:AD103,AD107:AD143,AD147:AD152)-AD10 -> -0.002800000002 | AG2: Check | AH2: =SUM(AH12:AH22,AH26:AH39,AH43:AH62,AH66:AH103,AH107:AH143,AH147:AH152)-AH10 -> 0 | AJ2: Check | AK2: =SUM(AK12:AK22,AK26:AK39,AK43:AK62,AK66:AK103,AK107:AK143,AK147:AK152)-AK10 -> -0.01561116541 | AN2: Check | AO2: =SUM(AO12:AO22,AO26:AO39,AO43:AO62,AO66:AO103,AO107:AO143,AO147:AO152)-AO10 -> 0 | AQ2: Check | AR2: =SUM(AR12:AR22,AR26:AR39,AR43:AR62,AR66:AR103,AR107:AR143,AR147:AR152)-AR10 -> -1.987978689 | AU2: Check | AV2: =SUM(AV12:AV22,AV26:AV39,AV43:AV62,AV66:AV103,AV107:AV143,AV147:AV152)-AV10 -> 0 | AX2: Check | AY2: =SUM(AY12:AY22,AY26:AY39,AY43:AY62,AY66:AY103,AY107:AY143,AY147:AY152)-AY10 -> 0.9563367932 | BB2: Check | BC2: =SUM(BC12:BC22,BC26:BC39,BC43:BC62,BC66:BC103,BC107:BC143,BC147:BC152)-BC10 -> 0
B3: Go to Table of Contents
A4: é | B4: ç | C4: è | H4: This 2019 colmn would come from Settlement data | V4: Highlighted cells below contain hard coded figures/formula changes that align the total to inputs provided.
C5: 1 | D5: =C5+1 -> 2 | E5: =D5+1 -> 3 | F5: 4 | G5: 5 | H5: 6 | I5: 7 | J5: 8 | K5: 9 | L5: 10 | M5: 11 | N5: 12 | O5: 13 | P5: 14 | Q5: 15 | R5: 16 | S5: 17 | T5: 18 | U5: 19 | V5: 20 | W5: 21 | X5: 22 | Y5: 23 | Z5: 24 | AA5: 25 | AB5: 26 | AC5: 27 | AD5: 28 | AE5: 29 | AF5: 30 | AG5: 31 | AH5: 32 | AI5: 33 | AJ5: 34 | AK5: 35 | AL5: 36 | AM5: 37 | AN5: 38 | AO5: 39 | AP5: 40 | AQ5: 41 | AR5: 42 | AS5: 43 | AT5: 44 | AU5: 45 | AV5: 46 | AW5: 47 | AX5: 48 | AY5: 49 | AZ5: 50 | BA5: 51 | BB5: 52 | BC5: 53 | BD5: 54
H6: 2019 Actual | K6: 2019 Norm | N6: 2019 Norm | O6: Adjustments | P6: 2022 Forecast | W6: 2023 Forecast | AB6: 2023 | AD6: 2024 Forecast | AI6: 2024 | AK6: 2025 Forecast | AP6: 2025 | AR6: 2026 Forecast | AW6: 2026 | AY6: 2027 Forecast | BD6: 2027
C7: Meter | D7: Meter Name | E7: MIRN | F7: Tariff Zone | H7: Annual | I7: Coincident | J7: Load | K7: Annual | L7: Peak Day | M7: Peak Day | N7: Load | P7: Annual | Q7: Old Peak | R7: New | S7: New Peak | T7: Peak Day | U7: Load | W7: Annual | X7: Peak Day | Y7: Difference | Z7: Allocation to | AA7: Peak Day | AB7: Load | AD7: Annual | AE7: Peak Day | AF7: Difference | AG7: Allocation to | AH7: Peak Day | AI7: Load | AK7: Annual | AL7: Old Peak | AM7: New | AN7: New Peak | AO7: Peak Day | AP7: Load | AR7: Annual | AS7: Old Peak | AT7: New | AU7: New Peak | AV7: Peak Day | AW7: Load | AY7: Annual | AZ7: Old Peak | BA7: New | BB7: New Peak | BC7: Peak Day
I8: Peak Day | J8: Factor | L8: Raw Data | M8: Scaled to 100% | N8: Factor | R8: Load Factor | U8: Factor | X8: Scaled | Y8: to be reallocated | Z8: Tariff V | AB8: Factor | AE8: Scaled | AF8: to be reallocated | AG8: Tariff V | AI8: Factor | AM8: Load Factor | AP8: Factor | AT8: Load Factor | AW8: Factor | BA8: Load Factor
C10: Total | H10: =H24+H41+H64+H105+H145+H154 -> 125473.7844 | I10: =I24+I41+I64+I105+I145+I154 -> 794.3758513 | K10: =K24+K41+K64+K105+K145+K154 -> 121154.8697 | L10: =L24+L41+L64+L105+L145+L154 -> 737.7819133 | M10: =M24+M41+M64+M105+M145+M154 -> 726.7453611 | P10: =P24+P41+P64+P105+P145+P154 -> 129820.0874 | Q10: =Q24+Q41+Q64+Q105+Q145+Q154 -> 780.7473054 | S10: =S24+S41+S64+S105+S145+S154 -> 780.7473054 | T10: =T24+T41+T64+T105+T145+T154 -> 919.8687731 | W10: =W24+W41+W64+W105+W145+W154 -> 127567.1077 | X10: =X24+X41+X64+X105+X145+X154 -> 915.7197004 | AA10: =AA24+AA41+AA64+AA105+AA145+AA154 -> 915.7197004 | AD10: =AD24+AD41+AD64+AD105+AD145+AD154 -> 125415.901 | AE10: =AE24+AE41+AE64+AE105+AE145+AE154 -> 900.2558325 | AH10: =AH24+AH41+AH64+AH105+AH145+AH154 -> 900.2558325 | AK10: =AK24+AK41+AK64+AK105+AK145+AK154 -> 123357.2897 | AL10: =AL24+AL41+AL64+AL105+AL145+AL154 -> 888.0744238 | AO10: =AO24+AO41+AO64+AO105+AO145+AO154 -> 888.0744238 | AR10: =AR24+AR41+AR64+AR105+AR145+AR154 -> 123777.2555 | AS10: =AS24+AS41+AS64+AS105+AS145+AS154 -> 887.4550198 | AV10: =AV24+AV41+AV64+AV105+AV145+AV154 -> 887.4550198 | AY10: =AY24+AY41+AY64+AY105+AY145+AY154 -> 117762.4039 | AZ10: =AZ24+AZ41+AZ64+AZ105+AZ145+AZ154 -> 853.9184655 | BC10: =BC24+BC41+BC64+BC105+BC145+BC154 -> 853.9184655
C12: M027 | D12: =(INDEX('[7]CTM Details'!P$5:P$408,MATCH($C12,'[7]CTM Details'!$B$5:$B$408,FALSE),1)) -> Melton South | E12: =(INDEX('[7]CTM Details'!D$5:D$408,MATCH($C12,'[7]CTM Details'!$B$5:$B$408,FALSE),1)) -> 30000027PC | F12: =(INDEX('[7]CTM Details'!U$5:U$408,MATCH($C12,'[7]CTM Details'!$B$5:$B$408,FALSE),1)) -> Metro North West | H12: =(INDEX('[7]Tariff-V 2015'!$H$8:$FB$8,MATCH(C12,'[7]Tariff-V 2015'!$H$6:$FB$6,FALSE)))/1000 -> 985.3507287 | I12: =(INDEX('[7]Tariff-V 2015'!$H$10:$FB$10,MATCH(C12,'[7]Tariff-V 2015'!$H$6:$FB$6,FALSE)))/1000 -> 5.098691493 | J12: =IF(I12=0,0,(H12/365)/I12) -> 0.5294674215 | K12: =(INDEX('[7]Tariff-V Norm'!$H$10:$FB$10,MATCH(C12,'[7]Tariff-V Norm'!$H$6:$FB$6,FALSE)))/1000 -> 936.411712 | L12: =(INDEX('[7]Tariff-V Norm'!$H$11:$FB$11,MATCH(C12,'[7]Tariff-V Norm'!$H$6:$FB$6,FALSE)))/1000 -> 6.828460513 | M12: =L12*(1/(('[7]Tariff-D Norm'!$D$11+'[7]Tariff-V Norm'!$D$11)/'[7]Tariff-V&D Norm'!$D$11)) -> 6.7263129 | N12: =IF(M12=0,0,(K12/365)/M12) -> 0.3814142425 | P12: =(K12/$K$24)*(Vencorp_Summary_BO!$G$30) -> 1480.6219 | Q12: =IF(N12=0,0,(P12/365)/N12) -> 10.63541395 | S12: =IF(R12=0,Q12,(P12/365)/R12) -> 10.63541395 | T12: =(M12/M$24)*(T$24) -> 10.71819863 | U12: =IF(T12=0,0,(P12/365)/T12) -> 0.3784682947 | W12: =(P12/P$24)*W$24 -> 1506.016844 | X12: =(T12/$T$24)*$X$24 -> 10.90016053 | Y12: =-(X12+Tariff_D_BO!X12)+INDEX(Annual_CTM_BO!$Z:$Z,MATCH($C12,Annual_CTM_BO!$C:$C,FALSE)) -> 0.3548435808 | Z12: =IF((X12+Tariff_D_BO!X12)=0,0,X12/(X12+Tariff_D_BO!X12)*Y12) -> 0.3276196008 | AA12: =(Z12+X12)/(X$24+Z$24)*X$24 -> 12.71858424 | AB12: =IF(AA12=0,0,(W12/365)/AA12) -> 0.324412959 | AD12: =(W12/W$24)*AD$24 -> 1510.026394 | AE12: =(AA12/AA$24)*AE$24 -> 12.77387173 | AF12: =-(AE12+Tariff_D_BO!AE12)+INDEX(Annual_CTM_BO!$AG:$AG,MATCH($C12,Annual_CTM_BO!$C:$C,FALSE)) -> -1.572329686 | AG12: =IF((AE12+Tariff_D_BO!AE12)=0,0,AE12/(AE12+Tariff_D_BO!AE12)*AF12) -> -1.453853477 | AH12: =(AG12+AE12)/(AE$24+AG$24)*AE$24 -> 12.98518693 | AI12: =IF(AH12=0,0,(AD12/365)/AH12) -> 0.3185983102 | AK12: =(AD12/AD$24)*AK$24 -> 1514.960753 | AL12: =(AH12/AH$24)*AL$24 -> 13.08633913 | AM12: =-(AL12+Tariff_D_BO!AL12)+INDEX(Annual_CTM_BO!$AN:$AN,MATCH($C12,Annual_CTM_BO!$C:$C,FALSE)) -> -1.729559524 | AN12: =IF((AL12+Tariff_D_BO!AL12)=0,0,AL12/(AL12+Tariff_D_BO!AL12)*AM12) -> -1.60012992 | AO12: =(AN12+AL12)/(AL$24+AN$24)*AL$24 -> 13.29522871 | AP12: =IF(AO12=0,0,(AK12/365)/AO12) -> 0.3121854838 | AR12: =(AK12/AK$24)*AR$24 -> 1550.400437 | AS12: =(AO12/AO$24)*AS$24 -> 13.57330682 | AT12: =-(AS12+Tariff_D_BO!AS12)+INDEX(Annual_CTM_BO!$AU:$AU,MATCH($C12,Annual_CTM_BO!$C:$C,FALSE)) -> -2.20273307 | AU12: =IF((AS12+Tariff_D_BO!AS12)=0,0,AS12/(AS12+Tariff_D_BO!AS12)*AT12) -> -2.045308356 | AV12: =(AU12+AS12)/(AS$24+AU$24)*AS$24 -> 13.57106196 | AW12: =IF(AV12=0,0,(AR12/365)/AV12) -> 0.3129948447 | AY12: =(AR12/AR$24)*AY$24 -> 1386.422853 | AZ12: =(AV12/AV$24)*AZ$24 -> 12.5117771 | BA12: =-(AZ12+Tariff_D_BO!AZ12)+INDEX(Annual_CTM_BO!$BB:$BB,MATCH($C12,Annual_CTM_BO!$C:$C,FALSE)) -> -1.122406486 | BB12: =IF((AZ12+Tariff_D_BO!AZ12)=0,0,AZ12/(AZ12+Tariff_D_BO!AZ12)*BA12) -> -1.037347542 | BC12: =(BB12+AZ12)/(AZ$24+BB$24)*AZ$24 -> 12.51443 | BD12: =IF(BC12=0,0,(AY12/365)/BC12) -> 0.3035231149
C13: M045 | D13: =(INDEX('[7]CTM Details'!P$5:P$408,MATCH($C13,'[7]CTM Details'!$B$5:$B$408,FALSE),1)) -> Sunbury | E13: =(INDEX('[7]CTM Details'!D$5:D$408,MATCH($C13,'[7]CTM Details'!$B$5:$B$408,FALSE),1)) -> 30000043PC | F13: =(INDEX('[7]CTM Details'!U$5:U$408,MATCH($C13,'[7]CTM Details'!$B$5:$B$408,FALSE),1)) -> Metro North West | H13: =(INDEX('[7]Tariff-V 2015'!$H$8:$FB$8,MATCH(C13,'[7]Tariff-V 2015'!$H$6:$FB$6,FALSE)))/1000 -> 571.6799153 | I13: =(INDEX('[7]Tariff-V 2015'!$H$10:$FB$10,MATCH(C13,'[7]Tariff-V 2015'!$H$6:$FB$6,FALSE)))/1000 -> 4.750884774 | J13: 0.3296746644 | K13: =(INDEX('[7]Tariff-V Norm'!$H$10:$FB$10,MATCH(C13,'[7]Tariff-V Norm'!$H$6:$FB$6,FALSE)))/1000 -> 541.9324257 | L13: =(INDEX('[7]Tariff-V Norm'!$H$11:$FB$11,MATCH(C13,'[7]Tariff-V Norm'!$H$6:$FB$6,FALSE)))/1000 -> 4.136762804 | M13: =L13*(1/(('[7]Tariff-D Norm'!$D$11+'[7]Tariff-V Norm'!$D$11)/'[7]Tariff-V&D Norm'!$D$11)) -> 4.074880562 | N13: =IF(M13=0,0,(K13/365)/M13) -> 0.3643656174 | P13: =(K13/$K$24)*(Vencorp_Summary_BO!$G$30) -> 856.8848589 | Q13: =IF(N13=0,0,(P13/365)/N13) -> 6.443060592 | S13: =IF(R13=0,Q13,(P13/365)/R13) -> 6.443060592 | T13: 6.493212535 | U13: 0.3615513488 | W13: =(P13/P$24)*W$24 -> 871.5817531 | X13: 6.603447227 | Y13: =-(X13+Tariff_D_BO!X13)+INDEX(Annual_CTM_BO!$Z:$Z,MATCH($C13,Annual_CTM_BO!$C:$C,FALSE)) -> -0.8990173425 | Z13: =IF((X13+Tariff_D_BO!X13)=0,0,X13/(X13+Tariff_D_BO!X13)*Y13) -> -0.8300182202 | AA13: 6.540014349 | AB13: 0.3651207913 | AD13: 873.9022119 | AE13: 6.568443691 | AF13: =-(AE13+Tariff_D_BO!AE13)+INDEX(Annual_CTM_BO!$AG:$AG,MATCH($C13,Annual_CTM_BO!$C:$C,FALSE)) -> -0.9182189329 | AG13: =IF((AE13+Tariff_D_BO!AE13)=0,0,AE13/(AE13+Tariff_D_BO!AE13)*AF13) -> -0.8490047891 | AH13: 6.560765329 | AI13: 0.3649349604 | AK13: 876.7578889 | AL13: 6.611872475 | AM13: =-(AL13+Tariff_D_BO!AL13)+INDEX(Annual_CTM_BO!$AN:$AN,MATCH($C13,Annual_CTM_BO!$C:$C,FALSE)) -> -0.9798269988 | AN13: =IF((AL13+Tariff_D_BO!AL13)=0,0,AL13/(AL13+Tariff_D_BO!AL13)*AM13) -> -0.9064755539 | AO13: 6.603967902 | AP13: 0.363732296 | AR13: 897.2680062 | AS13: 6.742094066 | AT13: =-(AS13+Tariff_D_BO!AS13)+INDEX(Annual_CTM_BO!$AU:$AU,MATCH($C13,Annual_CTM_BO!$C:$C,FALSE)) -> -1.094158302 | AU13: =IF((AS13+Tariff_D_BO!AS13)=0,0,AS13/(AS13+Tariff_D_BO!AS13)*AT13) -> -1.015931973 | AV13: 6.74098811 | AW13: 0.3646748029 | AY13: 802.368755 | AZ13: 6.214822457 | BA13: =-(AZ13+Tariff_D_BO!AZ13)+INDEX(Annual_CTM_BO!$BB:$BB,MATCH($C13,Annual_CTM_BO!$C:$C,FALSE)) -> -0.5575469113 | BB13: =IF((AZ13+Tariff_D_BO!AZ13)=0,0,AZ13/(AZ13+Tariff_D_BO!AZ13)*BA13) -> -0.5152788599 | BC13: 6.216129439 | BD13: 0.3536397662
C14: M048 | D14: =(INDEX('[7]CTM Details'!P$5:P$408,MATCH($C14,'[7]CTM Details'!$B$5:$B$408,FALSE),1)) -> Diggers Rest | E14: =(INDEX('[7]CTM Details'!D$5:D$408,MATCH($C14,'[7]CTM Details'!$B$5:$B$408,FALSE),1)) -> 30000044PC | F14: =(INDEX('[7]CTM Details'!U$5:U$408,MATCH($C14,'[7]CTM Details'!$B$5:$B$408,FALSE),1)) -> Metro North West | H14: =(INDEX('[7]Tariff-V 2015'!$H$8:$FB$8,MATCH(C14,'[7]Tariff-V 2015'!$H$6:$FB$6,FALSE)))/1000 -> 49.61877268 | I14: =(INDEX('[7]Tariff-V 2015'!$H$10:$FB$10,MATCH(C14,'[7]Tariff-V 2015'!$H$6:$FB$6,FALSE)))/1000 -> 0.4321114065 | J14: 0.3145990615 | K14: =(INDEX('[7]Tariff-V Norm'!$H$10:$FB$10,MATCH(C14,'[7]Tariff-V Norm'!$H$6:$FB$6,FALSE)))/1000 -> 46.80911624 | L14: =(INDEX('[7]Tariff-V Norm'!$H$11:$FB$11,MATCH(C14,'[7]Tariff-V Norm'!$H$6:$FB$6,FALSE)))/1000 -> 0.3707938253 | M14: =L14*(1/(('[7]Tariff-D Norm'!$D$11+'[7]Tariff-V Norm'!$D$11)/'[7]Tariff-V&D Norm'!$D$11)) -> 0.365247084 | N14: 0.3511161613 | P14: =(K14/$K$24)*(Vencorp_Summary_BO!$G$30) -> 74.01296003 | Q14: 0.5775160909 | S14: 0.5775160909 | T14: 0.5820114009 | U14: 0.3484042283 | W14: 75.28239621 | X14: 0.5918921567 | Y14: =-(X14+Tariff_D_BO!X14)+INDEX(Annual_CTM_BO!$Z:$Z,MATCH($C14,Annual_CTM_BO!$C:$C,FALSE)) -> 0.1314346642 | Z14: =IF((X14+Tariff_D_BO!X14)=0,0,X14/(X14+Tariff_D_BO!X14)*Y14) -> 0.1213025482 | AA14: 0.807891393 | AB14: 0.2552981033 | AD14: 75.48282458 | AE14: 0.8114032846 | AF14: =-(AE14+Tariff_D_BO!AE14)+INDEX(Annual_CTM_BO!$AG:$AG,MATCH($C14,Annual_CTM_BO!$C:$C,FALSE)) -> -0.05676338595 | AG14: =IF((AE14+Tariff_D_BO!AE14)=0,0,AE14/(AE14+Tariff_D_BO!AE14)*AF14) -> -0.05246570187 | AH14: 0.8705768983 | AI14: 0.2375462289 | AK14: 75.72948211 | AL14: 0.877358531 | AM14: =-(AL14+Tariff_D_BO!AL14)+INDEX(Annual_CTM_BO!$AN:$AN,MATCH($C14,Annual_CTM_BO!$C:$C,FALSE)) -> -0.07432845406 | AN14: =IF((AL14+Tariff_D_BO!AL14)=0,0,AL14/(AL14+Tariff_D_BO!AL14)*AM14) -> -0.06873946792 | AO14: 0.9359724506 | AP14: 0.2216710898 | AR14: 77.50103225 | AS14: 0.9555489061 | AT14: =-(AS14+Tariff_D_BO!AS14)+INDEX(Annual_CTM_BO!$AU:$AU,MATCH($C14,Annual_CTM_BO!$C:$C,FALSE)) -> -0.155112734 | AU14: =IF((AS14+Tariff_D_BO!AS14)=0,0,AS14/(AS14+Tariff_D_BO!AS14)*AT14) -> -0.1439737418 | AV14: 0.9554075564 | AW14: 0.2222419048 | AY14: 69.30416144 | AZ14: 0.8808335278 | BA14: =-(AZ14+Tariff_D_BO!AZ14)+INDEX(Annual_CTM_BO!$BB:$BB,MATCH($C14,Annual_CTM_BO!$C:$C,FALSE)) -> -0.07906847208 | BB14: =IF((AZ14+Tariff_D_BO!AZ14)=0,0,AZ14/(AZ14+Tariff_D_BO!AZ14)*BA14) -> -0.07304771856 | BC14: 0.8810005685 | BD14: 0.2155213307
C15: M049 | D15: =(INDEX('[7]CTM Details'!P$5:P$408,MATCH($C15,'[7]CTM Details'!$B$5:$B$408,FALSE),1)) -> Sydenham | E15: =(INDEX('[7]CTM Details'!D$5:D$408,MATCH($C15,'[7]CTM Details'!$B$5:$B$408,FALSE),1)) -> 30000045PC | F15: =(INDEX('[7]CTM Details'!U$5:U$408,MATCH($C15,'[7]CTM Details'!$B$5:$B$408,FALSE),1)) -> Metro North West | H15: =(INDEX('[7]Tariff-V 2015'!$H$8:$FB$8,MATCH(C15,'[7]Tariff-V 2015'!$H$6:$FB$6,FALSE)))/1000 -> 635.5548735 | I15: =(INDEX('[7]Tariff-V 2015'!$H$10:$FB$10,MATCH(C15,'[7]Tariff-V 2015'!$H$6:$FB$6,FALSE)))/1000 -> 5.69880242 | J15: 0.3055459903 | K15: =(INDEX('[7]Tariff-V Norm'!$H$10:$FB$10,MATCH(C15,'[7]Tariff-V Norm'!$H$6:$FB$6,FALSE)))/1000 -> 597.5984238 | L15: =(INDEX('[7]Tariff-V Norm'!$H$11:$FB$11,MATCH(C15,'[7]Tariff-V Norm'!$H$6:$FB$6,FALSE)))/1000 -> 4.738560866 | M15: =L15*(1/(('[7]Tariff-D Norm'!$D$11+'[7]Tariff-V Norm'!$D$11)/'[7]Tariff-V&D Norm'!$D$11)) -> 4.667676268 | N15: 0.3507646764 | P15: =(K15/$K$24)*(Vencorp_Summary_BO!$G$30) -> 944.902015 | Q15: 7.380368715 | S15: 7.380368715 | T15: 7.437816543 | U15: 0.3480554581 | W15: 961.1085389 | X15: 7.564087693 | Y15: =-(X15+Tariff_D_BO!X15)+INDEX(Annual_CTM_BO!$Z:$Z,MATCH($C15,Annual_CTM_BO!$C:$C,FALSE)) -> -1.335099791 | Z15: =IF((X15+Tariff_D_BO!X15)=0,0,X15/(X15+Tariff_D_BO!X15)*Y15) -> -1.232199034 | AA15: 7.172625252 | AB15: 0.3671144089 | AD15: 963.6673498 | AE15: 7.203804544 | AF15: =-(AE15+Tariff_D_BO!AE15)+INDEX(Annual_CTM_BO!$AG:$AG,MATCH($C15,Annual_CTM_BO!$C:$C,FALSE)) -> -1.177050179 | AG15: =IF((AE15+Tariff_D_BO!AE15)=0,0,AE15/(AE15+Tariff_D_BO!AE15)*AF15) -> -1.0879506 | AH15: 7.015492814 | AI15: 0.3763362874 | AK15: 966.816355 | AL15: 7.070142202 | AM15: =-(AL15+Tariff_D_BO!AL15)+INDEX(Annual_CTM_BO!$AN:$AN,MATCH($C15,Annual_CTM_BO!$C:$C,FALSE)) -> -1.205037733 | AN15: =IF((AL15+Tariff_D_BO!AL15)=0,0,AL15/(AL15+Tariff_D_BO!AL15)*AM15) -> -1.114445073 | AO15: 6.89368912 | AP15: 0.3842372183 | AR15: 989.4332223 | AS15: 7.037874986 | AT15: =-(AS15+Tariff_D_BO!AS15)+INDEX(Annual_CTM_BO!$AU:$AU,MATCH($C15,Annual_CTM_BO!$C:$C,FALSE)) -> -1.142434214 | AU15: =IF((AS15+Tariff_D_BO!AS15)=0,0,AS15/(AS15+Tariff_D_BO!AS15)*AT15) -> -1.06040968 | AV15: 7.03682884 | AW15: 0.3852269273 | AY15: 884.7861478 | AZ15: 6.487571435 | BA15: =-(AZ15+Tariff_D_BO!AZ15)+INDEX(Annual_CTM_BO!$BB:$BB,MATCH($C15,Annual_CTM_BO!$C:$C,FALSE)) -> -0.5823447759 | BB15: =IF((AZ15+Tariff_D_BO!AZ15)=0,0,AZ15/(AZ15+Tariff_D_BO!AZ15)*BA15) -> -0.5380102359 | BC15: 6.488807724 | BD15: 0.3735773567
C16: M052 | D16: =(INDEX('[7]CTM Details'!P$5:P$408,MATCH($C16,'[7]CTM Details'!$B$5:$B$408,FALSE),1)) -> Bacchus Marsh | E16: =(INDEX('[7]CTM Details'!D$5:D$408,MATCH($C16,'[7]CTM Details'!$B$5:$B$408,FALSE),1)) -> 30000047PC | F16: =(INDEX('[7]CTM Details'!U$5:U$408,MATCH($C16,'[7]CTM Details'!$B$5:$B$408,FALSE),1)) -> Calder | H16: =(INDEX('[7]Tariff-V 2015'!$H$8:$FB$8,MATCH(C16,'[7]Tariff-V 2015'!$H$6:$FB$6,FALSE)))/1000 -> 303.9751788 | I16: =(INDEX('[7]Tariff-V 2015'!$H$10:$FB$10,MATCH(C16,'[7]Tariff-V 2015'!$H$6:$FB$6,FALSE)))/1000 -> 2.304636642 | J16: 0.3613622615 | K16: =(INDEX('[7]Tariff-V Norm'!$H$10:$FB$10,MATCH(C16,'[7]Tariff-V Norm'!$H$6:$FB$6,FALSE)))/1000 -> 288.8176454 | L16: =(INDEX('[7]Tariff-V Norm'!$H$11:$FB$11,MATCH(C16,'[7]Tariff-V Norm'!$H$6:$FB$6,FALSE)))/1000 -> 2.162847301 | M16: =L16*(1/(('[7]Tariff-D Norm'!$D$11+'[7]Tariff-V Norm'!$D$11)/'[7]Tariff-V&D Norm'!$D$11)) -> 2.130493055 | N16: 0.3714075568 | P16: =(K16/$K$24)*(Vencorp_Summary_BO!$G$30) -> 456.6684989 | Q16: 3.368662133 | S16: 3.368662133 | T16: 3.394883359 | U16: 0.3685388981 | W16: 464.5010665 | X16: 3.452517992 | Y16: =-(X16+Tariff_D_BO!X16)+INDEX(Annual_CTM_BO!$Z:$Z,MATCH($C16,Annual_CTM_BO!$C:$C,FALSE)) -> -0.1090122714 | Z16: =IF((X16+Tariff_D_BO!X16)=0,0,X16/(X16+Tariff_D_BO!X16)*Y16) -> -0.09980589017 | AA16: 3.797879081 | AB16: 0.3350832489 | AD16: 465.7377326 | AE16: 3.814388404 | AF16: =-(AE16+Tariff_D_BO!AE16)+INDEX(Annual_CTM_BO!$AG:$AG,MATCH($C16,Annual_CTM_BO!$C:$C,FALSE)) -> -0.5145477079 | AG16: =IF((AE16+Tariff_D_BO!AE16)=0,0,AE16/(AE16+Tariff_D_BO!AE16)*AF16) -> -0.4718625348 | AH16: 3.83420965 | AI16: 0.332791867 | AK16: 467.259638 | AL16: 3.864077433 | AM16: =-(AL16+Tariff_D_BO!AL16)+INDEX(Annual_CTM_BO!$AN:$AN,MATCH($C16,Annual_CTM_BO!$C:$C,FALSE)) -> -0.5549636029 | AN16: =IF((AL16+Tariff_D_BO!AL16)=0,0,AL16/(AL16+Tariff_D_BO!AL16)*AM16) -> -0.5092388907 | AO16: 3.88320854 | AP16: 0.3296664031 | AR16: 478.1903067 | AS16: 3.964428302 | AT16: =-(AS16+Tariff_D_BO!AS16)+INDEX(Annual_CTM_BO!$AU:$AU,MATCH($C16,Annual_CTM_BO!$C:$C,FALSE)) -> -0.647081618 | AU16: =IF((AS16+Tariff_D_BO!AS16)=0,0,AS16/(AS16+Tariff_D_BO!AS16)*AT16) -> -0.5961464088 | AV16: 3.965229734 | AW16: 0.3303996281 | AY16: 427.6146685 | AZ16: 3.655725006 | BA16: =-(AZ16+Tariff_D_BO!AZ16)+INDEX(Annual_CTM_BO!$BB:$BB,MATCH($C16,Annual_CTM_BO!$C:$C,FALSE)) -> -0.3324061925 | BB16: =IF((AZ16+Tariff_D_BO!AZ16)=0,0,AZ16/(AZ16+Tariff_D_BO!AZ16)*BA16) -> -0.3046741211 | BC16: 3.654777914 | BD16: 0.3205521826
C17: M053 | D17: =(INDEX('[7]CTM Details'!P$5:P$408,MATCH($C17,'[7]CTM Details'!$B$5:$B$408,FALSE),1)) -> Ballan | E17: =(INDEX('[7]CTM Details'!D$5:D$408,MATCH($C17,'[7]CTM Details'!$B$5:$B$408,FALSE),1)) -> 30000048PC | F17: =(INDEX('[7]CTM Details'!U$5:U$408,MATCH($C17,'[7]CTM Details'!$B$5:$B$408,FALSE),1)) -> Calder | H17: =(INDEX('[7]Tariff-V 2015'!$H$8:$FB$8,MATCH(C17,'[7]Tariff-V 2015'!$H$6:$FB$6,FALSE)))/1000 -> 46.37446402 | I17: =(INDEX('[7]Tariff-V 2015'!$H$10:$FB$10,MATCH(C17,'[7]Tariff-V 2015'!$H$6:$FB$6,FALSE)))/1000 -> 0.3240244986 | J17: 0.3921102467 | K17: =(INDEX('[7]Tariff-V Norm'!$H$10:$FB$10,MATCH(C17,'[7]Tariff-V Norm'!$H$6:$FB$6,FALSE)))/1000 -> 44.57516007 | L17: =(INDEX('[7]Tariff-V Norm'!$H$11:$FB$11,MATCH(C17,'[7]Tariff-V Norm'!$H$6:$FB$6,FALSE)))/1000 -> 0.3013734124 | M17: =L17*(1/(('[7]Tariff-D Norm'!$D$11+'[7]Tariff-V Norm'!$D$11)/'[7]Tariff-V&D Norm'!$D$11)) -> 0.2968651379 | N17: 0.4113777963 | P17: =(K17/$K$24)*(Vencorp_Summary_BO!$G$30) -> 70.48070558 | Q17: 0.4693929164 | S17: 0.4693929164 | T17: 0.4730466096 | U17: 0.4082004174 | W17: 71.68955817 | X17: 0.4810774798 | Y17: =-(X17+Tariff_D_BO!X17)+INDEX(Annual_CTM_BO!$Z:$Z,MATCH($C17,Annual_CTM_BO!$C:$C,FALSE)) -> -0.07479289863 | Z17: =IF((X17+Tariff_D_BO!X17)=0,0,X17/(X17+Tariff_D_BO!X17)*Y17) -> -0.06850719646 | AA17: 0.4673506109 | AB17: 0.4202620984 | AD17: 71.88042112 | AE17: 0.4693821768 | AF17: =-(AE17+Tariff_D_BO!AE17)+INDEX(Annual_CTM_BO!$AG:$AG,MATCH($C17,Annual_CTM_BO!$C:$C,FALSE)) -> -0.06421128819 | AG17: =IF((AE17+Tariff_D_BO!AE17)=0,0,AE17/(AE17+Tariff_D_BO!AE17)*AF17) -> -0.05891051531 | AH17: 0.4708518251 | AI17: 0.4182476315 | AK17: 72.11530697 | AL17: 0.4745196735 | AM17: =-(AL17+Tariff_D_BO!AL17)+INDEX(Annual_CTM_BO!$AN:$AN,MATCH($C17,Annual_CTM_BO!$C:$C,FALSE)) -> -0.06901899907 | AN17: =IF((AL17+Tariff_D_BO!AL17)=0,0,AL17/(AL17+Tariff_D_BO!AL17)*AM17) -> -0.06336012216 | AO17: 0.4759150884 | AP17: 0.4151500726 | AR17: 73.80231022 | AS17: 0.4858691533 | AT17: =-(AS17+Tariff_D_BO!AS17)+INDEX(Annual_CTM_BO!$AU:$AU,MATCH($C17,Annual_CTM_BO!$C:$C,FALSE)) -> -0.07928006868 | AU17: =IF((AS17+Tariff_D_BO!AS17)=0,0,AS17/(AS17+Tariff_D_BO!AS17)*AT17) -> -0.07307009633 | AV17: 0.4859578702 | AW17: 0.416081563 | AY17: 65.99663351 | AZ17: 0.4480265854 | BA17: =-(AZ17+Tariff_D_BO!AZ17)+INDEX(Annual_CTM_BO!$BB:$BB,MATCH($C17,Annual_CTM_BO!$C:$C,FALSE)) -> -0.04070867146 | BB17: =IF((AZ17+Tariff_D_BO!AZ17)=0,0,AZ17/(AZ17+Tariff_D_BO!AZ17)*BA17) -> -0.03732897546 | BC17: 0.4479217432 | BD17: 0.4036702779
C18: M054 | D18: =(INDEX('[7]CTM Details'!P$5:P$408,MATCH($C18,'[7]CTM Details'!$B$5:$B$408,FALSE),1)) -> Ballarat | E18: =(INDEX('[7]CTM Details'!D$5:D$408,MATCH($C18,'[7]CTM Details'!$B$5:$B$408,FALSE),1)) -> 30000049PC | F18: =(INDEX('[7]CTM Details'!U$5:U$408,MATCH($C18,'[7]CTM Details'!$B$5:$B$408,FALSE),1)) -> Calder | H18: =(INDEX('[7]Tariff-V 2015'!$H$8:$FB$8,MATCH(C18,'[7]Tariff-V 2015'!$H$6:$FB$6,FALSE)))/1000 -> 3057.771615 | I18: =(INDEX('[7]Tariff-V 2015'!$H$10:$FB$10,MATCH(C18,'[7]Tariff-V 2015'!$H$6:$FB$6,FALSE)))/1000 -> 17.18659777 | J18: 0.487441237 | K18: =(INDEX('[7]Tariff-V Norm'!$H$10:$FB$10,MATCH(C18,'[7]Tariff-V Norm'!$H$6:$FB$6,FALSE)))/1000 -> 2968.633828 | L18: =(INDEX('[7]Tariff-V Norm'!$H$11:$FB$11,MATCH(C18,'[7]Tariff-V Norm'!$H$6:$FB$6,FALSE)))/1000 -> 17.73607256 | M18: =L18*(1/(('[7]Tariff-D Norm'!$D$11+'[7]Tariff-V Norm'!$D$11)/'[7]Tariff-V&D Norm'!$D$11)) -> 17.47075691 | N18: 0.4655346879 | P18: =(K18/$K$24)*(Vencorp_Summary_BO!$G$30) -> 4693.901413 | Q18: 27.62415821 | S18: 27.62415821 | T18: 27.83918106 | U18: 0.4619390148 | W18: 4774.409047 | X18: 28.31180436 | Y18: =-(X18+Tariff_D_BO!X18)+INDEX(Annual_CTM_BO!$Z:$Z,MATCH($C18,Annual_CTM_BO!$C:$C,FALSE)) -> -6.265111424 | Z18: =IF((X18+Tariff_D_BO!X18)=0,0,X18/(X18+Tariff_D_BO!X18)*Y18) -> -5.740424181 | AA18: 25.56836674 | AB18: 0.5115920333 | AD18: 4787.120212 | AE18: 25.67951205 | AF18: =-(AE18+Tariff_D_BO!AE18)+INDEX(Annual_CTM_BO!$AG:$AG,MATCH($C18,Annual_CTM_BO!$C:$C,FALSE)) -> -3.786230797 | AG18: =IF((AE18+Tariff_D_BO!AE18)=0,0,AE18/(AE18+Tariff_D_BO!AE18)*AF18) -> -3.474764758 | AH18: 25.47105383 | AI18: 0.5149138285 | AK18: 4802.763231 | AL18: 25.66946861 | AM18: =-(AL18+Tariff_D_BO!AL18)+INDEX(Annual_CTM_BO!$AN:$AN,MATCH($C18,Annual_CTM_BO!$C:$C,FALSE)) -> -4.000971215 | AN18: =IF((AL18+Tariff_D_BO!AL18)=0,0,AL18/(AL18+Tariff_D_BO!AL18)*AM18) -> -3.674081026 | AO18: 25.4595492 | AP18: 0.516829867 | AR18: 4915.114929 | AS18: 25.99205177 | AT18: =-(AS18+Tariff_D_BO!AS18)+INDEX(Annual_CTM_BO!$AU:$AU,MATCH($C18,Annual_CTM_BO!$C:$C,FALSE)) -> -4.240232446 | AU18: =IF((AS18+Tariff_D_BO!AS18)=0,0,AS18/(AS18+Tariff_D_BO!AS18)*AT18) -> -3.909265889 | AV18: 25.99643437 | AW18: 0.5179967416 | AY18: 4395.269439 | AZ18: 23.96729107 | BA18: =-(AZ18+Tariff_D_BO!AZ18)+INDEX(Annual_CTM_BO!$BB:$BB,MATCH($C18,Annual_CTM_BO!$C:$C,FALSE)) -> -2.17660093 | BB18: =IF((AZ18+Tariff_D_BO!AZ18)=0,0,AZ18/(AZ18+Tariff_D_BO!AZ18)*BA18) -> -1.996528967 | BC18: 23.96211184 | BD18: 0.5025364274
C19: M086 | D19: =(INDEX('[7]CTM Details'!P$5:P$408,MATCH($C19,'[7]CTM Details'!$B$5:$B$408,FALSE),1)) -> Wallace | E19: =(INDEX('[7]CTM Details'!D$5:D$408,MATCH($C19,'[7]CTM Details'!$B$5:$B$408,FALSE),1)) -> 30000080PC | F19: =(INDEX('[7]CTM Details'!U$5:U$408,MATCH($C19,'[7]CTM Details'!$B$5:$B$408,FALSE),1)) -> Calder | H19: =(INDEX('[7]Tariff-V 2015'!$H$8:$FB$8,MATCH(C19,'[7]Tariff-V 2015'!$H$6:$FB$6,FALSE)))/1000 -> 3.506839547 | I19: =(INDEX('[7]Tariff-V 2015'!$H$10:$FB$10,MATCH(C19,'[7]Tariff-V 2015'!$H$6:$FB$6,FALSE)))/1000 -> 0.02381345013 | J19: 0.4034602096 | K19: =(INDEX('[7]Tariff-V Norm'!$H$10:$FB$10,MATCH(C19,'[7]Tariff-V Norm'!$H$6:$FB$6,FALSE)))/1000 -> 3.376016491 | L19: =(INDEX('[7]Tariff-V Norm'!$H$11:$FB$11,MATCH(C19,'[7]Tariff-V Norm'!$H$6:$FB$6,FALSE)))/1000 -> 0.02202290306 | M19: =L19*(1/(('[7]Tariff-D Norm'!$D$11+'[7]Tariff-V Norm'!$D$11)/'[7]Tariff-V&D Norm'!$D$11)) -> 0.02169346029 | N19: 0.4263662931 | P19: =(K19/$K$24)*(Vencorp_Summary_BO!$G$30) -> 5.338040828 | Q19: 0.03430095115 | S19: 0.03430095115 | T19: 0.03456794528 | U19: 0.4230731469 | W19: 5.429596444 | X19: 0.03515480221 | Y19: =-(X19+Tariff_D_BO!X19)+INDEX(Annual_CTM_BO!$Z:$Z,MATCH($C19,Annual_CTM_BO!$C:$C,FALSE)) -> -0.00867350876 | Z19: =IF((X19+Tariff_D_BO!X19)=0,0,X19/(X19+Tariff_D_BO!X19)*Y19) -> -0.007950073253 | AA19: 0.0308169231 | AB19: 0.4827090183 | AD19: 5.44405195 | AE19: 0.0309508838 | AF19: =-(AE19+Tariff_D_BO!AE19)+INDEX(Annual_CTM_BO!$AG:$AG,MATCH($C19,Annual_CTM_BO!$C:$C,FALSE)) -> -0.004535819724 | AG19: =IF((AE19+Tariff_D_BO!AE19)=0,0,AE19/(AE19+Tariff_D_BO!AE19)*AF19) -> -0.004164207633 | AH19: 0.03072698201 | AI19: 0.485410862 | AK19: 5.461841645 | AL19: 0.0309663395 | AM19: =-(AL19+Tariff_D_BO!AL19)+INDEX(Annual_CTM_BO!$AN:$AN,MATCH($C19,Annual_CTM_BO!$C:$C,FALSE)) -> -0.004798995319 | AN19: =IF((AL19+Tariff_D_BO!AL19)=0,0,AL19/(AL19+Tariff_D_BO!AL19)*AM19) -> -0.004408499718 | AO19: 0.0307405644 | AP19: 0.4867818793 | AR19: 5.589611254 | AS19: 0.03138352274 | AT19: =-(AS19+Tariff_D_BO!AS19)+INDEX(Annual_CTM_BO!$AU:$AU,MATCH($C19,Annual_CTM_BO!$C:$C,FALSE)) -> -0.005118471446 | AU19: =IF((AS19+Tariff_D_BO!AS19)=0,0,AS19/(AS19+Tariff_D_BO!AS19)*AT19) -> -0.004720586902 | AV19: 0.03138830696 | AW19: 0.4878888006 | AY19: 4.998427885 | AZ19: 0.02893830278 | BA19: =-(AZ19+Tariff_D_BO!AZ19)+INDEX(Annual_CTM_BO!$BB:$BB,MATCH($C19,Annual_CTM_BO!$C:$C,FALSE)) -> -0.002626483652 | BB19: =IF((AZ19+Tariff_D_BO!AZ19)=0,0,AZ19/(AZ19+Tariff_D_BO!AZ19)*BA19) -> -0.002410075645 | BC19: 0.02893264888 | BD19: 0.4733172904
C20: M121 | D20: =(INDEX('[7]CTM Details'!P$5:P$408,MATCH($C20,'[7]CTM Details'!$B$5:$B$408,FALSE),1)) -> Rockbank | E20: =(INDEX('[7]CTM Details'!D$5:D$408,MATCH($C20,'[7]CTM Details'!$B$5:$B$408,FALSE),1)) -> 30000117PC | F20: =(INDEX('[7]CTM Details'!U$5:U$408,MATCH($C20,'[7]CTM Details'!$B$5:$B$408,FALSE),1)) -> Metro North West | H20: =(INDEX('[7]Tariff-V 2015'!$H$8:$FB$8,MATCH(C20,'[7]Tariff-V 2015'!$H$6:$FB$6,FALSE)))/1000 -> 258.5857367 | I20: =(INDEX('[7]Tariff-V 2015'!$H$10:$FB$10,MATCH(C20,'[7]Tariff-V 2015'!$H$6:$FB$6,FALSE)))/1000 -> 1.477999315 | J20: 0.4793331539 | K20: =(INDEX('[7]Tariff-V Norm'!$H$10:$FB$10,MATCH(C20,'[7]Tariff-V Norm'!$H$6:$FB$6,FALSE)))/1000 -> 247.6871184 | L20: =(INDEX('[7]Tariff-V Norm'!$H$11:$FB$11,MATCH(C20,'[7]Tariff-V Norm'!$H$6:$FB$6,FALSE)))/1000 -> 1.603280066 | M20: =L20*(1/(('[7]Tariff-D Norm'!$D$11+'[7]Tariff-V Norm'!$D$11)/'[7]Tariff-V&D Norm'!$D$11)) -> 1.579296441 | N20: 0.4296817412 | P20: =(K20/$K$24)*(Vencorp_Summary_BO!$G$30) -> 391.6343282 | Q20: 2.497129059 | S20: 2.497129059 | T20: 2.516566386 | U20: 0.4263629873 | W20: 398.3514597 | X20: 2.55928991 | Y20: =-(X20+Tariff_D_BO!X20)+INDEX(Annual_CTM_BO!$Z:$Z,MATCH($C20,Annual_CTM_BO!$C:$C,FALSE)) -> 0.4746545247 | Z20: =IF((X20+Tariff_D_BO!X20)=0,0,X20/(X20+Tariff_D_BO!X20)*Y20) -> 0.43856408 | AA20: 3.395903558 | AB20: 0.321379522 | AD20: 399.4120122 | AE20: 3.410665499 | AF20: =-(AE20+Tariff_D_BO!AE20)+INDEX(Annual_CTM_BO!$AG:$AG,MATCH($C20,Annual_CTM_BO!$C:$C,FALSE)) -> -0.3663090832 | AG20: =IF((AE20+Tariff_D_BO!AE20)=0,0,AE20/(AE20+Tariff_D_BO!AE20)*AF20) -> -0.3389545438 | AH20: 3.523558007 | AI20: 0.3105609396 | AK20: 400.717183 | AL20: 3.55100587 | AM20: =-(AL20+Tariff_D_BO!AL20)+INDEX(Annual_CTM_BO!$AN:$AN,MATCH($C20,Annual_CTM_BO!$C:$C,FALSE)) -> -0.4225186287 | AN20: =IF((AL20+Tariff_D_BO!AL20)=0,0,AL20/(AL20+Tariff_D_BO!AL20)*AM20) -> -0.3911831755 | AO20: 3.65747869 | AP20: 0.3001672434 | AR20: 410.0912149 | AS20: 3.733977169 | AT20: =-(AS20+Tariff_D_BO!AS20)+INDEX(Annual_CTM_BO!$AU:$AU,MATCH($C20,Annual_CTM_BO!$C:$C,FALSE)) -> -0.6056576579 | AU20: =IF((AS20+Tariff_D_BO!AS20)=0,0,AS20/(AS20+Tariff_D_BO!AS20)*AT20) -> -0.5627617257 | AV20: 3.733237943 | AW20: 0.3009552544 | AY20: 366.7180544 | AZ20: 3.44184126 | BA20: =-(AZ20+Tariff_D_BO!AZ20)+INDEX(Annual_CTM_BO!$BB:$BB,MATCH($C20,Annual_CTM_BO!$C:$C,FALSE)) -> -0.3083917101 | BB20: =IF((AZ20+Tariff_D_BO!AZ20)=0,0,AZ20/(AZ20+Tariff_D_BO!AZ20)*BA20) -> -0.2852301126 | BC20: 3.442714868 | BD20: 0.2918356696
C21: M169 | D21: =(INDEX('[7]CTM Details'!P$5:P$408,MATCH($C21,'[7]CTM Details'!$B$5:$B$408,FALSE),1)) -> Mount Cottrell | E21: =(INDEX('[7]CTM Details'!D$5:D$408,MATCH($C21,'[7]CTM Details'!$B$5:$B$408,FALSE),1)) -> 30000208PC | F21: =(INDEX('[7]CTM Details'!U$5:U$408,MATCH($C21,'[7]CTM Details'!$B$5:$B$408,FALSE),1)) -> Metro North West | P21: =(K21/$K$24)*(Vencorp_Summary_BO!$G$30) -> 0 | Q21: =IF(N21=0,0,(P21/365)/N21) -> 0 | T21: 0 | U21: =IF(T21=0,0,(P21/365)/T21) -> 0 | W21: 0 | X21: 0 | Y21: =-(X21+Tariff_D_BO!X21)+INDEX(Annual_CTM_BO!$Z:$Z,MATCH($C21,Annual_CTM_BO!$C:$C,FALSE)) -> 3.935769842 | Z21: =IF((X21+Tariff_D_BO!X21)=0,0,X21/(X21+Tariff_D_BO!X21)*Y21) -> 0 | AA21: 0 | AB21: =IF(AA21=0,0,(W21/365)/AA21) -> 0 | AD21: 0 | AE21: 0 | AF21: =-(AE21+Tariff_D_BO!AE21)+INDEX(Annual_CTM_BO!$AG:$AG,MATCH($C21,Annual_CTM_BO!$C:$C,FALSE)) -> 4.262485343 | AG21: =IF((AE21+Tariff_D_BO!AE21)=0,0,AE21/(AE21+Tariff_D_BO!AE21)*AF21) -> 0 | AH21: 0 | AI21: =IF(AH21=0,0,(AD21/365)/AH21) -> 0 | AK21: 0 | AL21: 0 | AM21: =-(AL21+Tariff_D_BO!AL21)+INDEX(Annual_CTM_BO!$AN:$AN,MATCH($C21,Annual_CTM_BO!$C:$C,FALSE)) -> 4.647041922 | AN21: =IF((AL21+Tariff_D_BO!AL21)=0,0,AL21/(AL21+Tariff_D_BO!AL21)*AM21) -> 0 | AO21: 0 | AP21: =IF(AO21=0,0,(AK21/365)/AO21) -> 0 | AR21: 0 | AS21: 0 | AT21: =-(AS21+Tariff_D_BO!AS21)+INDEX(Annual_CTM_BO!$AU:$AU,MATCH($C21,Annual_CTM_BO!$C:$C,FALSE)) -> 4.647041922 | AU21: =IF((AS21+Tariff_D_BO!AS21)=0,0,AS21/(AS21+Tariff_D_BO!AS21)*AT21) -> 0 | AV21: 0 | AW21: =IF(AV21=0,0,(AR21/365)/AV21) -> 0 | AY21: 0 | AZ21: 0 | BA21: =-(AZ21+Tariff_D_BO!AZ21)+INDEX(Annual_CTM_BO!$BB:$BB,MATCH($C21,Annual_CTM_BO!$C:$C,FALSE)) -> 4.647041922 | BB21: =IF((AZ21+Tariff_D_BO!AZ21)=0,0,AZ21/(AZ21+Tariff_D_BO!AZ21)*BA21) -> 0 | BC21: 0 | BD21: =IF(BC21=0,0,(AY21/365)/BC21) -> 0
C22: M154 | D22: =(INDEX('[7]CTM Details'!P$5:P$408,MATCH($C22,'[7]CTM Details'!$B$5:$B$408,FALSE),1)) -> Plumpton | E22: =(INDEX('[7]CTM Details'!D$5:D$408,MATCH($C22,'[7]CTM Details'!$B$5:$B$408,FALSE),1)) -> 30000192PC | F22: =(INDEX('[7]CTM Details'!U$5:U$408,MATCH($C22,'[7]CTM Details'!$B$5:$B$408,FALSE),1)) -> Metro North West | P22: =(K22/$K$24)*(Vencorp_Summary_BO!$G$30) -> 0 | Q22: 0 | T22: 0 | U22: 0 | W22: 0 | X22: 0 | Y22: =-(X22+Tariff_D_BO!X22)+INDEX(Annual_CTM_BO!$Z:$Z,MATCH($C22,Annual_CTM_BO!$C:$C,FALSE)) -> 8.369580042 | Z22: =IF((X22+Tariff_D_BO!X22)=0,0,X22/(X22+Tariff_D_BO!X22)*Y22) -> 0 | AA22: 0 | AB22: 0 | AD22: 0 | AE22: 0 | AF22: =-(AE22+Tariff_D_BO!AE22)+INDEX(Annual_CTM_BO!$AG:$AG,MATCH($C22,Annual_CTM_BO!$C:$C,FALSE)) -> 8.497979736 | AG22: =IF((AE22+Tariff_D_BO!AE22)=0,0,AE22/(AE22+Tariff_D_BO!AE22)*AF22) -> 0 | AH22: 0 | AI22: 0 | AK22: 0 | AL22: 0 | AM22: =-(AL22+Tariff_D_BO!AL22)+INDEX(Annual_CTM_BO!$AN:$AN,MATCH($C22,Annual_CTM_BO!$C:$C,FALSE)) -> 8.682693299 | AN22: =IF((AL22+Tariff_D_BO!AL22)=0,0,AL22/(AL22+Tariff_D_BO!AL22)*AM22) -> 0 | AO22: 0 | AP22: 0 | AR22: 0 | AS22: 0 | AT22: =-(AS22+Tariff_D_BO!AS22)+INDEX(Annual_CTM_BO!$AU:$AU,MATCH($C22,Annual_CTM_BO!$C:$C,FALSE)) -> 8.682693299 | AU22: =IF((AS22+Tariff_D_BO!AS22)=0,0,AS22/(AS22+Tariff_D_BO!AS22)*AT22) -> 0 | AV22: 0 | AW22: 0 | AY22: 0 | AZ22: 0 | BA22: =-(AZ22+Tariff_D_BO!AZ22)+INDEX(Annual_CTM_BO!$BB:$BB,MATCH($C22,Annual_CTM_BO!$C:$C,FALSE)) -> 8.682693299 | BB22: =IF((AZ22+Tariff_D_BO!AZ22)=0,0,AZ22/(AZ22+Tariff_D_BO!AZ22)*BA22) -> 0 | BC22: 0 | BD22: 0
C24: Ballarat | H24: =SUM(H12:H22) -> 5912.418124 | I24: =SUM(I12:I22) -> 37.29756177 | J24: =IF(I24=0,0,(H24/365)/I24) -> 0.4343020039 | K24: 5675.841446 | L24: 37.90017425 | M24: 37.33322182 | N24: =IF(M24=0,0,(K24/365)/M24) -> 0.4165258121 | P24: 8974.44472 | Q24: 59.03000262 | R24: 0 | S24: 59.03000262 | T24: =(INDEX(Volume_Assumptions_BA!I$130:I$135,MATCH($C24,Volume_Assumptions_BA!$D$130:$D$135,FALSE),1)) -> 59.48948446 | U24: =IF(T24=0,0,(P24/365)/T24) -> 0.4133086713 | W24: =Vencorp_Summary_BO!H30 -> 9128.37026 | X24: =(INDEX(Volume_Assumptions_BA!J$130:J$135,MATCH($C24,Volume_Assumptions_BA!$D$130:$D$135,FALSE),1)) -> 60.49943215 | Z24: =SUM(Z12:Z22) -> -7.091418366 | AA24: =SUM(AA12:AA22) -> 60.49943215 | AB24: 0.4133796418 | AD24: =Vencorp_Summary_BO!I30 -> 9152.67321 | AE24: =(INDEX(Volume_Assumptions_BA!K$130:K$135,MATCH($C24,Volume_Assumptions_BA!$D$130:$D$135,FALSE),1)) -> 60.76242226 | AG24: =SUM(AG12:AG22) -> -7.791931127 | AH24: =SUM(AH12:AH22) -> 60.76242226 | AI24: =IF(AH24=0,0,(AD24/365)/AH24) -> 0.4126862637 | AK24: =Vencorp_Summary_BO!J30 -> 9182.58168 | AL24: =(INDEX(Volume_Assumptions_BA!L$130:L$135,MATCH($C24,Volume_Assumptions_BA!$D$130:$D$135,FALSE),1)) -> 61.23575027 | AN24: =SUM(AN12:AN22) -> -8.332061729 | AO24: =SUM(AO12:AO22) -> 61.23575027 | AP24: =IF(AO24=0,0,(AK24/365)/AO24) -> 0.4108344867 | AR24: =Vencorp_Summary_BO!K30 -> 9397.39107 | AS24: =(INDEX(Volume_Assumptions_BA!M$130:M$135,MATCH($C24,Volume_Assumptions_BA!$D$130:$D$135,FALSE),1)) -> 62.5165347 | AU24: =SUM(AU12:AU22) -> -9.411588457 | AV24: =SUM(AV12:AV22) -> 62.5165347 | AW24: =IF(AV24=0,0,(AR24/365)/AV24) -> 0.4118314783 | AY24: =Vencorp_Summary_BO!L30 -> 8403.47914 | AZ24: =(INDEX(Volume_Assumptions_BA!N$130:N$135,MATCH($C24,Volume_Assumptions_BA!$D$130:$D$135,FALSE),1)) -> 57.63682675 | BB24: =SUM(BB12:BB22) -> -4.789856608 | BC24: =SUM(BC12:BC22) -> 57.63682675 | BD24: =IF(BC24=0,0,(AY24/365)/BC24) -> 0.3994534713
C26: M028 | D26: =(INDEX('[7]CTM Details'!P$5:P$408,MATCH($C26,'[7]CTM Details'!$B$5:$B$408,FALSE),1)) -> Laverton North (Fitzgerald Rd) | E26: =(INDEX('[7]CTM Details'!D$5:D$408,MATCH($C26,'[7]CTM Details'!$B$5:$B$408,FALSE),1)) -> 30000028PC | F26: =(INDEX('[7]CTM Details'!U$5:U$408,MATCH($C26,'[7]CTM Details'!$B$5:$B$408,FALSE),1)) -> Metro North West | H26: =(INDEX('[7]Tariff-V 2015'!$H$8:$FB$8,MATCH(C26,'[7]Tariff-V 2015'!$H$6:$FB$6,FALSE)))/1000 -> 1729.847804 | I26: =(INDEX('[7]Tariff-V 2015'!$H$10:$FB$10,MATCH(C26,'[7]Tariff-V 2015'!$H$6:$FB$6,FALSE)))/1000 -> 6.401599716 | J26: =IF(I26=0,0,(H26/365)/I26) -> 0.7403319893 | K26: =(INDEX('[7]Tariff-V Norm'!$H$10:$FB$10,MATCH(C26,'[7]Tariff-V Norm'!$H$6:$FB$6,FALSE)))/1000 -> 1701.338496 | L26: =(INDEX('[7]Tariff-V Norm'!$H$11:$FB$11,MATCH(C26,'[7]Tariff-V Norm'!$H$6:$FB$6,FALSE)))/1000 -> 7.845608442 | M26: =L26*(1/(('[7]Tariff-D Norm'!$D$11+'[7]Tariff-V Norm'!$D$11)/'[7]Tariff-V&D Norm'!$D$11)) -> 7.728245214 | N26: =IF(M26=0,0,(K26/365)/M26) -> 0.6031383878 | P26: =(K26/$K$41)*(Vencorp_Summary_BO!$G$32) -> 2005.909697 | Q26: =IF(N26=0,0,(P26/365)/N26) -> 9.111744696 | S26: =IF(R26=0,Q26,(P26/365)/R26) -> 9.111744696 | T26: =(M26/M$41)*(T$41) -> 10.78900243 | U26: =IF(T26=0,0,(P26/365)/T26) -> 0.5093745265 | W26: =(P26/P$41)*W$41 -> 1747.721179 | X26: =(T26/$T$41)*$X$41 -> 10.97216639 | Y26: =-(X26+Tariff_D_BO!X26)+INDEX(Annual_CTM_BO!$Z:$Z,MATCH($C26,Annual_CTM_BO!$C:$C,FALSE)) -> -3.962323374 | Z26: =IF((X26+Tariff_D_BO!X26)=0,0,X26/(X26+Tariff_D_BO!X26)*Y26) -> -2.948819547 | AA26: =(Z26+X26)/(X$41+Z$41)*X$41 -> 8.282055381 | AB26: =IF(AA26=0,0,(W26/365)/AA26) -> 0.5781508313 | AD26: =(W26/W$41)*AD$41 -> 1752.367257 | AE26: =(AA26/AA$41)*AE$41 -> 8.318057356 | AF26: =-(AE26+Tariff_D_BO!AE26)+INDEX(Annual_CTM_BO!$AG:$AG,MATCH($C26,Annual_CTM_BO!$C:$C,FALSE)) -> -0.4637537371 | AG26: =IF((AE26+Tariff_D_BO!AE26)=0,0,AE26/(AE26+Tariff_D_BO!AE26)*AF26) -> -0.3477376383 | AH26: =(AG26+AE26)/(AE$41+AG$41)*AE$41 -> 8.123257988 | AI26: =IF(AH26=0,0,(AD26/365)/AH26) -> 0.5910197842 | AK26: =(AD26/AD$41)*AK$41 -> 1757.609709 | AL26: =(AH26/AH$41)*AL$41 -> 8.186536646 | AM26: =-(AL26+Tariff_D_BO!AL26)+INDEX(Annual_CTM_BO!$AN:$AN,MATCH($C26,Annual_CTM_BO!$C:$C,FALSE)) -> -0.320300578 | AN26: =IF((AL26+Tariff_D_BO!AL26)=0,0,AL26/(AL26+Tariff_D_BO!AL26)*AM26) -> -0.2412248401 | AO26: =(AN26+AL26)/(AL$41+AN$41)*AL$41 -> 8.004351714 | AP26: =IF(AO26=0,0,(AK26/365)/AO26) -> 0.6015938877 | AR26: =(AK26/AK$41)*AR$41 -> 1798.73175 | AS26: =(AO26/AO$41)*AS$41 -> 8.171767806 | AT26: =-(AS26+Tariff_D_BO!AS26)+INDEX(Annual_CTM_BO!$AU:$AU,MATCH($C26,Annual_CTM_BO!$C:$C,FALSE)) -> -0.2040641443 | AU26: =IF((AS26+Tariff_D_BO!AS26)=0,0,AS26/(AS26+Tariff_D_BO!AS26)*AT26) -> -0.1550657224 | AV26: =(AU26+AS26)/(AS$41+AU$41)*AS$41 -> 8.176428754 | AW26: =IF(AV26=0,0,(AR26/365)/AV26) -> 0.602712057 | AY26: =(AR26/AR$41)*AY$41 -> 1613.33941 | AZ26: =(AV26/AV$41)*AZ$41 -> 7.538220237 | BA26: =-(AZ26+Tariff_D_BO!AZ26)+INDEX(Annual_CTM_BO!$BB:$BB,MATCH($C26,Annual_CTM_BO!$C:$C,FALSE)) -> 0.4629168115 | BB26: =IF((AZ26+Tariff_D_BO!AZ26)=0,0,AZ26/(AZ26+Tariff_D_BO!AZ26)*BA26) -> 0.3459491426 | BC26: =(BB26+AZ26)/(AZ$41+BB$41)*AZ$41 -> 7.518368282 | BD26: =IF(BC26=0,0,(AY26/365)/BC26) -> 0.587907882
C27: M029 | D27: =(INDEX('[7]CTM Details'!P$5:P$408,MATCH($C27,'[7]CTM Details'!$B$5:$B$408,FALSE),1)) -> Hoppers Crossing (Forsyth Rd) | E27: =(INDEX('[7]CTM Details'!D$5:D$408,MATCH($C27,'[7]CTM Details'!$B$5:$B$408,FALSE),1)) -> 30000029PC | F27: =(INDEX('[7]CTM Details'!U$5:U$408,MATCH($C27,'[7]CTM Details'!$B$5:$B$408,FALSE),1)) -> Metro North West | H27: =(INDEX('[7]Tariff-V 2015'!$H$8:$FB$8,MATCH(C27,'[7]Tariff-V 2015'!$H$6:$FB$6,FALSE)))/1000 -> 815.4505828 | I27: =(INDEX('[7]Tariff-V 2015'!$H$10:$FB$10,MATCH(C27,'[7]Tariff-V 2015'!$H$6:$FB$6,FALSE)))/1000 -> 6.339465511 | J27: 0.3524131777 | K27: =(INDEX('[7]Tariff-V Norm'!$H$10:$FB$10,MATCH(C27,'[7]Tariff-V Norm'!$H$6:$FB$6,FALSE)))/1000 -> 777.2533518 | L27: =(INDEX('[7]Tariff-V Norm'!$H$11:$FB$11,MATCH(C27,'[7]Tariff-V Norm'!$H$6:$FB$6,FALSE)))/1000 -> 5.514802594 | M27: =L27*(1/(('[7]Tariff-D Norm'!$D$11+'[7]Tariff-V Norm'!$D$11)/'[7]Tariff-V&D Norm'!$D$11)) -> 5.43230612 | N27: 0.3919994917 | P27: =(K27/$K$41)*(Vencorp_Summary_BO!$G$32) -> 916.396143 | Q27: 6.404789846 | S27: =IF(R27=0,Q27,(P27/365)/R27) -> 6.404789846 | T27: 7.583760908 | U27: 0.3310592719 | W27: =(P27/P$41)*W$41 -> 798.443195 | X27: 7.712509759 | Y27: =-(X27+Tariff_D_BO!X27)+INDEX(Annual_CTM_BO!$Z:$Z,MATCH($C27,Annual_CTM_BO!$C:$C,FALSE)) -> 0.3257408839 | Z27: =IF((X27+Tariff_D_BO!X27)=0,0,X27/(X27+Tariff_D_BO!X27)*Y27) -> 0.2582705664 | AA27: 8.227793882 | AB27: =IF(AA27=0,0,(W27/365)/AA27) -> 0.2658690329 | AD27: 800.565747 | AE27: 8.263559984 | AF27: =-(AE27+Tariff_D_BO!AE27)+INDEX(Annual_CTM_BO!$AG:$AG,MATCH($C27,Annual_CTM_BO!$C:$C,FALSE)) -> -0.1334877695 | AG27: =IF((AE27+Tariff_D_BO!AE27)=0,0,AE27/(AE27+Tariff_D_BO!AE27)*AF27) -> -0.1064846366 | AH27: 8.313597173 | AI27: 0.2638245236 | AK27: 802.9607517 | AL27: 8.378358538 | AM27: =-(AL27+Tariff_D_BO!AL27)+INDEX(Annual_CTM_BO!$AN:$AN,MATCH($C27,Annual_CTM_BO!$C:$C,FALSE)) -> -0.005637314184 | AN27: =IF((AL27+Tariff_D_BO!AL27)=0,0,AL27/(AL27+Tariff_D_BO!AL27)*AM27) -> -0.004512876656 | AO27: 8.436069912 | AP27: 0.2607721953 | AR27: 821.7472803 | AS27: 8.612515664 | AT27: =-(AS27+Tariff_D_BO!AS27)+INDEX(Annual_CTM_BO!$AU:$AU,MATCH($C27,Annual_CTM_BO!$C:$C,FALSE)) -> -0.2207323867 | AU27: =IF((AS27+Tariff_D_BO!AS27)=0,0,AS27/(AS27+Tariff_D_BO!AS27)*AT27) -> -0.1779849395 | AV27: 8.602582312 | AW27: 0.2617077443 | AY27: 737.0511319 | AZ27: 7.931110515 | BA27: =-(AZ27+Tariff_D_BO!AZ27)+INDEX(Annual_CTM_BO!$BB:$BB,MATCH($C27,Annual_CTM_BO!$C:$C,FALSE)) -> 0.4909728869 | BB27: =IF((AZ27+Tariff_D_BO!AZ27)=0,0,AZ27/(AZ27+Tariff_D_BO!AZ27)*BA27) -> 0.390594476 | BC27: 7.935603594 | BD27: =IF(BC27=0,0,(AY27/365)/BC27) -> 0.2544630847
C28: M030 | D28: =(INDEX('[7]CTM Details'!P$5:P$408,MATCH($C28,'[7]CTM Details'!$B$5:$B$408,FALSE),1)) -> Hoppers Crossing (Heaths Rd) | E28: =(INDEX('[7]CTM Details'!D$5:D$408,MATCH($C28,'[7]CTM Details'!$B$5:$B$408,FALSE),1)) -> 30000030PC | F28: =(INDEX('[7]CTM Details'!U$5:U$408,MATCH($C28,'[7]CTM Details'!$B$5:$B$408,FALSE),1)) -> Metro North West | H28: =(INDEX('[7]Tariff-V 2015'!$H$8:$FB$8,MATCH(C28,'[7]Tariff-V 2015'!$H$6:$FB$6,FALSE)))/1000 -> 772.7235325 | I28: =(INDEX('[7]Tariff-V 2015'!$H$10:$FB$10,MATCH(C28,'[7]Tariff-V 2015'!$H$6:$FB$6,FALSE)))/1000 -> 7.845318395 | J28: 0.2698489299 | K28: =(INDEX('[7]Tariff-V Norm'!$H$10:$FB$10,MATCH(C28,'[7]Tariff-V Norm'!$H$6:$FB$6,FALSE)))/1000 -> 720.8015767 | L28: =(INDEX('[7]Tariff-V Norm'!$H$11:$FB$11,MATCH(C28,'[7]Tariff-V Norm'!$H$6:$FB$6,FALSE)))/1000 -> 6.218065147 | M28: =L28*(1/(('[7]Tariff-D Norm'!$D$11+'[7]Tariff-V Norm'!$D$11)/'[7]Tariff-V&D Norm'!$D$11)) -> 6.125048499 | N28: 0.3224135842 | P28: =(K28/$K$41)*(Vencorp_Summary_BO!$G$32) -> 849.8384512 | Q28: 7.221545982 | S28: 7.221545982 | T28: 8.550862626 | U28: 0.2722911858 | W28: =(P28/P$41)*W$41 -> 740.4524052 | X28: 8.696029878 | Y28: =-(X28+Tariff_D_BO!X28)+INDEX(Annual_CTM_BO!$Z:$Z,MATCH($C28,Annual_CTM_BO!$C:$C,FALSE)) -> -2.709532231 | Z28: =IF((X28+Tariff_D_BO!X28)=0,0,X28/(X28+Tariff_D_BO!X28)*Y28) -> -2.144191168 | AA28: 6.763099252 | AB28: 0.2999566694 | AD28: 742.4207966 | AE28: 6.792498347 | AF28: =-(AE28+Tariff_D_BO!AE28)+INDEX(Annual_CTM_BO!$AG:$AG,MATCH($C28,Annual_CTM_BO!$C:$C,FALSE)) -> -0.6980470248 | AG28: =IF((AE28+Tariff_D_BO!AE28)=0,0,AE28/(AE28+Tariff_D_BO!AE28)*AF28) -> -0.5557969382 | AH28: 6.35637419 | AI28: 0.3199984015 | AK28: =(AD28/AD$41)*AK$41-25.0816 -> 719.5602526 | AL28: 6.405889154 | AM28: =-(AL28+Tariff_D_BO!AL28)+INDEX(Annual_CTM_BO!$AN:$AN,MATCH($C28,Annual_CTM_BO!$C:$C,FALSE)) -> -0.5347414061 | AN28: =IF((AL28+Tariff_D_BO!AL28)=0,0,AL28/(AL28+Tariff_D_BO!AL28)*AM28) -> -0.4272896671 | AO28: 6.023025177 | AP28: 0.3273102626 | AR28: =(AK28/AK$41)*AR$41-8.8919 -> 727.5035955 | AS28: 6.149000569 | AT28: =-(AS28+Tariff_D_BO!AS28)+INDEX(Annual_CTM_BO!$AU:$AU,MATCH($C28,Annual_CTM_BO!$C:$C,FALSE)) -> -0.1574755495 | AU28: =IF((AS28+Tariff_D_BO!AS28)=0,0,AS28/(AS28+Tariff_D_BO!AS28)*AT28) -> -0.1267508868 | AV28: 6.14223841 | AW28: 0.3245006791 | AY28: =(AR28/AR$41)*AY$41-24.84672 -> 627.6742696 | AZ28: 5.662807966 | BA28: =-(AZ28+Tariff_D_BO!AZ28)+INDEX(Annual_CTM_BO!$BB:$BB,MATCH($C28,Annual_CTM_BO!$C:$C,FALSE)) -> 0.3504719116 | BB28: =IF((AZ28+Tariff_D_BO!AZ28)=0,0,AZ28/(AZ28+Tariff_D_BO!AZ28)*BA28) -> 0.2782909727 | BC28: 5.665450306 | BD28: 0.3035337776
C29: M031 | D29: =(INDEX('[7]CTM Details'!P$5:P$408,MATCH($C29,'[7]CTM Details'!$B$5:$B$408,FALSE),1)) -> Werribee (Old Sneydes Rd) | E29: =(INDEX('[7]CTM Details'!D$5:D$408,MATCH($C29,'[7]CTM Details'!$B$5:$B$408,FALSE),1)) -> 30000031PC | F29: =(INDEX('[7]CTM Details'!U$5:U$408,MATCH($C29,'[7]CTM Details'!$B$5:$B$408,FALSE),1)) -> Metro North West | H29: =(INDEX('[7]Tariff-V 2015'!$H$8:$FB$8,MATCH(C29,'[7]Tariff-V 2015'!$H$6:$FB$6,FALSE)))/1000 -> 482.7927861 | I29: =(INDEX('[7]Tariff-V 2015'!$H$10:$FB$10,MATCH(C29,'[7]Tariff-V 2015'!$H$6:$FB$6,FALSE)))/1000 -> 4.346894075 | J29: 0.3042908199 | K29: =(INDEX('[7]Tariff-V Norm'!$H$10:$FB$10,MATCH(C29,'[7]Tariff-V Norm'!$H$6:$FB$6,FALSE)))/1000 -> 456.5853272 | L29: =(INDEX('[7]Tariff-V Norm'!$H$11:$FB$11,MATCH(C29,'[7]Tariff-V Norm'!$H$6:$FB$6,FALSE)))/1000 -> 3.499625982 | M29: =L29*(1/(('[7]Tariff-D Norm'!$D$11+'[7]Tariff-V Norm'!$D$11)/'[7]Tariff-V&D Norm'!$D$11)) -> 3.447274733 | N29: 0.362871776 | P29: =(K29/$K$41)*(Vencorp_Summary_BO!$G$32) -> 538.322584 | Q29: 4.064400959 | S29: 4.064400959 | T29: 4.812561513 | U29: 0.3064597492 | W29: 469.0329692 | X29: 4.894263952 | Y29: =-(X29+Tariff_D_BO!X29)+INDEX(Annual_CTM_BO!$Z:$Z,MATCH($C29,Annual_CTM_BO!$C:$C,FALSE)) -> 0.2554890538 | Z29: =IF((X29+Tariff_D_BO!X29)=0,0,X29/(X29+Tariff_D_BO!X29)*Y29) -> 0.2023228365 | AA29: 5.260923509 | AB29: 0.2442578439 | AD29: =(W29/W$41)*AD$41-3 -> 467.2798291 | AE29: 5.283792668 | AF29: =-(AE29+Tariff_D_BO!AE29)+INDEX(Annual_CTM_BO!$AG:$AG,MATCH($C29,Annual_CTM_BO!$C:$C,FALSE)) -> -0.2335857223 | AG29: =IF((AE29+Tariff_D_BO!AE29)=0,0,AE29/(AE29+Tariff_D_BO!AE29)*AF29) -> -0.1861118859 | AH29: 5.195497495 | AI29: 0.2464092632 | AK29: 468.6777623 | AL29: 5.235969448 | AM29: =-(AL29+Tariff_D_BO!AL29)+INDEX(Annual_CTM_BO!$AN:$AN,MATCH($C29,Annual_CTM_BO!$C:$C,FALSE)) -> -0.1460203412 | AN29: =IF((AL29+Tariff_D_BO!AL29)=0,0,AL29/(AL29+Tariff_D_BO!AL29)*AM29) -> -0.1167573285 | AO29: 5.157251887 | AP29: 0.2489792417 | AR29: 479.6432151 | AS29: 5.26511908 | AT29: =-(AS29+Tariff_D_BO!AS29)+INDEX(Annual_CTM_BO!$AU:$AU,MATCH($C29,Annual_CTM_BO!$C:$C,FALSE)) -> -0.1348764426 | AU29: =IF((AS29+Tariff_D_BO!AS29)=0,0,AS29/(AS29+Tariff_D_BO!AS29)*AT29) -> -0.108631982 | AV29: 5.259226168 | AW29: 0.2498639454 | AY29: 430.2071732 | AZ29: 4.848718961 | BA29: =-(AZ29+Tariff_D_BO!AZ29)+INDEX(Annual_CTM_BO!$BB:$BB,MATCH($C29,Annual_CTM_BO!$C:$C,FALSE)) -> 0.3001135472 | BB29: =IF((AZ29+Tariff_D_BO!AZ29)=0,0,AZ29/(AZ29+Tariff_D_BO!AZ29)*BA29) -> 0.2384684923 | BC29: 4.851157675 | BD29: 0.242962581
C30: M032 | D30: =(INDEX('[7]CTM Details'!P$5:P$408,MATCH($C30,'[7]CTM Details'!$B$5:$B$408,FALSE),1)) -> Werribee (Lock Ave) | E30: =(INDEX('[7]CTM Details'!D$5:D$408,MATCH($C30,'[7]CTM Details'!$B$5:$B$408,FALSE),1)) -> 30000032PC | F30: =(INDEX('[7]CTM Details'!U$5:U$408,MATCH($C30,'[7]CTM Details'!$B$5:$B$408,FALSE),1)) -> Metro North West | H30: =(INDEX('[7]Tariff-V 2015'!$H$8:$FB$8,MATCH(C30,'[7]Tariff-V 2015'!$H$6:$FB$6,FALSE)))/1000 -> 511.0891004 | I30: =(INDEX('[7]Tariff-V 2015'!$H$10:$FB$10,MATCH(C30,'[7]Tariff-V 2015'!$H$6:$FB$6,FALSE)))/1000 -> 3.288526677 | J30: 0.4257967923 | K30: =(INDEX('[7]Tariff-V Norm'!$H$10:$FB$10,MATCH(C30,'[7]Tariff-V Norm'!$H$6:$FB$6,FALSE)))/1000 -> 490.2513428 | L30: =(INDEX('[7]Tariff-V Norm'!$H$11:$FB$11,MATCH(C30,'[7]Tariff-V Norm'!$H$6:$FB$6,FALSE)))/1000 -> 3.301643126 | M30: =L30*(1/(('[7]Tariff-D Norm'!$D$11+'[7]Tariff-V Norm'!$D$11)/'[7]Tariff-V&D Norm'!$D$11)) -> 3.252253522 | N30: 0.4129919008 | P30: =(K30/$K$41)*(Vencorp_Summary_BO!$G$32) -> 578.015442 | Q30: 3.834467328 | S30: 3.834467328 | T30: 4.540302512 | U30: 0.3487882022 | W30: 503.6168035 | X30: 4.617382834 | Y30: =-(X30+Tariff_D_BO!X30)+INDEX(Annual_CTM_BO!$Z:$Z,MATCH($C30,Annual_CTM_BO!$C:$C,FALSE)) -> 1.576200876 | Z30: =IF((X30+Tariff_D_BO!X30)=0,0,X30/(X30+Tariff_D_BO!X30)*Y30) -> 1.252140658 | AA30: 6.058783143 | AB30: 0.2277308878 | AD30: 504.9555998 | AE30: 6.085120586 | AF30: =-(AE30+Tariff_D_BO!AE30)+INDEX(Annual_CTM_BO!$AG:$AG,MATCH($C30,Annual_CTM_BO!$C:$C,FALSE)) -> 0.1336699357 | AG30: =IF((AE30+Tariff_D_BO!AE30)=0,0,AE30/(AE30+Tariff_D_BO!AE30)*AF30) -> 0.106831298 | AH30: 6.31076599 | AI30: 0.2192190301 | AK30: 506.4662453 | AL30: 6.359925675 | AM30: =-(AL30+Tariff_D_BO!AL30)+INDEX(Annual_CTM_BO!$AN:$AN,MATCH($C30,Annual_CTM_BO!$C:$C,FALSE)) -> 0.2000399907 | AN30: =IF((AL30+Tariff_D_BO!AL30)=0,0,AL30/(AL30+Tariff_D_BO!AL30)*AM30) -> 0.1604374987 | AO30: 6.568814594 | AP30: 0.2112373145 | AR30: 518.315819 | AS30: 6.706205517 | AT30: =-(AS30+Tariff_D_BO!AS30)+INDEX(Annual_CTM_BO!$AU:$AU,MATCH($C30,Annual_CTM_BO!$C:$C,FALSE)) -> -0.1720052033 | AU30: =IF((AS30+Tariff_D_BO!AS30)=0,0,AS30/(AS30+Tariff_D_BO!AS30)*AT30) -> -0.1389450556 | AV30: 6.698108113 | AW30: 0.2120066317 | AY30: 464.8938552 | AZ30: 6.175289438 | BA30: =-(AZ30+Tariff_D_BO!AZ30)+INDEX(Annual_CTM_BO!$BB:$BB,MATCH($C30,Annual_CTM_BO!$C:$C,FALSE)) -> 0.3823696349 | BB30: =IF((AZ30+Tariff_D_BO!AZ30)=0,0,AZ30/(AZ30+Tariff_D_BO!AZ30)*BA30) -> 0.3047754802 | BC30: 6.17940993 | BD30: 0.206117058
C31: M051 | D31: =(INDEX('[7]CTM Details'!P$5:P$408,MATCH($C31,'[7]CTM Details'!$B$5:$B$408,FALSE),1)) -> Avalon | E31: =(INDEX('[7]CTM Details'!D$5:D$408,MATCH($C31,'[7]CTM Details'!$B$5:$B$408,FALSE),1)) -> 30000046PC | F31: =(INDEX('[7]CTM Details'!U$5:U$408,MATCH($C31,'[7]CTM Details'!$B$5:$B$408,FALSE),1)) -> Geelong | H31: =(INDEX('[7]Tariff-V 2015'!$H$8:$FB$8,MATCH(C31,'[7]Tariff-V 2015'!$H$6:$FB$6,FALSE)))/1000 -> 3.258618069 | I31: =(INDEX('[7]Tariff-V 2015'!$H$10:$FB$10,MATCH(C31,'[7]Tariff-V 2015'!$H$6:$FB$6,FALSE)))/1000 -> 0.01165410692 | J31: 0.7660579052 | K31: =(INDEX('[7]Tariff-V Norm'!$H$10:$FB$10,MATCH(C31,'[7]Tariff-V Norm'!$H$6:$FB$6,FALSE)))/1000 -> 3.157689191 | L31: =(INDEX('[7]Tariff-V Norm'!$H$11:$FB$11,MATCH(C31,'[7]Tariff-V Norm'!$H$6:$FB$6,FALSE)))/1000 -> 0.01452396703 | M31: =L31*(1/(('[7]Tariff-D Norm'!$D$11+'[7]Tariff-V Norm'!$D$11)/'[7]Tariff-V&D Norm'!$D$11)) -> 0.01430670158 | N31: 0.6046958634 | P31: =(K31/$K$41)*(Vencorp_Summary_BO!$G$32) -> 3.722974225 | Q31: 0.01686786697 | S31: 0.01686786697 | T31: 0.01997284427 | U31: 0.5106898771 | W31: 3.243775585 | X31: 0.02031192151 | Y31: =-(X31+Tariff_D_BO!X31)+INDEX(Annual_CTM_BO!$Z:$Z,MATCH($C31,Annual_CTM_BO!$C:$C,FALSE)) -> -0.002932210952 | Z31: =IF((X31+Tariff_D_BO!X31)=0,0,X31/(X31+Tariff_D_BO!X31)*Y31) -> -0.001754594106 | AA31: 0.01915569852 | AB31: 0.4639379967 | AD31: 3.252398719 | AE31: 0.01923896807 | AF31: =-(AE31+Tariff_D_BO!AE31)+INDEX(Annual_CTM_BO!$AG:$AG,MATCH($C31,Annual_CTM_BO!$C:$C,FALSE)) -> -0.001314017272 | AG31: =IF((AE31+Tariff_D_BO!AE31)=0,0,AE31/(AE31+Tariff_D_BO!AE31)*AF31) -> -0.0007956491341 | AH31: 0.01879721807 | AI31: 0.4740425624 | AK31: 3.262128726 | AL31: 0.01894364488 | AM31: =-(AL31+Tariff_D_BO!AL31)+INDEX(Annual_CTM_BO!$AN:$AN,MATCH($C31,Annual_CTM_BO!$C:$C,FALSE)) -> -0.0009165160405 | AN31: =IF((AL31+Tariff_D_BO!AL31)=0,0,AL31/(AL31+Tariff_D_BO!AL31)*AM31) -> -0.0005588053456 | AO31: 0.01852145333 | AP31: 0.4825398317 | AR31: 3.338451354 | AS31: 0.01890884128 | AT31: =-(AS31+Tariff_D_BO!AS31)+INDEX(Annual_CTM_BO!$AU:$AU,MATCH($C31,Annual_CTM_BO!$C:$C,FALSE)) -> -0.0004228230318 | AU31: =IF((AS31+Tariff_D_BO!AS31)=0,0,AS31/(AS31+Tariff_D_BO!AS31)*AT31) -> -0.000261478921 | AV31: 0.01901889682 | AW31: 0.4809133859 | AY31: 2.994362632 | AZ31: 0.01753438294 | BA31: =-(AZ31+Tariff_D_BO!AZ31)+INDEX(Annual_CTM_BO!$BB:$BB,MATCH($C31,Annual_CTM_BO!$C:$C,FALSE)) -> 0.001042279003 | BB31: =IF((AZ31+Tariff_D_BO!AZ31)=0,0,AZ31/(AZ31+Tariff_D_BO!AZ31)*BA31) -> 0.0006277870658 | BC31: 0.01731950144 | BD31: 0.4736702882
... 35 more rows

Sheet Tariff_D_BO
B1: Withdrawal Volumes - Tariff D | BC1: =BC24+BC41+BC64+BC105+BC146+BC155 -> 217.12
B2: =Model_Name -> VTS Tariff Model | V2: Check | W2: =SUM(W12:W22,W26:W39,W43:W62,W66:W103,W107:W144,W148:W153)-(W24+W41+W64+W105+W146+W155) -> 0 | Z2: Check | AA2: =SUM(AA12:AA22,AA26:AA39,AA43:AA62,AA66:AA103,AA107:AA144,AA148:AA153)-(AA24+AA41+AA64+AA105+AA146+AA155) -> 0 | AC2: Check | AD2: =SUM(AD12:AD22,AD26:AD39,AD43:AD62,AD66:AD103,AD107:AD144,AD148:AD153)-(AD24+AD41+AD64+AD105+AD146+AD155) -> 0 | AG2: Check | AH2: =SUM(AH12:AH22,AH26:AH39,AH43:AH62,AH66:AH103,AH107:AH144,AH148:AH153)-(AH24+AH41+AH64+AH105+AH146+AH155) -> 0 | AJ2: Check | AK2: =SUM(AK12:AK22,AK26:AK39,AK43:AK62,AK66:AK103,AK107:AK144,AK148:AK153)-(AK24+AK41+AK64+AK105+AK146+AK155) -> 0 | AN2: Check | AO2: =SUM(AO12:AO22,AO26:AO39,AO43:AO62,AO66:AO103,AO107:AO144,AO148:AO153)-(AO24+AO41+AO64+AO105+AO146+AO155) -> 0 | AQ2: Check | AR2: =SUM(AR12:AR22,AR26:AR39,AR43:AR62,AR66:AR103,AR107:AR144,AR148:AR153)-(AR24+AR41+AR64+AR105+AR146+AR155) -> 0 | AU2: Check | AV2: =SUM(AV12:AV22,AV26:AV39,AV43:AV62,AV66:AV103,AV107:AV144,AV148:AV153)-(AV24+AV41+AV64+AV105+AV146+AV155) -> 0 | AX2: Check | AY2: =SUM(AY12:AY22,AY26:AY39,AY43:AY62,AY66:AY103,AY107:AY144,AY148:AY153)-(AY24+AY41+AY64+AY105+AY146+AY155) -> 0 | BB2: Check | BC2: =SUM(BC12:BC22,BC26:BC39,BC43:BC62,BC66:BC103,BC107:BC144,BC148:BC153)-(BC24+BC41+BC64+BC105+BC146+BC155) -> 0
B3: Go to Table of Contents
A4: é | B4: ç | C4: è | H4: =Tariff_V_BO!H4 -> This 2019 colmn would come from Settlement data | Z4: Highlighted cells below contain hard coded figures/formula changes that align the total to inputs provided.
H6: 2019 Actual | K6: 2019 Norm | N6: 2019 Norm | P6: 2022 Forecast | W6: 2023 Forecast | AB6: 2023 | AD6: 2024 Forecast | AI6: 2024 | AK6: 2025 Forecast | AP6: 2025 | AR6: 2026 Forecast | AW6: 2026 | AY6: 2027 Forecast | BD6: 2027
C7: Meter | D7: Meter Name | E7: MIRN | F7: Tariff Zone | H7: Annual | I7: Coincident | J7: Load | K7: Annual | L7: Peak Day | M7: Peak Day | N7: Load | O7: Adjustment | P7: Annual | Q7: Old Peak | R7: New | S7: New Peak | T7: Peak Day | U7: Load | W7: Annual | X7: Peak Day | Y7: Difference | Z7: Allocation to | AA7: Peak Day | AB7: Load | AD7: Annual | AE7: Old Peak | AF7: New | AG7: New Peak | AH7: Peak Day | AI7: Load | AK7: Annual | AL7: Old Peak | AM7: New | AN7: New Peak | AO7: Peak Day | AP7: Load | AR7: Annual | AS7: Old Peak | AT7: New | AU7: New Peak | AV7: Peak Day | AW7: Load | AY7: Annual | AZ7: Old Peak | BA7: New | BB7: New Peak | BC7: Peak Day | BD7: Load
I8: Peak Day | J8: Factor | L8: Raw Data | M8: Scaled to 100% | N8: Factor | R8: Load Factor | U8: Factor | X8: Scaled | Y8: to be reallocated | Z8: Tariff V | AB8: Factor | AF8: Load Factor | AI8: Factor | AM8: Load Factor | AP8: Factor | AT8: Load Factor | AW8: Factor | BA8: Load Factor | BD8: Factor
C9: 1 | D9: =C9+1 -> 2 | E9: =D9+1 -> 3 | F9: 4 | G9: 5 | H9: 6 | I9: 7 | J9: 8 | K9: 9 | L9: 10 | M9: 11 | N9: 12 | O9: 13 | P9: 14 | Q9: 15 | R9: 16 | S9: 17 | T9: 18 | U9: 19 | V9: 20 | W9: 21 | X9: 22 | Y9: 23 | Z9: 24 | AA9: 25 | AB9: 26 | AC9: 27 | AD9: 28 | AE9: 29 | AF9: 30 | AG9: 31 | AH9: 32 | AI9: 33 | AJ9: 34 | AK9: 35 | AL9: 36 | AM9: 37 | AN9: 38 | AO9: 39 | AP9: 40 | AQ9: 41 | AR9: 42 | AS9: 43 | AT9: 44 | AU9: 45 | AV9: 46 | AW9: 47 | AX9: 48 | AY9: 49 | AZ9: 50 | BA9: 51 | BB9: 52 | BC9: 53 | BD9: 54
C10: Total | H10: =H24+H41+H64+H105+H146+H155 -> 74317.84164 | I10: =I24+I41+I64+I105+I146+I155 -> 243.474096 | K10: =K24+K41+K64+K105+K146+K155 -> 73974.62483 | L10: =L24+L41+L64+L105+L146+L155 -> 232.0037367 | M10: =M24+M41+M64+M105+M146+M155 -> 228.53317 | P10: =P24+P41+P64+P105+P146+P155 -> 66556.89451 | Q10: =Q24+Q41+Q64+Q105+Q146+Q155 -> 203.9622396 | S10: =S24+S41+S64+S105+S146+S155 -> 203.9622396 | T10: =T24+T41+T64+T105+T146+T155 -> 272.9687878 | W10: =W24+W41+W64+W105+W146+W155 -> 63506.94712 | X10: =X24+X41+X64+X105+X146+X155 -> 225.6 | AA10: =AA24+AA41+AA64+AA105+AA146+AA155 -> 225.6 | AD10: =AD24+AD41+AD64+AD105+AD146+AD155 -> 63538.55591 | AE10: =AE24+AE41+AE64+AE105+AE146+AE155 -> 223.6 | AH10: =AH24+AH41+AH64+AH105+AH146+AH155 -> 223.6 | AK10: =AK24+AK41+AK64+AK105+AK146+AK155 -> 72158.37868 | AL10: =AL24+AL41+AL64+AL105+AL146+AL155 -> 221.8 | AO10: =AO24+AO41+AO64+AO105+AO146+AO155 -> 221.8 | AR10: =AR24+AR41+AR64+AR105+AR146+AR155 -> 71745.88611 | AS10: =AS24+AS41+AS64+AS105+AS146+AS155 -> 219.35 | AV10: =AV24+AV41+AV64+AV105+AV146+AV155 -> 219.35 | AY10: =AY24+AY41+AY64+AY105+AY146+AY155 -> 71623.77948 | AZ10: =AZ24+AZ41+AZ64+AZ105+AZ146+AZ155 -> 217.12 | BC10: =BC24+BC41+BC64+BC105+BC146+BC155 -> 217.12
C12: M027 | D12: =(INDEX('[7]CTM Details'!P$5:P$408,MATCH($C12,'[7]CTM Details'!$B$5:$B$408,FALSE),1)) -> Melton South | E12: =(INDEX('[7]CTM Details'!D$5:D$408,MATCH($C12,'[7]CTM Details'!$B$5:$B$408,FALSE),1)) -> 30000027PC | F12: =(INDEX('[7]CTM Details'!U$5:U$408,MATCH($C12,'[7]CTM Details'!$B$5:$B$408,FALSE),1)) -> Metro North West | H12: =(INDEX('[7]Tariff-D 2015'!$H$8:$FB$8,MATCH(C12,'[7]Tariff-D 2015'!$H$6:$FB$6,FALSE)))/1000 -> 551.4978094 | I12: =(INDEX('[7]Tariff-D 2015'!$H$10:$FB$10,MATCH(C12,'[7]Tariff-D 2015'!$H$6:$FB$6,FALSE)))/1000 -> 1.746651662 | J12: =IF(I12=0,0,(H12/365)/I12) -> 0.8650568029 | K12: =(INDEX('[7]Tariff-D Norm'!$H$10:$FB$10,MATCH(C12,'[7]Tariff-D Norm'!$H$6:$FB$6,FALSE)))/1000 -> 546.8288564 | L12: =(INDEX('[7]Tariff-D Norm'!$H$11:$FB$11,MATCH(C12,'[7]Tariff-D Norm'!$H$6:$FB$6,FALSE)))/1000 -> 2.052692955 | M12: =L12*(1/(('[7]Tariff-D Norm'!$D$11+'[7]Tariff-V Norm'!$D$11)/'[7]Tariff-V&D Norm'!$D$11)) -> 2.021986519 | N12: =IF(M12=0,0,(K12/365)/M12) -> 0.7409353307 | P12: =(K12/$K$24)*(Vencorp_Summary_BO!$G$31) -> 223.1731712 | Q12: =IF(N12=0,0,(P12/365)/N12) -> 0.8252182347 | S12: =IF(R12=0,Q12,(P12/365)/R12) -> 0.8252182347 | T12: =(M12/M$24)*(T$24) -> 0.9057631214 | U12: =IF(T12=0,0,(P12/365)/T12) -> 0.6750477374 | W12: =(P12/P$24)*W$24 -> 221.6932578 | X12: =(T12/$T$24)*$X$24 -> 0.9057631214 | Y12: =-(X12+Tariff_V_BO!X12)+INDEX(Annual_CTM_BO!$Z:$Z,MATCH(Tariff_D_BO!$C12,Annual_CTM_BO!$C:$C,FALSE)) -> 0.3548435808 | Z12: =IF((X12+Tariff_V_BO!X12)=0,0,X12/(X12+Tariff_V_BO!X12)*Y12) -> 0.02722398 | AA12: =(Z12+X12)/(X$24+Z$24)*X$24 -> 1.060976068 | AB12: =IF(AA12=0,0,(W12/365)/AA12) -> 0.5724717145 | AD12: =(W12/W$24)*AD$24 -> 222.1120927 | AE12: =(AA12/AA$24)*AE$24 -> 1.040957651 | AF12: =-(AE12+Tariff_V_BO!AE12)+INDEX(Annual_CTM_BO!$AG:$AG,MATCH(Tariff_D_BO!$C12,Annual_CTM_BO!$C:$C,FALSE)) -> -1.572329686 | AG12: =IF((AE12+Tariff_V_BO!AE12)=0,0,AE12/(AE12+Tariff_V_BO!AE12)*AF12) -> -0.1184762093 | AH12: =(AG12+AE12)/(AE$24+AG$24)*AE$24 -> 1.058513857 | AI12: =IF(AH12=0,0,(AD12/365)/AH12) -> 0.5748874021 | AK12: =(AD12/AD$24)*AK$24 -> 314.4520499 | AL12: =(AH12/AH$24)*AL$24 -> 1.058513857 | AM12: =-(AL12+Tariff_V_BO!AL12)+INDEX(Annual_CTM_BO!$AN:$AN,MATCH(Tariff_D_BO!$C12,Annual_CTM_BO!$C:$C,FALSE)) -> -1.729559524 | AN12: =IF((AL12+Tariff_V_BO!AL12)=0,0,AL12/(AL12+Tariff_V_BO!AL12)*AM12) -> -0.1294296042 | AO12: =(AN12+AL12)/(AL$24+AN$24)*AL$24 -> 1.075750989 | AP12: =IF(AO12=0,0,(AK12/365)/AO12) -> 0.8008474773 | AR12: =(AK12/AK$24)*AR$24 -> 306.8165647 | AS12: =(AO12/AO$24)*AS$24 -> 1.04471971 | AT12: =-(AS12+Tariff_V_BO!AS12)+INDEX(Annual_CTM_BO!$AU:$AU,MATCH(Tariff_D_BO!$C12,Annual_CTM_BO!$C:$C,FALSE)) -> -2.20273307 | AU12: =IF((AS12+Tariff_V_BO!AS12)=0,0,AS12/(AS12+Tariff_V_BO!AS12)*AT12) -> -0.1574247146 | AV12: =(AU12+AS12)/(AS$24+AU$24)*AS$24 -> 1.044538382 | AW12: =IF(AV12=0,0,(AR12/365)/AV12) -> 0.8047510199 | AY12: =(AR12/AR$24)*AY$24 -> 275.118913 | AZ12: =(AV12/AV$24)*AZ$24 -> 1.025922846 | BA12: =-(AZ12+Tariff_V_BO!AZ12)+INDEX(Annual_CTM_BO!$BB:$BB,MATCH(Tariff_D_BO!$C12,Annual_CTM_BO!$C:$C,FALSE)) -> -1.122406486 | BB12: =IF((AZ12+Tariff_V_BO!AZ12)=0,0,AZ12/(AZ12+Tariff_V_BO!AZ12)*BA12) -> -0.0850589436 | BC12: =(BB12+AZ12)/(AZ$24+BB$24)*AZ$24 -> 1.026151135 | BD12: =IF(BC12=0,0,(AY12/365)/BC12) -> 0.7345413564
C13: M045 | D13: =(INDEX('[7]CTM Details'!P$5:P$408,MATCH($C13,'[7]CTM Details'!$B$5:$B$408,FALSE),1)) -> Sunbury | E13: =(INDEX('[7]CTM Details'!D$5:D$408,MATCH($C13,'[7]CTM Details'!$B$5:$B$408,FALSE),1)) -> 30000043PC | F13: =(INDEX('[7]CTM Details'!U$5:U$408,MATCH($C13,'[7]CTM Details'!$B$5:$B$408,FALSE),1)) -> Metro North West | H13: =(INDEX('[7]Tariff-D 2015'!$H$8:$FB$8,MATCH(C13,'[7]Tariff-D 2015'!$H$6:$FB$6,FALSE)))/1000 -> 307.0708916 | I13: =(INDEX('[7]Tariff-D 2015'!$H$10:$FB$10,MATCH(C13,'[7]Tariff-D 2015'!$H$6:$FB$6,FALSE)))/1000 -> 1.627503997 | J13: 0.5169204594 | K13: =(INDEX('[7]Tariff-D Norm'!$H$10:$FB$10,MATCH(C13,'[7]Tariff-D Norm'!$H$6:$FB$6,FALSE)))/1000 -> 304.2976519 | L13: =(INDEX('[7]Tariff-D Norm'!$H$11:$FB$11,MATCH(C13,'[7]Tariff-D Norm'!$H$6:$FB$6,FALSE)))/1000 -> 1.244044768 | M13: =L13*(1/(('[7]Tariff-D Norm'!$D$11+'[7]Tariff-V Norm'!$D$11)/'[7]Tariff-V&D Norm'!$D$11)) -> 1.22543498 | N13: 0.6803234855 | P13: =(K13/$K$24)*(Vencorp_Summary_BO!$G$31) -> 124.1907247 | Q13: =IF(N13=0,0,(P13/365)/N13) -> 0.5001276129 | S13: =IF(R13=0,Q13,(P13/365)/R13) -> 0.5001276129 | T13: 0.5489422418 | U13: 0.6198257938 | W13: =(P13/P$24)*W$24 -> 123.367187 | X13: 0.5489422418 | Y13: =-(X13+Tariff_V_BO!X13)+INDEX(Annual_CTM_BO!$Z:$Z,MATCH(Tariff_D_BO!$C13,Annual_CTM_BO!$C:$C,FALSE)) -> -0.8990173425 | Z13: =IF((X13+Tariff_V_BO!X13)=0,0,X13/(X13+Tariff_V_BO!X13)*Y13) -> -0.06899912225 | AA13: 0.5457826404 | AB13: 0.619280036 | AD13: 123.600259 | AE13: 0.5354848547 | AF13: =-(AE13+Tariff_V_BO!AE13)+INDEX(Annual_CTM_BO!$AG:$AG,MATCH(Tariff_D_BO!$C13,Annual_CTM_BO!$C:$C,FALSE)) -> -0.9182189329 | AG13: =IF((AE13+Tariff_V_BO!AE13)=0,0,AE13/(AE13+Tariff_V_BO!AE13)*AF13) -> -0.06921414379 | AH13: 0.5350286588 | AI13: 0.6329209491 | AK13: 174.9853164 | AL13: 0.5350286588 | AM13: =-(AL13+Tariff_V_BO!AL13)+INDEX(Annual_CTM_BO!$AN:$AN,MATCH(Tariff_D_BO!$C13,Annual_CTM_BO!$C:$C,FALSE)) -> -0.9798269988 | AN13: =IF((AL13+Tariff_V_BO!AL13)=0,0,AL13/(AL13+Tariff_V_BO!AL13)*AM13) -> -0.07335144495 | AO13: 0.5345583221 | AP13: 0.8968372689 | AR13: 170.7363448 | AS13: 0.5191383705 | AT13: =-(AS13+Tariff_V_BO!AS13)+INDEX(Annual_CTM_BO!$AU:$AU,MATCH(Tariff_D_BO!$C13,Annual_CTM_BO!$C:$C,FALSE)) -> -1.094158302 | AU13: =IF((AS13+Tariff_V_BO!AS13)=0,0,AS13/(AS13+Tariff_V_BO!AS13)*AT13) -> -0.07822632905 | AV13: 0.5190489662 | AW13: 0.9012074742 | AY13: 153.0973324 | AZ13: 0.5097985886 | BA13: =-(AZ13+Tariff_V_BO!AZ13)+INDEX(Annual_CTM_BO!$BB:$BB,MATCH(Tariff_D_BO!$C13,Annual_CTM_BO!$C:$C,FALSE)) -> -0.5575469113 | BB13: =IF((AZ13+Tariff_V_BO!AZ13)=0,0,AZ13/(AZ13+Tariff_V_BO!AZ13)*BA13) -> -0.04226805147 | BC13: 0.5099111466 | BD13: 0.8225839918
C14: M048 | D14: =(INDEX('[7]CTM Details'!P$5:P$408,MATCH($C14,'[7]CTM Details'!$B$5:$B$408,FALSE),1)) -> Diggers Rest | E14: =(INDEX('[7]CTM Details'!D$5:D$408,MATCH($C14,'[7]CTM Details'!$B$5:$B$408,FALSE),1)) -> 30000044PC | F14: =(INDEX('[7]CTM Details'!U$5:U$408,MATCH($C14,'[7]CTM Details'!$B$5:$B$408,FALSE),1)) -> Metro North West | H14: =(INDEX('[7]Tariff-D 2015'!$H$8:$FB$8,MATCH(C14,'[7]Tariff-D 2015'!$H$6:$FB$6,FALSE)))/1000 -> 26.09238926 | I14: =(INDEX('[7]Tariff-D 2015'!$H$10:$FB$10,MATCH(C14,'[7]Tariff-D 2015'!$H$6:$FB$6,FALSE)))/1000 -> 0.1480278042 | J14: 0.4829227748 | K14: =(INDEX('[7]Tariff-D Norm'!$H$10:$FB$10,MATCH(C14,'[7]Tariff-D Norm'!$H$6:$FB$6,FALSE)))/1000 -> 25.76785558 | L14: =(INDEX('[7]Tariff-D Norm'!$H$11:$FB$11,MATCH(C14,'[7]Tariff-D Norm'!$H$6:$FB$6,FALSE)))/1000 -> 0.1120423403 | M14: =L14*(1/(('[7]Tariff-D Norm'!$D$11+'[7]Tariff-V Norm'!$D$11)/'[7]Tariff-V&D Norm'!$D$11)) -> 0.1103662879 | N14: 0.6396596815 | P14: =(K14/$K$24)*(Vencorp_Summary_BO!$G$31) -> 10.51644217 | Q14: 0.04504296762 | S14: =IF(R14=0,Q14,(P14/365)/R14) -> 0.04504296762 | T14: 0.04943935705 | U14: 0.5827780142 | W14: =(P14/P$24)*W$24 -> 10.44670519 | X14: 0.04943935705 | Y14: =-(X14+Tariff_V_BO!X14)+INDEX(Annual_CTM_BO!$Z:$Z,MATCH(Tariff_D_BO!$C14,Annual_CTM_BO!$C:$C,FALSE)) -> 0.1314346642 | Z14: =IF((X14+Tariff_V_BO!X14)=0,0,X14/(X14+Tariff_V_BO!X14)*Y14) -> 0.010132116 | AA14: 0.06774360238 | AB14: 0.4224917054 | AD14: 10.46644167 | AE14: 0.0664654212 | AF14: =-(AE14+Tariff_V_BO!AE14)+INDEX(Annual_CTM_BO!$AG:$AG,MATCH(Tariff_D_BO!$C14,Annual_CTM_BO!$C:$C,FALSE)) -> -0.05676338595 | AG14: =IF((AE14+Tariff_V_BO!AE14)=0,0,AE14/(AE14+Tariff_V_BO!AE14)*AF14) -> -0.004297684074 | AH14: 0.07133521415 | AI14: 0.401977943 | AK14: 14.81771658 | AL14: 0.07133521415 | AM14: =-(AL14+Tariff_V_BO!AL14)+INDEX(Annual_CTM_BO!$AN:$AN,MATCH(Tariff_D_BO!$C14,Annual_CTM_BO!$C:$C,FALSE)) -> -0.07432845406 | AN14: =IF((AL14+Tariff_V_BO!AL14)=0,0,AL14/(AL14+Tariff_V_BO!AL14)*AM14) -> -0.005588986135 | AO14: 0.07612503342 | AP14: 0.5332869091 | AR14: 14.45791464 | AS14: 0.07392911899 | AT14: =-(AS14+Tariff_V_BO!AS14)+INDEX(Annual_CTM_BO!$AU:$AU,MATCH(Tariff_D_BO!$C14,Annual_CTM_BO!$C:$C,FALSE)) -> -0.155112734 | AU14: =IF((AS14+Tariff_V_BO!AS14)=0,0,AS14/(AS14+Tariff_V_BO!AS14)*AT14) -> -0.01113899228 | AV14: 0.07391757832 | AW14: 0.5358769313 | AY14: 12.9642471 | AZ14: 0.07260023534 | BA14: =-(AZ14+Tariff_V_BO!AZ14)+INDEX(Annual_CTM_BO!$BB:$BB,MATCH(Tariff_D_BO!$C14,Annual_CTM_BO!$C:$C,FALSE)) -> -0.07906847208 | BB14: =IF((AZ14+Tariff_V_BO!AZ14)=0,0,AZ14/(AZ14+Tariff_V_BO!AZ14)*BA14) -> -0.006020753515 | BC14: 0.07261476465 | BD14: 0.4891358581
C15: M049 | D15: =(INDEX('[7]CTM Details'!P$5:P$408,MATCH($C15,'[7]CTM Details'!$B$5:$B$408,FALSE),1)) -> Sydenham | E15: =(INDEX('[7]CTM Details'!D$5:D$408,MATCH($C15,'[7]CTM Details'!$B$5:$B$408,FALSE),1)) -> 30000045PC | F15: =(INDEX('[7]CTM Details'!U$5:U$408,MATCH($C15,'[7]CTM Details'!$B$5:$B$408,FALSE),1)) -> Metro North West | H15: =(INDEX('[7]Tariff-D 2015'!$H$8:$FB$8,MATCH(C15,'[7]Tariff-D 2015'!$H$6:$FB$6,FALSE)))/1000 -> 338.9134694 | I15: =(INDEX('[7]Tariff-D 2015'!$H$10:$FB$10,MATCH(C15,'[7]Tariff-D 2015'!$H$6:$FB$6,FALSE)))/1000 -> 1.952230829 | J15: 0.4756251359 | K15: =(INDEX('[7]Tariff-D Norm'!$H$10:$FB$10,MATCH(C15,'[7]Tariff-D Norm'!$H$6:$FB$6,FALSE)))/1000 -> 333.7536791 | L15: =(INDEX('[7]Tariff-D Norm'!$H$11:$FB$11,MATCH(C15,'[7]Tariff-D Norm'!$H$6:$FB$6,FALSE)))/1000 -> 1.43154043 | M15: =L15*(1/(('[7]Tariff-D Norm'!$D$11+'[7]Tariff-V Norm'!$D$11)/'[7]Tariff-V&D Norm'!$D$11)) -> 1.410125876 | N15: 0.6484482393 | P15: =(K15/$K$24)*(Vencorp_Summary_BO!$G$31) -> 136.2123928 | Q15: 0.5755041268 | S15: 0.5755041268 | T15: =(M15/M$24)*(T$24) -> 0.6316758311 | U15: 0.5907850504 | W15: =(P15/P$24)*W$24 -> 135.3091366 | X15: 0.6316758311 | Y15: =-(X15+Tariff_V_BO!X15)+INDEX(Annual_CTM_BO!$Z:$Z,MATCH(Tariff_D_BO!$C15,Annual_CTM_BO!$C:$C,FALSE)) -> -1.335099791 | Z15: =IF((X15+Tariff_V_BO!X15)=0,0,X15/(X15+Tariff_V_BO!X15)*Y15) -> -0.1029007569 | AA15: 0.6013134566 | AB15: 0.6165003614 | AD15: 135.5647699 | AE15: 0.5899679197 | AF15: =-(AE15+Tariff_V_BO!AE15)+INDEX(Annual_CTM_BO!$AG:$AG,MATCH(Tariff_D_BO!$C15,Annual_CTM_BO!$C:$C,FALSE)) -> -1.177050179 | AG15: =IF((AE15+Tariff_V_BO!AE15)=0,0,AE15/(AE15+Tariff_V_BO!AE15)*AF15) -> -0.08909957897 | AH15: 0.5747281789 | AI15: 0.6462365032 | AK15: 191.9239033 | AL15: 0.5747281789 | AM15: =-(AL15+Tariff_V_BO!AL15)+INDEX(Annual_CTM_BO!$AN:$AN,MATCH(Tariff_D_BO!$C15,Annual_CTM_BO!$C:$C,FALSE)) -> -1.205037733 | AN15: =IF((AL15+Tariff_V_BO!AL15)=0,0,AL15/(AL15+Tariff_V_BO!AL15)*AM15) -> -0.09059265979 | AO15: 0.5605619315 | AP15: 0.9380210886 | AR15: 187.2636312 | AS15: 0.5443918758 | AT15: =-(AS15+Tariff_V_BO!AS15)+INDEX(Annual_CTM_BO!$AU:$AU,MATCH(Tariff_D_BO!$C15,Annual_CTM_BO!$C:$C,FALSE)) -> -1.142434214 | AU15: =IF((AS15+Tariff_V_BO!AS15)=0,0,AS15/(AS15+Tariff_V_BO!AS15)*AT15) -> -0.0820245338 | AV15: 0.5443065018 | AW15: 0.9425774681 | AY15: 167.9171615 | AZ15: 0.5346059899 | BA15: =-(AZ15+Tariff_V_BO!AZ15)+INDEX(Annual_CTM_BO!$BB:$BB,MATCH(Tariff_D_BO!$C15,Annual_CTM_BO!$C:$C,FALSE)) -> -0.5823447759 | BB15: =IF((AZ15+Tariff_V_BO!AZ15)=0,0,AZ15/(AZ15+Tariff_V_BO!AZ15)*BA15) -> -0.04433453992 | BC15: 0.5347134729 | BD15: 0.8603617474
C16: M052 | D16: =(INDEX('[7]CTM Details'!P$5:P$408,MATCH($C16,'[7]CTM Details'!$B$5:$B$408,FALSE),1)) -> Bacchus Marsh | E16: =(INDEX('[7]CTM Details'!D$5:D$408,MATCH($C16,'[7]CTM Details'!$B$5:$B$408,FALSE),1)) -> 30000047PC | F16: =(INDEX('[7]CTM Details'!U$5:U$408,MATCH($C16,'[7]CTM Details'!$B$5:$B$408,FALSE),1)) -> Calder | H16: =(INDEX('[7]Tariff-D 2015'!$H$8:$FB$8,MATCH(C16,'[7]Tariff-D 2015'!$H$6:$FB$6,FALSE)))/1000 -> 160.4948539 | I16: =(INDEX('[7]Tariff-D 2015'!$H$10:$FB$10,MATCH(C16,'[7]Tariff-D 2015'!$H$6:$FB$6,FALSE)))/1000 -> 0.977623112 | J16: 0.4497765274 | K16: =(INDEX('[7]Tariff-D Norm'!$H$10:$FB$10,MATCH(C16,'[7]Tariff-D Norm'!$H$6:$FB$6,FALSE)))/1000 -> 157.1119302 | L16: =(INDEX('[7]Tariff-D Norm'!$H$11:$FB$11,MATCH(C16,'[7]Tariff-D Norm'!$H$6:$FB$6,FALSE)))/1000 -> 0.7217355349 | M16: =L16*(1/(('[7]Tariff-D Norm'!$D$11+'[7]Tariff-V Norm'!$D$11)/'[7]Tariff-V&D Norm'!$D$11)) -> 0.7109390221 | N16: 0.605457896 | P16: =(K16/$K$24)*(Vencorp_Summary_BO!$G$31) -> 64.12091698 | Q16: 0.2901502257 | S16: 0.2901502257 | T16: 0.3184701489 | U16: =IF(T16=0,0,(P16/365)/T16) -> 0.5516176187 | W16: 63.69571622 | X16: =(T16/$T$24)*$X$24 -> 0.3184701489 | Y16: =-(X16+Tariff_V_BO!X16)+INDEX(Annual_CTM_BO!$Z:$Z,MATCH(Tariff_D_BO!$C16,Annual_CTM_BO!$C:$C,FALSE)) -> -0.1090122714 | Z16: =IF((X16+Tariff_V_BO!X16)=0,0,X16/(X16+Tariff_V_BO!X16)*Y16) -> -0.009206381191 | AA16: 0.3516891666 | AB16: 0.49620184 | AD16: 63.81605361 | AE16: 0.3450535219 | AF16: =-(AE16+Tariff_V_BO!AE16)+INDEX(Annual_CTM_BO!$AG:$AG,MATCH(Tariff_D_BO!$C16,Annual_CTM_BO!$C:$C,FALSE)) -> -0.5145477079 | AG16: =IF((AE16+Tariff_V_BO!AE16)=0,0,AE16/(AE16+Tariff_V_BO!AE16)*AF16) -> -0.04268517315 | AH16: 0.3469566677 | AI16: 0.5039202855 | AK16: 90.34667421 | AL16: 0.3469566677 | AM16: =-(AL16+Tariff_V_BO!AL16)+INDEX(Annual_CTM_BO!$AN:$AN,MATCH(Tariff_D_BO!$C16,Annual_CTM_BO!$C:$C,FALSE)) -> -0.5549636029 | AN16: =IF((AL16+Tariff_V_BO!AL16)=0,0,AL16/(AL16+Tariff_V_BO!AL16)*AM16) -> -0.04572471221 | AO16: 0.3487849169 | AP16: 0.7096784374 | AR16: 88.1528876 | AS16: 0.3387238136 | AT16: =-(AS16+Tariff_V_BO!AS16)+INDEX(Annual_CTM_BO!$AU:$AU,MATCH(Tariff_D_BO!$C16,Annual_CTM_BO!$C:$C,FALSE)) -> -0.647081618 | AU16: =IF((AS16+Tariff_V_BO!AS16)=0,0,AS16/(AS16+Tariff_V_BO!AS16)*AT16) -> -0.05093520923 | AV16: 0.338789517 | AW16: 0.712875542 | AY16: 79.04568855 | AZ16: 0.332751684 | BA16: =-(AZ16+Tariff_V_BO!AZ16)+INDEX(Annual_CTM_BO!$BB:$BB,MATCH(Tariff_D_BO!$C16,Annual_CTM_BO!$C:$C,FALSE)) -> -0.3324061925 | BB16: =IF((AZ16+Tariff_V_BO!AZ16)=0,0,AZ16/(AZ16+Tariff_V_BO!AZ16)*BA16) -> -0.0277320714 | BC16: 0.3326689661 | BD16: 0.6509880763
C17: M053 | D17: =(INDEX('[7]CTM Details'!P$5:P$408,MATCH($C17,'[7]CTM Details'!$B$5:$B$408,FALSE),1)) -> Ballan | E17: =(INDEX('[7]CTM Details'!D$5:D$408,MATCH($C17,'[7]CTM Details'!$B$5:$B$408,FALSE),1)) -> 30000048PC | F17: =(INDEX('[7]CTM Details'!U$5:U$408,MATCH($C17,'[7]CTM Details'!$B$5:$B$408,FALSE),1)) -> Calder | H17: =(INDEX('[7]Tariff-D 2015'!$H$8:$FB$8,MATCH(C17,'[7]Tariff-D 2015'!$H$6:$FB$6,FALSE)))/1000 -> 24.93133562 | I17: =(INDEX('[7]Tariff-D 2015'!$H$10:$FB$10,MATCH(C17,'[7]Tariff-D 2015'!$H$6:$FB$6,FALSE)))/1000 -> 0.1374506649 | J17: 0.4969421513 | K17: =(INDEX('[7]Tariff-D Norm'!$H$10:$FB$10,MATCH(C17,'[7]Tariff-D Norm'!$H$6:$FB$6,FALSE)))/1000 -> 24.60478671 | L17: =(INDEX('[7]Tariff-D Norm'!$H$11:$FB$11,MATCH(C17,'[7]Tariff-D Norm'!$H$6:$FB$6,FALSE)))/1000 -> 0.1000326996 | M17: =L17*(1/(('[7]Tariff-D Norm'!$D$11+'[7]Tariff-V Norm'!$D$11)/'[7]Tariff-V&D Norm'!$D$11)) -> 0.09853630066 | N17: 0.6841171639 | P17: =(K17/$K$24)*(Vencorp_Summary_BO!$G$31) -> 10.04176757 | Q17: 0.04021488339 | S17: 0.04021488339 | T17: 0.04414003081 | U17: 0.6232821198 | W17: 9.975178266 | X17: 0.04414003081 | Y17: =-(X17+Tariff_V_BO!X17)+INDEX(Annual_CTM_BO!$Z:$Z,MATCH(Tariff_D_BO!$C17,Annual_CTM_BO!$C:$C,FALSE)) -> -0.07479289863 | Z17: =IF((X17+Tariff_V_BO!X17)=0,0,X17/(X17+Tariff_V_BO!X17)*Y17) -> -0.006285702177 | AA17: 0.04304725829 | AB17: 0.6348663448 | AD17: 9.994023913 | AE17: 0.04223504587 | AF17: =-(AE17+Tariff_V_BO!AE17)+INDEX(Annual_CTM_BO!$AG:$AG,MATCH(Tariff_D_BO!$C17,Annual_CTM_BO!$C:$C,FALSE)) -> -0.06421128819 | AG17: =IF((AE17+Tariff_V_BO!AE17)=0,0,AE17/(AE17+Tariff_V_BO!AE17)*AF17) -> -0.005300772886 | AH17: 0.04238073307 | AI17: 0.6460692264 | AK17: 14.14889783 | AL17: 0.04238073307 | AM17: =-(AL17+Tariff_V_BO!AL17)+INDEX(Annual_CTM_BO!$AN:$AN,MATCH(Tariff_D_BO!$C17,Annual_CTM_BO!$C:$C,FALSE)) -> -0.06901899907 | AN17: =IF((AL17+Tariff_V_BO!AL17)=0,0,AL17/(AL17+Tariff_V_BO!AL17)*AM17) -> -0.005658876912 | AO17: 0.04251882749 | AP17: 0.9116926766 | AR17: 13.80533607 | AS17: 0.04129232286 | AT17: =-(AS17+Tariff_V_BO!AS17)+INDEX(Annual_CTM_BO!$AU:$AU,MATCH(Tariff_D_BO!$C17,Annual_CTM_BO!$C:$C,FALSE)) -> -0.07928006868 | AU17: =IF((AS17+Tariff_V_BO!AS17)=0,0,AS17/(AS17+Tariff_V_BO!AS17)*AT17) -> -0.006209972351 | AV17: 0.04129952473 | AW17: 0.9158177675 | AY17: 12.37908734 | AZ17: 0.0405634936 | BA17: =-(AZ17+Tariff_V_BO!AZ17)+INDEX(Annual_CTM_BO!$BB:$BB,MATCH(Tariff_D_BO!$C17,Annual_CTM_BO!$C:$C,FALSE)) -> -0.04070867146 | BB17: =IF((AZ17+Tariff_V_BO!AZ17)=0,0,AZ17/(AZ17+Tariff_V_BO!AZ17)*BA17) -> -0.003379695997 | BC17: 0.04055442664 | BD17: 0.8362911425
C18: M054 | D18: =(INDEX('[7]CTM Details'!P$5:P$408,MATCH($C18,'[7]CTM Details'!$B$5:$B$408,FALSE),1)) -> Ballarat | E18: =(INDEX('[7]CTM Details'!D$5:D$408,MATCH($C18,'[7]CTM Details'!$B$5:$B$408,FALSE),1)) -> 30000049PC | F18: =(INDEX('[7]CTM Details'!U$5:U$408,MATCH($C18,'[7]CTM Details'!$B$5:$B$408,FALSE),1)) -> Calder | H18: =(INDEX('[7]Tariff-D 2015'!$H$8:$FB$8,MATCH(C18,'[7]Tariff-D 2015'!$H$6:$FB$6,FALSE)))/1000 -> 1766.399673 | I18: =(INDEX('[7]Tariff-D 2015'!$H$10:$FB$10,MATCH(C18,'[7]Tariff-D 2015'!$H$6:$FB$6,FALSE)))/1000 -> 7.290526799 | J18: 0.6637999273 | K18: =(INDEX('[7]Tariff-D Norm'!$H$10:$FB$10,MATCH(C18,'[7]Tariff-D Norm'!$H$6:$FB$6,FALSE)))/1000 -> 1754.260613 | L18: =(INDEX('[7]Tariff-D Norm'!$H$11:$FB$11,MATCH(C18,'[7]Tariff-D Norm'!$H$6:$FB$6,FALSE)))/1000 -> 5.864532887 | M18: =L18*(1/(('[7]Tariff-D Norm'!$D$11+'[7]Tariff-V Norm'!$D$11)/'[7]Tariff-V&D Norm'!$D$11)) -> 5.776804763 | N18: 0.831981287 | P18: =(K18/$K$24)*(Vencorp_Summary_BO!$G$31) -> 715.9532633 | Q18: 2.357644121 | S18: 2.357644121 | T18: 2.587760435 | U18: 0.7579974419 | W18: =(P18/P$24)*W$24 -> 711.2056101 | X18: 2.587760435 | Y18: =-(X18+Tariff_V_BO!X18)+INDEX(Annual_CTM_BO!$Z:$Z,MATCH(Tariff_D_BO!$C18,Annual_CTM_BO!$C:$C,FALSE)) -> -6.265111424 | Z18: =IF((X18+Tariff_V_BO!X18)=0,0,X18/(X18+Tariff_V_BO!X18)*Y18) -> -0.5246872431 | AA18: 2.346089543 | AB18: 0.8305345918 | AD18: 712.5492582 | AE18: 2.301823702 | AF18: =-(AE18+Tariff_V_BO!AE18)+INDEX(Annual_CTM_BO!$AG:$AG,MATCH(Tariff_D_BO!$C18,Annual_CTM_BO!$C:$C,FALSE)) -> -3.786230797 | AG18: =IF((AE18+Tariff_V_BO!AE18)=0,0,AE18/(AE18+Tariff_V_BO!AE18)*AF18) -> -0.3114660383 | AH18: 2.283862929 | AI18: 0.8547753561 | AK18: 1008.781522 | AL18: 2.283862929 | AM18: =-(AL18+Tariff_V_BO!AL18)+INDEX(Annual_CTM_BO!$AN:$AN,MATCH(Tariff_D_BO!$C18,Annual_CTM_BO!$C:$C,FALSE)) -> -4.000971215 | AN18: =IF((AL18+Tariff_V_BO!AL18)=0,0,AL18/(AL18+Tariff_V_BO!AL18)*AM18) -> -0.3268901893 | AO18: 2.265903607 | AP18: 1.219727522 | AR18: 984.2864156 | AS18: 2.200541003 | AT18: =-(AS18+Tariff_V_BO!AS18)+INDEX(Annual_CTM_BO!$AU:$AU,MATCH(Tariff_D_BO!$C18,Annual_CTM_BO!$C:$C,FALSE)) -> -4.240232446 | AU18: =IF((AS18+Tariff_V_BO!AS18)=0,0,AS18/(AS18+Tariff_V_BO!AS18)*AT18) -> -0.3309665569 | AV18: 2.200894038 | AW18: 1.22526349 | AY18: 882.5983989 | AZ18: 2.161670184 | BA18: =-(AZ18+Tariff_V_BO!AZ18)+INDEX(Annual_CTM_BO!$BB:$BB,MATCH(Tariff_D_BO!$C18,Annual_CTM_BO!$C:$C,FALSE)) -> -2.17660093 | BB18: =IF((AZ18+Tariff_V_BO!AZ18)=0,0,AZ18/(AZ18+Tariff_V_BO!AZ18)*BA18) -> -0.1800719625 | BC18: 2.161225719 | BD18: 1.118845562
C19: M086 | D19: =(INDEX('[7]CTM Details'!P$5:P$408,MATCH($C19,'[7]CTM Details'!$B$5:$B$408,FALSE),1)) -> Wallace | E19: =(INDEX('[7]CTM Details'!D$5:D$408,MATCH($C19,'[7]CTM Details'!$B$5:$B$408,FALSE),1)) -> 30000080PC | F19: =(INDEX('[7]CTM Details'!U$5:U$408,MATCH($C19,'[7]CTM Details'!$B$5:$B$408,FALSE),1)) -> Calder | H19: =(INDEX('[7]Tariff-D 2015'!$H$8:$FB$8,MATCH(C19,'[7]Tariff-D 2015'!$H$6:$FB$6,FALSE)))/1000 -> 1.909405951 | I19: =(INDEX('[7]Tariff-D 2015'!$H$10:$FB$10,MATCH(C19,'[7]Tariff-D 2015'!$H$6:$FB$6,FALSE)))/1000 -> 0.01010162678 | J19: 0.5178620526 | K19: =(INDEX('[7]Tariff-D Norm'!$H$10:$FB$10,MATCH(C19,'[7]Tariff-D Norm'!$H$6:$FB$6,FALSE)))/1000 -> 1.886713445 | L19: =(INDEX('[7]Tariff-D Norm'!$H$11:$FB$11,MATCH(C19,'[7]Tariff-D Norm'!$H$6:$FB$6,FALSE)))/1000 -> 0.007249744598 | M19: =L19*(1/(('[7]Tariff-D Norm'!$D$11+'[7]Tariff-V Norm'!$D$11)/'[7]Tariff-V&D Norm'!$D$11)) -> 0.007141294956 | N19: 0.7238292163 | P19: =(K19/$K$24)*(Vencorp_Summary_BO!$G$31) -> 0.7700102467 | Q19: 0.002914523297 | S19: 0.002914523297 | T19: 0.00319899344 | U19: 0.6594627823 | W19: 0.7649041291 | X19: 0.00319899344 | Y19: =-(X19+Tariff_V_BO!X19)+INDEX(Annual_CTM_BO!$Z:$Z,MATCH(Tariff_D_BO!$C19,Annual_CTM_BO!$C:$C,FALSE)) -> -0.00867350876 | Z19: =IF((X19+Tariff_V_BO!X19)=0,0,X19/(X19+Tariff_V_BO!X19)*Y19) -> -0.0007234355076 | AA19: 0.002815159734 | AB19: 0.744408115 | AD19: 0.7663492274 | AE19: 0.002762043513 | AF19: =-(AE19+Tariff_V_BO!AE19)+INDEX(Annual_CTM_BO!$AG:$AG,MATCH(Tariff_D_BO!$C19,Annual_CTM_BO!$C:$C,FALSE)) -> -0.004535819724 | AG19: =IF((AE19+Tariff_V_BO!AE19)=0,0,AE19/(AE19+Tariff_V_BO!AE19)*AF19) -> -0.000371612092 | AH19: 0.002742932993 | AI19: 0.7654532318 | AK19: 1.084948067 | AL19: 0.002742932993 | AM19: =-(AL19+Tariff_V_BO!AL19)+INDEX(Annual_CTM_BO!$AN:$AN,MATCH(Tariff_D_BO!$C19,Annual_CTM_BO!$C:$C,FALSE)) -> -0.004798995319 | AN19: =IF((AL19+Tariff_V_BO!AL19)=0,0,AL19/(AL19+Tariff_V_BO!AL19)*AM19) -> -0.0003904956002 | AO19: 0.002723796947 | AP19: 1.091292968 | AR19: 1.058603494 | AS19: 0.002645225882 | AT19: =-(AS19+Tariff_V_BO!AS19)+INDEX(Annual_CTM_BO!$AU:$AU,MATCH(Tariff_D_BO!$C19,Annual_CTM_BO!$C:$C,FALSE)) -> -0.005118471446 | AU19: =IF((AS19+Tariff_V_BO!AS19)=0,0,AS19/(AS19+Tariff_V_BO!AS19)*AT19) -> -0.0003978845444 | AV19: 0.002645607487 | AW19: 1.096263735 | AY19: 0.9492376748 | AZ19: 0.002598458046 | BA19: =-(AZ19+Tariff_V_BO!AZ19)+INDEX(Annual_CTM_BO!$BB:$BB,MATCH(Tariff_D_BO!$C19,Annual_CTM_BO!$C:$C,FALSE)) -> -0.002626483652 | BB19: =IF((AZ19+Tariff_V_BO!AZ19)=0,0,AZ19/(AZ19+Tariff_V_BO!AZ19)*BA19) -> -0.0002164080077 | BC19: 0.002597977608 | BD19: 1.001029091
C20: M121 | D20: =(INDEX('[7]CTM Details'!P$5:P$408,MATCH($C20,'[7]CTM Details'!$B$5:$B$408,FALSE),1)) -> Rockbank | E20: =(INDEX('[7]CTM Details'!D$5:D$408,MATCH($C20,'[7]CTM Details'!$B$5:$B$408,FALSE),1)) -> 30000117PC | F20: =(INDEX('[7]CTM Details'!U$5:U$408,MATCH($C20,'[7]CTM Details'!$B$5:$B$408,FALSE),1)) -> Metro North West | H20: =(INDEX('[7]Tariff-D 2015'!$H$8:$FB$8,MATCH(C20,'[7]Tariff-D 2015'!$H$6:$FB$6,FALSE)))/1000 -> 161.2865604 | I20: =(INDEX('[7]Tariff-D 2015'!$H$10:$FB$10,MATCH(C20,'[7]Tariff-D 2015'!$H$6:$FB$6,FALSE)))/1000 -> 0.5063161721 | J20: 0.8727372574 | K20: =(INDEX('[7]Tariff-D Norm'!$H$10:$FB$10,MATCH(C20,'[7]Tariff-D Norm'!$H$6:$FB$6,FALSE)))/1000 -> 160.5060683 | L20: =(INDEX('[7]Tariff-D Norm'!$H$11:$FB$11,MATCH(C20,'[7]Tariff-D Norm'!$H$6:$FB$6,FALSE)))/1000 -> 0.4772962447 | M20: =L20*(1/(('[7]Tariff-D Norm'!$D$11+'[7]Tariff-V Norm'!$D$11)/'[7]Tariff-V&D Norm'!$D$11)) -> 0.4701563232 | N20: 0.9353115786 | P20: =(K20/$K$24)*(Vencorp_Summary_BO!$G$31) -> 65.50614116 | Q20: 0.1918813837 | S20: 0.1918813837 | T20: 0.2106098408 | U20: 0.8521390986 | W20: 65.07175465 | X20: 0.2106098408 | Y20: =-(X20+Tariff_V_BO!X20)+INDEX(Annual_CTM_BO!$Z:$Z,MATCH(Tariff_D_BO!$C20,Annual_CTM_BO!$C:$C,FALSE)) -> 0.4746545247 | Z20: =IF((X20+Tariff_V_BO!X20)=0,0,X20/(X20+Tariff_V_BO!X20)*Y20) -> 0.03609044474 | AA20: 0.2805431055 | AB20: 0.6354773166 | AD20: 65.19469173 | AE20: 0.2752498394 | AF20: =-(AE20+Tariff_V_BO!AE20)+INDEX(Annual_CTM_BO!$AG:$AG,MATCH(Tariff_D_BO!$C20,Annual_CTM_BO!$C:$C,FALSE)) -> -0.3663090832 | AG20: =IF((AE20+Tariff_V_BO!AE20)=0,0,AE20/(AE20+Tariff_V_BO!AE20)*AF20) -> -0.02735453939 | AH20: 0.2844508282 | AI20: 0.6279313544 | AK20: 92.29846161 | AL20: 0.2844508282 | AM20: =-(AL20+Tariff_V_BO!AL20)+INDEX(Annual_CTM_BO!$AN:$AN,MATCH(Tariff_D_BO!$C20,Annual_CTM_BO!$C:$C,FALSE)) -> -0.4225186287 | AN20: =IF((AL20+Tariff_V_BO!AL20)=0,0,AL20/(AL20+Tariff_V_BO!AL20)*AM20) -> -0.03133545319 | AO20: 0.2930725756 | AP20: 0.8628323447 | AR20: 90.05728193 | AS20: 0.284618559 | AT20: =-(AS20+Tariff_V_BO!AS20)+INDEX(Annual_CTM_BO!$AU:$AU,MATCH(Tariff_D_BO!$C20,Annual_CTM_BO!$C:$C,FALSE)) -> -0.6056576579 | AU20: =IF((AS20+Tariff_V_BO!AS20)=0,0,AS20/(AS20+Tariff_V_BO!AS20)*AT20) -> -0.04289593218 | AV20: 0.2845598844 | AW20: 0.867066276 | AY20: 80.75333722 | AZ20: 0.2794885201 | BA20: =-(AZ20+Tariff_V_BO!AZ20)+INDEX(Annual_CTM_BO!$BB:$BB,MATCH(Tariff_D_BO!$C20,Annual_CTM_BO!$C:$C,FALSE)) -> -0.3083917101 | BB20: =IF((AZ20+Tariff_V_BO!AZ20)=0,0,AZ20/(AZ20+Tariff_V_BO!AZ20)*BA20) -> -0.02316159754 | BC20: 0.2795623914 | BD20: 0.7913869198
C21: M169 | D21: =(INDEX('[7]CTM Details'!P$5:P$408,MATCH($C21,'[7]CTM Details'!$B$5:$B$408,FALSE),1)) -> Mount Cottrell | E21: =(INDEX('[7]CTM Details'!D$5:D$408,MATCH($C21,'[7]CTM Details'!$B$5:$B$408,FALSE),1)) -> 30000208PC | F21: =(INDEX('[7]CTM Details'!U$5:U$408,MATCH($C21,'[7]CTM Details'!$B$5:$B$408,FALSE),1)) -> Metro North West | P21: =(K21/$K$24)*(Vencorp_Summary_BO!$G$31) -> 0 | Q21: =IF(N21=0,0,(P21/365)/N21) -> 0 | T21: 0 | U21: =IF(T21=0,0,(P21/365)/T21) -> 0 | W21: 0 | X21: 0 | Y21: =-(X21+Tariff_V_BO!X21)+INDEX(Annual_CTM_BO!$Z:$Z,MATCH(Tariff_D_BO!$C21,Annual_CTM_BO!$C:$C,FALSE)) -> 3.935769842 | Z21: =IF((X21+Tariff_V_BO!X21)=0,0,X21/(X21+Tariff_V_BO!X21)*Y21) -> 0 | AA21: 0 | AB21: =IF(AA21=0,0,(W21/365)/AA21) -> 0 | AD21: 0 | AE21: 0 | AF21: =-(AE21+Tariff_V_BO!AE21)+INDEX(Annual_CTM_BO!$AG:$AG,MATCH(Tariff_D_BO!$C21,Annual_CTM_BO!$C:$C,FALSE)) -> 4.262485343 | AG21: =IF((AE21+Tariff_V_BO!AE21)=0,0,AE21/(AE21+Tariff_V_BO!AE21)*AF21) -> 0 | AH21: 0 | AI21: =IF(AH21=0,0,(AD21/365)/AH21) -> 0 | AK21: 0 | AL21: 0 | AM21: =-(AL21+Tariff_V_BO!AL21)+INDEX(Annual_CTM_BO!$AN:$AN,MATCH(Tariff_D_BO!$C21,Annual_CTM_BO!$C:$C,FALSE)) -> 4.647041922 | AN21: =IF((AL21+Tariff_V_BO!AL21)=0,0,AL21/(AL21+Tariff_V_BO!AL21)*AM21) -> 0 | AO21: 0 | AP21: =IF(AO21=0,0,(AK21/365)/AO21) -> 0 | AR21: 0 | AS21: 0 | AT21: =-(AS21+Tariff_V_BO!AS21)+INDEX(Annual_CTM_BO!$AU:$AU,MATCH(Tariff_D_BO!$C21,Annual_CTM_BO!$C:$C,FALSE)) -> 4.647041922 | AU21: =IF((AS21+Tariff_V_BO!AS21)=0,0,AS21/(AS21+Tariff_V_BO!AS21)*AT21) -> 0 | AV21: 0 | AW21: =IF(AV21=0,0,(AR21/365)/AV21) -> 0 | AY21: 0 | AZ21: 0 | BA21: =-(AZ21+Tariff_V_BO!AZ21)+INDEX(Annual_CTM_BO!$BB:$BB,MATCH(Tariff_D_BO!$C21,Annual_CTM_BO!$C:$C,FALSE)) -> 4.647041922 | BB21: =IF((AZ21+Tariff_V_BO!AZ21)=0,0,AZ21/(AZ21+Tariff_V_BO!AZ21)*BA21) -> 0 | BC21: 0 | BD21: =IF(BC21=0,0,(AY21/365)/BC21) -> 0
C22: M154 | D22: =(INDEX('[7]CTM Details'!P$5:P$408,MATCH($C22,'[7]CTM Details'!$B$5:$B$408,FALSE),1)) -> Plumpton | E22: =(INDEX('[7]CTM Details'!D$5:D$408,MATCH($C22,'[7]CTM Details'!$B$5:$B$408,FALSE),1)) -> 30000192PC | F22: =(INDEX('[7]CTM Details'!U$5:U$408,MATCH($C22,'[7]CTM Details'!$B$5:$B$408,FALSE),1)) -> Metro North West | P22: =(K22/$K$24)*(Vencorp_Summary_BO!$G$31) -> 0 | Q22: 0 | T22: 0 | U22: 0 | W22: 0 | X22: 0 | Y22: =-(X22+Tariff_V_BO!X22)+INDEX(Annual_CTM_BO!$Z:$Z,MATCH(Tariff_D_BO!$C22,Annual_CTM_BO!$C:$C,FALSE)) -> 8.369580042 | Z22: =IF((X22+Tariff_V_BO!X22)=0,0,X22/(X22+Tariff_V_BO!X22)*Y22) -> 0 | AA22: 0 | AB22: 0 | AD22: 0 | AE22: 0 | AF22: =-(AE22+Tariff_V_BO!AE22)+INDEX(Annual_CTM_BO!$AG:$AG,MATCH(Tariff_D_BO!$C22,Annual_CTM_BO!$C:$C,FALSE)) -> 8.497979736 | AG22: =IF((AE22+Tariff_V_BO!AE22)=0,0,AE22/(AE22+Tariff_V_BO!AE22)*AF22) -> 0 | AH22: 0 | AI22: 0 | AK22: 0 | AL22: 0 | AM22: =-(AL22+Tariff_V_BO!AL22)+INDEX(Annual_CTM_BO!$AN:$AN,MATCH(Tariff_D_BO!$C22,Annual_CTM_BO!$C:$C,FALSE)) -> 8.682693299 | AN22: =IF((AL22+Tariff_V_BO!AL22)=0,0,AL22/(AL22+Tariff_V_BO!AL22)*AM22) -> 0 | AO22: 0 | AP22: 0 | AR22: 0 | AS22: 0 | AT22: =-(AS22+Tariff_V_BO!AS22)+INDEX(Annual_CTM_BO!$AU:$AU,MATCH(Tariff_D_BO!$C22,Annual_CTM_BO!$C:$C,FALSE)) -> 8.682693299 | AU22: =IF((AS22+Tariff_V_BO!AS22)=0,0,AS22/(AS22+Tariff_V_BO!AS22)*AT22) -> 0 | AV22: 0 | AW22: 0 | AY22: 0 | AZ22: 0 | BA22: =-(AZ22+Tariff_V_BO!AZ22)+INDEX(Annual_CTM_BO!$BB:$BB,MATCH(Tariff_D_BO!$C22,Annual_CTM_BO!$C:$C,FALSE)) -> 8.682693299 | BB22: =IF((AZ22+Tariff_V_BO!AZ22)=0,0,AZ22/(AZ22+Tariff_V_BO!AZ22)*BA22) -> 0 | BC22: 0 | BD22: 0
C24: Ballarat | H24: =SUM(H12:H22) -> 3338.596389 | I24: =SUM(I12:I22) -> 14.39643267 | J24: =IF(I24=0,0,(H24/365)/I24) -> 0.6353545793 | K24: =SUM(K12:K22) -> 3309.018155 | L24: =SUM(L12:L22) -> 12.0111676 | M24: =SUM(M12:M22) -> 11.83149137 | N24: =IF(M24=0,0,(K24/365)/M24) -> 0.7662434839 | P24: =SUM(P12:P22) -> 1350.48483 | Q24: =SUM(Q12:Q22) -> 4.828698079 | R24: =SUM(R12:R22) -> 0 | S24: =SUM(S12:S22) -> 4.828698079 | T24: =(INDEX(Volume_Assumptions_BA!I$141:I$146,MATCH($C24,Volume_Assumptions_BA!$D$141:$D$146,FALSE),1)) -> 5.3 | U24: =IF(T24=0,0,(P24/365)/T24) -> 0.6981053657 | W24: =Vencorp_Summary_BO!H31 -> 1341.52945 | X24: =(INDEX(Volume_Assumptions_BA!J$141:J$146,MATCH($C24,Volume_Assumptions_BA!$D$141:$D$146,FALSE),1)) -> 5.3 | Z24: =SUM(Z12:Z22) -> -0.6393561003 | AA24: =SUM(AA12:AA22) -> 5.3 | AB24: 0.6934760662 | AD24: =Vencorp_Summary_BO!I31 -> 1344.06394 | AE24: =(INDEX(Volume_Assumptions_BA!K$141:K$146,MATCH($C24,Volume_Assumptions_BA!$D$141:$D$146,FALSE),1)) -> 5.2 | AG24: =SUM(AG12:AG22) -> -0.6682657519 | AH24: =SUM(AH12:AH22) -> 5.2 | AI24: =IF(AH24=0,0,(AD24/365)/AH24) -> 0.7081474921 | AK24: =Vencorp_Summary_BO!J31 -> 1902.83949 | AL24: =(INDEX(Volume_Assumptions_BA!L$141:L$146,MATCH($C24,Volume_Assumptions_BA!$D$141:$D$146,FALSE),1)) -> 5.2 | AN24: =SUM(AN12:AN22) -> -0.7089624223 | AO24: =SUM(AO12:AO22) -> 5.2 | AP24: =IF(AO24=0,0,(AK24/365)/AO24) -> 1.002549784 | AR24: =Vencorp_Summary_BO!K31 -> 1856.63498 | AS24: =(INDEX(Volume_Assumptions_BA!M$141:M$146,MATCH($C24,Volume_Assumptions_BA!$D$141:$D$146,FALSE),1)) -> 5.05 | AU24: =SUM(AU12:AU22) -> -0.760220125 | AV24: =SUM(AV12:AV22) -> 5.05 | AW24: =IF(AV24=0,0,(AR24/365)/AV24) -> 1.007261619 | AY24: =Vencorp_Summary_BO!L31 -> 1664.823404 | AZ24: =(INDEX(Volume_Assumptions_BA!N$141:N$146,MATCH($C24,Volume_Assumptions_BA!$D$141:$D$146,FALSE),1)) -> 4.96 | BB24: =SUM(BB12:BB22) -> -0.412244024 | BC24: =SUM(BC12:BC22) -> 4.96 | BD24: =IF(BC24=0,0,(AY24/365)/BC24) -> 0.9195887117
C26: M028 | D26: =(INDEX('[7]CTM Details'!P$5:P$408,MATCH($C26,'[7]CTM Details'!$B$5:$B$408,FALSE),1)) -> Laverton North (Fitzgerald Rd) | E26: =(INDEX('[7]CTM Details'!D$5:D$408,MATCH($C26,'[7]CTM Details'!$B$5:$B$408,FALSE),1)) -> 30000028PC | F26: =(INDEX('[7]CTM Details'!U$5:U$408,MATCH($C26,'[7]CTM Details'!$B$5:$B$408,FALSE),1)) -> Metro North West | H26: =(INDEX('[7]Tariff-D 2015'!$H$8:$FB$8,MATCH(C26,'[7]Tariff-D 2015'!$H$6:$FB$6,FALSE)))/1000 -> 1233.259001 | I26: =(INDEX('[7]Tariff-D 2015'!$H$10:$FB$10,MATCH(C26,'[7]Tariff-D 2015'!$H$6:$FB$6,FALSE)))/1000 -> 2.192987122 | J26: =IF(I26=0,0,(H26/365)/I26) -> 1.540725775 | K26: =(INDEX('[7]Tariff-D Norm'!$H$10:$FB$10,MATCH(C26,'[7]Tariff-D Norm'!$H$6:$FB$6,FALSE)))/1000 -> 1233.259001 | L26: =(INDEX('[7]Tariff-D Norm'!$H$11:$FB$11,MATCH(C26,'[7]Tariff-D Norm'!$H$6:$FB$6,FALSE)))/1000 -> 3.104646386 | M26: =L26*(1/(('[7]Tariff-D Norm'!$D$11+'[7]Tariff-V Norm'!$D$11)/'[7]Tariff-V&D Norm'!$D$11)) -> 3.058203675 | N26: =IF(M26=0,0,(K26/365)/M26) -> 1.104828894 | P26: =(K26/$K$41)*(Vencorp_Summary_BO!$G$33) -> 1213.141564 | Q26: =IF(N26=0,0,(P26/365)/N26) -> 3.008316978 | S26: =IF(R26=0,Q26,(P26/365)/R26) -> 3.008316978 | T26: =(M26/M$41)*(T$41) -> 3.874149188 | U26: =IF(T26=0,0,(P26/365)/T26) -> 0.8579110812 | W26: =(P26/P$41)*W$41 -> 977.6571461 | X26: =(T26/$T$41)*$X$41 -> 3.771113305 | Y26: =-(X26+Tariff_V_BO!X26)+INDEX(Annual_CTM_BO!$Z:$Z,MATCH(Tariff_D_BO!$C26,Annual_CTM_BO!$C:$C,FALSE)) -> -3.962323374 | Z26: =IF((X26+Tariff_V_BO!X26)=0,0,X26/(X26+Tariff_V_BO!X26)*Y26) -> -1.013503827 | AA26: =(Z26+X26)/(X$41+Z$41)*X$41 -> 2.782766006 | AB26: =IF(AA26=0,0,(W26/365)/AA26) -> 0.9625360967 | AD26: =(W26/W$41)*AD$41 -> 979.2812004 | AE26: =(AA26/AA$41)*AE$41 -> 2.77516282 | AF26: =-(AE26+Tariff_V_BO!AE26)+INDEX(Annual_CTM_BO!$AG:$AG,MATCH(Tariff_D_BO!$C26,Annual_CTM_BO!$C:$C,FALSE)) -> -0.4637537371 | AG26: =IF((AE26+Tariff_V_BO!AE26)=0,0,AE26/(AE26+Tariff_V_BO!AE26)*AF26) -> -0.1160160989 | AH26: =(AG26+AE26)/(AE$41+AG$41)*AE$41 -> 2.698408371 | AI26: =IF(AH26=0,0,(AD26/365)/AH26) -> 0.9942758189 | AK26: =(AD26/AD$41)*AK$41 -> 1386.118996 | AL26: =(AH26/AH$41)*AL$41 -> 2.683622572 | AM26: =-(AL26+Tariff_V_BO!AL26)+INDEX(Annual_CTM_BO!$AN:$AN,MATCH(Tariff_D_BO!$C26,Annual_CTM_BO!$C:$C,FALSE)) -> -0.320300578 | AN26: =IF((AL26+Tariff_V_BO!AL26)=0,0,AL26/(AL26+Tariff_V_BO!AL26)*AM26) -> -0.07907573786 | AO26: =(AN26+AL26)/(AL$41+AN$41)*AL$41 -> 2.614566965 | AP26: 1.452472375 | AR26: =(AK26/AK$41)*AR$41 -> 1352.01734 | AS26: =(AO26/AO$41)*AS$41 -> 2.582154978 | AT26: =-(AS26+Tariff_V_BO!AS26)+INDEX(Annual_CTM_BO!$AU:$AU,MATCH(Tariff_D_BO!$C26,Annual_CTM_BO!$C:$C,FALSE)) -> -0.2040641443 | AU26: =IF((AS26+Tariff_V_BO!AS26)=0,0,AS26/(AS26+Tariff_V_BO!AS26)*AT26) -> -0.04899842194 | AV26: =(AU26+AS26)/(AS$41+AU$41)*AS$41 -> 2.573849833 | AW26: =IF(AV26=0,0,(AR26/365)/AV26) -> 1.439150431 | AY26: =(AR26/AR$41)*AY$41 -> 1143.298983 | AZ26: =(AV26/AV$41)*AZ$41 -> 2.548721592 | BA26: =-(AZ26+Tariff_V_BO!AZ26)+INDEX(Annual_CTM_BO!$BB:$BB,MATCH(Tariff_D_BO!$C26,Annual_CTM_BO!$C:$C,FALSE)) -> 0.4629168115 | BB26: =IF((AZ26+Tariff_V_BO!AZ26)=0,0,AZ26/(AZ26+Tariff_V_BO!AZ26)*BA26) -> 0.116967669 | BC26: =(BB26+AZ26)/(AZ$41+BB$41)*AZ$41 -> 2.542598199 | BD26: =IF(BC26=0,0,(AY26/365)/BC26) -> 1.231939038
C27: M029 | D27: =(INDEX('[7]CTM Details'!P$5:P$408,MATCH($C27,'[7]CTM Details'!$B$5:$B$408,FALSE),1)) -> Hoppers Crossing (Forsyth Rd) | E27: =(INDEX('[7]CTM Details'!D$5:D$408,MATCH($C27,'[7]CTM Details'!$B$5:$B$408,FALSE),1)) -> 30000029PC | F27: =(INDEX('[7]CTM Details'!U$5:U$408,MATCH($C27,'[7]CTM Details'!$B$5:$B$408,FALSE),1)) -> Metro North West | H27: =(INDEX('[7]Tariff-D 2015'!$H$8:$FB$8,MATCH(C27,'[7]Tariff-D 2015'!$H$6:$FB$6,FALSE)))/1000 -> 473.7383291 | I27: =(INDEX('[7]Tariff-D 2015'!$H$10:$FB$10,MATCH(C27,'[7]Tariff-D 2015'!$H$6:$FB$6,FALSE)))/1000 -> 2.171701894 | J27: 0.5976479711 | K27: =(INDEX('[7]Tariff-D Norm'!$H$10:$FB$10,MATCH(C27,'[7]Tariff-D Norm'!$H$6:$FB$6,FALSE)))/1000 -> 470.6733807 | L27: =(INDEX('[7]Tariff-D Norm'!$H$11:$FB$11,MATCH(C27,'[7]Tariff-D Norm'!$H$6:$FB$6,FALSE)))/1000 -> 1.658731629 | M27: =L27*(1/(('[7]Tariff-D Norm'!$D$11+'[7]Tariff-V Norm'!$D$11)/'[7]Tariff-V&D Norm'!$D$11)) -> 1.633918499 | N27: 0.7892169115 | P27: =(K27/$K$41)*(Vencorp_Summary_BO!$G$33) -> 462.9955597 | Q27: 1.607265337 | S27: 1.607265337 | T27: 2.069856916 | U27: 0.6128351075 | W27: =(P27/P$41)*W$41 -> 373.1229156 | X27: 2.01480753 | Y27: =-(X27+Tariff_V_BO!X27)+INDEX(Annual_CTM_BO!$Z:$Z,MATCH(Tariff_D_BO!$C27,Annual_CTM_BO!$C:$C,FALSE)) -> 0.3257408839 | Z27: =IF((X27+Tariff_V_BO!X27)=0,0,X27/(X27+Tariff_V_BO!X27)*Y27) -> 0.06747031747 | AA27: =(Z27+X27)/(X$41+Z$41)*X$41 -> 2.101273604 | AB27: =IF(AA27=0,0,(W27/365)/AA27) -> 0.4864928401 | AD27: 373.742736 | AE27: 2.095532419 | AF27: =-(AE27+Tariff_V_BO!AE27)+INDEX(Annual_CTM_BO!$AG:$AG,MATCH(Tariff_D_BO!$C27,Annual_CTM_BO!$C:$C,FALSE)) -> -0.1334877695 | AG27: =IF((AE27+Tariff_V_BO!AE27)=0,0,AE27/(AE27+Tariff_V_BO!AE27)*AF27) -> -0.02700313287 | AH27: =(AG27+AE27)/(AE$41+AG$41)*AE$41 -> 2.099070615 | AI27: =IF(AH27=0,0,(AD27/365)/AH27) -> 0.4878124129 | AK27: 529.0124081 | AL27: 2.087568858 | AM27: =-(AL27+Tariff_V_BO!AL27)+INDEX(Annual_CTM_BO!$AN:$AN,MATCH(Tariff_D_BO!$C27,Annual_CTM_BO!$C:$C,FALSE)) -> -0.005637314184 | AN27: =IF((AL27+Tariff_V_BO!AL27)=0,0,AL27/(AL27+Tariff_V_BO!AL27)*AM27) -> -0.001124437529 | AO27: 2.094471324 | AP27: 0.6919880194 | AR27: 515.9975088 | AS27: 2.068506804 | AT27: =-(AS27+Tariff_V_BO!AS27)+INDEX(Annual_CTM_BO!$AU:$AU,MATCH(Tariff_D_BO!$C27,Annual_CTM_BO!$C:$C,FALSE)) -> -0.2207323867 | AU27: =IF((AS27+Tariff_V_BO!AS27)=0,0,AS27/(AS27+Tariff_V_BO!AS27)*AT27) -> -0.04274744716 | AV27: 2.058301674 | AW27: 0.6868243963 | AY27: 436.3401336 | AZ27: 2.038206679 | BA27: =-(AZ27+Tariff_V_BO!AZ27)+INDEX(Annual_CTM_BO!$BB:$BB,MATCH(Tariff_D_BO!$C27,Annual_CTM_BO!$C:$C,FALSE)) -> 0.4909728869 | BB27: =IF((AZ27+Tariff_V_BO!AZ27)=0,0,AZ27/(AZ27+Tariff_V_BO!AZ27)*BA27) -> 0.1003784109 | BC27: 2.039833629 | BD27: =IF(BC27=0,0,(AY27/365)/BC27) -> 0.5860538841
C28: M030 | D28: =(INDEX('[7]CTM Details'!P$5:P$408,MATCH($C28,'[7]CTM Details'!$B$5:$B$408,FALSE),1)) -> Hoppers Crossing (Heaths Rd) | E28: =(INDEX('[7]CTM Details'!D$5:D$408,MATCH($C28,'[7]CTM Details'!$B$5:$B$408,FALSE),1)) -> 30000030PC | F28: =(INDEX('[7]CTM Details'!U$5:U$408,MATCH($C28,'[7]CTM Details'!$B$5:$B$408,FALSE),1)) -> Metro North West | H28: =(INDEX('[7]Tariff-D 2015'!$H$8:$FB$8,MATCH(C28,'[7]Tariff-D 2015'!$H$6:$FB$6,FALSE)))/1000 -> 400.7812264 | I28: =(INDEX('[7]Tariff-D 2015'!$H$10:$FB$10,MATCH(C28,'[7]Tariff-D 2015'!$H$6:$FB$6,FALSE)))/1000 -> 2.687559824 | J28: 0.4085604895 | K28: =(INDEX('[7]Tariff-D Norm'!$H$10:$FB$10,MATCH(C28,'[7]Tariff-D Norm'!$H$6:$FB$6,FALSE)))/1000 -> 392.9249363 | L28: =(INDEX('[7]Tariff-D Norm'!$H$11:$FB$11,MATCH(C28,'[7]Tariff-D Norm'!$H$6:$FB$6,FALSE)))/1000 -> 1.887602796 | M28: =L28*(1/(('[7]Tariff-D Norm'!$D$11+'[7]Tariff-V Norm'!$D$11)/'[7]Tariff-V&D Norm'!$D$11)) -> 1.85936596 | N28: 0.5789643879 | P28: =(K28/$K$41)*(Vencorp_Summary_BO!$G$33) -> 386.5153805 | Q28: 1.829035205 | S28: 1.829035205 | T28: 2.355454996 | U28: 0.4495718448 | W28: 311.4883991 | X28: 2.292809916 | Y28: =-(X28+Tariff_V_BO!X28)+INDEX(Annual_CTM_BO!$Z:$Z,MATCH(Tariff_D_BO!$C28,Annual_CTM_BO!$C:$C,FALSE)) -> -2.709532231 | Z28: =IF((X28+Tariff_V_BO!X28)=0,0,X28/(X28+Tariff_V_BO!X28)*Y28) -> -0.5653410626 | AA28: 1.743227835 | AB28: 0.4895475263 | AD28: 312.0058342 | AE28: 1.738464917 | AF28: =-(AE28+Tariff_V_BO!AE28)+INDEX(Annual_CTM_BO!$AG:$AG,MATCH(Tariff_D_BO!$C28,Annual_CTM_BO!$C:$C,FALSE)) -> -0.6980470248 | AG28: =IF((AE28+Tariff_V_BO!AE28)=0,0,AE28/(AE28+Tariff_V_BO!AE28)*AF28) -> -0.1422500866 | AH28: 1.619782552 | AI28: 0.5277316413 | AK28: 441.627199 | AL28: 1.610907031 | AM28: =-(AL28+Tariff_V_BO!AL28)+INDEX(Annual_CTM_BO!$AN:$AN,MATCH(Tariff_D_BO!$C28,Annual_CTM_BO!$C:$C,FALSE)) -> -0.5347414061 | AN28: =IF((AL28+Tariff_V_BO!AL28)=0,0,AL28/(AL28+Tariff_V_BO!AL28)*AM28) -> -0.1074517389 | AO28: 1.509239338 | AP28: 0.8016869829 | AR28: 430.7621731 | AS28: 1.49052976 | AT28: =-(AS28+Tariff_V_BO!AS28)+INDEX(Annual_CTM_BO!$AU:$AU,MATCH(Tariff_D_BO!$C28,Annual_CTM_BO!$C:$C,FALSE)) -> -0.1574755495 | AU28: =IF((AS28+Tariff_V_BO!AS28)=0,0,AS28/(AS28+Tariff_V_BO!AS28)*AT28) -> -0.03072466276 | AV28: 1.483255781 | AW28: 0.7956620516 | AY28: 364.2630458 | AZ28: 1.468774901 | BA28: =-(AZ28+Tariff_V_BO!AZ28)+INDEX(Annual_CTM_BO!$BB:$BB,MATCH(Tariff_D_BO!$C28,Annual_CTM_BO!$C:$C,FALSE)) -> 0.3504719116 | BB28: =IF((AZ28+Tariff_V_BO!AZ28)=0,0,AZ28/(AZ28+Tariff_V_BO!AZ28)*BA28) -> 0.07218093892 | BC28: 1.469800551 | BD28: 0.678990729
C29: M031 | D29: =(INDEX('[7]CTM Details'!P$5:P$408,MATCH($C29,'[7]CTM Details'!$B$5:$B$408,FALSE),1)) -> Werribee (Old Sneydes Rd) | E29: =(INDEX('[7]CTM Details'!D$5:D$408,MATCH($C29,'[7]CTM Details'!$B$5:$B$408,FALSE),1)) -> 30000031PC | F29: =(INDEX('[7]CTM Details'!U$5:U$408,MATCH($C29,'[7]CTM Details'!$B$5:$B$408,FALSE),1)) -> Metro North West | H29: =(INDEX('[7]Tariff-D 2015'!$H$8:$FB$8,MATCH(C29,'[7]Tariff-D 2015'!$H$6:$FB$6,FALSE)))/1000 -> 266.9728586 | I29: =(INDEX('[7]Tariff-D 2015'!$H$10:$FB$10,MATCH(C29,'[7]Tariff-D 2015'!$H$6:$FB$6,FALSE)))/1000 -> 1.489109465 | J29: 0.4911878587 | K29: =(INDEX('[7]Tariff-D Norm'!$H$10:$FB$10,MATCH(C29,'[7]Tariff-D Norm'!$H$6:$FB$6,FALSE)))/1000 -> 263.9954051 | L29: =(INDEX('[7]Tariff-D Norm'!$H$11:$FB$11,MATCH(C29,'[7]Tariff-D Norm'!$H$6:$FB$6,FALSE)))/1000 -> 1.058816756 | M29: =L29*(1/(('[7]Tariff-D Norm'!$D$11+'[7]Tariff-V Norm'!$D$11)/'[7]Tariff-V&D Norm'!$D$11)) -> 1.042977812 | N29: 0.6934712071 | P29: =(K29/$K$41)*(Vencorp_Summary_BO!$G$33) -> 259.6890016 | Q29: 1.025964322 | S29: 1.025964322 | T29: 1.321250013 | U29: 0.5384875762 | W29: 209.2804465 | X29: 1.286110385 | Y29: =-(X29+Tariff_V_BO!X29)+INDEX(Annual_CTM_BO!$Z:$Z,MATCH(Tariff_D_BO!$C29,Annual_CTM_BO!$C:$C,FALSE)) -> 0.2554890538 | Z29: =IF((X29+Tariff_V_BO!X29)=0,0,X29/(X29+Tariff_V_BO!X29)*Y29) -> 0.05316621735 | AA29: 1.351494267 | AB29: 0.4242497363 | AD29: 209.6280968 | AE29: 1.347801659 | AF29: =-(AE29+Tariff_V_BO!AE29)+INDEX(Annual_CTM_BO!$AG:$AG,MATCH(Tariff_D_BO!$C29,Annual_CTM_BO!$C:$C,FALSE)) -> -0.2335857223 | AG29: =IF((AE29+Tariff_V_BO!AE29)=0,0,AE29/(AE29+Tariff_V_BO!AE29)*AF29) -> -0.0474738364 | AH29: 1.319526845 | AI29: 0.4352496162 | AK29: 296.7171094 | AL29: 1.312296561 | AM29: =-(AL29+Tariff_V_BO!AL29)+INDEX(Annual_CTM_BO!$AN:$AN,MATCH(Tariff_D_BO!$C29,Annual_CTM_BO!$C:$C,FALSE)) -> -0.1460203412 | AN29: =IF((AL29+Tariff_V_BO!AL29)=0,0,AL29/(AL29+Tariff_V_BO!AL29)*AM29) -> -0.02926301273 | AO29: 1.287969595 | AP29: 0.6311667532 | AR29: 289.4171988 | AS29: 1.272003029 | AT29: =-(AS29+Tariff_V_BO!AS29)+INDEX(Annual_CTM_BO!$AU:$AU,MATCH(Tariff_D_BO!$C29,Annual_CTM_BO!$C:$C,FALSE)) -> -0.1348764426 | AU29: =IF((AS29+Tariff_V_BO!AS29)=0,0,AS29/(AS29+Tariff_V_BO!AS29)*AT29) -> -0.02624446058 | AV29: 1.265770754 | AW29: 0.6264355766 | AY29: 244.738273 | AZ29: 1.25341316 | BA29: =-(AZ29+Tariff_V_BO!AZ29)+INDEX(Annual_CTM_BO!$BB:$BB,MATCH(Tariff_D_BO!$C29,Annual_CTM_BO!$C:$C,FALSE)) -> 0.3001135472 | BB29: =IF((AZ29+Tariff_V_BO!AZ29)=0,0,AZ29/(AZ29+Tariff_V_BO!AZ29)*BA29) -> 0.06164505487 | BC29: 1.25433399 | BD29: 0.5345592335
C30: M032 | D30: =(INDEX('[7]CTM Details'!P$5:P$408,MATCH($C30,'[7]CTM Details'!$B$5:$B$408,FALSE),1)) -> Werribee (Lock Ave) | E30: =(INDEX('[7]CTM Details'!D$5:D$408,MATCH($C30,'[7]CTM Details'!$B$5:$B$408,FALSE),1)) -> 30000032PC | F30: =(INDEX('[7]CTM Details'!U$5:U$408,MATCH($C30,'[7]CTM Details'!$B$5:$B$408,FALSE),1)) -> Metro North West | H30: =(INDEX('[7]Tariff-D 2015'!$H$8:$FB$8,MATCH(C30,'[7]Tariff-D 2015'!$H$6:$FB$6,FALSE)))/1000 -> 295.2218726 | I30: =(INDEX('[7]Tariff-D 2015'!$H$10:$FB$10,MATCH(C30,'[7]Tariff-D 2015'!$H$6:$FB$6,FALSE)))/1000 -> 1.126546016 | J30: 0.7179707149 | K30: =(INDEX('[7]Tariff-D Norm'!$H$10:$FB$10,MATCH(C30,'[7]Tariff-D Norm'!$H$6:$FB$6,FALSE)))/1000 -> 294.5049105 | L30: =(INDEX('[7]Tariff-D Norm'!$H$11:$FB$11,MATCH(C30,'[7]Tariff-D Norm'!$H$6:$FB$6,FALSE)))/1000 -> 0.9838095795 | M30: =L30*(1/(('[7]Tariff-D Norm'!$D$11+'[7]Tariff-V Norm'!$D$11)/'[7]Tariff-V&D Norm'!$D$11)) -> 0.9690926752 | N30: 0.8325960862 | P30: =(K30/$K$41)*(Vencorp_Summary_BO!$G$33) -> 289.7008233 | Q30: 0.9532844303 | S30: 0.9532844303 | T30: 1.227651916 | U30: 0.6465194861 | W30: 233.4666361 | X30: 1.195001599 | Y30: =-(X30+Tariff_V_BO!X30)+INDEX(Annual_CTM_BO!$Z:$Z,MATCH(Tariff_D_BO!$C30,Annual_CTM_BO!$C:$C,FALSE)) -> 1.576200876 | Z30: =IF((X30+Tariff_V_BO!X30)=0,0,X30/(X30+Tariff_V_BO!X30)*Y30) -> 0.324060218 | AA30: 1.532919588 | AB30: 0.4172656052 | AD30: 233.8544638 | AE30: 1.528731283 | AF30: =-(AE30+Tariff_V_BO!AE30)+INDEX(Annual_CTM_BO!$AG:$AG,MATCH(Tariff_D_BO!$C30,Annual_CTM_BO!$C:$C,FALSE)) -> 0.1336699357 | AG30: =IF((AE30+Tariff_V_BO!AE30)=0,0,AE30/(AE30+Tariff_V_BO!AE30)*AF30) -> 0.02683863776 | AH30: 1.57853753 | AI30: 0.4058802208 | AK30: 331.0082072 | AL30: 1.569888009 | AM30: =-(AL30+Tariff_V_BO!AL30)+INDEX(Annual_CTM_BO!$AN:$AN,MATCH(Tariff_D_BO!$C30,Annual_CTM_BO!$C:$C,FALSE)) -> 0.2000399907 | AN30: =IF((AL30+Tariff_V_BO!AL30)=0,0,AL30/(AL30+Tariff_V_BO!AL30)*AM30) -> 0.03960249196 | AO30: 1.615682482 | AP30: 0.5612933299 | AR30: 322.8646582 | AS30: 1.595653361 | AT30: =-(AS30+Tariff_V_BO!AS30)+INDEX(Annual_CTM_BO!$AU:$AU,MATCH(Tariff_D_BO!$C30,Annual_CTM_BO!$C:$C,FALSE)) -> -0.1720052033 | AU30: =IF((AS30+Tariff_V_BO!AS30)=0,0,AS30/(AS30+Tariff_V_BO!AS30)*AT30) -> -0.0330601477 | AV30: 1.587695111 | AW30: 0.5571351207 | AY30: 273.0222641 | AZ30: 1.572194601 | BA30: =-(AZ30+Tariff_V_BO!AZ30)+INDEX(Annual_CTM_BO!$BB:$BB,MATCH(Tariff_D_BO!$C30,Annual_CTM_BO!$C:$C,FALSE)) -> 0.3823696349 | BB30: =IF((AZ30+Tariff_V_BO!AZ30)=0,0,AZ30/(AZ30+Tariff_V_BO!AZ30)*BA30) -> 0.07759415477 | BC30: 1.57360799 | BD30: 0.4753446905
C31: M051 | D31: =(INDEX('[7]CTM Details'!P$5:P$408,MATCH($C31,'[7]CTM Details'!$B$5:$B$408,FALSE),1)) -> Avalon | E31: =(INDEX('[7]CTM Details'!D$5:D$408,MATCH($C31,'[7]CTM Details'!$B$5:$B$408,FALSE),1)) -> 30000046PC | F31: =(INDEX('[7]CTM Details'!U$5:U$408,MATCH($C31,'[7]CTM Details'!$B$5:$B$408,FALSE),1)) -> Geelong | H31: =(INDEX('[7]Tariff-D 2015'!$H$8:$FB$8,MATCH(C31,'[7]Tariff-D 2015'!$H$6:$FB$6,FALSE)))/1000 -> 4.010572281 | I31: =(INDEX('[7]Tariff-D 2015'!$H$10:$FB$10,MATCH(C31,'[7]Tariff-D 2015'!$H$6:$FB$6,FALSE)))/1000 -> 0.008977390453 | J31: 1.223949133 | K31: =(INDEX('[7]Tariff-D Norm'!$H$10:$FB$10,MATCH(C31,'[7]Tariff-D Norm'!$H$6:$FB$6,FALSE)))/1000 -> 3.987474019 | L31: =(INDEX('[7]Tariff-D Norm'!$H$11:$FB$11,MATCH(C31,'[7]Tariff-D Norm'!$H$6:$FB$6,FALSE)))/1000 -> 0.01122330884 | M31: =L31*(1/(('[7]Tariff-D Norm'!$D$11+'[7]Tariff-V Norm'!$D$11)/'[7]Tariff-V&D Norm'!$D$11)) -> 0.01105541826 | N31: 0.9881658116 | P31: =(K31/$K$41)*(Vencorp_Summary_BO!$G$33) -> 3.922428675 | Q31: 0.01087507765 | S31: 0.01087507765 | T31: 0.01400506448 | U31: 0.7673209894 | W31: 3.161041166 | X31: 0.01363258936 | Y31: =-(X31+Tariff_V_BO!X31)+INDEX(Annual_CTM_BO!$Z:$Z,MATCH(Tariff_D_BO!$C31,Annual_CTM_BO!$C:$C,FALSE)) -> -0.002932210952 | Z31: =IF((X31+Tariff_V_BO!X31)=0,0,X31/(X31+Tariff_V_BO!X31)*Y31) -> -0.001177616846 | AA31: 0.01256859406 | AB31: 0.6890497628 | AD31: 3.166292191 | AE31: 0.01253425364 | AF31: =-(AE31+Tariff_V_BO!AE31)+INDEX(Annual_CTM_BO!$AG:$AG,MATCH(Tariff_D_BO!$C31,Annual_CTM_BO!$C:$C,FALSE)) -> -0.001314017272 | AG31: =IF((AE31+Tariff_V_BO!AE31)=0,0,AE31/(AE31+Tariff_V_BO!AE31)*AF31) -> -0.000518368138 | AH31: 0.01219329711 | AI31: 0.7114378539 | AK31: 4.481713476 | AL31: 0.01212648452 | AM31: =-(AL31+Tariff_V_BO!AL31)+INDEX(Annual_CTM_BO!$AN:$AN,MATCH(Tariff_D_BO!$C31,Annual_CTM_BO!$C:$C,FALSE)) -> -0.0009165160405 | AN31: =IF((AL31+Tariff_V_BO!AL31)=0,0,AL31/(AL31+Tariff_V_BO!AL31)*AM31) -> -0.0003577106949 | AO31: 0.01181405028 | AP31: 1.039327475 | AR31: 4.371453209 | AS31: 0.01166759512 | AT31: =-(AS31+Tariff_V_BO!AS31)+INDEX(Annual_CTM_BO!$AU:$AU,MATCH(Tariff_D_BO!$C31,Annual_CTM_BO!$C:$C,FALSE)) -> -0.0004228230318 | AU31: =IF((AS31+Tariff_V_BO!AS31)=0,0,AS31/(AS31+Tariff_V_BO!AS31)*AT31) -> -0.0001613441108 | AV31: 0.01169109037 | AW31: 1.024419772 | AY31: 3.696607919 | AZ31: 0.01157695142 | BA31: =-(AZ31+Tariff_V_BO!AZ31)+INDEX(Annual_CTM_BO!$BB:$BB,MATCH(Tariff_D_BO!$C31,Annual_CTM_BO!$C:$C,FALSE)) -> 0.001042279003 | BB31: =IF((AZ31+Tariff_V_BO!AZ31)=0,0,AZ31/(AZ31+Tariff_V_BO!AZ31)*BA31) -> 0.0004144919376 | BC31: 0.01143772559 | BD31: 0.8854638844
... 34 more rows

Sheet Exports_BO
B1: Withdrawal Volume - Exports
B2: =Model_Name -> VTS Tariff Model
B3: Go to Table of Contents
A4: é | B4: ç | C4: è | K4: Can include 2021 data if required
C6: 2019 Actuals | S6: 2022 Forecasts | AA6: 2023 Forecasts | AI6: 2024 Forecasts | AQ6: 2025 Forecasts | AY6: 2026 Forecasts | BG6: 2027 Forecasts
C8: Day | D8: Date | E8: Total | F8: NSW Exports | G8: VicHub Exports | H8: WUGS Exports | I8: SEAGas Exports | K8: Day | L8: Date | M8: Total | N8: NSW Exports | O8: VicHub Exports | P8: WUGS Exports | Q8: SEAGas Exports | S8: Day | T8: Date | U8: Total | V8: NSW Exports | W8: VicHub Exports | X8: WUGS Exports | Y8: SEAGas Exports | AA8: Day | AB8: Date | AC8: Total | AD8: NSW Exports | AE8: VicHub Exports | AF8: WUGS Exports | AG8: SEAGas Exports | AI8: Day | AJ8: Date | AK8: Total | AL8: NSW Exports | AM8: VicHub Exports | AN8: WUGS Exports | AO8: SEAGas Exports | AQ8: Day | AR8: Date | AS8: Total | AT8: NSW Exports | AU8: VicHub Exports | AV8: WUGS Exports | AW8: SEAGas Exports | AY8: Day | AZ8: Date | BA8: Total | BB8: NSW Exports | BC8: VicHub Exports | BD8: WUGS Exports | BE8: SEAGas Exports | BG8: Day | BH8: Date | BI8: Total | BJ8: NSW Exports | BK8: VicHub Exports | BL8: WUGS Exports | BM8: SEAGas Exports
F10: 20000002PC | G10: 30000166PC | H10: 30000156PC | I10: 30000169PC | N10: 20000002PC | O10: 30000166PC | P10: 30000156PC | Q10: 30000169PC | V10: 20000002PC | W10: 30000166PC | X10: 30000156PC | Y10: 30000169PC | AD10: 20000002PC | AE10: 30000166PC | AF10: 30000156PC | AG10: 30000169PC | AL10: 20000002PC | AM10: 30000166PC | AN10: 30000156PC | AO10: 30000169PC | AT10: 20000002PC | AU10: 30000166PC | AV10: 30000156PC | AW10: 30000169PC | BB10: 20000002PC | BC10: 30000166PC | BD10: 30000156PC | BE10: 30000169PC | BJ10: 20000002PC | BK10: 30000166PC | BL10: 30000156PC | BM10: 30000169PC
F11: M126 | G11: M137A | N11: M126 | O11: M137A | V11: M126 | W11: M137A | AD11: M126 | AE11: M137A | AL11: M126 | AM11: M137A | AT11: M126 | AU11: M137A | BB11: M126 | BC11: M137A | BJ11: M126 | BK11: M137A
C12: Total | E12: =SUM(E19:E383) -> 31129779.84 | F12: =SUM(F19:F383) -> 14181557.12 | G12: =SUM(G19:G383) -> 1911887.462 | H12: =SUM(H19:H383) -> 14311370.68 | I12: =SUM(I19:I383) -> 724964.5797 | K12: Total | M12: =SUM(M19:M383) -> 0 | N12: =SUM(N19:N383) -> 0 | O12: =SUM(O19:O383) -> 0 | P12: =SUM(P19:P383) -> 0 | Q12: =SUM(Q19:Q383) -> 0 | S12: Total | U12: =SUM(Withdrawal_Volumes_Forecasts_BO!I19:I20)*1000 -> 11358769.29 | V12: =Withdrawal_Volumes_Forecasts_BO!$I$20*1000 -> 11358769.29 | W12: =Withdrawal_Volumes_Forecasts_BO!I19*1000 -> 0 | X12: =IF($M$12=0,0,(H12/$M$12)*$U$12) -> 0 | Y12: =IF($M$12=0,0,(I12/$M$12)*$U$12) -> 0 | AA12: Total | AC12: =(Withdrawal_Volumes_Forecasts_BO!$J$19+Withdrawal_Volumes_Forecasts_BO!$J$20)*1000 -> 6293582.826 | AD12: =Withdrawal_Volumes_Forecasts_BO!$J$20*1000 -> 6293582.826 | AE12: =+AC12-AD12 -> 0 | AF12: =IF($M$12=0,0,(X12/$M$12)*$U$12) -> 0 | AG12: =IF($M$12=0,0,(Y12/$M$12)*$U$12) -> 0 | AI12: Total | AK12: =(Withdrawal_Volumes_Forecasts_BO!$K$19+Withdrawal_Volumes_Forecasts_BO!$K$20)*1000 -> 5778476.34 | AL12: =Withdrawal_Volumes_Forecasts_BO!$K$20*1000 -> 5778476.34 | AM12: =+AK12-AL12 -> 0 | AN12: =IF($M$12=0,0,(AF12/$M$12)*$U$12) -> 0 | AO12: =IF($M$12=0,0,(AG12/$M$12)*$U$12) -> 0 | AQ12: Total | AS12: =(Withdrawal_Volumes_Forecasts_BO!$L$19+Withdrawal_Volumes_Forecasts_BO!$L$20)*1000 -> 4050683.465 | AT12: =Withdrawal_Volumes_Forecasts_BO!$L$20*1000 -> 4050683.465 | AU12: =+AS12-AT12 -> 0 | AV12: =IF($M$12=0,0,(AN12/$M$12)*$U$12) -> 0 | AW12: =IF($M$12=0,0,(AO12/$M$12)*$U$12) -> 0 | AY12: Total | BA12: =(Withdrawal_Volumes_Forecasts_BO!$M$19+Withdrawal_Volumes_Forecasts_BO!$M$20)*1000 -> 1777848.998 | BB12: =Withdrawal_Volumes_Forecasts_BO!$M$20*1000 -> 1777848.998 | BC12: =+BA12-BB12 -> 0 | BD12: =IF($M$12=0,0,(AV12/$M$12)*$U$12) -> 0 | BE12: =IF($M$12=0,0,(AW12/$M$12)*$U$12) -> 0 | BG12: Total | BI12: =(Withdrawal_Volumes_Forecasts_BO!$N$19+Withdrawal_Volumes_Forecasts_BO!$N$20)*1000 -> 1072162.263 | BJ12: =Withdrawal_Volumes_Forecasts_BO!$N$20*1000 -> 1072162.263 | BK12: =+BI12-BJ12 -> 0 | BL12: =IF($M$12=0,0,(BD12/$M$12)*$U$12) -> 0 | BM12: =IF($M$12=0,0,(BE12/$M$12)*$U$12) -> 0
C15: Raw Data
A17: 1 | C17: Date
A18: =A17+1 -> 2
A19: =A18+1 -> 3 | C19: 2019-01-01 | E19: =SUM(F19:I19) -> 85613.30106 | F19: =(INDEX('[7]Adjusted Data 2019'!$D$14:$D$380,MATCH(C19,'[7]Adjusted Data 2019'!$B$14:$B$380,FALSE))) -> 42318.29502 | G19: =(INDEX('[7]Adjusted Data 2019'!$E$14:$E$380,MATCH(C19,'[7]Adjusted Data 2019'!$B$14:$B$380,FALSE))) -> 8000 | H19: =(INDEX('[7]Adjusted Data 2019'!$F$14:$F$380,MATCH(C19,'[7]Adjusted Data 2019'!$B$14:$B$380,FALSE))) -> 35295.00604 | I19: =(INDEX('[7]Adjusted Data 2019'!$G$14:$G$380,MATCH(C19,'[7]Adjusted Data 2019'!$B$14:$B$380,FALSE))) -> 0
A20: =A19+1 -> 4 | C20: 2019-01-02 | E20: =SUM(F20:I20) -> 126217.9808 | F20: =(INDEX('[7]Adjusted Data 2019'!$D$14:$D$380,MATCH(C20,'[7]Adjusted Data 2019'!$B$14:$B$380,FALSE))) -> 68243.463 | G20: =(INDEX('[7]Adjusted Data 2019'!$E$14:$E$380,MATCH(C20,'[7]Adjusted Data 2019'!$B$14:$B$380,FALSE))) -> 12443.97802 | H20: =(INDEX('[7]Adjusted Data 2019'!$F$14:$F$380,MATCH(C20,'[7]Adjusted Data 2019'!$B$14:$B$380,FALSE))) -> 45530.53979 | I20: =(INDEX('[7]Adjusted Data 2019'!$G$14:$G$380,MATCH(C20,'[7]Adjusted Data 2019'!$B$14:$B$380,FALSE))) -> 0
A21: 5 | C21: 2019-01-03 | E21: =SUM(F21:I21) -> 137785.1554 | F21: =(INDEX('[7]Adjusted Data 2019'!$D$14:$D$380,MATCH(C21,'[7]Adjusted Data 2019'!$B$14:$B$380,FALSE))) -> 85728.2505 | G21: =(INDEX('[7]Adjusted Data 2019'!$E$14:$E$380,MATCH(C21,'[7]Adjusted Data 2019'!$B$14:$B$380,FALSE))) -> 5750.445447 | H21: =(INDEX('[7]Adjusted Data 2019'!$F$14:$F$380,MATCH(C21,'[7]Adjusted Data 2019'!$B$14:$B$380,FALSE))) -> 46306.45948 | I21: =(INDEX('[7]Adjusted Data 2019'!$G$14:$G$380,MATCH(C21,'[7]Adjusted Data 2019'!$B$14:$B$380,FALSE))) -> 0
A22: 6 | C22: 2019-01-04 | E22: 100602.6103 | F22: =(INDEX('[7]Adjusted Data 2019'!$D$14:$D$380,MATCH(C22,'[7]Adjusted Data 2019'!$B$14:$B$380,FALSE))) -> 85716.0315 | G22: =(INDEX('[7]Adjusted Data 2019'!$E$14:$E$380,MATCH(C22,'[7]Adjusted Data 2019'!$B$14:$B$380,FALSE))) -> 7483.956522 | H22: =(INDEX('[7]Adjusted Data 2019'!$F$14:$F$380,MATCH(C22,'[7]Adjusted Data 2019'!$B$14:$B$380,FALSE))) -> 7402.622281 | I22: =(INDEX('[7]Adjusted Data 2019'!$G$14:$G$380,MATCH(C22,'[7]Adjusted Data 2019'!$B$14:$B$380,FALSE))) -> 0
A23: 7 | C23: 2019-01-05 | E23: 115928.4084 | F23: =(INDEX('[7]Adjusted Data 2019'!$D$14:$D$380,MATCH(C23,'[7]Adjusted Data 2019'!$B$14:$B$380,FALSE))) -> 85060.1159 | G23: =(INDEX('[7]Adjusted Data 2019'!$E$14:$E$380,MATCH(C23,'[7]Adjusted Data 2019'!$B$14:$B$380,FALSE))) -> 4934.448424 | H23: =(INDEX('[7]Adjusted Data 2019'!$F$14:$F$380,MATCH(C23,'[7]Adjusted Data 2019'!$B$14:$B$380,FALSE))) -> 25933.84406 | I23: =(INDEX('[7]Adjusted Data 2019'!$G$14:$G$380,MATCH(C23,'[7]Adjusted Data 2019'!$B$14:$B$380,FALSE))) -> 0
A24: 8 | C24: 2019-01-06 | E24: 185826.819 | F24: =(INDEX('[7]Adjusted Data 2019'!$D$14:$D$380,MATCH(C24,'[7]Adjusted Data 2019'!$B$14:$B$380,FALSE))) -> 74180.8229 | G24: =(INDEX('[7]Adjusted Data 2019'!$E$14:$E$380,MATCH(C24,'[7]Adjusted Data 2019'!$B$14:$B$380,FALSE))) -> 16802.95605 | H24: =(INDEX('[7]Adjusted Data 2019'!$F$14:$F$380,MATCH(C24,'[7]Adjusted Data 2019'!$B$14:$B$380,FALSE))) -> 94843.04004 | I24: =(INDEX('[7]Adjusted Data 2019'!$G$14:$G$380,MATCH(C24,'[7]Adjusted Data 2019'!$B$14:$B$380,FALSE))) -> 0
A25: 9 | C25: 2019-01-07 | E25: 170345.7819 | F25: =(INDEX('[7]Adjusted Data 2019'!$D$14:$D$380,MATCH(C25,'[7]Adjusted Data 2019'!$B$14:$B$380,FALSE))) -> 83298.5456 | G25: =(INDEX('[7]Adjusted Data 2019'!$E$14:$E$380,MATCH(C25,'[7]Adjusted Data 2019'!$B$14:$B$380,FALSE))) -> 14245.60566 | H25: =(INDEX('[7]Adjusted Data 2019'!$F$14:$F$380,MATCH(C25,'[7]Adjusted Data 2019'!$B$14:$B$380,FALSE))) -> 72801.63062 | I25: =(INDEX('[7]Adjusted Data 2019'!$G$14:$G$380,MATCH(C25,'[7]Adjusted Data 2019'!$B$14:$B$380,FALSE))) -> 0
A26: 10 | C26: 2019-01-08 | E26: 145101.5897 | F26: =(INDEX('[7]Adjusted Data 2019'!$D$14:$D$380,MATCH(C26,'[7]Adjusted Data 2019'!$B$14:$B$380,FALSE))) -> 85899.5709 | G26: =(INDEX('[7]Adjusted Data 2019'!$E$14:$E$380,MATCH(C26,'[7]Adjusted Data 2019'!$B$14:$B$380,FALSE))) -> 9806.818203 | H26: =(INDEX('[7]Adjusted Data 2019'!$F$14:$F$380,MATCH(C26,'[7]Adjusted Data 2019'!$B$14:$B$380,FALSE))) -> 49395.20056 | I26: =(INDEX('[7]Adjusted Data 2019'!$G$14:$G$380,MATCH(C26,'[7]Adjusted Data 2019'!$B$14:$B$380,FALSE))) -> 0
A27: 11 | C27: 2019-01-09 | E27: 138801.2473 | F27: =(INDEX('[7]Adjusted Data 2019'!$D$14:$D$380,MATCH(C27,'[7]Adjusted Data 2019'!$B$14:$B$380,FALSE))) -> 76919.9471 | G27: =(INDEX('[7]Adjusted Data 2019'!$E$14:$E$380,MATCH(C27,'[7]Adjusted Data 2019'!$B$14:$B$380,FALSE))) -> 6000 | H27: =(INDEX('[7]Adjusted Data 2019'!$F$14:$F$380,MATCH(C27,'[7]Adjusted Data 2019'!$B$14:$B$380,FALSE))) -> 55881.30017 | I27: =(INDEX('[7]Adjusted Data 2019'!$G$14:$G$380,MATCH(C27,'[7]Adjusted Data 2019'!$B$14:$B$380,FALSE))) -> 0
A28: 12 | C28: 2019-01-10 | E28: 119823.7082 | F28: =(INDEX('[7]Adjusted Data 2019'!$D$14:$D$380,MATCH(C28,'[7]Adjusted Data 2019'!$B$14:$B$380,FALSE))) -> 70973.8493 | G28: =(INDEX('[7]Adjusted Data 2019'!$E$14:$E$380,MATCH(C28,'[7]Adjusted Data 2019'!$B$14:$B$380,FALSE))) -> 15442.99022 | H28: =(INDEX('[7]Adjusted Data 2019'!$F$14:$F$380,MATCH(C28,'[7]Adjusted Data 2019'!$B$14:$B$380,FALSE))) -> 33406.86873 | I28: =(INDEX('[7]Adjusted Data 2019'!$G$14:$G$380,MATCH(C28,'[7]Adjusted Data 2019'!$B$14:$B$380,FALSE))) -> 0
A29: 13 | C29: 2019-01-11 | E29: 73181.37991 | F29: =(INDEX('[7]Adjusted Data 2019'!$D$14:$D$380,MATCH(C29,'[7]Adjusted Data 2019'!$B$14:$B$380,FALSE))) -> 49400.7411 | G29: =(INDEX('[7]Adjusted Data 2019'!$E$14:$E$380,MATCH(C29,'[7]Adjusted Data 2019'!$B$14:$B$380,FALSE))) -> 8615.620831 | H29: =(INDEX('[7]Adjusted Data 2019'!$F$14:$F$380,MATCH(C29,'[7]Adjusted Data 2019'!$B$14:$B$380,FALSE))) -> 15165.01797 | I29: =(INDEX('[7]Adjusted Data 2019'!$G$14:$G$380,MATCH(C29,'[7]Adjusted Data 2019'!$B$14:$B$380,FALSE))) -> 0
A30: 14 | C30: 2019-01-12 | E30: 130205.3007 | F30: =(INDEX('[7]Adjusted Data 2019'!$D$14:$D$380,MATCH(C30,'[7]Adjusted Data 2019'!$B$14:$B$380,FALSE))) -> 75069.6481 | G30: =(INDEX('[7]Adjusted Data 2019'!$E$14:$E$380,MATCH(C30,'[7]Adjusted Data 2019'!$B$14:$B$380,FALSE))) -> 11683.22268 | H30: =(INDEX('[7]Adjusted Data 2019'!$F$14:$F$380,MATCH(C30,'[7]Adjusted Data 2019'!$B$14:$B$380,FALSE))) -> 43452.42993 | I30: =(INDEX('[7]Adjusted Data 2019'!$G$14:$G$380,MATCH(C30,'[7]Adjusted Data 2019'!$B$14:$B$380,FALSE))) -> 0
A31: 15 | C31: 2019-01-13 | E31: 123485.3754 | F31: =(INDEX('[7]Adjusted Data 2019'!$D$14:$D$380,MATCH(C31,'[7]Adjusted Data 2019'!$B$14:$B$380,FALSE))) -> 85904.2146 | G31: =(INDEX('[7]Adjusted Data 2019'!$E$14:$E$380,MATCH(C31,'[7]Adjusted Data 2019'!$B$14:$B$380,FALSE))) -> 12000.00944 | H31: =(INDEX('[7]Adjusted Data 2019'!$F$14:$F$380,MATCH(C31,'[7]Adjusted Data 2019'!$B$14:$B$380,FALSE))) -> 25581.15137 | I31: =(INDEX('[7]Adjusted Data 2019'!$G$14:$G$380,MATCH(C31,'[7]Adjusted Data 2019'!$B$14:$B$380,FALSE))) -> 0
... 37 more rows

Sheet WithdrawalVol_Summary_BO
B1: Withdrawal Volume - Summary Output
B2: =Model_Name -> VTS Tariff Model
B3: Go to Table of Contents
A4: é | B4: ç | C4: è
H5: 2019 Actual | T5: 2019 Norm | AF5: 2022 Forecast | AR5: 2023 Forecast | BD5: 2024 Forecast | BP5: 2025 Forecast | CB5: 2026 Forecast | CN5: 2027 Forecast
C6: Meter | D6: Meter | E6: MIRN | F6: TUoS Zones | H6: Annual | I6: Peak-Day | J6: Load | L6: Tariff-V | N6: Load | P6: Tariff-D | R6: Load | T6: Annual | U6: Peak-Day | V6: Load | X6: Tariff-V | Z6: Load | AB6: Tariff-D | AD6: Load | AF6: Annual | AG6: Peak-Day | AH6: Load | AJ6: Tariff-V | AL6: Load | AN6: Tariff-D | AP6: Load | AR6: Annual | AS6: Peak-Day | AT6: Load | AV6: Tariff-V | AX6: Load | AZ6: Tariff-D | BB6: Load | BD6: Annual | BE6: Peak-Day | BF6: Load | BH6: Tariff-V | BJ6: Load | BL6: Tariff-D | BN6: Load | BP6: Annual | BQ6: Peak-Day | BR6: Load | BT6: Tariff-V | BV6: Load | BX6: Tariff-D | BZ6: Load | CB6: Annual | CC6: Peak-Day | CD6: Load | CF6: Tariff-V | CH6: Load | CJ6: Tariff-D | CL6: Load | CN6: Annual | CO6: Peak-Day | CP6: Load | CR6: Tariff-V | CT6: Load | CV6: Tariff-D | CX6: Load
D7: Name | H7: Total | I7: Total | J7: Factor | L7: Annual | M7: Peak-Day | N7: Factor | P7: Annual | Q7: Peak-Day | R7: Factor | T7: Total | U7: Total | V7: Factor | X7: Annual | Y7: Peak-Day | Z7: Factor | AB7: Annual | AC7: Peak-Day | AD7: Factor | AF7: Total | AG7: Total | AH7: Factor | AJ7: Annual | AK7: Peak-Day | AL7: Factor | AN7: Annual | AO7: Peak-Day | AP7: Factor | AR7: Total | AS7: Total | AT7: Factor | AV7: Annual | AW7: Peak-Day | AX7: Factor | AZ7: Annual | BA7: Peak-Day | BB7: Factor | BD7: Total | BE7: Total | BF7: Factor | BH7: Annual | BI7: Peak-Day | BJ7: Factor | BL7: Annual | BM7: Peak-Day | BN7: Factor | BP7: Total | BQ7: Total | BR7: Factor | BT7: Annual | BU7: Peak-Day | BV7: Factor | BX7: Annual | BY7: Peak-Day | BZ7: Factor | CB7: Total | CC7: Total | CD7: Factor | CF7: Annual | CG7: Peak-Day | CH7: Factor | CJ7: Annual | CK7: Peak-Day | CL7: Factor | CN7: Total | CO7: Total | CP7: Factor | CR7: Annual | CS7: Peak-Day | CT7: Factor | CV7: Annual | CW7: Peak-Day | CX7: Factor
C8: 1 | D8: =C8+1 -> 2 | E8: =D8+1 -> 3 | F8: 4 | G8: 5 | H8: 6 | I8: 7 | J8: 8 | K8: 9 | L8: 10 | M8: 11 | N8: 12 | O8: 13 | P8: 14 | Q8: 15 | R8: 16 | S8: 17 | T8: 18 | U8: 19 | V8: 20 | W8: 21 | X8: 22 | Y8: 23 | Z8: 24 | AA8: 25 | AB8: 26 | AC8: 27 | AD8: 28 | AE8: 29 | AF8: 30 | AG8: 31 | AH8: 32 | AI8: 33 | AJ8: 34 | AK8: 35 | AL8: 36 | AM8: 37 | AN8: 38 | AO8: 39 | AP8: 40 | AQ8: 41 | AR8: 42 | AS8: 43 | AT8: 44 | AU8: 45 | AV8: 46 | AW8: 47 | AX8: 48 | AY8: 49 | AZ8: 50 | BA8: 51 | BB8: 52 | BC8: 53 | BD8: 54 | BE8: 55 | BF8: 56 | BG8: 57 | BH8: 58 | BI8: 59 | BJ8: 60 | BK8: 61 | BL8: 62 | BM8: 63 | BN8: 64 | BO8: 65 | BP8: 66 | BQ8: =BP8+1 -> 67 | BR8: 68 | BS8: 69 | BT8: 70 | BU8: 71 | BV8: 72 | BW8: 73 | BX8: 74 | BY8: 75 | BZ8: 76 | CA8: 77 | CB8: 78 | CC8: 79 | CD8: 80 | CE8: 81 | CF8: 82 | CG8: 83 | CH8: 84 | CI8: 85 | CJ8: 86 | CK8: 87 | CL8: 88 | CM8: 89 | CN8: 90 | CO8: 91 | CP8: 92 | CQ8: 93 | CR8: 94 | CS8: 95 | CT8: 96 | CU8: 97 | CV8: 98 | CW8: 99 | CX8: 100
C9: Total Demand
C11: M126 | D11: =(INDEX('[7]CTM Details'!P$5:P$408,MATCH($C11,'[7]CTM Details'!$B$5:$B$408,FALSE),1)) -> NSW Exports | E11: =(INDEX('[7]CTM Details'!D$5:D$408,MATCH($C11,'[7]CTM Details'!$B$5:$B$408,FALSE),1)) -> 20000002PC | F11: =(INDEX('[7]CTM Details'!U$5:U$408,MATCH($C11,'[7]CTM Details'!$B$5:$B$408,FALSE),1)) -> Barnawartha (Interconnect) | H11: =L11+P11 -> 14181.55712 | I11: 58.33871045 | J11: =IF(I11=0,0,(H11/365)/I11) -> 0.666 | P11: =INDEX(Annual_CTM_BO!G:G,MATCH(WithdrawalVol_Summary_BO!$E11,Annual_CTM_BO!$E:$E,FALSE),0) -> 14181.55712 | Q11: =INDEX(Annual_CTM_BO!H:H,MATCH(WithdrawalVol_Summary_BO!$E11,Annual_CTM_BO!$E:$E,FALSE),0) -> 58.33871045 | R11: =IF(Q11=0,0,(P11/365)/Q11) -> 0.666 | T11: =X11+AB11 -> 14181.55712 | U11: 58.33871045 | V11: =IF(U11=0,0,(T11/365)/U11) -> 0.666 | AB11: =INDEX(Annual_CTM_BO!J:J,MATCH(WithdrawalVol_Summary_BO!$E11,Annual_CTM_BO!$E:$E,FALSE),0) -> 14181.55712 | AC11: =INDEX(Annual_CTM_BO!L:L,MATCH(WithdrawalVol_Summary_BO!$E11,Annual_CTM_BO!$E:$E,FALSE),0) -> 58.33871045 | AD11: =IF(AC11=0,0,(AB11/365)/AC11) -> 0.666 | AF11: =AJ11+AN11 -> 11358.76929 | AG11: 23.11059613 | AH11: =IF(AG11=0,0,(AF11/365)/AG11) -> 1.346564826 | AN11: =INDEX(Annual_CTM_BO!O:O,MATCH(WithdrawalVol_Summary_BO!$E11,Annual_CTM_BO!$E:$E,FALSE),0) -> 11358.76929 | AO11: =INDEX(Annual_CTM_BO!S:S,MATCH(WithdrawalVol_Summary_BO!$E11,Annual_CTM_BO!$E:$E,FALSE),0) -> 23.11059613 | AP11: =IF(AO11=0,0,(AN11/365)/AO11) -> 1.346564826 | AR11: =AV11+AZ11 -> 6293.582826 | AS11: 25.88992894 | AT11: =IF(AS11=0,0,(AR11/365)/AS11) -> 0.666 | AZ11: =INDEX(Annual_CTM_BO!V:V,MATCH(WithdrawalVol_Summary_BO!$E11,Annual_CTM_BO!$E:$E,FALSE),0) -> 6293.582826 | BA11: =INDEX(Annual_CTM_BO!Z:Z,MATCH(WithdrawalVol_Summary_BO!$E11,Annual_CTM_BO!$E:$E,FALSE),0) -> 25.88992894 | BB11: =IF(BA11=0,0,(AZ11/365)/BA11) -> 0.666 | BD11: =BH11+BL11 -> 5778.47634 | BE11: 23.70598607 | BF11: =IF(BE11=0,0,(BD11/365)/BE11) -> 0.6678246575 | BL11: =INDEX(Annual_CTM_BO!AC:AC,MATCH(WithdrawalVol_Summary_BO!$E11,Annual_CTM_BO!$E:$E,FALSE),0) -> 5778.47634 | BM11: =INDEX(Annual_CTM_BO!AG:AG,MATCH(WithdrawalVol_Summary_BO!$E11,Annual_CTM_BO!$E:$E,FALSE),0) -> 23.70598607 | BN11: =IF(BM11=0,0,(BL11/365)/BM11) -> 0.6678246575 | BP11: =BT11+BX11 -> 4050.683465 | BQ11: 16.66330769 | BR11: =IF(BQ11=0,0,(BP11/365)/BQ11) -> 0.666 | BX11: =INDEX(Annual_CTM_BO!AJ:AJ,MATCH(WithdrawalVol_Summary_BO!$E11,Annual_CTM_BO!$E:$E,FALSE),0) -> 4050.683465 | BY11: =INDEX(Annual_CTM_BO!AN:AN,MATCH(WithdrawalVol_Summary_BO!$E11,Annual_CTM_BO!$E:$E,FALSE),0) -> 16.66330769 | BZ11: =IF(BY11=0,0,(BX11/365)/BY11) -> 0.666 | CB11: =CF11+CJ11 -> 1777.848998 | CC11: 7.3135423 | CD11: =IF(CC11=0,0,(CB11/365)/CC11) -> 0.666 | CJ11: =INDEX(Annual_CTM_BO!AQ:AQ,MATCH(WithdrawalVol_Summary_BO!$E11,Annual_CTM_BO!$E:$E,FALSE),0) -> 1777.848998 | CK11: =INDEX(Annual_CTM_BO!AU:AU,MATCH(WithdrawalVol_Summary_BO!$E11,Annual_CTM_BO!$E:$E,FALSE),0) -> 7.3135423 | CL11: =IF(CK11=0,0,(CJ11/365)/CK11) -> 0.666 | CN11: =CR11+CV11 -> 1777.848998 | CO11: =CS11+CW11 -> 4.410556841 | CP11: =IF(CO11=0,0,(CN11/365)/CO11) -> 1.104354699 | CV11: =INDEX(Annual_CTM_BO!AX:AX,MATCH(WithdrawalVol_Summary_BO!$E11,Annual_CTM_BO!$E:$E,FALSE),0) -> 1777.848998 | CW11: =INDEX(Annual_CTM_BO!BB:BB,MATCH(WithdrawalVol_Summary_BO!$E11,Annual_CTM_BO!$E:$E,FALSE),0) -> 4.410556841 | CX11: =IF(CW11=0,0,(CV11/365)/CW11) -> 1.104354699
C12: M137A | D12: =(INDEX('[7]CTM Details'!P$5:P$408,MATCH($C12,'[7]CTM Details'!$B$5:$B$408,FALSE),1)) -> VicHub - Withdrawal | E12: =(INDEX('[7]CTM Details'!D$5:D$408,MATCH($C12,'[7]CTM Details'!$B$5:$B$408,FALSE),1)) -> 30000166PC | F12: =(INDEX('[7]CTM Details'!U$5:U$408,MATCH($C12,'[7]CTM Details'!$B$5:$B$408,FALSE),1)) -> VicHub Withdrawal | H12: 1911.887462 | I12: 7.864936699 | J12: =IF(I12=0,0,(H12/365)/I12) -> 0.666 | P12: =INDEX(Annual_CTM_BO!G:G,MATCH(WithdrawalVol_Summary_BO!$E12,Annual_CTM_BO!$E:$E,FALSE),0) -> 1911.887462 | Q12: =INDEX(Annual_CTM_BO!H:H,MATCH(WithdrawalVol_Summary_BO!$E12,Annual_CTM_BO!$E:$E,FALSE),0) -> 7.864936699 | R12: =IF(Q12=0,0,(P12/365)/Q12) -> 0.666 | T12: 1911.887462 | U12: 7.864936699 | V12: =IF(U12=0,0,(T12/365)/U12) -> 0.666 | AB12: =INDEX(Annual_CTM_BO!J:J,MATCH(WithdrawalVol_Summary_BO!$E12,Annual_CTM_BO!$E:$E,FALSE),0) -> 1911.887462 | AC12: =INDEX(Annual_CTM_BO!L:L,MATCH(WithdrawalVol_Summary_BO!$E12,Annual_CTM_BO!$E:$E,FALSE),0) -> 7.864936699 | AD12: =IF(AC12=0,0,(AB12/365)/AC12) -> 0.666 | AF12: 0 | AG12: 23.61600427 | AH12: =IF(AG12=0,0,(AF12/365)/AG12) -> 0 | AN12: =INDEX(Annual_CTM_BO!O:O,MATCH(WithdrawalVol_Summary_BO!$E12,Annual_CTM_BO!$E:$E,FALSE),0) -> 0 | AO12: =INDEX(Annual_CTM_BO!S:S,MATCH(WithdrawalVol_Summary_BO!$E12,Annual_CTM_BO!$E:$E,FALSE),0) -> 23.61600427 | AP12: =IF(AO12=0,0,(AN12/365)/AO12) -> 0 | AR12: 0 | AS12: 0 | AT12: =IF(AS12=0,0,(AR12/365)/AS12) -> 0 | AZ12: =INDEX(Annual_CTM_BO!V:V,MATCH(WithdrawalVol_Summary_BO!$E12,Annual_CTM_BO!$E:$E,FALSE),0) -> 0 | BA12: =INDEX(Annual_CTM_BO!Z:Z,MATCH(WithdrawalVol_Summary_BO!$E12,Annual_CTM_BO!$E:$E,FALSE),0) -> 0 | BB12: =IF(BA12=0,0,(AZ12/365)/BA12) -> 0 | BD12: 0 | BE12: 0 | BF12: =IF(BE12=0,0,(BD12/365)/BE12) -> 0 | BL12: =INDEX(Annual_CTM_BO!AC:AC,MATCH(WithdrawalVol_Summary_BO!$E12,Annual_CTM_BO!$E:$E,FALSE),0) -> 0 | BM12: =INDEX(Annual_CTM_BO!AG:AG,MATCH(WithdrawalVol_Summary_BO!$E12,Annual_CTM_BO!$E:$E,FALSE),0) -> 0 | BN12: =IF(BM12=0,0,(BL12/365)/BM12) -> 0 | BP12: 0 | BQ12: 0 | BR12: =IF(BQ12=0,0,(BP12/365)/BQ12) -> 0 | BX12: =INDEX(Annual_CTM_BO!AJ:AJ,MATCH(WithdrawalVol_Summary_BO!$E12,Annual_CTM_BO!$E:$E,FALSE),0) -> 0 | BY12: =INDEX(Annual_CTM_BO!AN:AN,MATCH(WithdrawalVol_Summary_BO!$E12,Annual_CTM_BO!$E:$E,FALSE),0) -> 0 | BZ12: =IF(BY12=0,0,(BX12/365)/BY12) -> 0 | CB12: 0 | CC12: 0 | CD12: =IF(CC12=0,0,(CB12/365)/CC12) -> 0 | CJ12: =INDEX(Annual_CTM_BO!AQ:AQ,MATCH(WithdrawalVol_Summary_BO!$E12,Annual_CTM_BO!$E:$E,FALSE),0) -> 0 | CK12: =INDEX(Annual_CTM_BO!AU:AU,MATCH(WithdrawalVol_Summary_BO!$E12,Annual_CTM_BO!$E:$E,FALSE),0) -> 0 | CL12: =IF(CK12=0,0,(CJ12/365)/CK12) -> 0 | CN12: 0 | CO12: 0 | CP12: =IF(CO12=0,0,(CN12/365)/CO12) -> 0 | CV12: =INDEX(Annual_CTM_BO!AX:AX,MATCH(WithdrawalVol_Summary_BO!$E12,Annual_CTM_BO!$E:$E,FALSE),0) -> 0 | CW12: =INDEX(Annual_CTM_BO!BB:BB,MATCH(WithdrawalVol_Summary_BO!$E12,Annual_CTM_BO!$E:$E,FALSE),0) -> 0 | CX12: =IF(CW12=0,0,(CV12/365)/CW12) -> 0
D13: WUGS Exports | E13: 30000156PC | F13: WUGS | H13: 14311.37068 | I13: 58.87272482 | J13: =IF(I13=0,0,(H13/365)/I13) -> 0.666 | P13: =INDEX(Annual_CTM_BO!G:G,MATCH(WithdrawalVol_Summary_BO!$E13,Annual_CTM_BO!$E:$E,FALSE),0) -> 14311.37068 | Q13: =INDEX(Annual_CTM_BO!H:H,MATCH(WithdrawalVol_Summary_BO!$E13,Annual_CTM_BO!$E:$E,FALSE),0) -> 58.87272482 | R13: =IF(Q13=0,0,(P13/365)/Q13) -> 0.666 | T13: 14311.37068 | U13: 58.87272482 | V13: =IF(U13=0,0,(T13/365)/U13) -> 0.666 | AB13: =INDEX(Annual_CTM_BO!J:J,MATCH(WithdrawalVol_Summary_BO!$E13,Annual_CTM_BO!$E:$E,FALSE),0) -> 14311.37068 | AC13: =INDEX(Annual_CTM_BO!L:L,MATCH(WithdrawalVol_Summary_BO!$E13,Annual_CTM_BO!$E:$E,FALSE),0) -> 58.87272482 | AD13: =IF(AC13=0,0,(AB13/365)/AC13) -> 0.666 | AF13: 0 | AG13: 0 | AH13: =IF(AG13=0,0,(AF13/365)/AG13) -> 0 | AN13: =INDEX(Annual_CTM_BO!O:O,MATCH(WithdrawalVol_Summary_BO!$E13,Annual_CTM_BO!$E:$E,FALSE),0) -> 0 | AO13: =INDEX(Annual_CTM_BO!S:S,MATCH(WithdrawalVol_Summary_BO!$E13,Annual_CTM_BO!$E:$E,FALSE),0) -> 0 | AP13: =IF(AO13=0,0,(AN13/365)/AO13) -> 0 | AR13: 0 | AS13: 0 | AT13: =IF(AS13=0,0,(AR13/365)/AS13) -> 0 | AZ13: =INDEX(Annual_CTM_BO!V:V,MATCH(WithdrawalVol_Summary_BO!$E13,Annual_CTM_BO!$E:$E,FALSE),0) -> 0 | BA13: =INDEX(Annual_CTM_BO!Z:Z,MATCH(WithdrawalVol_Summary_BO!$E13,Annual_CTM_BO!$E:$E,FALSE),0) -> 0 | BB13: =IF(BA13=0,0,(AZ13/365)/BA13) -> 0 | BD13: 0 | BE13: 0 | BF13: =IF(BE13=0,0,(BD13/365)/BE13) -> 0 | BL13: =INDEX(Annual_CTM_BO!AC:AC,MATCH(WithdrawalVol_Summary_BO!$E13,Annual_CTM_BO!$E:$E,FALSE),0) -> 0 | BM13: =INDEX(Annual_CTM_BO!AG:AG,MATCH(WithdrawalVol_Summary_BO!$E13,Annual_CTM_BO!$E:$E,FALSE),0) -> 0 | BN13: =IF(BM13=0,0,(BL13/365)/BM13) -> 0 | BP13: 0 | BQ13: 0 | BR13: =IF(BQ13=0,0,(BP13/365)/BQ13) -> 0 | BX13: =INDEX(Annual_CTM_BO!AJ:AJ,MATCH(WithdrawalVol_Summary_BO!$E13,Annual_CTM_BO!$E:$E,FALSE),0) -> 0 | BY13: =INDEX(Annual_CTM_BO!AN:AN,MATCH(WithdrawalVol_Summary_BO!$E13,Annual_CTM_BO!$E:$E,FALSE),0) -> 0 | BZ13: =IF(BY13=0,0,(BX13/365)/BY13) -> 0 | CB13: 0 | CC13: 0 | CD13: =IF(CC13=0,0,(CB13/365)/CC13) -> 0 | CJ13: =INDEX(Annual_CTM_BO!AQ:AQ,MATCH(WithdrawalVol_Summary_BO!$E13,Annual_CTM_BO!$E:$E,FALSE),0) -> 0 | CK13: =INDEX(Annual_CTM_BO!AU:AU,MATCH(WithdrawalVol_Summary_BO!$E13,Annual_CTM_BO!$E:$E,FALSE),0) -> 0 | CL13: =IF(CK13=0,0,(CJ13/365)/CK13) -> 0 | CN13: 0 | CO13: 0 | CP13: =IF(CO13=0,0,(CN13/365)/CO13) -> 0 | CV13: =INDEX(Annual_CTM_BO!AX:AX,MATCH(WithdrawalVol_Summary_BO!$E13,Annual_CTM_BO!$E:$E,FALSE),0) -> 0 | CW13: =INDEX(Annual_CTM_BO!BB:BB,MATCH(WithdrawalVol_Summary_BO!$E13,Annual_CTM_BO!$E:$E,FALSE),0) -> 0 | CX13: =IF(CW13=0,0,(CV13/365)/CW13) -> 0
D14: SEAGas Exports | E14: 30000169PC | F14: SEAGas | H14: 724.9645797 | I14: 2.982288781 | J14: =IF(I14=0,0,(H14/365)/I14) -> 0.666 | P14: =INDEX(Annual_CTM_BO!G:G,MATCH(WithdrawalVol_Summary_BO!$E14,Annual_CTM_BO!$E:$E,FALSE),0) -> 724.9645797 | Q14: =INDEX(Annual_CTM_BO!H:H,MATCH(WithdrawalVol_Summary_BO!$E14,Annual_CTM_BO!$E:$E,FALSE),0) -> 2.982288781 | R14: =IF(Q14=0,0,(P14/365)/Q14) -> 0.666 | T14: 724.9645797 | U14: 2.982288781 | V14: =IF(U14=0,0,(T14/365)/U14) -> 0.666 | AB14: =INDEX(Annual_CTM_BO!J:J,MATCH(WithdrawalVol_Summary_BO!$E14,Annual_CTM_BO!$E:$E,FALSE),0) -> 724.9645797 | AC14: =INDEX(Annual_CTM_BO!L:L,MATCH(WithdrawalVol_Summary_BO!$E14,Annual_CTM_BO!$E:$E,FALSE),0) -> 2.982288781 | AD14: =IF(AC14=0,0,(AB14/365)/AC14) -> 0.666 | AF14: 0 | AG14: 0 | AH14: =IF(AG14=0,0,(AF14/365)/AG14) -> 0 | AN14: =INDEX(Annual_CTM_BO!O:O,MATCH(WithdrawalVol_Summary_BO!$E14,Annual_CTM_BO!$E:$E,FALSE),0) -> 0 | AO14: =INDEX(Annual_CTM_BO!S:S,MATCH(WithdrawalVol_Summary_BO!$E14,Annual_CTM_BO!$E:$E,FALSE),0) -> 0 | AP14: =IF(AO14=0,0,(AN14/365)/AO14) -> 0 | AR14: 0 | AS14: 0 | AT14: =IF(AS14=0,0,(AR14/365)/AS14) -> 0 | AZ14: =INDEX(Annual_CTM_BO!V:V,MATCH(WithdrawalVol_Summary_BO!$E14,Annual_CTM_BO!$E:$E,FALSE),0) -> 0 | BA14: =INDEX(Annual_CTM_BO!Z:Z,MATCH(WithdrawalVol_Summary_BO!$E14,Annual_CTM_BO!$E:$E,FALSE),0) -> 0 | BB14: =IF(BA14=0,0,(AZ14/365)/BA14) -> 0 | BD14: 0 | BE14: 0 | BF14: =IF(BE14=0,0,(BD14/365)/BE14) -> 0 | BL14: =INDEX(Annual_CTM_BO!AC:AC,MATCH(WithdrawalVol_Summary_BO!$E14,Annual_CTM_BO!$E:$E,FALSE),0) -> 0 | BM14: =INDEX(Annual_CTM_BO!AG:AG,MATCH(WithdrawalVol_Summary_BO!$E14,Annual_CTM_BO!$E:$E,FALSE),0) -> 0 | BN14: =IF(BM14=0,0,(BL14/365)/BM14) -> 0 | BP14: 0 | BQ14: 0 | BR14: =IF(BQ14=0,0,(BP14/365)/BQ14) -> 0 | BX14: =INDEX(Annual_CTM_BO!AJ:AJ,MATCH(WithdrawalVol_Summary_BO!$E14,Annual_CTM_BO!$E:$E,FALSE),0) -> 0 | BY14: =INDEX(Annual_CTM_BO!AN:AN,MATCH(WithdrawalVol_Summary_BO!$E14,Annual_CTM_BO!$E:$E,FALSE),0) -> 0 | BZ14: =IF(BY14=0,0,(BX14/365)/BY14) -> 0 | CB14: 0 | CC14: 0 | CD14: =IF(CC14=0,0,(CB14/365)/CC14) -> 0 | CJ14: =INDEX(Annual_CTM_BO!AQ:AQ,MATCH(WithdrawalVol_Summary_BO!$E14,Annual_CTM_BO!$E:$E,FALSE),0) -> 0 | CK14: =INDEX(Annual_CTM_BO!AU:AU,MATCH(WithdrawalVol_Summary_BO!$E14,Annual_CTM_BO!$E:$E,FALSE),0) -> 0 | CL14: =IF(CK14=0,0,(CJ14/365)/CK14) -> 0 | CN14: 0 | CO14: 0 | CP14: =IF(CO14=0,0,(CN14/365)/CO14) -> 0 | CV14: =INDEX(Annual_CTM_BO!AX:AX,MATCH(WithdrawalVol_Summary_BO!$E14,Annual_CTM_BO!$E:$E,FALSE),0) -> 0 | CW14: =INDEX(Annual_CTM_BO!BB:BB,MATCH(WithdrawalVol_Summary_BO!$E14,Annual_CTM_BO!$E:$E,FALSE),0) -> 0 | CX14: =IF(CW14=0,0,(CV14/365)/CW14) -> 0
C16: Exports | AR16: =SUM(AR11:AR14) -> 6293.582826 | AS16: =SUM(AS11:AS14) -> 25.88992894 | AT16: =IF(AS16=0,0,(AR16/365)/AS16) -> 0.666 | BD16: =SUM(BD11:BD14) -> 5778.47634 | BE16: =SUM(BE11:BE14) -> 23.70598607 | BF16: =IF(BE16=0,0,(BD16/365)/BE16) -> 0.6678246575 | BP16: =SUM(BP11:BP14) -> 4050.683465 | BQ16: =SUM(BQ11:BQ14) -> 16.66330769 | BR16: =IF(BQ16=0,0,(BP16/365)/BQ16) -> 0.666 | CB16: =SUM(CB11:CB14) -> 1777.848998 | CC16: =SUM(CC11:CC14) -> 7.3135423 | CD16: =IF(CC16=0,0,(CB16/365)/CC16) -> 0.666 | CN16: =SUM(CN11:CN14) -> 1777.848998 | CO16: =SUM(CO11:CO14) -> 4.410556841 | CP16: =IF(CO16=0,0,(CN16/365)/CO16) -> 1.104354699
C18: M078 | D18: =(INDEX('[7]CTM Details'!P$5:P$408,MATCH($C18,'[7]CTM Details'!$B$5:$B$408,FALSE),1)) -> Rosedale | E18: =(INDEX('[7]CTM Details'!D$5:D$408,MATCH($C18,'[7]CTM Details'!$B$5:$B$408,FALSE),1)) -> 30000072PC | F18: =(INDEX('[7]CTM Details'!U$5:U$408,MATCH($C18,'[7]CTM Details'!$B$5:$B$408,FALSE),1)) -> LaTrobe | H18: =L18+P18 -> 28.72022711 | I18: 0.1796069064 | J18: =IF(I18=0,0,(H18/365)/I18) -> 0.4380987085 | L18: =INDEX(Tariff_V_BO!H:H,MATCH(WithdrawalVol_Summary_BO!$C18,Tariff_V_BO!$C:$C,FALSE),0) -> 17.25730957 | M18: =INDEX(Tariff_V_BO!I:I,MATCH(WithdrawalVol_Summary_BO!$C18,Tariff_V_BO!$C:$C,FALSE),0) -> 0.1382859588 | N18: =IF(M18=0,0,(L18/365)/M18) -> 0.3419023929 | P18: =INDEX(Tariff_D_BO!H:H,MATCH(WithdrawalVol_Summary_BO!$C18,Tariff_D_BO!$C:$C,FALSE),0) -> 11.46291754 | Q18: =INDEX(Tariff_D_BO!I:I,MATCH(WithdrawalVol_Summary_BO!$C18,Tariff_D_BO!$C:$C,FALSE),0) -> 0.04132094765 | R18: =IF(Q18=0,0,(P18/365)/Q18) -> 0.7600322673 | T18: =X18+AB18 -> 27.92566689 | U18: 0.1519219967 | V18: =IF(U18=0,0,(T18/365)/U18) -> 0.5036049952 | X18: =INDEX(Tariff_V_BO!K:K,MATCH(WithdrawalVol_Summary_BO!$C18,Tariff_V_BO!$C:$C,FALSE),0) -> 16.46274935 | Y18: =INDEX(Tariff_V_BO!M:M,MATCH(WithdrawalVol_Summary_BO!$C18,Tariff_V_BO!$C:$C,FALSE),0) -> 0.1225727199 | Z18: =IF(Y18=0,0,(X18/365)/Y18) -> 0.3679727667 | AB18: =INDEX(Tariff_D_BO!K:K,MATCH(WithdrawalVol_Summary_BO!$C18,Tariff_D_BO!$C:$C,FALSE),0) -> 11.46291754 | AC18: =INDEX(Tariff_D_BO!L:L,MATCH(WithdrawalVol_Summary_BO!$C18,Tariff_D_BO!$C:$C,FALSE),0) -> 0.02934927674 | AD18: =IF(AC18=0,0,(AB18/365)/AC18) -> 1.070052043 | AF18: =AJ18+AN18 -> 31.03005112 | AG18: 0.189606975 | AH18: =IF(AG18=0,0,(AF18/365)/AG18) -> 0.4483687305 | AJ18: =INDEX(Tariff_V_BO!P:P,MATCH(WithdrawalVol_Summary_BO!$C18,Tariff_V_BO!$C:$C,FALSE),0) -> 19.81004543 | AK18: =INDEX(Tariff_V_BO!T:T,MATCH(WithdrawalVol_Summary_BO!$C18,Tariff_V_BO!$C:$C,FALSE),0) -> 0.1590074074 | AL18: =IF(AK18=0,0,(AJ18/365)/AK18) -> 0.3413306207 | AN18: =INDEX(Tariff_D_BO!P:P,MATCH(WithdrawalVol_Summary_BO!$C18,Tariff_D_BO!$C:$C,FALSE),0) -> 11.22000569 | AO18: =INDEX(Tariff_D_BO!T:T,MATCH(WithdrawalVol_Summary_BO!$C18,Tariff_D_BO!$C:$C,FALSE),0) -> 0.03059956756 | AP18: =IF(AO18=0,0,(AN18/365)/AO18) -> 1.004580916 | AR18: =AV18+AZ18 -> 30.80334815 | AS18: 0.1608192403 | AT18: =IF(AS18=0,0,(AR18/365)/AS18) -> 0.5247676489 | AV18: =INDEX(Tariff_V_BO!W:W,MATCH(WithdrawalVol_Summary_BO!$C18,Tariff_V_BO!$C:$C,FALSE),0) -> 20.3776958 | AW18: =INDEX(Tariff_V_BO!AA:AA,MATCH(WithdrawalVol_Summary_BO!$C18,Tariff_V_BO!$C:$C,FALSE),0) -> 0.1340581425 | AX18: =IF(AW18=0,0,(AV18/365)/AW18) -> 0.4164558938 | AZ18: =INDEX(Tariff_D_BO!W:W,MATCH(WithdrawalVol_Summary_BO!$C18,Tariff_D_BO!$C:$C,FALSE),0) -> 10.42565235 | BA18: =INDEX(Tariff_D_BO!AA:AA,MATCH(WithdrawalVol_Summary_BO!$C18,Tariff_D_BO!$C:$C,FALSE),0) -> 0.02676109782 | BB18: =IF(BA18=0,0,(AZ18/365)/BA18) -> 1.067349004 | BD18: =BH18+BL18 -> 31.07041401 | BE18: 0.154118552 | BF18: =IF(BE18=0,0,(BD18/365)/BE18) -> 0.5523307923 | BH18: =INDEX(Tariff_V_BO!AD:AD,MATCH(WithdrawalVol_Summary_BO!$C18,Tariff_V_BO!$C:$C,FALSE),0) -> 20.65175268 | BI18: =INDEX(Tariff_V_BO!AH:AH,MATCH(WithdrawalVol_Summary_BO!$C18,Tariff_V_BO!$C:$C,FALSE),0) -> 0.1279365465 | BJ18: =IF(BI18=0,0,(BH18/365)/BI18) -> 0.4422516151 | BL18: =INDEX(Tariff_D_BO!AD:AD,MATCH(WithdrawalVol_Summary_BO!$C18,Tariff_D_BO!$C:$C,FALSE),0) -> 10.41866133 | BM18: =INDEX(Tariff_D_BO!AH:AH,MATCH(WithdrawalVol_Summary_BO!$C18,Tariff_D_BO!$C:$C,FALSE),0) -> 0.0261820055 | BN18: =IF(BM18=0,0,(BL18/365)/BM18) -> 1.090225026 | BP18: =BT18+BX18 -> 29.73212395 | BQ18: 0.1527602729 | BR18: =IF(BQ18=0,0,(BP18/365)/BQ18) -> 0.5332399079 | BT18: =INDEX(Tariff_V_BO!AK:AK,MATCH(WithdrawalVol_Summary_BO!$C18,Tariff_V_BO!$C:$C,FALSE),0) -> 20.97308294 | BU18: =INDEX(Tariff_V_BO!AO:AO,MATCH(WithdrawalVol_Summary_BO!$C18,Tariff_V_BO!$C:$C,FALSE),0) -> 0.1272286643 | BV18: =IF(BU18=0,0,(BT18/365)/BU18) -> 0.4516317257 | BX18: =INDEX(Tariff_D_BO!AK:AK,MATCH(WithdrawalVol_Summary_BO!$C18,Tariff_D_BO!$C:$C,FALSE),0) -> 8.759041011 | BY18: =INDEX(Tariff_D_BO!AO:AO,MATCH(WithdrawalVol_Summary_BO!$C18,Tariff_D_BO!$C:$C,FALSE),0) -> 0.0255316086 | BZ18: =IF(BY18=0,0,(BX18/365)/BY18) -> 0.9399083705 | CB18: =CF18+CJ18 -> 28.54164305 | CC18: 0.1555177753 | CD18: =IF(CC18=0,0,(CB18/365)/CC18) -> 0.5028125059 | CF18: =INDEX(Tariff_V_BO!AR:AR,MATCH(WithdrawalVol_Summary_BO!$C18,Tariff_V_BO!$C:$C,FALSE),0) -> 21.73555452 | CG18: =INDEX(Tariff_V_BO!AV:AV,MATCH(WithdrawalVol_Summary_BO!$C18,Tariff_V_BO!$C:$C,FALSE),0) -> 0.1313036301 | CH18: =IF(CG18=0,0,(CF18/365)/CG18) -> 0.4535248903 | CJ18: =INDEX(Tariff_D_BO!AR:AR,MATCH(WithdrawalVol_Summary_BO!$C18,Tariff_D_BO!$C:$C,FALSE),0) -> 6.80608852 | CK18: =INDEX(Tariff_D_BO!AV:AV,MATCH(WithdrawalVol_Summary_BO!$C18,Tariff_D_BO!$C:$C,FALSE),0) -> 0.02421414518 | CL18: =IF(CK18=0,0,(CJ18/365)/CK18) -> 0.7700795434 | CN18: =CR18+CV18 -> 29.85807259 | CO18: 0.1426019074 | CP18: =IF(CO18=0,0,(CN18/365)/CO18) -> 0.5736454729 | CR18: =INDEX(Tariff_V_BO!AY:AY,MATCH(WithdrawalVol_Summary_BO!$C18,Tariff_V_BO!$C:$C,FALSE),0) -> 18.70009674 | CS18: =INDEX(Tariff_V_BO!BC:BC,MATCH(WithdrawalVol_Summary_BO!$C18,Tariff_V_BO!$C:$C,FALSE),0) -> 0.1185263739 | CT18: =IF(CS18=0,0,(CR18/365)/CS18) -> 0.4322509839 | CV18: =INDEX(Tariff_D_BO!AY:AY,MATCH(WithdrawalVol_Summary_BO!$C18,Tariff_D_BO!$C:$C,FALSE),0) -> 11.15797585 | CW18: =INDEX(Tariff_D_BO!BC:BC,MATCH(WithdrawalVol_Summary_BO!$C18,Tariff_D_BO!$C:$C,FALSE),0) -> 0.02407553346 | CX18: =IF(CW18=0,0,(CV18/365)/CW18) -> 1.269745358
C19: M079 | D19: =(INDEX('[7]CTM Details'!P$5:P$408,MATCH($C19,'[7]CTM Details'!$B$5:$B$408,FALSE),1)) -> Sale | E19: =(INDEX('[7]CTM Details'!D$5:D$408,MATCH($C19,'[7]CTM Details'!$B$5:$B$408,FALSE),1)) -> 30000073PC | F19: =(INDEX('[7]CTM Details'!U$5:U$408,MATCH($C19,'[7]CTM Details'!$B$5:$B$408,FALSE),1)) -> LaTrobe | H19: 906.8949812 | I19: 3.462133595 | J19: =IF(I19=0,0,(H19/365)/I19) -> 0.7176625963 | L19: =INDEX(Tariff_V_BO!H:H,MATCH(WithdrawalVol_Summary_BO!$C19,Tariff_V_BO!$C:$C,FALSE),0) -> 490.5915577 | M19: =INDEX(Tariff_V_BO!I:I,MATCH(WithdrawalVol_Summary_BO!$C19,Tariff_V_BO!$C:$C,FALSE),0) -> 2.665623906 | N19: =IF(M19=0,0,(L19/365)/M19) -> 0.5042295938 | P19: =INDEX(Tariff_D_BO!H:H,MATCH(WithdrawalVol_Summary_BO!$C19,Tariff_D_BO!$C:$C,FALSE),0) -> 416.3034234 | Q19: =INDEX(Tariff_D_BO!I:I,MATCH(WithdrawalVol_Summary_BO!$C19,Tariff_D_BO!$C:$C,FALSE),0) -> 0.7965096882 | R19: =IF(Q19=0,0,(P19/365)/Q19) -> 1.43194407 | T19: 903.2317049 | U19: 3.193860865 | V19: =IF(U19=0,0,(T19/365)/U19) -> 0.7748012562 | X19: =INDEX(Tariff_V_BO!K:K,MATCH(WithdrawalVol_Summary_BO!$C19,Tariff_V_BO!$C:$C,FALSE),0) -> 486.9282814 | Y19: =INDEX(Tariff_V_BO!M:M,MATCH(WithdrawalVol_Summary_BO!$C19,Tariff_V_BO!$C:$C,FALSE),0) -> 2.196752939 | Z19: =IF(Y19=0,0,(X19/365)/Y19) -> 0.6072827137 | AB19: =INDEX(Tariff_D_BO!K:K,MATCH(WithdrawalVol_Summary_BO!$C19,Tariff_D_BO!$C:$C,FALSE),0) -> 416.3034234 | AC19: =INDEX(Tariff_D_BO!L:L,MATCH(WithdrawalVol_Summary_BO!$C19,Tariff_D_BO!$C:$C,FALSE),0) -> 0.9971079265 | AD19: =IF(AC19=0,0,(AB19/365)/AC19) -> 1.143865468 | AF19: 993.4146935 | AG19: 3.889321911 | AH19: =IF(AG19=0,0,(AF19/365)/AG19) -> 0.6997837037 | AJ19: =INDEX(Tariff_V_BO!P:P,MATCH(WithdrawalVol_Summary_BO!$C19,Tariff_V_BO!$C:$C,FALSE),0) -> 585.9331983 | AK19: =INDEX(Tariff_V_BO!T:T,MATCH(WithdrawalVol_Summary_BO!$C19,Tariff_V_BO!$C:$C,FALSE),0) -> 2.849736792 | AL19: =IF(AK19=0,0,(AJ19/365)/AK19) -> 0.5633139307 | AN19: =INDEX(Tariff_D_BO!P:P,MATCH(WithdrawalVol_Summary_BO!$C19,Tariff_D_BO!$C:$C,FALSE),0) -> 407.4814952 | AO19: =INDEX(Tariff_D_BO!T:T,MATCH(WithdrawalVol_Summary_BO!$C19,Tariff_D_BO!$C:$C,FALSE),0) -> 1.039585119 | AP19: =IF(AO19=0,0,(AN19/365)/AO19) -> 1.073878067 | AR19: 981.3555653 | AS19: 3.945021568 | AT19: =IF(AS19=0,0,(AR19/365)/AS19) -> 0.6815286907 | AV19: =INDEX(Tariff_V_BO!W:W,MATCH(WithdrawalVol_Summary_BO!$C19,Tariff_V_BO!$C:$C,FALSE),0) -> 602.7229222 | AW19: =INDEX(Tariff_V_BO!AA:AA,MATCH(WithdrawalVol_Summary_BO!$C19,Tariff_V_BO!$C:$C,FALSE),0) -> 2.86199887 | AX19: =IF(AW19=0,0,(AV19/365)/AW19) -> 0.5769728613 | AZ19: =INDEX(Tariff_D_BO!W:W,MATCH(WithdrawalVol_Summary_BO!$C19,Tariff_D_BO!$C:$C,FALSE),0) -> 378.632643 | BA19: =INDEX(Tariff_D_BO!AA:AA,MATCH(WithdrawalVol_Summary_BO!$C19,Tariff_D_BO!$C:$C,FALSE),0) -> 1.083022698 | BB19: =IF(BA19=0,0,(AZ19/365)/BA19) -> 0.9578282239 | BD19: 989.2076088 | BE19: 3.724794779 | BF19: =IF(BE19=0,0,(BD19/365)/BE19) -> 0.7275992352 | BH19: =INDEX(Tariff_V_BO!AD:AD,MATCH(WithdrawalVol_Summary_BO!$C19,Tariff_V_BO!$C:$C,FALSE),0) -> 610.8288614 | BI19: =INDEX(Tariff_V_BO!AH:AH,MATCH(WithdrawalVol_Summary_BO!$C19,Tariff_V_BO!$C:$C,FALSE),0) -> 2.683683839 | BJ19: =IF(BI19=0,0,(BH19/365)/BI19) -> 0.6235845317 | BL19: =INDEX(Tariff_D_BO!AD:AD,MATCH(WithdrawalVol_Summary_BO!$C19,Tariff_D_BO!$C:$C,FALSE),0) -> 378.3787474 | BM19: =INDEX(Tariff_D_BO!AH:AH,MATCH(WithdrawalVol_Summary_BO!$C19,Tariff_D_BO!$C:$C,FALSE),0) -> 1.04111094 | BN19: =IF(BM19=0,0,(BL19/365)/BM19) -> 0.9957191523 | BP19: 938.4386762 | BQ19: 3.627431647 | BR19: =IF(BQ19=0,0,(BP19/365)/BQ19) -> 0.7087838219 | BT19: =INDEX(Tariff_V_BO!AK:AK,MATCH(WithdrawalVol_Summary_BO!$C19,Tariff_V_BO!$C:$C,FALSE),0) -> 620.3330328 | BU19: =INDEX(Tariff_V_BO!AO:AO,MATCH(WithdrawalVol_Summary_BO!$C19,Tariff_V_BO!$C:$C,FALSE),0) -> 2.627795174 | BV19: =IF(BU19=0,0,(BT19/365)/BU19) -> 0.646756099 | BX19: =INDEX(Tariff_D_BO!AK:AK,MATCH(WithdrawalVol_Summary_BO!$C19,Tariff_D_BO!$C:$C,FALSE),0) -> 318.1056434 | BY19: =INDEX(Tariff_D_BO!AO:AO,MATCH(WithdrawalVol_Summary_BO!$C19,Tariff_D_BO!$C:$C,FALSE),0) -> 0.9996364733 | BZ19: =IF(BY19=0,0,(BX19/365)/BY19) -> 0.8718392477 | CB19: 890.064573 | CC19: 3.674259368 | CD19: =IF(CC19=0,0,(CB19/365)/CC19) -> 0.6636801685 | CF19: =INDEX(Tariff_V_BO!AR:AR,MATCH(WithdrawalVol_Summary_BO!$C19,Tariff_V_BO!$C:$C,FALSE),0) -> 642.8850969 | CG19: =INDEX(Tariff_V_BO!AV:AV,MATCH(WithdrawalVol_Summary_BO!$C19,Tariff_V_BO!$C:$C,FALSE),0) -> 2.722515411 | CH19: =IF(CG19=0,0,(CF19/365)/CG19) -> 0.6469491507 | CJ19: =INDEX(Tariff_D_BO!AR:AR,MATCH(WithdrawalVol_Summary_BO!$C19,Tariff_D_BO!$C:$C,FALSE),0) -> 247.1794761 | CK19: =INDEX(Tariff_D_BO!AV:AV,MATCH(WithdrawalVol_Summary_BO!$C19,Tariff_D_BO!$C:$C,FALSE),0) -> 0.9517439574 | CL19: =IF(CK19=0,0,(CJ19/365)/CK19) -> 0.7115401561 | CN19: 958.3323347 | CO19: 3.386424147 | CP19: =IF(CO19=0,0,(CN19/365)/CO19) -> 0.7753216746 | CR19: =INDEX(Tariff_V_BO!AY:AY,MATCH(WithdrawalVol_Summary_BO!$C19,Tariff_V_BO!$C:$C,FALSE),0) -> 553.1036022 | CS19: =INDEX(Tariff_V_BO!BC:BC,MATCH(WithdrawalVol_Summary_BO!$C19,Tariff_V_BO!$C:$C,FALSE),0) -> 2.444981495 | CT19: =IF(CS19=0,0,(CR19/365)/CS19) -> 0.6197806968 | CV19: =INDEX(Tariff_D_BO!AY:AY,MATCH(WithdrawalVol_Summary_BO!$C19,Tariff_D_BO!$C:$C,FALSE),0) -> 405.2287324 | CW19: =INDEX(Tariff_D_BO!BC:BC,MATCH(WithdrawalVol_Summary_BO!$C19,Tariff_D_BO!$C:$C,FALSE),0) -> 0.9414426512 | CX19: =IF(CW19=0,0,(CV19/365)/CW19) -> 1.179270669
C20: M085 | D20: =(INDEX('[7]CTM Details'!P$5:P$408,MATCH($C20,'[7]CTM Details'!$B$5:$B$408,FALSE),1)) -> Traralgon | E20: =(INDEX('[7]CTM Details'!D$5:D$408,MATCH($C20,'[7]CTM Details'!$B$5:$B$408,FALSE),1)) -> 30000079PC | F20: =(INDEX('[7]CTM Details'!U$5:U$408,MATCH($C20,'[7]CTM Details'!$B$5:$B$408,FALSE),1)) -> LaTrobe | H20: 823.7321136 | I20: 5.142735199 | J20: =IF(I20=0,0,(H20/365)/I20) -> 0.438832688 | L20: =INDEX(Tariff_V_BO!H:H,MATCH(WithdrawalVol_Summary_BO!$C20,Tariff_V_BO!$C:$C,FALSE),0) -> 490.0812621 | M20: =INDEX(Tariff_V_BO!I:I,MATCH(WithdrawalVol_Summary_BO!$C20,Tariff_V_BO!$C:$C,FALSE),0) -> 3.959580853 | N20: =IF(M20=0,0,(L20/365)/M20) -> 0.3390986165 | P20: =INDEX(Tariff_D_BO!H:H,MATCH(WithdrawalVol_Summary_BO!$C20,Tariff_D_BO!$C:$C,FALSE),0) -> 333.6508515 | Q20: =INDEX(Tariff_D_BO!I:I,MATCH(WithdrawalVol_Summary_BO!$C20,Tariff_D_BO!$C:$C,FALSE),0) -> 1.183154346 | R20: =IF(Q20=0,0,(P20/365)/Q20) -> 0.77260581 | T20: 802.9076773 | U20: 4.235769265 | V20: =IF(U20=0,0,(T20/365)/U20) -> 0.5193264608 | X20: =INDEX(Tariff_V_BO!K:K,MATCH(WithdrawalVol_Summary_BO!$C20,Tariff_V_BO!$C:$C,FALSE),0) -> 469.2568258 | Y20: =INDEX(Tariff_V_BO!M:M,MATCH(WithdrawalVol_Summary_BO!$C20,Tariff_V_BO!$C:$C,FALSE),0) -> 3.370007761 | Z20: =IF(Y20=0,0,(X20/365)/Y20) -> 0.381493228 | AB20: =INDEX(Tariff_D_BO!K:K,MATCH(WithdrawalVol_Summary_BO!$C20,Tariff_D_BO!$C:$C,FALSE),0) -> 333.6508515 | AC20: =INDEX(Tariff_D_BO!L:L,MATCH(WithdrawalVol_Summary_BO!$C20,Tariff_D_BO!$C:$C,FALSE),0) -> 0.8657615037 | AD20: =IF(AC20=0,0,(AB20/365)/AC20) -> 1.055847272 | AF20: 891.2491082 | AG20: 5.274384385 | AH20: =IF(AG20=0,0,(AF20/365)/AG20) -> 0.4629504034 | AJ20: =INDEX(Tariff_V_BO!P:P,MATCH(WithdrawalVol_Summary_BO!$C20,Tariff_V_BO!$C:$C,FALSE),0) -> 564.6686858 | AK20: =INDEX(Tariff_V_BO!T:T,MATCH(WithdrawalVol_Summary_BO!$C20,Tariff_V_BO!$C:$C,FALSE),0) -> 4.371741098 | AL20: =IF(AK20=0,0,(AJ20/365)/AK20) -> 0.3538721669 | AN20: =INDEX(Tariff_D_BO!P:P,MATCH(WithdrawalVol_Summary_BO!$C20,Tariff_D_BO!$C:$C,FALSE),0) -> 326.5804224 | AO20: =INDEX(Tariff_D_BO!T:T,MATCH(WithdrawalVol_Summary_BO!$C20,Tariff_D_BO!$C:$C,FALSE),0) -> 0.902643287 | AP20: =IF(AO20=0,0,(AN20/365)/AO20) -> 0.9912452639 | AR20: 884.308282 | AS20: 4.795024888 | AT20: =IF(AS20=0,0,(AR20/365)/AS20) -> 0.5052658689 | AV20: =INDEX(Tariff_V_BO!W:W,MATCH(WithdrawalVol_Summary_BO!$C20,Tariff_V_BO!$C:$C,FALSE),0) -> 580.8490822 | AW20: =INDEX(Tariff_V_BO!AA:AA,MATCH(WithdrawalVol_Summary_BO!$C20,Tariff_V_BO!$C:$C,FALSE),0) -> 3.949194889 | AX20: =IF(AW20=0,0,(AV20/365)/AW20) -> 0.4029599432 | AZ20: =INDEX(Tariff_D_BO!W:W,MATCH(WithdrawalVol_Summary_BO!$C20,Tariff_D_BO!$C:$C,FALSE),0) -> 303.4591998 | BA20: =INDEX(Tariff_D_BO!AA:AA,MATCH(WithdrawalVol_Summary_BO!$C20,Tariff_D_BO!$C:$C,FALSE),0) -> 0.8458299988 | BB20: =IF(BA20=0,0,(AZ20/365)/BA20) -> 0.9829340047 | BD20: 891.9165555 | BE20: 4.597169316 | BF20: =IF(BE20=0,0,(BD20/365)/BE20) -> 0.5315460087 | BH20: =INDEX(Tariff_V_BO!AD:AD,MATCH(WithdrawalVol_Summary_BO!$C20,Tariff_V_BO!$C:$C,FALSE),0) -> 588.660843 | BI20: =INDEX(Tariff_V_BO!AH:AH,MATCH(WithdrawalVol_Summary_BO!$C20,Tariff_V_BO!$C:$C,FALSE),0) -> 3.769501611 | BJ20: =IF(BI20=0,0,(BH20/365)/BI20) -> 0.4278468613 | BL20: =INDEX(Tariff_D_BO!AD:AD,MATCH(WithdrawalVol_Summary_BO!$C20,Tariff_D_BO!$C:$C,FALSE),0) -> 303.2557124 | BM20: =INDEX(Tariff_D_BO!AH:AH,MATCH(WithdrawalVol_Summary_BO!$C20,Tariff_D_BO!$C:$C,FALSE),0) -> 0.827667705 | BN20: =IF(BM20=0,0,(BL20/365)/BM20) -> 1.003829874 | BP20: 852.7692775 | BQ20: 4.557560446 | BR20: =IF(BQ20=0,0,(BP20/365)/BQ20) -> 0.5126326272 | BT20: =INDEX(Tariff_V_BO!AK:AK,MATCH(WithdrawalVol_Summary_BO!$C20,Tariff_V_BO!$C:$C,FALSE),0) -> 597.8200918 | BU20: =INDEX(Tariff_V_BO!AO:AO,MATCH(WithdrawalVol_Summary_BO!$C20,Tariff_V_BO!$C:$C,FALSE),0) -> 3.750132751 | BV20: =IF(BU20=0,0,(BT20/365)/BU20) -> 0.4367480764 | BX20: =INDEX(Tariff_D_BO!AK:AK,MATCH(WithdrawalVol_Summary_BO!$C20,Tariff_D_BO!$C:$C,FALSE),0) -> 254.9491857 | BY20: =INDEX(Tariff_D_BO!AO:AO,MATCH(WithdrawalVol_Summary_BO!$C20,Tariff_D_BO!$C:$C,FALSE),0) -> 0.8074276951 | BZ20: =IF(BY20=0,0,(BX20/365)/BY20) -> 0.8650816958 | CB20: 817.65835 | CC20: 4.637666159 | CD20: =IF(CC20=0,0,(CB20/365)/CC20) -> 0.4830360328 | CF20: =INDEX(Tariff_V_BO!AR:AR,MATCH(WithdrawalVol_Summary_BO!$C20,Tariff_V_BO!$C:$C,FALSE),0) -> 619.5537032 | CG20: =INDEX(Tariff_V_BO!AV:AV,MATCH(WithdrawalVol_Summary_BO!$C20,Tariff_V_BO!$C:$C,FALSE),0) -> 3.871628859 | CH20: =IF(CG20=0,0,(CF20/365)/CG20) -> 0.4384220358 | CJ20: =INDEX(Tariff_D_BO!AR:AR,MATCH(WithdrawalVol_Summary_BO!$C20,Tariff_D_BO!$C:$C,FALSE),0) -> 198.1046468 | CK20: =INDEX(Tariff_D_BO!AV:AV,MATCH(WithdrawalVol_Summary_BO!$C20,Tariff_D_BO!$C:$C,FALSE),0) -> 0.7660373004 | CL20: =IF(CK20=0,0,(CJ20/365)/CK20) -> 0.7085196201 | CN20: 857.8054531 | CO20: 4.254514398 | CP20: =IF(CO20=0,0,(CN20/365)/CO20) -> 0.5523901688 | CR20: =INDEX(Tariff_V_BO!AY:AY,MATCH(WithdrawalVol_Summary_BO!$C20,Tariff_V_BO!$C:$C,FALSE),0) -> 533.0305317 | CS20: =INDEX(Tariff_V_BO!BC:BC,MATCH(WithdrawalVol_Summary_BO!$C20,Tariff_V_BO!$C:$C,FALSE),0) -> 3.493222858 | CT20: =IF(CS20=0,0,(CR20/365)/CS20) -> 0.4180545246 | CV20: =INDEX(Tariff_D_BO!AY:AY,MATCH(WithdrawalVol_Summary_BO!$C20,Tariff_D_BO!$C:$C,FALSE),0) -> 324.7749214 | CW20: =INDEX(Tariff_D_BO!BC:BC,MATCH(WithdrawalVol_Summary_BO!$C20,Tariff_D_BO!$C:$C,FALSE),0) -> 0.7612915402 | CX20: =IF(CW20=0,0,(CV20/365)/CW20) -> 1.168795735
C21: M167 | D21: =(INDEX('[7]CTM Details'!P$5:P$408,MATCH($C21,'[7]CTM Details'!$B$5:$B$408,FALSE),1)) -> Traralgon North | E21: =(INDEX('[7]CTM Details'!D$5:D$408,MATCH($C21,'[7]CTM Details'!$B$5:$B$408,FALSE),1)) -> 30000204PC | F21: =(INDEX('[7]CTM Details'!U$5:U$408,MATCH($C21,'[7]CTM Details'!$B$5:$B$408,FALSE),1)) -> Latrobe | H21: =L21+P21 -> 0 | I21: =M21+Q21 -> 0 | J21: =IF(I21=0,0,(H21/365)/I21) -> 0 | L21: =INDEX(Tariff_V_BO!H:H,MATCH(WithdrawalVol_Summary_BO!$C21,Tariff_V_BO!$C:$C,FALSE),0) -> 0 | M21: =INDEX(Tariff_V_BO!I:I,MATCH(WithdrawalVol_Summary_BO!$C21,Tariff_V_BO!$C:$C,FALSE),0) -> 0 | N21: =IF(M21=0,0,(L21/365)/M21) -> 0 | P21: =INDEX(Tariff_D_BO!H:H,MATCH(WithdrawalVol_Summary_BO!$C21,Tariff_D_BO!$C:$C,FALSE),0) -> 0 | Q21: =INDEX(Tariff_D_BO!I:I,MATCH(WithdrawalVol_Summary_BO!$C21,Tariff_D_BO!$C:$C,FALSE),0) -> 0 | R21: =IF(Q21=0,0,(P21/365)/Q21) -> 0 | T21: =X21+AB21 -> 0 | U21: =Y21+AC21 -> 0 | V21: =IF(U21=0,0,(T21/365)/U21) -> 0 | X21: =INDEX(Tariff_V_BO!K:K,MATCH(WithdrawalVol_Summary_BO!$C21,Tariff_V_BO!$C:$C,FALSE),0) -> 0 | Y21: =INDEX(Tariff_V_BO!M:M,MATCH(WithdrawalVol_Summary_BO!$C21,Tariff_V_BO!$C:$C,FALSE),0) -> 0 | Z21: =IF(Y21=0,0,(X21/365)/Y21) -> 0 | AB21: =INDEX(Tariff_D_BO!K:K,MATCH(WithdrawalVol_Summary_BO!$C21,Tariff_D_BO!$C:$C,FALSE),0) -> 0 | AC21: =INDEX(Tariff_D_BO!L:L,MATCH(WithdrawalVol_Summary_BO!$C21,Tariff_D_BO!$C:$C,FALSE),0) -> 0 | AD21: =IF(AC21=0,0,(AB21/365)/AC21) -> 0 | AF21: =AJ21+AN21 -> 0 | AG21: =AK21+AO21 -> 0 | AH21: =IF(AG21=0,0,(AF21/365)/AG21) -> 0 | AJ21: =INDEX(Tariff_V_BO!P:P,MATCH(WithdrawalVol_Summary_BO!$C21,Tariff_V_BO!$C:$C,FALSE),0) -> 0 | AK21: =INDEX(Tariff_V_BO!T:T,MATCH(WithdrawalVol_Summary_BO!$C21,Tariff_V_BO!$C:$C,FALSE),0) -> 0 | AL21: =IF(AK21=0,0,(AJ21/365)/AK21) -> 0 | AN21: =INDEX(Tariff_D_BO!P:P,MATCH(WithdrawalVol_Summary_BO!$C21,Tariff_D_BO!$C:$C,FALSE),0) -> 0 | AO21: =INDEX(Tariff_D_BO!T:T,MATCH(WithdrawalVol_Summary_BO!$C21,Tariff_D_BO!$C:$C,FALSE),0) -> 0 | AP21: =IF(AO21=0,0,(AN21/365)/AO21) -> 0 | AR21: =AV21+AZ21 -> 0 | AS21: =AW21+BA21 -> 0 | AT21: =IF(AS21=0,0,(AR21/365)/AS21) -> 0 | AV21: =INDEX(Tariff_V_BO!W:W,MATCH(WithdrawalVol_Summary_BO!$C21,Tariff_V_BO!$C:$C,FALSE),0) -> 0 | AW21: =INDEX(Tariff_V_BO!AA:AA,MATCH(WithdrawalVol_Summary_BO!$C21,Tariff_V_BO!$C:$C,FALSE),0) -> 0 | AX21: =IF(AW21=0,0,(AV21/365)/AW21) -> 0 | AZ21: =INDEX(Tariff_D_BO!W:W,MATCH(WithdrawalVol_Summary_BO!$C21,Tariff_D_BO!$C:$C,FALSE),0) -> 0 | BA21: =INDEX(Tariff_D_BO!AA:AA,MATCH(WithdrawalVol_Summary_BO!$C21,Tariff_D_BO!$C:$C,FALSE),0) -> 0 | BB21: =IF(BA21=0,0,(AZ21/365)/BA21) -> 0 | BD21: =BH21+BL21 -> 0 | BE21: =BI21+BM21 -> 0 | BF21: =IF(BE21=0,0,(BD21/365)/BE21) -> 0 | BH21: =INDEX(Tariff_V_BO!AD:AD,MATCH(WithdrawalVol_Summary_BO!$C21,Tariff_V_BO!$C:$C,FALSE),0) -> 0 | BI21: =INDEX(Tariff_V_BO!AH:AH,MATCH(WithdrawalVol_Summary_BO!$C21,Tariff_V_BO!$C:$C,FALSE),0) -> 0 | BJ21: =IF(BI21=0,0,(BH21/365)/BI21) -> 0 | BL21: =INDEX(Tariff_D_BO!AD:AD,MATCH(WithdrawalVol_Summary_BO!$C21,Tariff_D_BO!$C:$C,FALSE),0) -> 0 | BM21: =INDEX(Tariff_D_BO!AH:AH,MATCH(WithdrawalVol_Summary_BO!$C21,Tariff_D_BO!$C:$C,FALSE),0) -> 0 | BN21: =IF(BM21=0,0,(BL21/365)/BM21) -> 0 | BP21: =BT21+BX21 -> 0 | BQ21: =BU21+BY21 -> 0 | BR21: =IF(BQ21=0,0,(BP21/365)/BQ21) -> 0 | BT21: =INDEX(Tariff_V_BO!AK:AK,MATCH(WithdrawalVol_Summary_BO!$C21,Tariff_V_BO!$C:$C,FALSE),0) -> 0 | BU21: =INDEX(Tariff_V_BO!AO:AO,MATCH(WithdrawalVol_Summary_BO!$C21,Tariff_V_BO!$C:$C,FALSE),0) -> 0 | BV21: =IF(BU21=0,0,(BT21/365)/BU21) -> 0 | BX21: =INDEX(Tariff_D_BO!AK:AK,MATCH(WithdrawalVol_Summary_BO!$C21,Tariff_D_BO!$C:$C,FALSE),0) -> 0 | BY21: =INDEX(Tariff_D_BO!AO:AO,MATCH(WithdrawalVol_Summary_BO!$C21,Tariff_D_BO!$C:$C,FALSE),0) -> 0 | BZ21: =IF(BY21=0,0,(BX21/365)/BY21) -> 0 | CB21: =CF21+CJ21 -> 0 | CC21: =CG21+CK21 -> 0 | CD21: =IF(CC21=0,0,(CB21/365)/CC21) -> 0 | CF21: =INDEX(Tariff_V_BO!AR:AR,MATCH(WithdrawalVol_Summary_BO!$C21,Tariff_V_BO!$C:$C,FALSE),0) -> 0 | CG21: =INDEX(Tariff_V_BO!AV:AV,MATCH(WithdrawalVol_Summary_BO!$C21,Tariff_V_BO!$C:$C,FALSE),0) -> 0 | CH21: =IF(CG21=0,0,(CF21/365)/CG21) -> 0 | CJ21: =INDEX(Tariff_D_BO!AR:AR,MATCH(WithdrawalVol_Summary_BO!$C21,Tariff_D_BO!$C:$C,FALSE),0) -> 0 | CK21: =INDEX(Tariff_D_BO!AV:AV,MATCH(WithdrawalVol_Summary_BO!$C21,Tariff_D_BO!$C:$C,FALSE),0) -> 0 | CL21: =IF(CK21=0,0,(CJ21/365)/CK21) -> 0 | CN21: =CR21+CV21 -> 0 | CO21: =CS21+CW21 -> 0 | CP21: =IF(CO21=0,0,(CN21/365)/CO21) -> 0 | CR21: =INDEX(Tariff_V_BO!AY:AY,MATCH(WithdrawalVol_Summary_BO!$C21,Tariff_V_BO!$C:$C,FALSE),0) -> 0 | CS21: =INDEX(Tariff_V_BO!BC:BC,MATCH(WithdrawalVol_Summary_BO!$C21,Tariff_V_BO!$C:$C,FALSE),0) -> 0 | CT21: =IF(CS21=0,0,(CR21/365)/CS21) -> 0 | CV21: =INDEX(Tariff_D_BO!AY:AY,MATCH(WithdrawalVol_Summary_BO!$C21,Tariff_D_BO!$C:$C,FALSE),0) -> 0 | CW21: =INDEX(Tariff_D_BO!BC:BC,MATCH(WithdrawalVol_Summary_BO!$C21,Tariff_D_BO!$C:$C,FALSE),0) -> 0 | CX21: =IF(CW21=0,0,(CV21/365)/CW21) -> 0
C22: M134 | D22: =(INDEX('[7]CTM Details'!P$5:P$408,MATCH($C22,'[7]CTM Details'!$B$5:$B$408,FALSE),1)) -> EMEAL Loy Yang | E22: =(INDEX('[7]CTM Details'!D$5:D$408,MATCH($C22,'[7]CTM Details'!$B$5:$B$408,FALSE),1)) -> 30000164PC | F22: =(INDEX('[7]CTM Details'!U$5:U$408,MATCH($C22,'[7]CTM Details'!$B$5:$B$408,FALSE),1)) -> LaTrobe | H22: 371.5728245 | I22: 1.372283113 | J22: =IF(I22=0,0,(H22/365)/I22) -> 0.7418350696 | P22: =INDEX(Annual_CTM_BO!G:G,MATCH(WithdrawalVol_Summary_BO!$E22,Annual_CTM_BO!$E:$E,FALSE),0) -> 371.5728245 | Q22: =INDEX(Annual_CTM_BO!H:H,MATCH(WithdrawalVol_Summary_BO!$E22,Annual_CTM_BO!$E:$E,FALSE),0) -> 1.372283113 | R22: =IF(Q22=0,0,(P22/365)/Q22) -> 0.7418350696 | T22: 371.5728245 | U22: 1.372283113 | V22: =IF(U22=0,0,(T22/365)/U22) -> 0.7418350696 | AB22: =INDEX(Annual_CTM_BO!J:J,MATCH(WithdrawalVol_Summary_BO!$E22,Annual_CTM_BO!$E:$E,FALSE),0) -> 371.5728245 | AC22: =INDEX(Annual_CTM_BO!L:L,MATCH(WithdrawalVol_Summary_BO!$E22,Annual_CTM_BO!$E:$E,FALSE),0) -> 1.372283113 | AD22: =IF(AC22=0,0,(AB22/365)/AC22) -> 0.7418350696 | AF22: 143.2389336 | AG22: 0.5290063125 | AH22: =IF(AG22=0,0,(AF22/365)/AG22) -> 0.7418350696 | AN22: =INDEX(Annual_CTM_BO!O:O,MATCH(WithdrawalVol_Summary_BO!$E22,Annual_CTM_BO!$E:$E,FALSE),0) -> 143.2389336 | AO22: =INDEX(Annual_CTM_BO!S:S,MATCH(WithdrawalVol_Summary_BO!$E22,Annual_CTM_BO!$E:$E,FALSE),0) -> 0.5290063125 | AP22: =IF(AO22=0,0,(AN22/365)/AO22) -> 0.7418350696 | AR22: 130.3841575 | AS22: 0.6805662263 | AT22: =IF(AS22=0,0,(AR22/365)/AS22) -> 0.5248818648 | AZ22: =INDEX(Annual_CTM_BO!V:V,MATCH(WithdrawalVol_Summary_BO!$E22,Annual_CTM_BO!$E:$E,FALSE),0) -> 130.3841575 | BA22: =INDEX(Annual_CTM_BO!Z:Z,MATCH(WithdrawalVol_Summary_BO!$E22,Annual_CTM_BO!$E:$E,FALSE),0) -> 0.6805662263 | BB22: =IF(BA22=0,0,(AZ22/365)/BA22) -> 0.5248818648 | BD22: 73.4558634 | BE22: 0.2860444684 | BF22: =IF(BE22=0,0,(BD22/365)/BE22) -> 0.7035582332 | BL22: =INDEX(Annual_CTM_BO!AC:AC,MATCH(WithdrawalVol_Summary_BO!$E22,Annual_CTM_BO!$E:$E,FALSE),0) -> 73.4558634 | BM22: =INDEX(Annual_CTM_BO!AG:AG,MATCH(WithdrawalVol_Summary_BO!$E22,Annual_CTM_BO!$E:$E,FALSE),0) -> 0.2860444684 | BN22: =IF(BM22=0,0,(BL22/365)/BM22) -> 0.7035582332 | BP22: 64.27388048 | BQ22: 0.25970214 | BR22: =IF(BQ22=0,0,(BP22/365)/BQ22) -> 0.6780568817 | BX22: =INDEX(Annual_CTM_BO!AJ:AJ,MATCH(WithdrawalVol_Summary_BO!$E22,Annual_CTM_BO!$E:$E,FALSE),0) -> 64.27388048 | BY22: =INDEX(Annual_CTM_BO!AN:AN,MATCH(WithdrawalVol_Summary_BO!$E22,Annual_CTM_BO!$E:$E,FALSE),0) -> 0.25970214 | BZ22: =IF(BY22=0,0,(BX22/365)/BY22) -> 0.6780568817 | CB22: 80.80144974 | CC22: 0.4701315102 | CD22: =IF(CC22=0,0,(CB22/365)/CC22) -> 0.470876404 | CJ22: =INDEX(Annual_CTM_BO!AQ:AQ,MATCH(WithdrawalVol_Summary_BO!$E22,Annual_CTM_BO!$E:$E,FALSE),0) -> 80.80144974 | CK22: =INDEX(Annual_CTM_BO!AU:AU,MATCH(WithdrawalVol_Summary_BO!$E22,Annual_CTM_BO!$E:$E,FALSE),0) -> 0.4701315102 | CL22: =IF(CK22=0,0,(CJ22/365)/CK22) -> 0.470876404 | CN22: 85.51488654 | CO22: 0.2777705311 | CP22: =IF(CO22=0,0,(CN22/365)/CO22) -> 0.8434565015 | CV22: =INDEX(Annual_CTM_BO!AX:AX,MATCH(WithdrawalVol_Summary_BO!$E22,Annual_CTM_BO!$E:$E,FALSE),0) -> 85.51488654 | CW22: =INDEX(Annual_CTM_BO!BB:BB,MATCH(WithdrawalVol_Summary_BO!$E22,Annual_CTM_BO!$E:$E,FALSE),0) -> 0.2777705311 | CX22: =IF(CW22=0,0,(CV22/365)/CW22) -> 0.8434565015
C24: La Trobe | AR24: =SUM(AR18:AR22) -> 2026.851353 | AS24: =SUM(AS18:AS22) -> 9.581431923 | AT24: =IF(AS24=0,0,(AR24/365)/AS24) -> 0.5795602839 | BD24: =SUM(BD18:BD22) -> 1985.650442 | BE24: =SUM(BE18:BE22) -> 8.762127115 | BF24: =IF(BE24=0,0,(BD24/365)/BE24) -> 0.6208695817 | BP24: =SUM(BP18:BP22) -> 1885.213958 | BQ24: =SUM(BQ18:BQ22) -> 8.597454506 | BR24: =IF(BQ24=0,0,(BP24/365)/BQ24) -> 0.600755694 | CB24: =SUM(CB18:CB22) -> 1817.066016 | CC24: =SUM(CC18:CC22) -> 8.937574813 | CD24: =IF(CC24=0,0,(CB24/365)/CC24) -> 0.5570037914 | CN24: =SUM(CN18:CN22) -> 1931.510747 | CO24: =SUM(CO18:CO22) -> 8.061310983 | CP24: =IF(CO24=0,0,(CN24/365)/CO24) -> 0.6564453694
C26: M104 | D26: =(INDEX('[7]CTM Details'!P$5:P$408,MATCH($C26,'[7]CTM Details'!$B$5:$B$408,FALSE),1)) -> PaperlinX Ltd | E26: =(INDEX('[7]CTM Details'!D$5:D$408,MATCH($C26,'[7]CTM Details'!$B$5:$B$408,FALSE),1)) -> 30000097PC | F26: =(INDEX('[7]CTM Details'!U$5:U$408,MATCH($C26,'[7]CTM Details'!$B$5:$B$408,FALSE),1)) -> Maryvale | AR26: =AV26+AZ26 -> 5570.475597 | AS26: =AW26+BA26 -> 17.49123168 | AT26: =IF(AS26=0,0,(AR26/365)/AS26) -> 0.87252729 | AV26: =INDEX(Tariff_V_BO!W:W,MATCH(WithdrawalVol_Summary_BO!$C26,Tariff_V_BO!$C:$C,FALSE),0) -> 0 | AW26: =INDEX(Tariff_V_BO!AA:AA,MATCH(WithdrawalVol_Summary_BO!$C26,Tariff_V_BO!$C:$C,FALSE),0) -> 0 | AX26: =IF(AW26=0,0,(AV26/365)/AW26) -> 0 | AZ26: =INDEX(Tariff_D_BO!W:W,MATCH(WithdrawalVol_Summary_BO!$C26,Tariff_D_BO!$C:$C,FALSE),0) -> 5570.475597 | BA26: =INDEX(Tariff_D_BO!AA:AA,MATCH(WithdrawalVol_Summary_BO!$C26,Tariff_D_BO!$C:$C,FALSE),0) -> 17.49123168 | BB26: =IF(BA26=0,0,(AZ26/365)/BA26) -> 0.87252729 | BD26: =BH26+BL26 -> 5566.740263 | BE26: =BI26+BM26 -> 16.52604301 | BF26: =IF(BE26=0,0,(BD26/365)/BE26) -> 0.9228672092 | BH26: =INDEX(Tariff_V_BO!AD:AD,MATCH(WithdrawalVol_Summary_BO!$C26,Tariff_V_BO!$C:$C,FALSE),0) -> 0 | BI26: =INDEX(Tariff_V_BO!AH:AH,MATCH(WithdrawalVol_Summary_BO!$C26,Tariff_V_BO!$C:$C,FALSE),0) -> 0 | BJ26: =IF(BI26=0,0,(BH26/365)/BI26) -> 0 | BL26: =INDEX(Tariff_D_BO!AD:AD,MATCH(WithdrawalVol_Summary_BO!$C26,Tariff_D_BO!$C:$C,FALSE),0) -> 5566.740263 | BM26: =INDEX(Tariff_D_BO!AH:AH,MATCH(WithdrawalVol_Summary_BO!$C26,Tariff_D_BO!$C:$C,FALSE),0) -> 16.52604301 | BN26: =IF(BM26=0,0,(BL26/365)/BM26) -> 0.9228672092 | BP26: =BT26+BX26 -> 4679.997239 | BQ26: =BU26+BY26 -> 15.87889735 | BR26: =IF(BQ26=0,0,(BP26/365)/BQ26) -> 0.8074811469 | BT26: =INDEX(Tariff_V_BO!AK:AK,MATCH(WithdrawalVol_Summary_BO!$C26,Tariff_V_BO!$C:$C,FALSE),0) -> 0 | BU26: =INDEX(Tariff_V_BO!AO:AO,MATCH(WithdrawalVol_Summary_BO!$C26,Tariff_V_BO!$C:$C,FALSE),0) -> 0 | BV26: =IF(BU26=0,0,(BT26/365)/BU26) -> 0 | BX26: =INDEX(Tariff_D_BO!AK:AK,MATCH(WithdrawalVol_Summary_BO!$C26,Tariff_D_BO!$C:$C,FALSE),0) -> 4679.997239 | BY26: =INDEX(Tariff_D_BO!AO:AO,MATCH(WithdrawalVol_Summary_BO!$C26,Tariff_D_BO!$C:$C,FALSE),0) -> 15.87889735 | BZ26: =IF(BY26=0,0,(BX26/365)/BY26) -> 0.8074811469 | CB26: =CF26+CJ26 -> 3636.525442 | CC26: =CG26+CK26 -> 15.53115691 | CD26: =IF(CC26=0,0,(CB26/365)/CC26) -> 0.6414901001 | CF26: =INDEX(Tariff_V_BO!AR:AR,MATCH(WithdrawalVol_Summary_BO!$C26,Tariff_V_BO!$C:$C,FALSE),0) -> 0 | CG26: =INDEX(Tariff_V_BO!AV:AV,MATCH(WithdrawalVol_Summary_BO!$C26,Tariff_V_BO!$C:$C,FALSE),0) -> 0 | CH26: =IF(CG26=0,0,(CF26/365)/CG26) -> 0 | CJ26: =INDEX(Tariff_D_BO!AR:AR,MATCH(WithdrawalVol_Summary_BO!$C26,Tariff_D_BO!$C:$C,FALSE),0) -> 3636.525442 | CK26: =INDEX(Tariff_D_BO!AV:AV,MATCH(WithdrawalVol_Summary_BO!$C26,Tariff_D_BO!$C:$C,FALSE),0) -> 15.53115691 | CL26: =IF(CK26=0,0,(CJ26/365)/CK26) -> 0.6414901001 | CN26: =CR26+CV26 -> 5961.759523 | CO26: =CS26+CW26 -> 14.82723402 | CP26: =IF(CO26=0,0,(CN26/365)/CO26) -> 1.10159371 | CR26: =INDEX(Tariff_V_BO!AY:AY,MATCH(WithdrawalVol_Summary_BO!$C26,Tariff_V_BO!$C:$C,FALSE),0) -> 0 | CS26: =INDEX(Tariff_V_BO!BC:BC,MATCH(WithdrawalVol_Summary_BO!$C26,Tariff_V_BO!$C:$C,FALSE),0) -> 0 | CT26: =IF(CS26=0,0,(CR26/365)/CS26) -> 0 | CV26: =INDEX(Tariff_D_BO!AY:AY,MATCH(WithdrawalVol_Summary_BO!$C26,Tariff_D_BO!$C:$C,FALSE),0) -> 5961.759523 | CW26: =INDEX(Tariff_D_BO!BC:BC,MATCH(WithdrawalVol_Summary_BO!$C26,Tariff_D_BO!$C:$C,FALSE),0) -> 14.82723402 | CX26: =IF(CW26=0,0,(CV26/365)/CW26) -> 1.10159371
C28: Maryvale | AR28: =AR26 -> 5570.475597 | AS28: =AS26 -> 17.49123168 | AT28: =AT26 -> 0.87252729 | BD28: =BD26 -> 5566.740263 | BE28: =BE26 -> 16.52604301 | BF28: =BF26 -> 0.9228672092 | BP28: =BP26 -> 4679.997239 | BQ28: =BQ26 -> 15.87889735 | BR28: =BR26 -> 0.8074811469 | CB28: =CB26 -> 3636.525442 | CC28: =CC26 -> 15.53115691 | CD28: =CD26 -> 0.6414901001 | CN28: =CN26 -> 5961.759523 | CO28: =CO26 -> 14.82723402 | CP28: =CP26 -> 1.10159371
C30: M060 | D30: =(INDEX('[7]CTM Details'!P$5:P$408,MATCH($C30,'[7]CTM Details'!$B$5:$B$408,FALSE),1)) -> Churchill | E30: =(INDEX('[7]CTM Details'!D$5:D$408,MATCH($C30,'[7]CTM Details'!$B$5:$B$408,FALSE),1)) -> 30000055PC | F30: =(INDEX('[7]CTM Details'!U$5:U$408,MATCH($C30,'[7]CTM Details'!$B$5:$B$408,FALSE),1)) -> Tyers | L30: =INDEX(Tariff_V_BO!H:H,MATCH(WithdrawalVol_Summary_BO!$C30,Tariff_V_BO!$C:$C,FALSE),0) -> 105.9098403 | M30: =INDEX(Tariff_V_BO!I:I,MATCH(WithdrawalVol_Summary_BO!$C30,Tariff_V_BO!$C:$C,FALSE),0) -> 0.7136003947 | N30: =IF(M30=0,0,(L30/365)/M30) -> 0.4066196544 | P30: =INDEX(Tariff_D_BO!H:H,MATCH(WithdrawalVol_Summary_BO!$C30,Tariff_D_BO!$C:$C,FALSE),0) -> 22.17691936 | Q30: =INDEX(Tariff_D_BO!I:I,MATCH(WithdrawalVol_Summary_BO!$C30,Tariff_D_BO!$C:$C,FALSE),0) -> 0.1027065797 | R30: =IF(Q30=0,0,(P30/365)/Q30) -> 0.5915753727 | T30: =X30+AB30 -> 124.5378997 | U30: 0.6837272512 | V30: =IF(U30=0,0,(T30/365)/U30) -> 0.4990289981 | X30: =INDEX(Tariff_V_BO!K:K,MATCH(WithdrawalVol_Summary_BO!$C30,Tariff_V_BO!$C:$C,FALSE),0) -> 102.7709783 | Y30: =INDEX(Tariff_V_BO!M:M,MATCH(WithdrawalVol_Summary_BO!$C30,Tariff_V_BO!$C:$C,FALSE),0) -> 0.5877859236 | Z30: =IF(Y30=0,0,(X30/365)/Y30) -> 0.4790252926 | AB30: =INDEX(Tariff_D_BO!K:K,MATCH(WithdrawalVol_Summary_BO!$C30,Tariff_D_BO!$C:$C,FALSE),0) -> 21.76692141 | AC30: =INDEX(Tariff_D_BO!L:L,MATCH(WithdrawalVol_Summary_BO!$C30,Tariff_D_BO!$C:$C,FALSE),0) -> 0.09594132761 | AD30: =IF(AC30=0,0,(AB30/365)/AC30) -> 0.6215819879 | AF30: =AJ30+AN30 -> 144.9725911 | AG30: 0.8625334992 | AH30: =IF(AG30=0,0,(AF30/365)/AG30) -> 0.4604866726 | AJ30: =INDEX(Tariff_V_BO!P:P,MATCH(WithdrawalVol_Summary_BO!$C30,Tariff_V_BO!$C:$C,FALSE),0) -> 123.6669347 | AK30: =INDEX(Tariff_V_BO!T:T,MATCH(WithdrawalVol_Summary_BO!$C30,Tariff_V_BO!$C:$C,FALSE),0) -> 0.762505033 | AL30: =IF(AK30=0,0,(AJ30/365)/AK30) -> 0.4443426667 | AN30: =INDEX(Tariff_D_BO!P:P,MATCH(WithdrawalVol_Summary_BO!$C30,Tariff_D_BO!$C:$C,FALSE),0) -> 21.30565637 | AO30: =INDEX(Tariff_D_BO!T:T,MATCH(WithdrawalVol_Summary_BO!$C30,Tariff_D_BO!$C:$C,FALSE),0) -> 0.1000284662 | AP30: =IF(AO30=0,0,(AN30/365)/AO30) -> 0.5835504982 | AR30: =AV30+AZ30 -> 147.0078299 | AS30: 0.7144113762 | AT30: =IF(AS30=0,0,(AR30/365)/AS30) -> 0.5637664675 | AV30: =INDEX(Tariff_V_BO!W:W,MATCH(WithdrawalVol_Summary_BO!$C30,Tariff_V_BO!$C:$C,FALSE),0) -> 127.2105702 | AW30: =INDEX(Tariff_V_BO!AA:AA,MATCH(WithdrawalVol_Summary_BO!$C30,Tariff_V_BO!$C:$C,FALSE),0) -> 0.6288390751 | AX30: =IF(AW30=0,0,(AV30/365)/AW30) -> 0.5542310013 | AZ30: =INDEX(Tariff_D_BO!W:W,MATCH(WithdrawalVol_Summary_BO!$C30,Tariff_D_BO!$C:$C,FALSE),0) -> 19.79725969 | BA30: =INDEX(Tariff_D_BO!AA:AA,MATCH(WithdrawalVol_Summary_BO!$C30,Tariff_D_BO!$C:$C,FALSE),0) -> 0.08557230111 | BB30: =IF(BA30=0,0,(AZ30/365)/BA30) -> 0.6338390689 | BD30: =BH30+BL30 -> 148.7053925 | BE30: 0.6822195847 | BF30: =IF(BE30=0,0,(BD30/365)/BE30) -> 0.5971860722 | BH30: =INDEX(Tariff_V_BO!AD:AD,MATCH(WithdrawalVol_Summary_BO!$C30,Tariff_V_BO!$C:$C,FALSE),0) -> 128.921408 | BI30: =INDEX(Tariff_V_BO!AH:AH,MATCH(WithdrawalVol_Summary_BO!$C30,Tariff_V_BO!$C:$C,FALSE),0) -> 0.5986979442 | BJ30: =IF(BI30=0,0,(BH30/365)/BI30) -> 0.5899625018 | BL30: =INDEX(Tariff_D_BO!AD:AD,MATCH(WithdrawalVol_Summary_BO!$C30,Tariff_D_BO!$C:$C,FALSE),0) -> 19.78398446 | BM30: =INDEX(Tariff_D_BO!AH:AH,MATCH(WithdrawalVol_Summary_BO!$C30,Tariff_D_BO!$C:$C,FALSE),0) -> 0.08352164049 | BN30: =IF(BM30=0,0,(BL30/365)/BM30) -> 0.6489659066 | BP30: =BT30+BX30 -> 147.5598896 | BQ30: 0.6744868094 | BR30: =IF(BQ30=0,0,(BP30/365)/BQ30) -> 0.5993796537 | BT30: =INDEX(Tariff_V_BO!AK:AK,MATCH(WithdrawalVol_Summary_BO!$C30,Tariff_V_BO!$C:$C,FALSE),0) -> 130.9273564 | BU30: =INDEX(Tariff_V_BO!AO:AO,MATCH(WithdrawalVol_Summary_BO!$C30,Tariff_V_BO!$C:$C,FALSE),0) -> 0.5933221888 | BV30: =IF(BU30=0,0,(BT30/365)/BU30) -> 0.6045704892 | BX30: =INDEX(Tariff_D_BO!AK:AK,MATCH(WithdrawalVol_Summary_BO!$C30,Tariff_D_BO!$C:$C,FALSE),0) -> 16.63253327 | BY30: =INDEX(Tariff_D_BO!AO:AO,MATCH(WithdrawalVol_Summary_BO!$C30,Tariff_D_BO!$C:$C,FALSE),0) -> 0.08116462063 | BZ30: =IF(BY30=0,0,(BX30/365)/BY30) -> 0.5614340824 | CB30: =CF30+CJ30 -> 148.6112641 | CC30: 0.6881552737 | CD30: =IF(CC30=0,0,(CB30/365)/CC30) -> 0.5916602892 | CF30: =INDEX(Tariff_V_BO!AR:AR,MATCH(WithdrawalVol_Summary_BO!$C30,Tariff_V_BO!$C:$C,FALSE),0) -> 135.6871902 | CG30: =INDEX(Tariff_V_BO!AV:AV,MATCH(WithdrawalVol_Summary_BO!$C30,Tariff_V_BO!$C:$C,FALSE),0) -> 0.6113069019 | CH30: =IF(CG30=0,0,(CF30/365)/CG30) -> 0.6081163575 | CJ30: =INDEX(Tariff_D_BO!AR:AR,MATCH(WithdrawalVol_Summary_BO!$C30,Tariff_D_BO!$C:$C,FALSE),0) -> 12.92407395 | CK30: =INDEX(Tariff_D_BO!AV:AV,MATCH(WithdrawalVol_Summary_BO!$C30,Tariff_D_BO!$C:$C,FALSE),0) -> 0.07684837182 | CL30: =IF(CK30=0,0,(CJ30/365)/CK30) -> 0.4607569549 | CN30: =CR30+CV30 -> 137.9257952 | CO30: 0.6296158171 | CP30: =IF(CO30=0,0,(CN30/365)/CO30) -> 0.6001737579 | CR30: =INDEX(Tariff_V_BO!AY:AY,MATCH(WithdrawalVol_Summary_BO!$C30,Tariff_V_BO!$C:$C,FALSE),0) -> 116.7379272 | CS30: =INDEX(Tariff_V_BO!BC:BC,MATCH(WithdrawalVol_Summary_BO!$C30,Tariff_V_BO!$C:$C,FALSE),0) -> 0.5530386391 | CT30: =IF(CS30=0,0,(CR30/365)/CS30) -> 0.5783139098 | CV30: =INDEX(Tariff_D_BO!AY:AY,MATCH(WithdrawalVol_Summary_BO!$C30,Tariff_D_BO!$C:$C,FALSE),0) -> 21.18786797 | CW30: =INDEX(Tariff_D_BO!BC:BC,MATCH(WithdrawalVol_Summary_BO!$C30,Tariff_D_BO!$C:$C,FALSE),0) -> 0.07657717808 | CX30: =IF(CW30=0,0,(CV30/365)/CW30) -> 0.7580450835
C31: M071 | D31: =(INDEX('[7]CTM Details'!P$5:P$408,MATCH($C31,'[7]CTM Details'!$B$5:$B$408,FALSE),1)) -> Morwell (Loy Yang) | E31: =(INDEX('[7]CTM Details'!D$5:D$408,MATCH($C31,'[7]CTM Details'!$B$5:$B$408,FALSE),1)) -> 30000066PC | F31: =(INDEX('[7]CTM Details'!U$5:U$408,MATCH($C31,'[7]CTM Details'!$B$5:$B$408,FALSE),1)) -> Tyers | H31: =L31+P31 -> 40.94220568 | I31: =M31+Q31 -> 0.1512066915 | J31: =IF(I31=0,0,(H31/365)/I31) -> 0.7418350696 | P31: =INDEX(Annual_CTM_BO!G:G,MATCH(WithdrawalVol_Summary_BO!$E31,Annual_CTM_BO!$E:$E,FALSE),0) -> 40.94220568 | Q31: =INDEX(Annual_CTM_BO!H:H,MATCH(WithdrawalVol_Summary_BO!$E31,Annual_CTM_BO!$E:$E,FALSE),0) -> 0.1512066915 | R31: =IF(Q31=0,0,(P31/365)/Q31) -> 0.7418350696 | T31: 40.94220568 | U31: 0.1512066915 | V31: =IF(U31=0,0,(T31/365)/U31) -> 0.7418350696 | AB31: =INDEX(Annual_CTM_BO!J:J,MATCH(WithdrawalVol_Summary_BO!$E31,Annual_CTM_BO!$E:$E,FALSE),0) -> 40.94220568 | AC31: =INDEX(Annual_CTM_BO!L:L,MATCH(WithdrawalVol_Summary_BO!$E31,Annual_CTM_BO!$E:$E,FALSE),0) -> 0.1512066915 | AD31: =IF(AC31=0,0,(AB31/365)/AC31) -> 0.7418350696 | AF31: 15.78295692 | AG31: 0.05828920692 | AH31: =IF(AG31=0,0,(AF31/365)/AG31) -> 0.7418350696 | AN31: =INDEX(Annual_CTM_BO!O:O,MATCH(WithdrawalVol_Summary_BO!$E31,Annual_CTM_BO!$E:$E,FALSE),0) -> 15.78295692 | AO31: =INDEX(Annual_CTM_BO!S:S,MATCH(WithdrawalVol_Summary_BO!$E31,Annual_CTM_BO!$E:$E,FALSE),0) -> 0.05828920692 | AP31: =IF(AO31=0,0,(AN31/365)/AO31) -> 0.7418350696 | AR31: 14.36653771 | AS31: 0.0749890212 | AT31: =IF(AS31=0,0,(AR31/365)/AS31) -> 0.5248818648 | AZ31: =INDEX(Annual_CTM_BO!V:V,MATCH(WithdrawalVol_Summary_BO!$E31,Annual_CTM_BO!$E:$E,FALSE),0) -> 14.36653771 | BA31: =INDEX(Annual_CTM_BO!Z:Z,MATCH(WithdrawalVol_Summary_BO!$E31,Annual_CTM_BO!$E:$E,FALSE),0) -> 0.0749890212 | BB31: =IF(BA31=0,0,(AZ31/365)/BA31) -> 0.5248818648 | BD31: 8.093824063 | BE31: 0.03151815926 | BF31: =IF(BE31=0,0,(BD31/365)/BE31) -> 0.7035582332 | BL31: =INDEX(Annual_CTM_BO!AC:AC,MATCH(WithdrawalVol_Summary_BO!$E31,Annual_CTM_BO!$E:$E,FALSE),0) -> 8.093824063 | BM31: =INDEX(Annual_CTM_BO!AG:AG,MATCH(WithdrawalVol_Summary_BO!$E31,Annual_CTM_BO!$E:$E,FALSE),0) -> 0.03151815926 | BN31: =IF(BM31=0,0,(BL31/365)/BM31) -> 0.7035582332 | BP31: 7.082096055 | BQ31: 0.02861559762 | BR31: =IF(BQ31=0,0,(BP31/365)/BQ31) -> 0.6780568817 | BX31: =INDEX(Annual_CTM_BO!AJ:AJ,MATCH(WithdrawalVol_Summary_BO!$E31,Annual_CTM_BO!$E:$E,FALSE),0) -> 7.082096055 | BY31: =INDEX(Annual_CTM_BO!AN:AN,MATCH(WithdrawalVol_Summary_BO!$E31,Annual_CTM_BO!$E:$E,FALSE),0) -> 0.02861559762 | BZ31: =IF(BY31=0,0,(BX31/365)/BY31) -> 0.6780568817 | CB31: 8.903206469 | CC31: 0.05180201489 | CD31: =IF(CC31=0,0,(CB31/365)/CC31) -> 0.470876404 | CJ31: =INDEX(Annual_CTM_BO!AQ:AQ,MATCH(WithdrawalVol_Summary_BO!$E31,Annual_CTM_BO!$E:$E,FALSE),0) -> 8.903206469 | CK31: =INDEX(Annual_CTM_BO!AU:AU,MATCH(WithdrawalVol_Summary_BO!$E31,Annual_CTM_BO!$E:$E,FALSE),0) -> 0.05180201489 | CL31: =IF(CK31=0,0,(CJ31/365)/CK31) -> 0.470876404 | CN31: 9.422562261 | CO31: 0.03060648537 | CP31: =IF(CO31=0,0,(CN31/365)/CO31) -> 0.8434565015 | CV31: =INDEX(Annual_CTM_BO!AX:AX,MATCH(WithdrawalVol_Summary_BO!$E31,Annual_CTM_BO!$E:$E,FALSE),0) -> 9.422562261 | CW31: =INDEX(Annual_CTM_BO!BB:BB,MATCH(WithdrawalVol_Summary_BO!$E31,Annual_CTM_BO!$E:$E,FALSE),0) -> 0.03060648537 | CX31: =IF(CW31=0,0,(CV31/365)/CW31) -> 0.8434565015
... 32 more rows

Sheet 2023 Cost Breakdown -->
C9: 2023 Tariffs
C10: Section 4.
C11: =Model_Name -> VTS Tariff Model
C12: Go to Table of Contents
C13: ç | D13: è
C17: Section Cover Notes:
C18: Breakdown of cost allocation based on the figures provided in ORC Replacement Values

Sheet 2023Allocation-Direct_BO
B1: 2023 Revenue Allocation - Direct
B2: =Model_Name -> VTS Tariff Model | L2: Cells highlighted yellow have manual changes to formulas
B3: Go to Table of Contents
A4: é | B4: ç | C4: è
T6: Capital Raising ($) | Y6: Asset Return ($) | AG6: Asset Depreciation ($) | AO6: Direct Operating & Maintenance ($)
C7: Asset Group Number | G7: Tariff Zone | H7: Start Location | I7: End Location | J7: Pipeline Length | K7: Allocation % | L7: Compressor ORC @ year end | M7: City Gates & Field Regulators ORC @ year end | N7: Pipeline ORC @ year end | P7: Direct Costs Allocated to Asset Zones | R7: Total Capital Raising | T7: Amortisation of Financing | U7: Amortisation of Debt Raising | W7: Total Direct Asset Return | Y7: Pipelines | Z7: City Gates & Field Regulators | AA7: Compressors | AB7: Odourant Plants | AC7: Direct Augmentations | AE7: Total Direct Depreciation | AG7: Pipelines | AH7: City Gates & Field Regulators | AI7: Compressors | AJ7: Odourant Plants | AK7: Direct Augmentations | AM7: Total Direct O&M | AO7: Pipes | AP7: City Gates & Field Regulators | AQ7: Compressors | AR7: Comp. Fuel | AS7: Odourising
C8: Total | J8: =SUM(J12:J51) -> 1892.71093 | L8: =SUM(L12:L51) -> 259554533.4 | M8: =SUM(M12:M51) -> 62344599.37 | N8: =SUM(N12:N51) -> 1766997867 | P8: =SUM(P12:P51) -> 96726364.64 | R8: =SUM(R12:R51) -> 679495.8783 | U8: =SUM(U12:U51) -> 679495.8783 | W8: =SUM(W12:W51) -> 64485751.37 | Y8: =SUM(Y12:Y51) -> 48835340.49 | Z8: =SUM(Z12:Z51) -> 3453454.196 | AA8: 12184447.3 | AB8: 12509.38341 | AC8: 0 | AE8: =SUM(AE12:AE51) -> -111954.7096 | AG8: =SUM(AG12:AG51) -> -2952823.199 | AH8: 1158232.142 | AI8: 1671369.93 | AJ8: 11266.41698 | AK8: 0 | AM8: =SUM(AM12:AM51) -> 31673072.1 | AO8: 21047140.05 | AP8: 1178927.072 | AQ8: 8708249.507 | AR8: 0 | AS8: 738755.4675
C9: Injection Zones | P9: =P12+P13+P15+P19+P48+P50+P51 -> 28304698.79 | R9: =R12+R13+R15+R19+R48+R50+R51 -> 203792.3889 | W9: =W12+W13+W15+W19+W48+W50+W51 -> 19340375.33 | AE9: =AE12+AE13+AE15+AE19+AE48+AE50+AE51 -> 862955.6288 | AM9: =AM12+AM13+AM15+AM19+AM48+AM50+AM51 -> 7897575.442
C10: Withdrawal Zones | P10: =P8-P9 -> 68421665.85 | R10: =R8-R9 -> 475703.4894 | W10: =W8-W9 -> 45145376.04 | AE10: =AE8-AE9 -> -974910.3383 | AM10: =AM8-AM9 -> 23775496.65
A12: 1 | C12: =Pipeline_BA!D9 -> 1 Longford to Tyers (loop end) | G12: =Pipeline_BA!G9 -> LaTrobe | H12: =Pipeline_BA!H9 -> Longford | I12: =Pipeline_BA!I9 -> Tyers (end loop) | J12: =Pipeline_BA!K9 -> 64.7847 | K12: =Pipeline_BA!M9 -> 1 | L12: =(INDEX([6]Compressors_TA!$U$17:$U$60,MATCH(C12,[6]Compressors_TA!$D$17:$D$60,FALSE),1))*Pipeline_BA!$O9 -> 1363126.799 | M12: =(INDEX([6]CG_TA!$U$17:$U$60,MATCH(C12,[6]CG_TA!$D$17:$D$60,FALSE),1))*Pipeline_BA!$P9 -> 1012055.152 | N12: =(INDEX([6]Pipelines_TA!$U$17:$U$60,MATCH(C12,[6]Pipelines_TA!$D$17:$D$60,FALSE),1))*Pipeline_BA!$Q9 -> 100838021.1 | P12: =R12+W12+AE12+AM12 -> 4061225.962 | R12: =SUM(T12:U12) -> 30302.67785 | U12: =W12/SUM($W$12:$W$51)*RAB_Model_BO!$W$21 -> 30302.67785 | W12: =SUM(Y12:AC12) -> 2875795.148 | Y12: =$N12/$N$8*$Y$58 -> 2743234.796 | Z12: =$M12/$M$8*$Z$58 -> 56060.76783 | AA12: =$L12/$L$8*$AA$58 -> 63990.20055 | AB12: =AB58 -> 12509.38341 | AE12: =SUM(AG12:AK12) -> -131172.5807 | AG12: =$N12/$N$8*$AG$58 -> -170018.5534 | AH12: =$M12/$M$8*$AH$58 -> 18801.86606 | AI12: =$L12/$L$8*$AI$58 -> 8777.689652 | AJ12: =AJ58 -> 11266.41698 | AM12: =SUM(AO12:AS12) -> 1286300.717 | AO12: =IF(G12="Metro",$J12*Opex_Forecast_BA!$J$10,$J12*Opex_Forecast_BA!$J$8) -> 564034.3235 | AS12: ='O&M_Regulatory_TO'!J73+'O&M_Regulatory_TO'!J43 -> 722266.3938
A13: 1 | C13: =Pipeline_BA!D10 -> 2 Tyers (loop end) to Bunyip | G13: =Pipeline_BA!G10 -> West Gippsland | H13: =Pipeline_BA!H10 -> Tyers (end loop) | I13: =Pipeline_BA!I10 -> Bunyip | J13: =Pipeline_BA!K10 -> 62.0923 | K13: =Pipeline_BA!M10 -> 1 | L13: =(INDEX([6]Compressors_TA!$U$17:$U$60,MATCH(C13,[6]Compressors_TA!$D$17:$D$60,FALSE),1))*Pipeline_BA!$O10 -> 49907992.46 | M13: =(INDEX([6]CG_TA!$U$17:$U$60,MATCH(C13,[6]CG_TA!$D$17:$D$60,FALSE),1))*Pipeline_BA!$P10 -> 43457.77438 | N13: =(INDEX([6]Pipelines_TA!$U$17:$U$60,MATCH(C13,[6]Pipelines_TA!$D$17:$D$60,FALSE),1))*Pipeline_BA!$Q10 -> 96778122.74 | P13: =R13+W13+AE13+AM13 -> 6671139.988 | R13: =SUM(T13:U13) -> 52454.55655 | U13: =W13/SUM($W$12:$W$51)*RAB_Model_BO!$W$21 -> 52454.55655 | W13: =SUM(Y13:AC13) -> 4978060.353 | Y13: =$N13/$N$8*$Y$58 -> 2632787.819 | Z13: =$M13/$M$8*$Z$58 -> 2407.256359 | AA13: =$L13/$L$8*$AA$58 -> 2342865.278 | AE13: =SUM(AG13:AK13) -> 159010.48 | AG13: =$N13/$N$8*$AG$58 -> -163173.3372 | AH13: =$M13/$M$8*$AH$58 -> 807.3544724 | AI13: =$L13/$L$8*$AI$58 -> 321376.4627 | AM13: =SUM(AO13:AS13) -> 1481614.598 | AO13: =IF(G13="Metro",$J13*Opex_Forecast_BA!$J$10,$J13*Opex_Forecast_BA!$J$8) -> 540593.5109 | AQ13: ='O&M_Regulatory_TO'!J32 -> 941021.0872
A14: 1 | C14: =Pipeline_BA!D11 -> 3 Tyers to Morwell & Maryvale lateral | G14: =Pipeline_BA!G11 -> Maryvale | H14: =Pipeline_BA!H11 -> Maryvale lateral | I14: =Pipeline_BA!I11 -> 0 | J14: =Pipeline_BA!K11 -> 5.4 | K14: =Pipeline_BA!M11 -> 1 | L14: =(INDEX([6]Compressors_TA!$U$17:$U$60,MATCH(C14,[6]Compressors_TA!$D$17:$D$60,FALSE),1))*Pipeline_BA!$O11 -> 0 | M14: =(INDEX([6]CG_TA!$U$17:$U$60,MATCH(C14,[6]CG_TA!$D$17:$D$60,FALSE),1))*Pipeline_BA!$P11 -> 0 | N14: =(INDEX([6]Pipelines_TA!$U$17:$U$60,MATCH(C14,[6]Pipelines_TA!$D$17:$D$60,FALSE),1))*Pipeline_BA!$Q11*(J14/($J$15+$J$14+$J$16)) -> 2980695.398 | P14: 123930.7162 | R14: 854.435582 | U14: =W14/SUM($W$12:$W$51)*RAB_Model_BO!$W$21 -> 854.435582 | W14: 81087.93926 | Y14: =$N14/$N$8*$Y$58 -> 81087.93926 | Z14: 0 | AA14: 0 | AE14: -5025.619444 | AG14: -5025.619444 | AH14: 0 | AI14: 0 | AM14: 47013.96081 | AO14: =IF(G14="Metro",$J14*Opex_Forecast_BA!$J$10,$J14*Opex_Forecast_BA!$J$8) -> 47013.96081
A15: 1 | C15: =Pipeline_BA!D12 -> 3 Tyers to Morwell & Maryvale lateral | G15: =Pipeline_BA!G12 -> Tyers | H15: =Pipeline_BA!H12 -> Tyers | I15: =Pipeline_BA!I12 -> Morwell | J15: =Pipeline_BA!K12 -> 20.63046 | K15: =Pipeline_BA!M12 -> 1 | L15: =(INDEX([6]Compressors_TA!$U$17:$U$60,MATCH(C15,[6]Compressors_TA!$D$17:$D$60,FALSE),1))*Pipeline_BA!$O12 -> 0 | M15: =(INDEX([6]CG_TA!$U$17:$U$60,MATCH(C15,[6]CG_TA!$D$17:$D$60,FALSE),1))*Pipeline_BA!$P12 -> 2953297.504 | N15: =(INDEX([6]Pipelines_TA!$U$17:$U$60,MATCH(C15,[6]Pipelines_TA!$D$17:$D$60,FALSE),1))*Pipeline_BA!$Q12*(J15/($J$15+$J$14+$J$16)) -> 11387614.29 | P15: 741448.0114 | R15: 4988.126204 | U15: =W15/SUM($W$12:$W$51)*RAB_Model_BO!$W$21 -> 4988.126204 | W15: 473384.8673 | Y15: 309792.868 | Z15: 163591.9993 | AA15: 0 | AE15: 35665.92939 | AG15: -19200.15572 | AH15: 54866.08512 | AI15: 0 | AM15: 227409.0885 | AO15: =IF(G15="Metro",$J15*Opex_Forecast_BA!$J$10,$J15*Opex_Forecast_BA!$J$8) -> 179614.7478 | AP15: ='O&M_Regulatory_TO'!J55 -> 47794.34076
A16: 1 | C16: =Pipeline_BA!D13 -> 3 Tyers to Morwell & Maryvale lateral | G16: =Pipeline_BA!G13 -> LaTrobe | H16: =Pipeline_BA!H13 -> Latrobe | I16: =Pipeline_BA!I13 -> Morwell | J16: =Pipeline_BA!K13 -> 0 | K16: =Pipeline_BA!M13 -> 1 | L16: =(INDEX([6]Compressors_TA!$U$17:$U$60,MATCH(C16,[6]Compressors_TA!$D$17:$D$60,FALSE),1))*Pipeline_BA!$O13 -> 0 | M16: =(INDEX([6]CG_TA!$U$17:$U$60,MATCH(C16,[6]CG_TA!$D$17:$D$60,FALSE),1))*Pipeline_BA!$P13 -> 0 | N16: =(INDEX([6]Pipelines_TA!$U$17:$U$60,MATCH(C16,[6]Pipelines_TA!$D$17:$D$60,FALSE),1))*Pipeline_BA!$Q13*(J16/($J$15+$J$14+$J$16)) -> 0 | P16: 0 | R16: 0 | U16: =W16/SUM($W$12:$W$51)*RAB_Model_BO!$W$21 -> 0 | W16: 0 | Y16: 0 | Z16: 0 | AA16: 0 | AE16: 0 | AG16: 0 | AH16: 0 | AI16: 0 | AM16: 0 | AO16: =IF(G16="Metro",$J16*Opex_Forecast_BA!$J$10,$J16*Opex_Forecast_BA!$J$8) -> 0
A17: 1 | C17: =Pipeline_BA!D14 -> 4 Lurgi pipeline plus laterals | G17: =Pipeline_BA!G14 -> Lurgi | H17: =Pipeline_BA!H14 -> Morwell | I17: =Pipeline_BA!I14 -> Healsville - Koo Wee Rup Rd | J17: =Pipeline_BA!K14 -> 97.74857 | K17: =Pipeline_BA!M14 -> 1 | L17: =(INDEX([6]Compressors_TA!$U$17:$U$60,MATCH(C17,[6]Compressors_TA!$D$17:$D$60,FALSE),1))*Pipeline_BA!$O14 -> 0 | M17: =(INDEX([6]CG_TA!$U$17:$U$60,MATCH(C17,[6]CG_TA!$D$17:$D$60,FALSE),1))*Pipeline_BA!$P14 -> 0 | N17: =(INDEX([6]Pipelines_TA!$U$17:$U$60,MATCH(C17,[6]Pipelines_TA!$D$17:$D$60,FALSE),1))*Pipeline_BA!$Q14*(J17/($J$17+$J$18)) -> 7502564.207 | P17: 1044630.748 | R17: 2150.658473 | U17: =W17/SUM($W$12:$W$51)*RAB_Model_BO!$W$21 -> 2150.658473 | W17: 204102.5296 | Y17: 204102.5296 | Z17: 0 | AA17: 0 | AE17: -12649.74361 | AG17: -12649.74361 | AH17: 0 | AI17: 0 | AM17: 851027.3035 | AO17: =IF(G17="Metro",$J17*Opex_Forecast_BA!$J$10,$J17*Opex_Forecast_BA!$J$8) -> 851027.3035
A18: 1 | C18: =Pipeline_BA!D15 -> 4 Lurgi pipeline plus laterals | G18: =Pipeline_BA!G15 -> Metro | H18: =Pipeline_BA!H15 -> Healsville - Koo Wee Rup Rd | I18: =Pipeline_BA!I15 -> Dandenong | J18: =Pipeline_BA!K15 -> 30.62093 | K18: =Pipeline_BA!M15 -> 1 | L18: =(INDEX([6]Compressors_TA!$U$17:$U$60,MATCH(C18,[6]Compressors_TA!$D$17:$D$60,FALSE),1))*Pipeline_BA!$O15 -> 0 | M18: =(INDEX([6]CG_TA!$U$17:$U$60,MATCH(C18,[6]CG_TA!$D$17:$D$60,FALSE),1))*Pipeline_BA!$P15 -> 5111185.954 | N18: =(INDEX([6]Pipelines_TA!$U$17:$U$60,MATCH(C18,[6]Pipelines_TA!$D$17:$D$60,FALSE),1))*Pipeline_BA!$Q15*(J18/($J$17+$J$18)) -> 2350269.609 | P18: 1152053.756 | R18: 3657.038352 | U18: =W18/SUM($W$12:$W$51)*RAB_Model_BO!$W$21 -> 3657.038352 | W18: 347061.5105 | Y18: =$N18/$N$8*$Y$58 -> 63937.60308 | Z18: 283123.9074 | AA18: 0 | AE18: 90992.4489 | AG18: =$N18/$N$8*$AG$58 -> -3962.686241 | AH18: 94955.13514 | AI18: 0 | AM18: 710342.7587 | AO18: =IF(G18="Metro",$J18*Opex_Forecast_BA!$J$10,$J18*Opex_Forecast_BA!$J$8) -> 566959.7365 | AP18: ='O&M_Regulatory_TO'!J52+'O&M_Regulatory_TO'!J56 -> 143383.0223
A19: 1 | C19: =Pipeline_BA!D16 -> 5 Bunyip to Pakenham | G19: =Pipeline_BA!G16 -> Metro | H19: =Pipeline_BA!H16 -> Bunyip | I19: =Pipeline_BA!I16 -> Pakenham | J19: =Pipeline_BA!K16 -> 18.6693 | K19: =Pipeline_BA!M16 -> 1 | L19: =(INDEX([6]Compressors_TA!$U$17:$U$60,MATCH(C19,[6]Compressors_TA!$D$17:$D$60,FALSE),1))*Pipeline_BA!$O16 -> 0 | M19: =(INDEX([6]CG_TA!$U$17:$U$60,MATCH(C19,[6]CG_TA!$D$17:$D$60,FALSE),1))*Pipeline_BA!$P16 -> 0 | N19: =(INDEX([6]Pipelines_TA!$U$17:$U$60,MATCH(C19,[6]Pipelines_TA!$D$17:$D$60,FALSE),1))*Pipeline_BA!$Q16 -> 30756366.95 | P19: 1139337.275 | R19: 8816.511176 | U19: =W19/SUM($W$12:$W$51)*RAB_Model_BO!$W$21 -> 8816.511176 | W19: 836707.5737 | Y19: 836707.5737 | Z19: 0 | AA19: 0 | AE19: -51856.95788 | AG19: -51856.95788 | AH19: 0 | AI19: 0 | AM19: 345670.1481 | AO19: =IF(G19="Metro",$J19*Opex_Forecast_BA!$J$10,$J19*Opex_Forecast_BA!$J$8) -> 345670.1481
A20: 1 | C20: =Pipeline_BA!D17 -> 6 Pakenham to Wollert | G20: =Pipeline_BA!G17 -> Metro | H20: =Pipeline_BA!H17 -> Pakenham | I20: =Pipeline_BA!I17 -> Wollert | J20: =Pipeline_BA!K17 -> 92.4117 | K20: =Pipeline_BA!M17 -> 1 | L20: =(INDEX([6]Compressors_TA!$U$17:$U$60,MATCH(C20,[6]Compressors_TA!$D$17:$D$60,FALSE),1))*Pipeline_BA!$O17 -> 0 | M20: =(INDEX([6]CG_TA!$U$17:$U$60,MATCH(C20,[6]CG_TA!$D$17:$D$60,FALSE),1))*Pipeline_BA!$P17 -> 0 | N20: =(INDEX([6]Pipelines_TA!$U$17:$U$60,MATCH(C20,[6]Pipelines_TA!$D$17:$D$60,FALSE),1))*Pipeline_BA!$Q17 -> 142395247.6 | P20: 5385547.609 | R20: 40818.51715 | U20: =W20/SUM($W$12:$W$51)*RAB_Model_BO!$W$21 -> 40818.51715 | W20: 3873772.943 | Y20: 3873772.943 | Z20: 0 | AA20: 0 | AE20: -240086.3655 | AG20: -240086.3655 | AH20: 0 | AI20: 0 | AM20: 1711042.515 | AO20: =IF(G20="Metro",$J20*Opex_Forecast_BA!$J$10,$J20*Opex_Forecast_BA!$J$8) -> 1711042.515
A21: 1 | C21: =Pipeline_BA!D18 -> 7 Pakenham to Dandenong | G21: =Pipeline_BA!G18 -> Metro | H21: =Pipeline_BA!H18 -> Pakenham | I21: =Pipeline_BA!I18 -> Dandenong | J21: =Pipeline_BA!K18 -> 27.9937 | K21: =Pipeline_BA!M18 -> 1 | L21: =(INDEX([6]Compressors_TA!$U$17:$U$60,MATCH(C21,[6]Compressors_TA!$D$17:$D$60,FALSE),1))*Pipeline_BA!$O18 -> 0 | M21: =(INDEX([6]CG_TA!$U$17:$U$60,MATCH(C21,[6]CG_TA!$D$17:$D$60,FALSE),1))*Pipeline_BA!$P18 -> 0 | N21: =(INDEX([6]Pipelines_TA!$U$17:$U$60,MATCH(C21,[6]Pipelines_TA!$D$17:$D$60,FALSE),1))*Pipeline_BA!$Q18 -> 43572468.69 | P21: 1642701.687 | R21: 12490.32949 | U21: =W21/SUM($W$12:$W$51)*RAB_Model_BO!$W$21 -> 12490.32949 | W21: 1185361.542 | Y21: 1185361.542 | Z21: 0 | AA21: 0 | AE21: -73465.62349 | AG21: -73465.62349 | AH21: 0 | AI21: 0 | AM21: 518315.439 | AO21: =IF(G21="Metro",$J21*Opex_Forecast_BA!$J$10,$J21*Opex_Forecast_BA!$J$8) -> 518315.439
A22: 1 | C22: =Pipeline_BA!D19 -> 8 Dandenong to St. Kilda | G22: =Pipeline_BA!G19 -> Metro | H22: =Pipeline_BA!H19 -> Dandenong | I22: =Pipeline_BA!I19 -> St Kilda | J22: =Pipeline_BA!K19 -> 36.1183 | K22: =Pipeline_BA!M19 -> 1 | L22: =(INDEX([6]Compressors_TA!$U$17:$U$60,MATCH(C22,[6]Compressors_TA!$D$17:$D$60,FALSE),1))*Pipeline_BA!$O19 -> 0 | M22: =(INDEX([6]CG_TA!$U$17:$U$60,MATCH(C22,[6]CG_TA!$D$17:$D$60,FALSE),1))*Pipeline_BA!$P19 -> 20149673.74 | N22: =(INDEX([6]Pipelines_TA!$U$17:$U$60,MATCH(C22,[6]Pipelines_TA!$D$17:$D$60,FALSE),1))*Pipeline_BA!$Q19 -> 124102811.1 | P22: 5740446.757 | R22: 47335.91796 | U22: =W22/SUM($W$12:$W$51)*RAB_Model_BO!$W$21 -> 47335.91796 | W22: 4492289.554 | Y22: 3376138.74 | Z22: 1116150.814 | AA22: 0 | AE22: 165094.4636 | AG22: -209244.2927 | AH22: 374338.7563 | AI22: 0 | AM22: 1035726.821 | AO22: =IF(G22="Metro",$J22*Opex_Forecast_BA!$J$10,$J22*Opex_Forecast_BA!$J$8) -> 668745.9149 | AP22: ='O&M_Regulatory_TO'!J51 -> 350491.8322 | AS22: ='O&M_Regulatory_TO'!J74+'O&M_Regulatory_TO'!J44 -> 16489.07365
A23: 1 | C23: =Pipeline_BA!D20 -> 9 St. Kilda to Werribee | G23: =Pipeline_BA!G20 -> Metro | H23: =Pipeline_BA!H20 -> St Kilda | I23: =Pipeline_BA!I20 -> Werribee | J23: =Pipeline_BA!K20 -> 37.5682 | K23: =Pipeline_BA!M20 -> 1 | L23: =(INDEX([6]Compressors_TA!$U$17:$U$60,MATCH(C23,[6]Compressors_TA!$D$17:$D$60,FALSE),1))*Pipeline_BA!$O20 -> 11475405.31 | M23: =(INDEX([6]CG_TA!$U$17:$U$60,MATCH(C23,[6]CG_TA!$D$17:$D$60,FALSE),1))*Pipeline_BA!$P20 -> 834626.7806 | N23: =(INDEX([6]Pipelines_TA!$U$17:$U$60,MATCH(C23,[6]Pipelines_TA!$D$17:$D$60,FALSE),1))*Pipeline_BA!$Q20 -> 91203154.2 | P23: 5710438.942 | R23: 32307.47032 | U23: =W23/SUM($W$12:$W$51)*RAB_Model_BO!$W$21 -> 32307.47032 | W23: 3066054.652 | Y23: 2481124.315 | Z23: 46232.47862 | AA23: 538697.8585 | AE23: -64373.52918 | AG23: -153773.6279 | AH23: 15505.61835 | AI23: 73894.48036 | AM23: 2676450.349 | AO23: =IF(G23="Metro",$J23*Opex_Forecast_BA!$J$10,$J23*Opex_Forecast_BA!$J$8) -> 695591.4393 | AQ23: ='O&M_Regulatory_TO'!J31*(1-Pipeline_BA!O20) -> 1980858.91
A24: 1 | C24: =Pipeline_BA!D21 -> 10 Werribee to Geelong | G24: =Pipeline_BA!G21 -> Metro | H24: =Pipeline_BA!H21 -> Werribee | I24: =Pipeline_BA!I21 -> Little River | J24: =Pipeline_BA!K21 -> 17.5975 | K24: =Pipeline_BA!M21 -> 1 | L24: =(INDEX([6]Compressors_TA!$U$17:$U$60,MATCH(C24,[6]Compressors_TA!$D$17:$D$60,FALSE),1))*Pipeline_BA!$O21 -> 0 | M24: =(INDEX([6]CG_TA!$U$17:$U$60,MATCH(C24,[6]CG_TA!$D$17:$D$60,FALSE),1))*Pipeline_BA!$P21 -> 0 | N24: =(INDEX([6]Pipelines_TA!$U$17:$U$60,MATCH(C24,[6]Pipelines_TA!$D$17:$D$60,FALSE),1))*Pipeline_BA!$Q21*(J24/($J$24+$J$25)) -> 12372180.11 | P24: 645089.0453 | R24: 3546.565314 | U24: =W24/SUM($W$12:$W$51)*RAB_Model_BO!$W$21 -> 3546.565314 | W24: 336577.3603 | Y24: 336577.3603 | Z24: 0 | AA24: 0 | AE24: -20860.18885 | AG24: -20860.18885 | AH24: 0 | AI24: 0 | AM24: 325825.3085 | AO24: =IF(G24="Metro",$J24*Opex_Forecast_BA!$J$10,$J24*Opex_Forecast_BA!$J$8) -> 325825.3085
A25: 1 | C25: =Pipeline_BA!D22 -> 10 Werribee to Geelong | G25: =Pipeline_BA!G22 -> Metro | H25: =Pipeline_BA!H22 -> Little River | I25: =Pipeline_BA!I22 -> Geelong | J25: =Pipeline_BA!K22 -> 18.1277 | K25: =Pipeline_BA!M22 -> 1 | L25: =(INDEX([6]Compressors_TA!$U$17:$U$60,MATCH(C25,[6]Compressors_TA!$D$17:$D$60,FALSE),1))*Pipeline_BA!$O22 -> 0 | M25: =(INDEX([6]CG_TA!$U$17:$U$60,MATCH(C25,[6]CG_TA!$D$17:$D$60,FALSE),1))*Pipeline_BA!$P22 -> 0 | N25: =(INDEX([6]Pipelines_TA!$U$17:$U$60,MATCH(C25,[6]Pipelines_TA!$D$17:$D$60,FALSE),1))*Pipeline_BA!$Q22*(J25/($J$24+$J$25)) -> 12744944.98 | P25: 664525.1136 | R25: 3653.420773 | U25: =W25/SUM($W$12:$W$51)*RAB_Model_BO!$W$21 -> 3653.420773 | W25: 346718.1938 | Y25: =$N25/$N$8*$Y$58 -> 346718.1938 | Z25: 0 | AA25: 0 | AE25: -21488.69132 | AG25: -21488.69132 | AH25: 0 | AI25: 0 | AM25: 335642.1903 | AO25: =IF(G25="Metro",$J25*Opex_Forecast_BA!$J$10,$J25*Opex_Forecast_BA!$J$8) -> 335642.1903
A26: 1 | C26: =Pipeline_BA!D23 -> 11 Brooklyn to Ballan Junction | G26: =Pipeline_BA!G23 -> Metro | H26: =Pipeline_BA!H23 -> Brooklyn | I26: =Pipeline_BA!I23 -> Melton South City Gate | J26: =Pipeline_BA!K23 -> 26.245 | K26: =Pipeline_BA!M23 -> 1 | L26: =L23*Pipeline_BA!$O$23/Pipeline_BA!$O$20 -> 65027296.78 | M26: =(INDEX([6]CG_TA!$U$17:$U$60,MATCH(C26,[6]CG_TA!$D$17:$D$60,FALSE),1))*Pipeline_BA!$P23*(J26/($J$26+$J$27)) -> 387967.1444 | N26: =(INDEX([6]Pipelines_TA!$U$17:$U$60,MATCH(C26,[6]Pipelines_TA!$D$17:$D$60,FALSE),1))*Pipeline_BA!$Q23*(J26/($J$26+$J$27)) -> 7640647.372 | P26: 4565114.754 | R26: 34582.61123 | U26: =W26/SUM($W$12:$W$51)*RAB_Model_BO!$W$21 -> 34582.61123 | W26: 3281970.856 | Y26: 207858.995 | Z26: 21490.6628 | AA26: 3052621.198 | AE26: 413060.4465 | AG26: -12882.55956 | AH26: 7207.617362 | AI26: 418735.3887 | AM26: 835500.8407 | AO26: =IF(G26="Metro",$J26*Opex_Forecast_BA!$J$10,$J26*Opex_Forecast_BA!$J$8) -> 485937.5036 | AQ26: ='O&M_Regulatory_TO'!J31*(1-Pipeline_BA!O23) -> 349563.337
A27: 1 | C27: =Pipeline_BA!D24 -> 11 Brooklyn to Ballan Junction | G27: =Pipeline_BA!G24 -> Calder | H27: =Pipeline_BA!H24 -> Melton South City Gate | I27: =Pipeline_BA!I24 -> Ballan Junction | J27: =Pipeline_BA!K24 -> 40.3542 | K27: =Pipeline_BA!M24 -> 1 | L27: =(INDEX([6]Compressors_TA!$U$17:$U$60,MATCH(C27,[6]Compressors_TA!$D$17:$D$60,FALSE),1))*Pipeline_BA!$O24 -> 0 | M27: =(INDEX([6]CG_TA!$U$17:$U$60,MATCH(C27,[6]CG_TA!$D$17:$D$60,FALSE),1))*Pipeline_BA!$P24*(J27/($J$26+$J$27)) -> 596536.6255 | N27: =(INDEX([6]Pipelines_TA!$U$17:$U$60,MATCH(C27,[6]Pipelines_TA!$D$17:$D$60,FALSE),1))*Pipeline_BA!$Q24*(J27/($J$26+$J$27)) -> 11748226.79 | P27: 698972.5114 | R27: 3715.89406 | U27: =W27/SUM($W$12:$W$51)*RAB_Model_BO!$W$21 -> 3715.89406 | W27: 352647.0551 | Y27: 319603.1037 | Z27: 33043.95141 | AA27: 0 | AE27: -8725.766905 | AG27: -19808.1686 | AH27: 11082.4017 | AI27: 0 | AM27: 351335.3291 | AO27: =IF(G27="Metro",$J27*Opex_Forecast_BA!$J$10,$J27*Opex_Forecast_BA!$J$8) -> 351335.3291
A28: 1 | C28: =Pipeline_BA!D25 -> 12 Ballan Junction to Ballarat | G28: =Pipeline_BA!G25 -> Calder | H28: =Pipeline_BA!H25 -> Ballan Jctn | I28: =Pipeline_BA!I25 -> Ballarat | J28: =Pipeline_BA!K25 -> 22.6004 | K28: =Pipeline_BA!M25 -> 1 | L28: =(INDEX([6]Compressors_TA!$U$17:$U$60,MATCH(C28,[6]Compressors_TA!$D$17:$D$60,FALSE),1))*Pipeline_BA!$O25 -> 0 | M28: =(INDEX([6]CG_TA!$U$17:$U$60,MATCH(C28,[6]CG_TA!$D$17:$D$60,FALSE),1))*Pipeline_BA!$P25 -> 0 | N28: =(INDEX([6]Pipelines_TA!$U$17:$U$60,MATCH(C28,[6]Pipelines_TA!$D$17:$D$60,FALSE),1))*Pipeline_BA!$Q25 -> 14927385.6 | P28: 581966.3528 | R28: 4279.031468 | U28: =W28/SUM($W$12:$W$51)*RAB_Model_BO!$W$21 -> 4279.031468 | W28: 406090.115 | Y28: 406090.115 | Z28: 0 | AA28: 0 | AE28: -25168.40848 | AG28: -25168.40848 | AH28: 0 | AI28: 0 | AM28: 196765.6148 | AO28: =IF(G28="Metro",$J28*Opex_Forecast_BA!$J$10,$J28*Opex_Forecast_BA!$J$8) -> 196765.6148
A29: 1 | C29: =Pipeline_BA!D26 -> 13 Wollert to Euroa | G29: =Pipeline_BA!G26 -> South Hume | H29: =Pipeline_BA!H26 -> Wollert | I29: =Pipeline_BA!I26 -> Euroa | J29: =Pipeline_BA!K26 -> 124.3139 | K29: =Pipeline_BA!M26 -> 0.2 | L29: =(INDEX([6]Compressors_TA!$U$17:$U$60,MATCH(C29,[6]Compressors_TA!$D$17:$D$60,FALSE),1))*Pipeline_BA!$O26 -> 4300516.798 | M29: =(INDEX([6]CG_TA!$U$17:$U$60,MATCH(C29,[6]CG_TA!$D$17:$D$60,FALSE),1))*Pipeline_BA!$P26 -> 1067088.38 | N29: =(INDEX([6]Pipelines_TA!$U$17:$U$60,MATCH(C29,[6]Pipelines_TA!$D$17:$D$60,FALSE),1))*Pipeline_BA!$Q26 -> 394557488.6 | P29: 13267257.16 | R29: 115852.5561 | U29: =W29/SUM($W$12:$W$51)*RAB_Model_BO!$W$21 -> 115852.5561 | W29: =SUM(Y29:AC29) -> 10994679.09 | Y29: =$N29/$N$8*$Y$58 -> 10733687.75 | Z29: 59109.22326 | AA29: 201882.1232 | AE29: -617729.1076 | AG29: =$N29/$N$8*$AG$58 -> -665246.0321 | AH29: 19824.26823 | AI29: 27692.65619 | AM29: 2774454.622 | AO29: =IF(G29="Metro",$J29*Opex_Forecast_BA!$J$10,$J29*Opex_Forecast_BA!$J$8) -> 1082312.745 | AP29: ='O&M_Regulatory_TO'!J62+'O&M_Regulatory_TO'!J64 -> 71691.51114 | AQ29: ='O&M_Regulatory_TO'!J33 -> 1620450.366
A30: 1 | C30: =Pipeline_BA!D27 -> 14 Ballan Junction to Daylesford Jctn | G30: =Pipeline_BA!G27 -> Calder | H30: =Pipeline_BA!H27 -> Ballan Junction | I30: =Pipeline_BA!I27 -> Daylesford Junction | J30: =Pipeline_BA!K27 -> 39.9597 | K30: =Pipeline_BA!M27 -> 1 | L30: =(INDEX([6]Compressors_TA!$U$17:$U$60,MATCH(C30,[6]Compressors_TA!$D$17:$D$60,FALSE),1))*Pipeline_BA!$O27 -> 0 | M30: =(INDEX([6]CG_TA!$U$17:$U$60,MATCH(C30,[6]CG_TA!$D$17:$D$60,FALSE),1))*Pipeline_BA!$P27 -> 0 | N30: =(INDEX([6]Pipelines_TA!$U$17:$U$60,MATCH(C30,[6]Pipelines_TA!$D$17:$D$60,FALSE),1))*Pipeline_BA!$Q27 -> 6810412.273 | P30: 523643.1826 | R30: 1952.248652 | U30: =W30/SUM($W$12:$W$51)*RAB_Model_BO!$W$21 -> 1952.248652 | W30: 185272.9725 | Y30: 185272.9725 | Z30: 0 | AA30: 0 | AE30: -11482.73667 | AG30: -11482.73667 | AH30: 0 | AI30: 0 | AM30: 347900.6981 | AO30: =IF(G30="Metro",$J30*Opex_Forecast_BA!$J$10,$J30*Opex_Forecast_BA!$J$8) -> 347900.6981
A31: 1 | C31: =Pipeline_BA!D28 -> 15 Daylesford Junction to Bendigo | G31: =Pipeline_BA!G28 -> Calder | H31: =Pipeline_BA!H28 -> Daylesford Junction | I31: =Pipeline_BA!I28 -> Bendigo | J31: =Pipeline_BA!K28 -> 50.7336 | K31: =Pipeline_BA!M28 -> 1 | L31: =(INDEX([6]Compressors_TA!$U$17:$U$60,MATCH(C31,[6]Compressors_TA!$D$17:$D$60,FALSE),1))*Pipeline_BA!$O28 -> 0 | M31: =(INDEX([6]CG_TA!$U$17:$U$60,MATCH(C31,[6]CG_TA!$D$17:$D$60,FALSE),1))*Pipeline_BA!$P28 -> 162879.546 | N31: =(INDEX([6]Pipelines_TA!$U$17:$U$60,MATCH(C31,[6]Pipelines_TA!$D$17:$D$60,FALSE),1))*Pipeline_BA!$Q28 -> 25728073.98 | P31: 1117756.981 | R31: 7470.188746 | U31: =W31/SUM($W$12:$W$51)*RAB_Model_BO!$W$21 -> 7470.188746 | W31: 708938.4197 | Y31: 699916.0336 | Z31: 9022.386175 | AA31: 0 | AE31: -40353.01324 | AG31: -43378.97423 | AH31: 3025.960988 | AI31: 0 | AM31: 441701.3856 | AO31: =IF(G31="Metro",$J31*Opex_Forecast_BA!$J$10,$J31*Opex_Forecast_BA!$J$8) -> 441701.3856
A32: 1 | C32: =Pipeline_BA!D29 -> 16 Guilford to Maryborough | G32: =Pipeline_BA!G29 -> Calder | H32: =Pipeline_BA!H29 -> Guildford | I32: =Pipeline_BA!I29 -> Maryborough | J32: =Pipeline_BA!K29 -> 31.3668 | K32: =Pipeline_BA!M29 -> 1 | L32: =(INDEX([6]Compressors_TA!$U$17:$U$60,MATCH(C32,[6]Compressors_TA!$D$17:$D$60,FALSE),1))*Pipeline_BA!$O29 -> 0 | M32: =(INDEX([6]CG_TA!$U$17:$U$60,MATCH(C32,[6]CG_TA!$D$17:$D$60,FALSE),1))*Pipeline_BA!$P29 -> 0 | N32: =(INDEX([6]Pipelines_TA!$U$17:$U$60,MATCH(C32,[6]Pipelines_TA!$D$17:$D$60,FALSE),1))*Pipeline_BA!$Q29 -> 7950175.717 | P32: 478242.473 | R32: 2278.969203 | U32: =W32/SUM($W$12:$W$51)*RAB_Model_BO!$W$21 -> 2278.969203 | W32: 216279.5185 | Y32: =$N32/$N$8*$Y$58 -> 216279.5185 | Z32: 0 | AA32: 0 | AE32: -13404.44169 | AG32: -13404.44169 | AH32: 0 | AI32: 0 | AM32: 273088.427 | AO32: =IF(G32="Metro",$J32*Opex_Forecast_BA!$J$10,$J32*Opex_Forecast_BA!$J$8) -> 273088.427
A33: 1 | C33: =Pipeline_BA!D30 -> 17 Wandong to Daylesford Junction | G33: =Pipeline_BA!G30 -> Calder | H33: =Pipeline_BA!H30 -> Wandong | I33: =Pipeline_BA!I30 -> Daylesford Junction | J33: =Pipeline_BA!K30 -> 84.0628 | K33: =Pipeline_BA!M30 -> 1 | L33: =(INDEX([6]Compressors_TA!$U$17:$U$60,MATCH(C33,[6]Compressors_TA!$D$17:$D$60,FALSE),1))*Pipeline_BA!$O30 -> 24716.12492 | M33: =(INDEX([6]CG_TA!$U$17:$U$60,MATCH(C33,[6]CG_TA!$D$17:$D$60,FALSE),1))*Pipeline_BA!$P30 -> 129165.1622 | N33: =(INDEX([6]Pipelines_TA!$U$17:$U$60,MATCH(C33,[6]Pipelines_TA!$D$17:$D$60,FALSE),1))*Pipeline_BA!$Q30 -> 28858686.84 | P33: 1535328.427 | R33: 8360.146476 | U33: =W33/SUM($W$12:$W$51)*RAB_Model_BO!$W$21 -> 8360.146476 | W33: 793397.4941 | Y33: 785082.3826 | Z33: 7154.845424 | AA33: 1160.266082 | AE33: -46098.58809 | AG33: -48657.3629 | AH33: 2399.618317 | AI33: 159.1564879 | AM33: 779669.375 | AO33: =IF(G33="Metro",$J33*Opex_Forecast_BA!$J$10,$J33*Opex_Forecast_BA!$J$8) -> 731875.0342 | AP33: ='O&M_Regulatory_TO'!J65 -> 47794.34076
A34: 1 | C34: =Pipeline_BA!D31 -> 18 Euroa to Wodonga | G34: =Pipeline_BA!G31 -> North Hume | H34: =Pipeline_BA!H31 -> Euroa | I34: =Pipeline_BA!I31 -> Barnawartha City Gate | J34: =Pipeline_BA!K31 -> 134.1846 | K34: =Pipeline_BA!M31 -> 1 | L34: =(INDEX([6]Compressors_TA!$U$17:$U$60,MATCH(C34,[6]Compressors_TA!$D$17:$D$60,FALSE),1))*Pipeline_BA!$O31 -> 25981528.63 | M34: =(INDEX([6]CG_TA!$U$17:$U$60,MATCH(C34,[6]CG_TA!$D$17:$D$60,FALSE),1))*Pipeline_BA!$P31 -> 501019.2408 | N34: =(INDEX([6]Pipelines_TA!$U$17:$U$60,MATCH(C34,[6]Pipelines_TA!$D$17:$D$60,FALSE),1))*Pipeline_BA!$Q31*(J34/($J$34+$J$35)) -> 61717666.31 | P34: 4882510.6 | R34: 30836.03469 | U34: =W34/SUM($W$12:$W$51)*RAB_Model_BO!$W$21 -> 30836.03469 | W34: 2926411.962 | Y34: =$N34/$N$8*$Y$58 -> 1678990.205 | Z34: 27752.95722 | AA34: 1219668.8 | AE34: 72553.34696 | AG34: =$N34/$N$8*$AG$58 -> -104059.4433 | AH34: 9307.888648 | AI34: 167304.9016 | AM34: 1852709.256 | AO34: =IF(G34="Metro",$J34*Opex_Forecast_BA!$J$10,$J34*Opex_Forecast_BA!$J$8) -> 1168249.912 | AQ34: ='O&M_Regulatory_TO'!J37*Pipeline_BA!O31 -> 684459.344
A35: 1 | C35: =Pipeline_BA!D32 -> 18 Euroa to Wodonga | G35: =Pipeline_BA!G32 -> Wodonga | H35: =Pipeline_BA!H32 -> Barnawartha City Gate | I35: =Pipeline_BA!I32 -> Wodonga | J35: =Pipeline_BA!K32 -> 10.6693 | K35: =Pipeline_BA!M32 -> 1 | L35: =(INDEX([6]Compressors_TA!$U$17:$U$60,MATCH(C35,[6]Compressors_TA!$D$17:$D$60,FALSE),1))*Pipeline_BA!$O32 -> 0 | M35: =(INDEX([6]CG_TA!$U$17:$U$60,MATCH(C35,[6]CG_TA!$D$17:$D$60,FALSE),1))*Pipeline_BA!$P32 -> 0 | N35: =(INDEX([6]Pipelines_TA!$U$17:$U$60,MATCH(C35,[6]Pipelines_TA!$D$17:$D$60,FALSE),1))*Pipeline_BA!$Q32*(J35/($J$34+$J$35)) -> 4907301.562 | P35: 219522.7793 | R35: 1406.709679 | U35: =W35/SUM($W$12:$W$51)*RAB_Model_BO!$W$21 -> 1406.709679 | W35: 133500.0454 | Y35: =$N35/$N$8*$Y$58 -> 133500.0454 | Z35: 0 | AA35: 0 | AE35: -8273.985379 | AG35: -8273.985379 | AH35: 0 | AI35: 0 | AM35: 92890.00964 | AO35: =IF(G35="Metro",$J35*Opex_Forecast_BA!$J$10,$J35*Opex_Forecast_BA!$J$8) -> 92890.00964
A36: 1 | C36: =Pipeline_BA!D33 -> 19 Euroa to Kyabram | G36: =Pipeline_BA!G33 -> Echuca | H36: =Pipeline_BA!H33 -> Euroa | I36: =Pipeline_BA!I33 -> Kyabram | J36: =Pipeline_BA!K33 -> 71.9217 | K36: =Pipeline_BA!M33 -> 1 | L36: =L34*Pipeline_BA!$O$33/Pipeline_BA!$O$31 -> 4584975.641 | M36: =(INDEX([6]CG_TA!$U$17:$U$60,MATCH(C36,[6]CG_TA!$D$17:$D$60,FALSE),1))*Pipeline_BA!$P33 -> 0 | N36: =(INDEX([6]Pipelines_TA!$U$17:$U$60,MATCH(C36,[6]Pipelines_TA!$D$17:$D$60,FALSE),1))*Pipeline_BA!$Q33 -> 14702697.78 | P36: 2057848.106 | R36: 6482.593277 | U36: =W36/SUM($W$12:$W$51)*RAB_Model_BO!$W$21 -> 6482.593277 | W36: 615213.2951 | Y36: 399977.6244 | Z36: 0 | AA36: 215235.6707 | AE36: 4734.822184 | AG36: -24789.57222 | AH36: 0 | AI36: 29524.3944 | AM36: 1431417.395 | AO36: =IF(G36="Metro",$J36*Opex_Forecast_BA!$J$10,$J36*Opex_Forecast_BA!$J$8) -> 626171.1083 | AP36: ='O&M_Regulatory_TO'!J60 -> 0 | AQ36: ='O&M_Regulatory_TO'!J37*Pipeline_BA!M31 -> 805246.287
A37: 1 | C37: =Pipeline_BA!D34 -> 20 Kyabram to Echuca | G37: =Pipeline_BA!G34 -> Echuca | H37: =Pipeline_BA!H34 -> Kyabram | I37: =Pipeline_BA!I34 -> Echuca | J37: =Pipeline_BA!K34 -> 30.6476 | K37: =Pipeline_BA!M34 -> 1 | L37: =(INDEX([6]Compressors_TA!$U$17:$U$60,MATCH(C37,[6]Compressors_TA!$D$17:$D$60,FALSE),1))*Pipeline_BA!$O34 -> 0 | M37: =(INDEX([6]CG_TA!$U$17:$U$60,MATCH(C37,[6]CG_TA!$D$17:$D$60,FALSE),1))*Pipeline_BA!$P34 -> 0 | N37: =(INDEX([6]Pipelines_TA!$U$17:$U$60,MATCH(C37,[6]Pipelines_TA!$D$17:$D$60,FALSE),1))*Pipeline_BA!$Q34 -> 4912533.492 | P37: 393594.6434 | R37: 1408.209445 | U37: =W37/SUM($W$12:$W$51)*RAB_Model_BO!$W$21 -> 1408.209445 | W37: 133642.3767 | Y37: =$N37/$N$8*$Y$58 -> 133642.3767 | Z37: 0 | AA37: 0 | AE37: -8282.806706 | AG37: -8282.806706 | AH37: 0 | AI37: 0 | AM37: 266826.8639 | AO37: =IF(G37="Metro",$J37*Opex_Forecast_BA!$J$10,$J37*Opex_Forecast_BA!$J$8) -> 266826.8639
A38: 1 | C38: =Pipeline_BA!D35 -> 21 Wollert to Keon Park | G38: =Pipeline_BA!G35 -> Metro | H38: =Pipeline_BA!H35 -> Wollert | I38: =Pipeline_BA!I35 -> Keon Park | J38: =Pipeline_BA!K35 -> 18.8452 | K38: =Pipeline_BA!M35 -> 1 | L38: =(INDEX([6]Compressors_TA!$U$17:$U$60,MATCH(C38,[6]Compressors_TA!$D$17:$D$60,FALSE),1))*Pipeline_BA!$O35 -> 0 | M38: =(INDEX([6]CG_TA!$U$17:$U$60,MATCH(C38,[6]CG_TA!$D$17:$D$60,FALSE),1))*Pipeline_BA!$P35 -> 2300659.093 | N38: =(INDEX([6]Pipelines_TA!$U$17:$U$60,MATCH(C38,[6]Pipelines_TA!$D$17:$D$60,FALSE),1))*Pipeline_BA!$Q35 -> 21152169.35 | P38: 1225597.267 | R38: 7406.264242 | U38: =W38/SUM($W$12:$W$51)*RAB_Model_BO!$W$21 -> 7406.264242 | W38: 702871.8344 | Y38: 575431.4326 | Z38: 127440.4018 | AA38: 0 | AE38: 7077.687049 | AG38: -35663.74263 | AH38: 42741.42968 | AI38: 0 | AM38: 508241.4817 | AO38: =IF(G38="Metro",$J38*Opex_Forecast_BA!$J$10,$J38*Opex_Forecast_BA!$J$8) -> 348927.0125 | AP38: ='O&M_Regulatory_TO'!J53 -> 159314.4692
A39: 1 | C39: =Pipeline_BA!D36 -> 22 Deer Park to Sunbury | G39: =Pipeline_BA!G36 -> Metro | H39: =Pipeline_BA!H36 -> Deer Park | I39: =Pipeline_BA!I36 -> Sunbury | J39: =Pipeline_BA!K36 -> 24.0279 | K39: =Pipeline_BA!M36 -> 1 | L39: =(INDEX([6]Compressors_TA!$U$17:$U$60,MATCH(C39,[6]Compressors_TA!$D$17:$D$60,FALSE),1))*Pipeline_BA!$O36 -> 0 | M39: =(INDEX([6]CG_TA!$U$17:$U$60,MATCH(C39,[6]CG_TA!$D$17:$D$60,FALSE),1))*Pipeline_BA!$P36 -> 7321.428679 | N39: =(INDEX([6]Pipelines_TA!$U$17:$U$60,MATCH(C39,[6]Pipelines_TA!$D$17:$D$60,FALSE),1))*Pipeline_BA!$Q36 -> 25525029.06 | P39: 1104105.396 | R39: 7321.187794 | U39: =W39/SUM($W$12:$W$51)*RAB_Model_BO!$W$21 -> 7321.187794 | W39: 694797.8802 | Y39: =$N39/$N$8*$Y$58 -> 694392.3243 | Z39: 405.5558757 | AA39: 0 | AE39: -42900.61229 | AG39: -43036.6291 | AH39: 136.016818 | AI39: 0 | AM39: 444886.9401 | AO39: =IF(G39="Metro",$J39*Opex_Forecast_BA!$J$10,$J39*Opex_Forecast_BA!$J$8) -> 444886.9401
